Workbook

Sheet Menu
Z1: 3
Z4: 2
A6: South Plains Extension District - 2
D8: Budgets
D11: Forage Crops
D13: =+AlfalfaEstablish!A3 -> Irrigated Alfalfa Establishment
D14: =AlfalfaHay!A3 -> Irrigated Alfalfa
D15: =CornSilage!A3 -> Irrigated Corn Silage
D16: =SorghumSilage!A3 -> Irrigated Sorghum Silage
B18: Comparative Returns | D18: Field Crops - Irrigated
D20: =Blackeyes!A3 -> Irrigated Blackeyed Peas
D21: =+Corn!A3 -> Irrigated Corn
D22: =CottonDrip!A3 -> Irrigated Cotton - Drip
D23: =CottonPivot!A3 -> Irrigated Cotton - Pivot
D24: =GuarIrragated!A3 -> Irrigated Guar
D25: =Peanuts!A3 -> Irrigated Peanuts
D26: =SesameIrrigated!A3 -> Irrigated Sesame
D27: =SorghumIrrigated!A3 -> Irrigated Sorghum
D28: =Soybeans!A3 -> Irrigated Soybeans
D29: =SunflowersConfectionary!A3 -> Irrigated Sunflowers - Confectionary
D30: =SunflowersOilseed!A3 -> Irrigated Sunflowers - Oilseed
D31: =WheatIrrigated!A3 -> Irrigated Wheat
D33: Field Crops - Dryland
D35: =CottonDryland!A3 -> Dryland Cotton - Herbicide Tolerant
D36: =GuarDryland!A3 -> Dryland Guar - Herbicide Tolerant
D37: =SesameDryland!A3 -> Dryland Sesame
D38: =SorghumDryland!A3 -> Dryland Sorghum
D39: =SunflowersDryland!A3 -> Dryland Sunflowers - Oilseed
D40: =WheatDryland!A3 -> Dryland Wheat
D42: Livestock
D44: =+CowCalf!A3 -> Rolling Plains Cow-Calf Production
D45: =+StockersMar1!A3 -> Stocker Calf Budget - Pull off Wheat March 1
D46: =+StockersGrazeOut!A3 -> Stocker Calf Budget - Grazeout
D48: Other Budgets
D50: ='Livestock Budget'!A3 -> Livestock Enterprise
D51: ='Crop Budget'!A3 -> Crop Enterprise
A54: Developed by Andrew Wright, Assistant Professor and Extension Specialist, Texas A&M AgriLife Extension, 806-746-6101

Sheet Links
B2: Texas Crop and Livestock Budgets
B3: A Program of the Texas A&M AgriLife Extension Service
B4: Agricultural Economics Department, The Texas A&M University System
B6: Developed by Texas A&M AgriLife Extension Service Economists and Other Specialists
B8: Contact Us | G8: Clickable Logos
B10: Resources
B12: Decision Aids (includes Machinery Cost Estimator)
B14: Custom Rate Survey
B16: Basis Data
B18: Master Marketer
B20: Extension Ag Economics
B22: Department of Agricultural Economics
B24: Menu Page
B26: Links last checked 11/14/2024

Sheet AlfalfaEstablish
A1: Projections for Planning Purposes Only -- Not to be Used without Updating
A2: 2025 Estimated Costs and Returns per Acre
A3: Irrigated Alfalfa Establishment
A4: Enter your name for this budget in the cell above.
A5: Enter Your Values in the cells highlighed in MAROON.
E6: Your Acres | R6: Your
C7: Crop Acres | D7: 122 | L7: Your | Q7: Enterprise | R7: Enterprise
E8: Your | H8: Your | I8: Cash | J8: Your | K8: Landlord | L8: Landlord | N8: Your | P8: Your | Q8: Total | R8: Total
A9: REVENUE | D9: Quantity | E9: Quantity | F9: Units | G9: $/Unit | H9: $/Unit | I9: Total | J9: Total | K9: Share | L9: Share | M9: Landlord | N9: Landlord | O9: Tenant | P9: Tenant | Q9: (122 acres) | R9: ="(" & E7 & " acres)" -> ( acres)
B10: 0 | D10: 0 | G10: 0 | I10: 0 | J10: =E10*H10 -> 0 | K10: 0 | M10: 0 | N10: =J10*L10 -> 0 | O10: 0 | P10: =+J10-N10 -> 0 | Q10: 0 | R10: =+J10*E$7 -> 0
D11: 0 | G11: 0 | I11: 0 | J11: 0 | K11: 0 | M11: 0 | N11: 0 | O11: 0 | P11: 0 | Q11: 0 | R11: 0
D12: 0 | G12: 0 | I12: 0 | J12: 0 | K12: 0 | M12: 0 | N12: 0 | O12: 0 | P12: 0 | Q12: 0 | R12: 0
A13: Total Revenue | I13: 0 | J13: =SUM(J10:J12) -> 0 | M13: 0 | N13: =SUM(N10:N12) -> 0 | O13: 0 | P13: =SUM(P10:P12) -> 0 | Q13: 0 | R13: =SUM(R10:R12) -> 0
Q14: Enterprise | R14: Enterprise
A15: VARIABLE COSTS | D15: Quantity | E15: Quantity | F15: Units | G15: $/Unit | H15: $/Unit | I15: Total | J15: Total | K15: Share | L15: Share | M15: Landlord | N15: Landlord | O15: Tenant | P15: Tenant | Q15: Total | R15: Total
A16: Production Costs
B17: Custom
C18: Fertilizer Application - Dry | D18: 1 | F18: Acre | G18: 4 | I18: 4 | J18: =E18*H18 -> 0 | K18: 0 | M18: 0 | N18: =J18*L18 -> 0 | O18: 4 | P18: =+J18-N18 -> 0 | Q18: 488 | R18: =+J18*E$7 -> 0
B19: Fertilizer
C20: Fertilizer (P) - Dry | D20: 80 | F20: Pound | G20: 0.47 | I20: 37.6 | J20: 0 | K20: 0 | M20: 0 | N20: 0 | O20: 37.6 | P20: 0 | Q20: 4587.2 | R20: 0
B21: Herbicide
C22: Herbicide and Application Alfalfa | D22: 1 | F22: Acre | G22: 22 | I22: 22 | J22: 0 | K22: 0 | M22: 0 | N22: 0 | O22: 22 | P22: 0 | Q22: 2684 | R22: 0
B23: Seed
C24: Seed - Alfalfa | D24: 18 | F24: Pound | G24: 4.25 | I24: 76.5 | J24: 0 | K24: 0 | M24: 0 | N24: 0 | O24: 76.5 | P24: 0 | Q24: 9333 | R24: 0
D25: 0 | G25: 0 | I25: 0 | J25: 0 | K25: 0 | M25: 0 | N25: 0 | O25: 0 | P25: 0 | Q25: 0 | R25: 0
D26: 0 | G26: 0 | I26: 0 | J26: 0 | K26: 0 | M26: 0 | N26: 0 | O26: 0 | P26: 0 | Q26: 0 | R26: 0
D27: 0 | G27: 0 | I27: 0 | J27: =E27*H27 -> 0 | K27: 0 | M27: 0 | N27: =J27*L27 -> 0 | O27: 0 | P27: =+J27-N27 -> 0 | Q27: 0 | R27: =+J27*E$7 -> 0
B28: Irrigation
C29: Energy Cost | D29: 6 | F29: AcreInch | G29: 10 | I29: 60 | J29: =E29*H29 -> 0 | K29: 0 | M29: 0 | N29: =J29*L29 -> 0 | O29: 60 | P29: =+J29-N29 -> 0 | Q29: 7320 | R29: =+J29*E$7 -> 0
C30: Irrigation Labor | D30: 1 | F30: Hour | G30: 16 | I30: 16 | J30: 0 | K30: 0 | M30: 0 | N30: 0 | O30: 16 | P30: 0 | Q30: 1952 | R30: 0
B31: Machinery Labor
C32: Tractors/Self-Propelled | D32: 0.41 | F32: Hour | G32: 16 | I32: 6.56 | J32: =E32*H32 -> 0 | K32: 0 | M32: 0 | N32: =J32*L32 -> 0 | O32: 6.56 | P32: =+J32-N32 -> 0 | Q32: 800.32 | R32: =+J32*E$7 -> 0
C33: Other Labor | D33: 0.48 | F33: Hour | G33: 16 | I33: 7.68 | J33: =E33*H33 -> 0 | K33: 0 | M33: 0 | N33: =J33*L33 -> 0 | O33: 7.68 | P33: =+J33-N33 -> 0 | Q33: 936.96 | R33: =+J33*E$7 -> 0
B35: Diesel Fuel
C36: Pickup/General Use Equipment | D36: 1 | F36: Acre | G36: 0 | I36: 0 | J36: =E36*H36 -> 0 | K36: 0 | M36: 0 | N36: =J36*L36 -> 0 | O36: 0 | P36: =+J36-N36 -> 0 | Q36: 0 | R36: =+J36*E$7 -> 0
C37: Tractors/Self-Propelled | D37: 2.88 | F37: Gallon | G37: 2.919 | I37: 8.40672 | J37: =E37*H37 -> 0 | K37: 0 | M37: 0 | N37: =J37*L37 -> 0 | O37: 8.40672 | P37: =+J37-N37 -> 0 | Q37: 1025.61984 | R37: =+J37*E$7 -> 0
B39: Gasoline
C40: Pickup/General Use Equipment | D40: 1 | F40: Acre | G40: 0 | I40: 0 | J40: =E40*H40 -> 0 | K40: 0 | M40: 0 | N40: =J40*L40 -> 0 | O40: 0 | P40: =+J40-N40 -> 0 | Q40: 0 | R40: =+J40*E$7 -> 0
C41: Tractors/Self-Propelled | D41: 0 | F41: Gallon | G41: 2.639 | I41: 0 | J41: =E41*H41 -> 0 | K41: 0 | M41: 0 | N41: =J41*L41 -> 0 | O41: 0 | P41: =+J41-N41 -> 0 | Q41: 0 | R41: =+J41*E$7 -> 0
B43: Repairs & Maintenance
C44: Pickup/General Use Equipment | D44: 1 | F44: Acre | G44: 1.749577869 | I44: 1.749577869 | J44: =E44*H44 -> 0 | K44: 0 | M44: 0 | N44: =J44*L44 -> 0 | O44: 1.749577869 | P44: =+J44-N44 -> 0 | Q44: 213.4485 | R44: =+J44*E$7 -> 0
C45: Irrigation Equipment | D45: 1 | F45: Acre | G45: 30 | I45: 30 | J45: 0 | K45: 0 | M45: 0 | N45: 0 | O45: 30 | P45: 0 | Q45: 3660 | R45: 0
C46: Tractors/Self-Propelled | D46: 1 | F46: Acre | G46: 6.45398519 | I46: 6.45398519 | J46: 0 | K46: 0 | M46: 0 | N46: 0 | O46: 6.45398519 | P46: 0 | Q46: 787.3861931 | R46: 0
C47: Implements | D47: 1 | F47: Acre | G47: 6.780471243 | I47: 6.780471243 | J47: 0 | K47: 0 | M47: 0 | N47: 0 | O47: 6.780471243 | P47: 0 | Q47: 827.2174917 | R47: 0
I48: 0 | J48: 0 | K48: 0 | M48: 0 | N48: 0 | O48: 0 | P48: 0 | Q48: 0 | R48: =+J48*E$7 -> 0
I49: 0 | J49: 0 | K49: 0 | M49: 0 | N49: 0 | O49: 0 | P49: 0 | Q49: 0 | R49: 0
B50: Interest on Credit Line | G50: 0.085 | I50: 7.889449957 | J50: =+SUM(J17:J49)/2*H50 -> 0 | M50: 0 | N50: =+SUM(N17:N49)/2*L50 -> 0 | O50: 7.889449957 | P50: =+SUM(P17:P49)/2*L50 -> 0 | Q50: 962.5128948 | R50: =+J50*E$7 -> 0
A51: Total Variable Costs | I51: 291.6202043 | J51: =SUM(J18:J50) -> 0 | M51: 0 | N51: =SUM(N18:N50) -> 0 | O51: 291.6202043 | P51: =SUM(P18:P50) -> 0 | Q51: 35577.66492 | R51: =SUM(R18:R50) -> 0
A52: Planned Returns Above Variable Costs: | I52: -291.6202043 | J52: =+J13-J51 -> 0 | M52: 0 | N52: =+N13-N51 -> 0 | O52: -291.6202043 | P52: =+P13-P51 -> 0 | Q52: -35577.66492 | R52: =+R13-R51 -> 0
B53: Breakeven Price to Cover Variable Costs | G53: n/a | H53: =IF(E10=0,"n/a",(YVarExp-(YTotExp+YTotRet-J10))/E10) -> n/a
Q54: Enterprise | R54: Enterprise
A55: FIXED COSTS | D55: Quantity | E55: Quantity | F55: Units | G55: $/Unit | H55: $/Unit | J55: Total | K55: Share | L55: Share | M55: Landlord | N55: Landlord | O55: Tenant | P55: Tenant | Q55: Total | R55: Total
B56: Machinery Depreciation
C57: Tractors/Self-Propelled | D57: 1 | F57: Acre | G57: 6.669118029 | I57: 6.669118029 | J57: =E57*H57 -> 0 | K57: 0 | M57: 0 | N57: =J57*L57 -> 0 | O57: 6.669118029 | P57: =+J57-N57 -> 0 | Q57: 813.6323996 | R57: =+J57*E$7 -> 0
C58: Implements | D58: 1 | F58: Acre | G58: 8.068505521 | I58: 8.068505521 | J58: 0 | K58: 0 | M58: 0 | N58: =J58*L58 -> 0 | O58: 8.068505521 | P58: 0 | Q58: 984.3576736 | R58: 0
B59: Equipment Investment
C60: Pickup/General Use Equipment | D60: 17.88934426 | F60: Dollars | G60: 0.085 | I60: 1.520594262 | J60: =E60*H60 -> 0 | K60: 0 | M60: 0 | N60: =J60*L60 -> 0 | O60: 1.520594262 | P60: =+J60-N60 -> 0 | Q60: 185.5125 | R60: =+J60*E$7 -> 0
C61: Irrigation Equipment | D61: 357.1434426 | F61: Dollars | G61: 0.085 | I61: 30.35719262 | J61: 0 | K61: 0 | M61: 0 | N61: =J61*L61 -> 0 | O61: 30.35719262 | P61: 0 | Q61: 3703.5775 | R61: 0
C62: Tractors/Self-Propelled | D62: 51.95458078 | F62: Dollars | G62: 0.085 | I62: 4.416139366 | J62: 0 | K62: 0 | M62: 0 | N62: =J62*L62 -> 0 | O62: 4.416139366 | P62: 0 | Q62: 538.7690026 | R62: 0
C63: Implements | D63: 34.51527362 | F63: Dollars | G63: 0.085 | I63: 2.933798258 | J63: 0 | K63: 0 | M63: 0 | N63: =J63*L63 -> 0 | O63: 2.933798258 | P63: 0 | Q63: 357.9233874 | R63: 0
B64: Salaried Labor | D64: 1 | F64: Acre | G64: 0 | I64: 0 | J64: 0 | K64: 0 | M64: 0 | N64: =J64*L64 -> 0 | O64: 0 | P64: =+J64-N64 -> 0 | Q64: 0 | R64: =+J64*E$7 -> 0
B65: Management Fee, Owner/Operator Labor | D65: 1 | F65: Acre | G65: 0 | I65: 0 | J65: 0 | K65: 0 | M65: 0 | N65: 0 | O65: 0 | P65: 0 | Q65: 0 | R65: 0
B66: Allocated Establishment Cost | D66: 1 | F66: Acre | G66: 0 | I66: 0 | J66: 0 | K66: 0 | M66: 0 | N66: 0 | O66: 0 | P66: 0 | Q66: 0 | R66: 0
B67: Cash Rent - Alfalfa | D67: 1 | F67: Acre | G67: 130 | I67: 130 | J67: 0 | K67: 0 | M67: 0 | N67: 0 | O67: 130 | P67: 0 | Q67: 15860 | R67: 0
B68: Property Taxes | D68: 1 | F68: Acre | G68: 0 | I68: 0 | J68: =E68*H68 -> 0 | K68: 0 | M68: 0 | N68: 0 | O68: 0 | P68: 0 | Q68: 0 | R68: =+J68*E$7 -> 0
B69: Whole Farm Insurance | D69: 1 | F69: Acre | G69: 0 | I69: 0 | J69: 0 | K69: 0 | M69: 0 | N69: 0 | O69: 0 | P69: 0 | Q69: 0 | R69: 0
D70: 1 | G70: 0 | I70: 0 | J70: 0 | K70: 0 | M70: 0 | N70: 0 | O70: 0 | P70: 0 | Q70: 0 | R70: 0
D71: 1 | G71: 0 | I71: 0 | J71: 0 | K71: 0 | M71: 0 | N71: 0 | O71: 0 | P71: 0 | Q71: 0 | R71: 0
A72: Total Fixed Costs | I72: 183.9653481 | J72: =+SUM(J57:J71) -> 0 | M72: 0 | N72: =+SUM(N57:N71) -> 0 | O72: 183.9653481 | P72: =+SUM(P57:P71) -> 0 | Q72: 22443.77246 | R72: =+SUM(R57:R71) -> 0
A73: Total Specified Costs | I73: 475.5855523 | J73: =+J51+J72 -> 0 | M73: 0 | N73: =+N51+N72 -> 0 | O73: 475.5855523 | P73: =+P51+P72 -> 0 | Q73: 58021.43738 | R73: =+R51+R72 -> 0
A75: Returns Above Specified Costs | I75: -475.5855523 | J75: =+J13-J73 -> 0 | M75: 0 | N75: =+N13-N73 -> 0 | O75: -475.5855523 | P75: =+P13-P73 -> 0 | Q75: -58021.43738 | R75: =+R13-R73 -> 0
A77: Breakeven Price to Cover Total Costs | G77: n/a | H77: =IF(E10=0,"n/a",(YTotExp-(YTotExp+YTotRet-J10))/E10) -> n/a
D79: Example Breakeven Prices
B80: Example | C80: Example | D80: To Cover | G80: To Cover
B81: Yield | C81: Yield | D81: Variable | G81: Total
B82: Percent | D82: Costs | G82: Costs
B83: 0.75 | C83: 0 | D83: 0 | G83: 0
B84: 0.9 | C84: 0 | D84: 0 | G84: 0
B85: 1 | C85: 0 | D85: 0 | G85: 0
B86: 1.1 | C86: 0 | D86: 0 | G86: 0
B87: 1.25 | C87: 0 | D87: 0 | G87: 0
D89: Your Breakeven Prices
B90: Your | C90: Your | E90: To Cover | H90: To Cover
B91: Yield | C91: Yield | E91: Variable | H91: Total
B92: Percent | E92: Costs | H92: Costs
B93: 0.75 | C93: =E10*YPER1 -> 0 | E93: =IF($E$10=0,0,(YVarExp-(YTotExp+YTotRet-J10))/($E$10*YPER1)) -> 0 | H93: =IF($E$10=0,0,(YTotExp-(YTotExp+YTotRet-J10))/($E$10*YPER1)) -> 0
B94: 0.9 | C94: =E10*YPER2 -> 0 | E94: =IF($E$10=0,0,(YVarExp-(YTotExp+YTotRet-J10))/($E$10*YPER2)) -> 0 | H94: =IF($E$10=0,0,(YTotExp-(YTotExp+YTotRet-J10))/($E$10*YPER2)) -> 0
B95: 1 | C95: =+E10 -> 0 | E95: =IF($E$10=0,0,(YVarExp-(YTotExp+YTotRet-J10))/($E$10*YPER3)) -> 0 | H95: =IF($E$10=0,0,(YTotExp-(YTotExp+YTotRet-J10))/($E$10*YPER3)) -> 0
B96: 1.1 | C96: =E10*YPER4 -> 0 | E96: =IF($E$10=0,0,(YVarExp-(YTotExp+YTotRet-J10))/($E$10*YPER4)) -> 0 | H96: =IF($E$10=0,0,(YTotExp-(YTotExp+YTotRet-J10))/($E$10*YPER4)) -> 0
B97: 1.25 | C97: =E10*YPER5 -> 0 | E97: =IF($E$10=0,0,(YVarExp-(YTotExp+YTotRet-J10))/($E$10*YPER5)) -> 0 | H97: =IF($E$10=0,0,(YTotExp-(YTotExp+YTotRet-J10))/($E$10*YPER5)) -> 0
A99: Developed by Andrew Wright, Assistant Professor and Extension Specialist, Texas A&M AgriLife Extension, 806-746-6101
A101: Information presented is prepared solely as a general guide and not intended to recognize or predict the costs and returns from any one operation. Brand names are mentioned only as examples and imply no endorsement.
Z119: =IF(#REF!=0,0,#REF!) ->  | AB119: =IF(Y119=0,0,LOOKUP(Y119,#REF!,#REF!)) -> 0 | AC119: =IF(Y119=0,0,LOOKUP(Y119,#REF!,#REF!)) -> 0 | AE119: =Z119*AC119 ->  | AF119: =AA119*AD119 -> 0 | AG119: =+#REF! -> 

Sheet AlfalfaHay
A1: Projections for Planning Purposes Only -- Not to be Used without Updating
A2: 2025 Estimated Costs and Returns per Acre
A3: Irrigated Alfalfa
A4: Enter your name for this budget in the cell above.
A5: Enter Your Values in the cells highlighed in MAROON.
E6: Your Acres | R6: Your
C7: Crop Acres | D7: 122 | L7: Your | Q7: Enterprise | R7: Enterprise
E8: Your | H8: Your | I8: Cash | J8: Your | K8: Landlord | L8: Landlord | N8: Your | P8: Your | Q8: Total | R8: Total
A9: REVENUE | D9: Quantity | E9: Quantity | F9: Units | G9: $/Unit | H9: $/Unit | I9: Total | J9: Total | K9: Share | L9: Share | M9: Landlord | N9: Landlord | O9: Tenant | P9: Tenant | Q9: (122 acres) | R9: ="(" & E7 & " acres)" -> ( acres)
B10: Hay - Alfalfa | D10: 6 | F10: Ton | G10: 240 | I10: 1440 | J10: =E10*H10 -> 0 | K10: 0 | M10: 0 | N10: =J10*L10 -> 0 | O10: 1440 | P10: =+J10-N10 -> 0 | Q10: 175680 | R10: =+J10*E$7 -> 0
D11: 0 | G11: 0 | I11: 0 | J11: 0 | K11: 0 | M11: 0 | N11: 0 | O11: 0 | P11: =+J11-N11 -> 0 | Q11: 0 | R11: 0
D12: 0 | G12: 0 | I12: 0 | J12: 0 | K12: 0 | M12: 0 | N12: 0 | O12: 0 | P12: 0 | Q12: 0 | R12: 0
A13: Total Revenue | I13: 1440 | J13: =SUM(J10:J12) -> 0 | M13: 0 | N13: =SUM(N10:N12) -> 0 | O13: 1440 | P13: =SUM(P10:P12) -> 0 | Q13: 175680 | R13: =SUM(R10:R12) -> 0
Q14: Enterprise | R14: Enterprise
A15: VARIABLE COSTS | D15: Quantity | E15: Quantity | F15: Units | G15: $/Unit | H15: $/Unit | I15: Total | J15: Total | K15: Share | L15: Share | M15: Landlord | N15: Landlord | O15: Tenant | P15: Tenant | Q15: Total | R15: Total
A16: Production Costs
B17: Custom
C18: Custom Baling | D18: 6 | F18: Ton | G18: 65 | I18: 390 | J18: =E18*H18 -> 0 | K18: 0 | M18: 0 | N18: =J18*L18 -> 0 | O18: 390 | P18: =+J18-N18 -> 0 | Q18: 47580 | R18: =+J18*E$7 -> 0
C19: Fertilizer Application - Liquid Low | D19: 1 | F19: Acre | G19: 3.5 | I19: 3.5 | J19: 0 | K19: 0 | M19: 0 | N19: 0 | O19: 3.5 | P19: 0 | Q19: 427 | R19: 0
C20: Crop Consultant | D20: 1 | F20: Acre | G20: 12 | I20: 12 | J20: 0 | K20: 0 | M20: 0 | N20: 0 | O20: 12 | P20: 0 | Q20: 1464 | R20: 0
B21: Fertilizer
C22: Fertilizer (P) - Liquid | D22: 65 | F22: Pound | G22: 0.916 | I22: 59.54 | J22: 0 | K22: 0 | M22: 0 | N22: 0 | O22: 59.54 | P22: 0 | Q22: 7263.88 | R22: 0
C23: Fertilizer (N) - Liquid | D23: 30 | F23: Pound | G23: 0.6 | I23: 18 | J23: 0 | K23: 0 | M23: 0 | N23: 0 | O23: 18 | P23: 0 | Q23: 2196 | R23: 0
C24: Sulfur | D24: 12 | F24: Pound | G24: 0.12 | I24: 1.44 | J24: 0 | K24: 0 | M24: 0 | N24: 0 | O24: 1.44 | P24: 0 | Q24: 175.68 | R24: 0
B25: Herbicide
C26: Herbicide and Application Alfalfa | D26: 1 | F26: Acre | G26: 22 | I26: 22 | J26: 0 | K26: 0 | M26: 0 | N26: 0 | O26: 22 | P26: 0 | Q26: 2684 | R26: 0
B27: Insecticide
C28: Insecticide Application Alfalfa | D28: 1 | F28: Acre | G28: 25.9 | I28: 25.9 | J28: 0 | K28: 0 | M28: 0 | N28: 0 | O28: 25.9 | P28: 0 | Q28: 3159.8 | R28: 0
B29: Miscellaneous
C30: Crop Insurance Alfalfa | D30: 1 | F30: Acre | G30: 2.5 | I30: 2.5 | J30: 0 | K30: 0 | M30: 0 | N30: 0 | O30: 2.5 | P30: 0 | Q30: 305 | R30: 0
D31: 0 | G31: 0 | I31: 0 | J31: 0 | K31: 0 | M31: 0 | N31: 0 | O31: 0 | P31: 0 | Q31: 0 | R31: 0
D32: 0 | G32: 0 | I32: 0 | J32: 0 | K32: 0 | M32: 0 | N32: 0 | O32: 0 | P32: 0 | Q32: 0 | R32: 0
D33: 0 | G33: 0 | I33: 0 | J33: =E33*H33 -> 0 | K33: 0 | M33: 0 | N33: =J33*L33 -> 0 | O33: 0 | P33: =+J33-N33 -> 0 | Q33: 0 | R33: =+J33*E$7 -> 0
B34: Irrigation
C35: Energy Cost | D35: 24 | F35: AcreInch | G35: 10 | I35: 240 | J35: =E35*H35 -> 0 | K35: 0 | M35: 0 | N35: =J35*L35 -> 0 | O35: 240 | P35: =+J35-N35 -> 0 | Q35: 29280 | R35: =+J35*E$7 -> 0
C36: Irrigation Labor | D36: 1.25 | F36: Hour | G36: 16 | I36: 20 | J36: 0 | K36: 0 | M36: 0 | N36: 0 | O36: 20 | P36: 0 | Q36: 2440 | R36: 0
B37: Machinery Labor
C38: Tractors/Self-Propelled | D38: 1 | F38: Hour | G38: 16 | I38: 16 | J38: =E38*H38 -> 0 | K38: 0 | M38: 0 | N38: =J38*L38 -> 0 | O38: 16 | P38: =+J38-N38 -> 0 | Q38: 1952 | R38: =+J38*E$7 -> 0
C39: Other Labor | D39: 0 | F39: Hour | G39: 16 | I39: 0 | J39: =E39*H39 -> 0 | K39: 0 | M39: 0 | N39: =J39*L39 -> 0 | O39: 0 | P39: =+J39-N39 -> 0 | Q39: 0 | R39: =+J39*E$7 -> 0
B41: Diesel Fuel
C42: Pickup/General Use Equipment | D42: 1 | F42: Acre | G42: 0 | I42: 0 | J42: =E42*H42 -> 0 | K42: 0 | M42: 0 | N42: =J42*L42 -> 0 | O42: 0 | P42: =+J42-N42 -> 0 | Q42: 0 | R42: =+J42*E$7 -> 0
C43: Tractors/Self-Propelled | D43: 2.01 | F43: Gallon | G43: 2.919 | I43: 5.86719 | J43: =E43*H43 -> 0 | K43: 0 | M43: 0 | N43: =J43*L43 -> 0 | O43: 5.86719 | P43: =+J43-N43 -> 0 | Q43: 715.79718 | R43: =+J43*E$7 -> 0
B45: Gasoline
C46: Pickup/General Use Equipment | D46: 1 | F46: Acre | G46: 5.407786885 | I46: 5.407786885 | J46: =E46*H46 -> 0 | K46: 0 | M46: 0 | N46: =J46*L46 -> 0 | O46: 5.407786885 | P46: =+J46-N46 -> 0 | Q46: 659.75 | R46: =+J46*E$7 -> 0
C47: Tractors/Self-Propelled | D47: 0 | F47: Gallon | G47: 2.639 | I47: 0 | J47: =E47*H47 -> 0 | K47: 0 | M47: 0 | N47: =J47*L47 -> 0 | O47: 0 | P47: =+J47-N47 -> 0 | Q47: 0 | R47: =+J47*E$7 -> 0
B49: Repairs & Maintenance
C50: Pickup/General Use Equipment | D50: 1 | F50: Acre | G50: 0.5 | I50: 0.5 | J50: =E50*H50 -> 0 | K50: 0 | M50: 0 | N50: =J50*L50 -> 0 | O50: 0.5 | P50: =+J50-N50 -> 0 | Q50: 61 | R50: =+J50*E$7 -> 0
C51: Irrigation Equipment | D51: 1 | F51: Acre | G51: 42 | I51: 42 | J51: 0 | K51: 0 | M51: 0 | N51: 0 | O51: 42 | P51: 0 | Q51: 5124 | R51: 0
C52: Tractors/Self-Propelled | D52: 1 | F52: Acre | G52: 6 | I52: 6 | J52: 0 | K52: 0 | M52: 0 | N52: 0 | O52: 6 | P52: 0 | Q52: 732 | R52: 0
C53: Implements | D53: 1 | F53: Acre | G53: 3 | I53: 3 | J53: 0 | K53: 0 | M53: 0 | N53: 0 | O53: 3 | P53: 0 | Q53: 366 | R53: 0
I54: 0 | J54: 0 | K54: 0 | M54: 0 | N54: 0 | O54: 0 | P54: 0 | Q54: 0 | R54: 0
I55: 0 | J55: 0 | K55: 0 | M55: 0 | N55: 0 | O55: 0 | P55: 0 | Q55: 0 | R55: 0
B56: Interest on Credit Line | G56: 0.085 | I56: 21.31383179 | J56: =+SUM(J17:J55)/2*H56 -> 0 | M56: 0 | N56: =+SUM(N17:N55)/2*L56 -> 0 | O56: 21.31383179 | P56: =+SUM(P17:P55)/2*L56 -> 0 | Q56: 2600.287479 | R56: =+J56*E$7 -> 0
A57: Total Variable Costs | I57: 894.9688087 | J57: =SUM(J18:J56) -> 0 | M57: 0 | N57: =SUM(N18:N56) -> 0 | O57: 894.9688087 | P57: =SUM(P18:P56) -> 0 | Q57: 109186.1947 | R57: =SUM(R18:R56) -> 0
A58: Planned Returns Above Variable Costs: | I58: 545.0311913 | J58: =+J13-J57 -> 0 | M58: 0 | N58: =+N13-N57 -> 0 | O58: 545.0311913 | P58: =+P13-P57 -> 0 | Q58: 66493.80534 | R58: =+R13-R57 -> 0
B59: Breakeven Price to Cover Variable Costs | G59: 149.1614681 | H59: =IF(E10=0,"n/a",(YVarExp-(YTotExp+YTotRet-J10))/E10) -> n/a | I59: Ton
Q60: Enterprise | R60: Enterprise
A61: FIXED COSTS | D61: Quantity | E61: Quantity | F61: Units | G61: $/Unit | H61: $/Unit | I61: Total | J61: Total | K61: Share | L61: Share | M61: Landlord | N61: Landlord | O61: Tenant | P61: Tenant | Q61: Total | R61: Total
B62: Equipment Fixed Costs
C63: Pickup/General Use Equipment | D63: 1 | F63: Acre | G63: 1.25 | I63: 1.25 | J63: =E63*H63 -> 0 | K63: 0 | M63: 0 | N63: =J63*L63 -> 0 | O63: 1.25 | P63: =+J63-N63 -> 0 | Q63: 152.5 | R63: =+J63*E$7 -> 0
C64: Irrigation Equipment | D64: 1 | F64: Acre | G64: 55 | I64: 55 | J64: 0 | K64: 0 | M64: 0 | N64: 0 | O64: 55 | P64: 0 | Q64: 6710 | R64: 0
C65: Tractors/Self-Propelled | D65: 1 | F65: Acre | G65: 12 | I65: 12 | J65: 0 | K65: 0 | M65: 0 | N65: 0 | O65: 12 | P65: 0 | Q65: 1464 | R65: 0
C66: Implements | D66: 1 | F66: Acre | G66: 10 | I66: 10 | J66: 0 | K66: 0 | M66: 0 | N66: 0 | O66: 10 | P66: 0 | Q66: 1220 | R66: 0
B67: Salaried Labor | D67: 1 | F67: Acre | G67: 0 | I67: 0 | J67: =E67*H67 -> 0 | K67: 0 | M67: 0 | N67: 0 | O67: 0 | P67: 0 | Q67: 0 | R67: 0
B68: Management Fee, Owner/Operator Labor | D68: 1 | F68: Acre | G68: 25 | I68: 25 | J68: 0 | K68: 0 | M68: 0 | N68: 0 | O68: 25 | P68: 0 | Q68: 3050 | R68: 0
B69: Allocated Establishment Cost | D69: 1 | F69: Acre | G69: 100 | I69: 100 | J69: 0 | K69: 0 | M69: 0 | N69: 0 | O69: 100 | P69: 0 | Q69: 12200 | R69: 0
B70: Cash Rent - Alfalfa | D70: 1 | F70: Acre | G70: 130 | I70: 130 | J70: 0 | K70: 0 | M70: 0 | N70: 0 | O70: 130 | P70: 0 | Q70: 15860 | R70: 0
B71: Property Taxes | D71: 1 | F71: Acre | G71: 0 | I71: 0 | J71: 0 | K71: 0 | M71: 0 | N71: 0 | O71: 0 | P71: 0 | Q71: 0 | R71: 0
B72: Whole Farm Insurance | D72: 1 | F72: Acre | G72: 2 | I72: 2 | J72: 0 | K72: 0 | M72: 0 | N72: 0 | O72: 2 | P72: 0 | Q72: 244 | R72: 0
D73: 1 | G73: 0 | I73: 0 | J73: 0 | K73: 0 | M73: 0 | N73: 0 | O73: 0 | P73: 0 | Q73: 0 | R73: 0
D74: 1 | G74: 0 | I74: 0 | J74: =E74*H74 -> 0 | K74: 0 | M74: 0 | N74: 0 | O74: 0 | P74: 0 | Q74: 0 | R74: 0
A75: Total Fixed Costs | I75: 335.25 | J75: =+SUM(J62:J74) -> 0 | M75: 0 | N75: =+SUM(N62:N74) -> 0 | O75: 335.25 | P75: =+SUM(P62:P74) -> 0 | Q75: 40900.5 | R75: =+SUM(R62:R74) -> 0
A76: Total Specified Costs | I76: 1230.218809 | J76: =+J57+J75 -> 0 | M76: 0 | N76: =+N57+N75 -> 0 | O76: 1230.218809 | P76: =+P57+P75 -> 0 | Q76: 150086.6947 | R76: =+R57+R75 -> 0
A78: Returns Above Specified Costs | I78: 209.7811913 | J78: =+J13-J76 -> 0 | M78: 0 | N78: =+N13-N76 -> 0 | O78: 209.7811913 | P78: =+P13-P76 -> 0 | Q78: 25593.30534 | R78: =+R13-R76 -> 0
A80: Breakeven Price to Cover Total Costs | G80: 205.0364681 | H80: =IF(E10=0,"n/a",(YTotExp-(YTotExp+YTotRet-J10))/E10) -> n/a | I80: Ton
D82: Example Breakeven Prices
B83: Example | C83: Example | D83: To Cover | G83: To Cover
B84: Yield | C84: Yield | D84: Variable | G84: Total
B85: Percent | C85: Ton | D85: Costs | G85: Costs
B86: 0.75 | C86: 4.5 | D86: 198.8819575 | G86: 273.3819575
B87: 0.9 | C87: 5.4 | D87: 165.7349646 | G87: 227.8182979
B88: 1 | C88: 6 | D88: 149.1614681 | G88: 205.0364681
B89: 1.1 | C89: 6.6 | D89: 135.6013346 | G89: 186.3967892
B90: 1.25 | C90: 7.5 | D90: 119.3291745 | G90: 164.0291745
D92: Your Breakeven Prices
B93: Your | C93: Your | E93: To Cover | H93: To Cover
B94: Yield | C94: Yield | E94: Variable | H94: Total
B95: Percent | C95: Ton | E95: Costs | H95: Costs
B96: 0.75 | C96: =E10*YPER1 -> 0 | E96: =IF($E$10=0,0,(YVarExp-(YTotExp+YTotRet-J10))/($E$10*YPER1)) -> 0 | H96: =IF($E$10=0,0,(YTotExp-(YTotExp+YTotRet-J10))/($E$10*YPER1)) -> 0
B97: 0.9 | C97: =E10*YPER2 -> 0 | E97: =IF($E$10=0,0,(YVarExp-(YTotExp+YTotRet-J10))/($E$10*YPER2)) -> 0 | H97: =IF($E$10=0,0,(YTotExp-(YTotExp+YTotRet-J10))/($E$10*YPER2)) -> 0
B98: 1 | C98: =+E10 -> 0 | E98: =IF($E$10=0,0,(YVarExp-(YTotExp+YTotRet-J10))/($E$10*YPER3)) -> 0 | H98: =IF($E$10=0,0,(YTotExp-(YTotExp+YTotRet-J10))/($E$10*YPER3)) -> 0
B99: 1.1 | C99: =E10*YPER4 -> 0 | E99: =IF($E$10=0,0,(YVarExp-(YTotExp+YTotRet-J10))/($E$10*YPER4)) -> 0 | H99: =IF($E$10=0,0,(YTotExp-(YTotExp+YTotRet-J10))/($E$10*YPER4)) -> 0
B100: 1.25 | C100: =E10*YPER5 -> 0 | E100: =IF($E$10=0,0,(YVarExp-(YTotExp+YTotRet-J10))/($E$10*YPER5)) -> 0 | H100: =IF($E$10=0,0,(YTotExp-(YTotExp+YTotRet-J10))/($E$10*YPER5)) -> 0
A102: Developed by Andrew Wright, Assistant Professor and Extension Specialist, Texas A&M AgriLife Extension, 806-746-6101
A104: Information presented is prepared solely as a general guide and not intended to recognize or predict the costs and returns from any one operation. Brand names are mentioned only as examples and imply no endorsement.

Sheet Blackeyes
A1: Projections for Planning Purposes Only -- Not to be Used without Updating
A2: 2025 Estimated Costs and Returns per Acre
A3: Irrigated Blackeyed Peas
A4: Enter your name for this budget in the cell above.
A5: Enter Your Values in the cells highlighed in MAROON.
E6: Your Acres | R6: Your
C7: Crop Acres | D7: 122 | L7: Your | Q7: Enterprise | R7: Enterprise
E8: Your | H8: Your | I8: Cash | J8: Your | K8: Landlord | L8: Landlord | N8: Your | P8: Your | Q8: Total | R8: Total
A9: REVENUE | D9: Quantity | E9: Quantity | F9: Units | G9: $/Unit | H9: $/Unit | I9: Total | J9: Total | K9: Share | L9: Share | M9: Landlord | N9: Landlord | O9: Tenant | P9: Tenant | Q9: (122 acres) | R9: ="(" & E7 & " acres)" -> ( acres)
B10: Blackeyed Peas | D10: 1850 | F10: Pound | G10: 0.34 | I10: 629 | J10: =E10*H10 -> 0 | K10: 0 | M10: 0 | N10: =J10*L10 -> 0 | O10: 629 | P10: =+J10-N10 -> 0 | Q10: 76738 | R10: =+J10*E$7 -> 0
D11: 0 | G11: 0 | I11: 0 | J11: 0 | K11: 0 | M11: 0 | N11: 0 | O11: 0 | P11: =+J11-N11 -> 0 | Q11: 0 | R11: 0
D12: 0 | G12: 0 | I12: 0 | J12: 0 | K12: 0 | M12: 0 | N12: 0 | O12: 0 | P12: 0 | Q12: 0 | R12: 0
A13: Total Revenue | I13: 629 | J13: =SUM(J10:J12) -> 0 | M13: 0 | N13: =SUM(N10:N12) -> 0 | O13: 629 | P13: =SUM(P10:P12) -> 0 | Q13: 76738 | R13: =SUM(R10:R12) -> 0
Q14: Enterprise | R14: Enterprise
A15: VARIABLE COSTS | D15: Quantity | E15: Quantity | F15: Units | G15: $/Unit | H15: $/Unit | I15: Total | J15: Total | K15: Share | L15: Share | M15: Landlord | N15: Landlord | O15: Tenant | P15: Tenant | Q15: Total | R15: Total
A16: Production Costs
B17: Custom
C18: Custom Harvest - Blackeyed Peas | D18: 1 | F18: Acre | G18: 30 | I18: 30 | J18: =E18*H18 -> 0 | K18: 0 | M18: 0 | N18: =J18*L18 -> 0 | O18: 30 | P18: =+J18-N18 -> 0 | Q18: 3660 | R18: =+J18*E$7 -> 0
C19: Custom Haul - Blackeyed Peas | D19: 18.5 | F19: CWT | G19: 0.2 | I19: 3.7 | J19: 0 | K19: 0 | M19: 0 | N19: 0 | O19: 3.7 | P19: 0 | Q19: 451.4 | R19: 0
B20: Fertilizer
C21: Fertilizer (N) - Liquid | D21: 40 | F21: Pound | G21: 0.6 | I21: 24 | J21: 0 | K21: 0 | M21: 0 | N21: 0 | O21: 24 | P21: 0 | Q21: 2928 | R21: 0
B22: Herbicide
C23: Herbicide Blackeyed Peas | D23: 1 | F23: Acre | G23: 10 | I23: 10 | J23: 0 | K23: 0 | M23: 0 | N23: 0 | O23: 10 | P23: 0 | Q23: 1220 | R23: 0
B24: Miscellaneous
C25: Crop Insurance Blackeyed Peas | D25: 1 | F25: Acre | G25: 24 | I25: 24 | J25: 0 | K25: 0 | M25: 0 | N25: 0 | O25: 24 | P25: 0 | Q25: 2928 | R25: 0
B26: Seed
C27: Seed - Blackeyed Peas | D27: 50 | F27: Pound | G27: 0.45 | I27: 22.5 | J27: 0 | K27: 0 | M27: 0 | N27: 0 | O27: 22.5 | P27: 0 | Q27: 2745 | R27: 0
B28: Other Labor
C29: Hoeing | D29: 1 | F29: Acre | G29: 16 | I29: 16 | J29: 0 | K29: 0 | M29: 0 | N29: 0 | O29: 16 | P29: 0 | Q29: 1952 | R29: 0
B30: Fungicides
C31: Fungicide - Blackeyed Peas | D31: 1 | F31: Acre | G31: 12 | I31: 12 | J31: 0 | K31: 0 | M31: 0 | N31: 0 | O31: 12 | P31: 0 | Q31: 1464 | R31: 0
D32: 0 | G32: 0 | I32: 0 | J32: 0 | K32: 0 | M32: 0 | N32: 0 | O32: 0 | P32: 0 | Q32: 0 | R32: 0
D33: 0 | G33: 0 | I33: 0 | J33: 0 | K33: 0 | M33: 0 | N33: 0 | O33: 0 | P33: 0 | Q33: 0 | R33: 0
D34: 0 | G34: 0 | I34: 0 | J34: =E34*H34 -> 0 | K34: 0 | M34: 0 | N34: =J34*L34 -> 0 | O34: 0 | P34: =+J34-N34 -> 0 | Q34: 0 | R34: =+J34*E$7 -> 0
B35: Irrigation
C36: Energy Cost | D36: 8 | F36: AcreInch | G36: 10 | I36: 80 | J36: =E36*H36 -> 0 | K36: 0 | M36: 0 | N36: =J36*L36 -> 0 | O36: 80 | P36: =+J36-N36 -> 0 | Q36: 9760 | R36: =+J36*E$7 -> 0
C37: Irrigation Labor | D37: 0.75 | F37: Hour | G37: 16 | I37: 12 | J37: 0 | K37: 0 | M37: 0 | N37: 0 | O37: 12 | P37: 0 | Q37: 1464 | R37: 0
B38: Machinery Labor
C39: Tractors/Self-Propelled | D39: 0.46 | F39: Hour | G39: 16 | I39: 7.36 | J39: =E39*H39 -> 0 | K39: 0 | M39: 0 | N39: =J39*L39 -> 0 | O39: 7.36 | P39: =+J39-N39 -> 0 | Q39: 897.92 | R39: =+J39*E$7 -> 0
C40: Other Labor | D40: 0.54 | F40: Hour | G40: 16 | I40: 8.64 | J40: =E40*H40 -> 0 | K40: 0 | M40: 0 | N40: =J40*L40 -> 0 | O40: 8.64 | P40: =+J40-N40 -> 0 | Q40: 1054.08 | R40: =+J40*E$7 -> 0
B42: Diesel Fuel
C43: Pickup/General Use Equipment | D43: 1 | F43: Acre | G43: 0 | I43: 0 | J43: =E43*H43 -> 0 | K43: 0 | M43: 0 | N43: =J43*L43 -> 0 | O43: 0 | P43: =+J43-N43 -> 0 | Q43: 0 | R43: =+J43*E$7 -> 0
C44: Tractors/Self-Propelled | D44: 2.4 | F44: Gallon | G44: 2.919 | I44: 7.0056 | J44: =E44*H44 -> 0 | K44: 0 | M44: 0 | N44: =J44*L44 -> 0 | O44: 7.0056 | P44: =+J44-N44 -> 0 | Q44: 854.6832 | R44: =+J44*E$7 -> 0
B46: Gasoline
C47: Pickup/General Use Equipment | D47: 1 | F47: Acre | G47: 5.407786885 | I47: 5.407786885 | J47: =E47*H47 -> 0 | K47: 0 | M47: 0 | N47: =J47*L47 -> 0 | O47: 5.407786885 | P47: =+J47-N47 -> 0 | Q47: 659.75 | R47: =+J47*E$7 -> 0
C48: Tractors/Self-Propelled | D48: 0 | F48: Gallon | G48: 2.639 | I48: 0 | J48: =E48*H48 -> 0 | K48: 0 | M48: 0 | N48: =J48*L48 -> 0 | O48: 0 | P48: =+J48-N48 -> 0 | Q48: 0 | R48: =+J48*E$7 -> 0
B50: Repairs & Maintenance
C51: Pickup/General Use Equipment | D51: 1 | F51: Acre | G51: 0.5 | I51: 0.5 | J51: =E51*H51 -> 0 | K51: 0 | M51: 0 | N51: =J51*L51 -> 0 | O51: 0.5 | P51: =+J51-N51 -> 0 | Q51: 61 | R51: =+J51*E$7 -> 0
C52: Irrigation Equipment | D52: 1 | F52: Acre | G52: 14 | I52: 14 | J52: 0 | K52: 0 | M52: 0 | N52: 0 | O52: 14 | P52: 0 | Q52: 1708 | R52: 0
C53: Tractors/Self-Propelled | D53: 1 | F53: Acre | G53: 6 | I53: 6 | J53: 0 | K53: 0 | M53: 0 | N53: 0 | O53: 6 | P53: 0 | Q53: 732 | R53: 0
C54: Implements | D54: 1 | F54: Acre | G54: 3 | I54: 3 | J54: 0 | K54: 0 | M54: 0 | N54: 0 | O54: 3 | P54: 0 | Q54: 366 | R54: 0
I55: 0 | J55: 0 | K55: 0 | M55: 0 | N55: 0 | O55: 0 | P55: 0 | Q55: 0 | R55: 0
I56: 0 | J56: 0 | K56: 0 | M56: 0 | N56: 0 | O56: 0 | P56: 0 | Q56: 0 | R56: 0
B57: Interest on Credit Line | G57: 0.085 | I57: 5.381584961 | J57: =+SUM(J17:J56)/2*H57 -> 0 | M57: 0 | N57: =+SUM(N17:N56)/2*L57 -> 0 | O57: 5.381584961 | P57: =+SUM(P17:P56)/2*L57 -> 0 | Q57: 656.5533653 | R57: =+J57*E$7 -> 0
A58: Total Variable Costs | I58: 291.4949718 | J58: =SUM(J18:J57) -> 0 | M58: 0 | N58: =SUM(N18:N57) -> 0 | O58: 291.4949718 | P58: =SUM(P18:P57) -> 0 | Q58: 35562.38657 | R58: =SUM(R18:R57) -> 0
A59: Planned Returns Above Variable Costs: | I59: 337.5050282 | J59: =+J13-J58 -> 0 | M59: 0 | N59: =+N13-N58 -> 0 | O59: 337.5050282 | P59: =+P13-P58 -> 0 | Q59: 41175.61343 | R59: =+R13-R58 -> 0
B60: Breakeven Price to Cover Variable Costs | G60: 0.1575648496 | H60: =IF(E10=0,"n/a",(YVarExp-(YTotExp+YTotRet-J10))/E10) -> n/a | I60: Pound
Q61: Enterprise | R61: Enterprise
A62: FIXED COSTS | D62: Quantity | E62: Quantity | F62: Units | G62: $/Unit | H62: $/Unit | I62: Total | J62: Total | K62: Share | L62: Share | M62: Landlord | N62: Landlord | O62: Tenant | P62: Tenant | Q62: Total | R62: Total
B63: Equipment Fixed Costs
C64: Pickup/General Use Equipment | D64: 1 | F64: Acre | G64: 1.25 | I64: 1.25 | J64: =E64*H64 -> 0 | K64: 0 | M64: 0 | N64: =J64*L64 -> 0 | O64: 1.25 | P64: =+J64-N64 -> 0 | Q64: 152.5 | R64: =+J64*E$7 -> 0
C65: Irrigation Equipment | D65: 1 | F65: Acre | G65: 55 | I65: 55 | J65: 0 | K65: 0 | M65: 0 | N65: 0 | O65: 55 | P65: 0 | Q65: 6710 | R65: 0
C66: Tractors/Self-Propelled | D66: 1 | F66: Acre | G66: 12 | I66: 12 | J66: 0 | K66: 0 | M66: 0 | N66: 0 | O66: 12 | P66: 0 | Q66: 1464 | R66: 0
C67: Implements | D67: 1 | F67: Acre | G67: 10 | I67: 10 | J67: 0 | K67: 0 | M67: 0 | N67: 0 | O67: 10 | P67: 0 | Q67: 1220 | R67: 0
B68: Salaried Labor | D68: 1 | F68: Acre | G68: 0 | I68: 0 | J68: =E68*H68 -> 0 | K68: 0 | M68: 0 | N68: 0 | O68: 0 | P68: 0 | Q68: 0 | R68: 0
B69: Management Fee, Owner/Operator Labor | D69: 1 | F69: Acre | G69: 25 | I69: 25 | J69: 0 | K69: 0 | M69: 0 | N69: 0 | O69: 25 | P69: 0 | Q69: 3050 | R69: 0
B70: Allocated Establishment Cost | D70: 1 | F70: Acre | G70: 0 | I70: 0 | J70: 0 | K70: 0 | M70: 0 | N70: 0 | O70: 0 | P70: 0 | Q70: 0 | R70: 0
B71: Cash Rent - Blackeyed Peas | D71: 1 | F71: Acre | G71: 100 | I71: 100 | J71: 0 | K71: 0 | M71: 0 | N71: 0 | O71: 100 | P71: 0 | Q71: 12200 | R71: 0
B72: Property Taxes | D72: 1 | F72: Acre | G72: 0 | I72: 0 | J72: 0 | K72: 0 | M72: 0 | N72: 0 | O72: 0 | P72: 0 | Q72: 0 | R72: 0
B73: Whole Farm Insurance | D73: 1 | F73: Acre | G73: 2 | I73: 2 | J73: 0 | K73: 0 | M73: 0 | N73: 0 | O73: 2 | P73: 0 | Q73: 244 | R73: 0
D74: 1 | G74: 0 | I74: 0 | J74: 0 | K74: 0 | M74: 0 | N74: 0 | O74: 0 | P74: 0 | Q74: 0 | R74: 0
D75: 1 | G75: 0 | I75: 0 | J75: =E75*H75 -> 0 | K75: 0 | M75: 0 | N75: 0 | O75: 0 | P75: 0 | Q75: 0 | R75: 0
A76: Total Fixed Costs | I76: 205.25 | J76: =+SUM(J63:J75) -> 0 | M76: 0 | N76: =+SUM(N63:N75) -> 0 | O76: 205.25 | P76: =+SUM(P63:P75) -> 0 | Q76: 25040.5 | R76: =+SUM(R63:R75) -> 0
A77: Total Specified Costs | I77: 496.7449718 | J77: =+J58+J76 -> 0 | M77: 0 | N77: =+N58+N76 -> 0 | O77: 496.7449718 | P77: =+P58+P76 -> 0 | Q77: 60602.88657 | R77: =+R58+R76 -> 0
A79: Returns Above Specified Costs | I79: 132.2550282 | J79: =+J13-J77 -> 0 | M79: 0 | N79: =+N13-N77 -> 0 | O79: 132.2550282 | P79: =+P13-P77 -> 0 | Q79: 16135.11343 | R79: =+R13-R77 -> 0
A81: Breakeven Price to Cover Total Costs | G81: 0.2685107956 | H81: =IF(E10=0,"n/a",(YTotExp-(YTotExp+YTotRet-J10))/E10) -> n/a | I81: Pound
D83: Example Breakeven Prices
B84: Example | C84: Example | D84: To Cover | G84: To Cover
B85: Yield | C85: Yield | D85: Variable | G85: Total
B86: Percent | C86: Pound | D86: Costs | G86: Costs
B87: 0.75 | C87: 1387.5 | D87: 0.2100864662 | G87: 0.3580143941
B88: 0.9 | C88: 1665 | D88: 0.1750720552 | G88: 0.2983453284
B89: 1 | C89: 1850 | D89: 0.1575648496 | G89: 0.2685107956
B90: 1.1 | C90: 2035 | D90: 0.1432407724 | G90: 0.2441007233
B91: 1.25 | C91: 2312.5 | D91: 0.1260518797 | G91: 0.2148086365
D93: Your Breakeven Prices
B94: Your | C94: Your | E94: To Cover | H94: To Cover
B95: Yield | C95: Yield | E95: Variable | H95: Total
B96: Percent | C96: Pound | E96: Costs | H96: Costs
B97: 0.75 | C97: =E10*YPER1 -> 0 | E97: =IF($E$10=0,0,(YVarExp-(YTotExp+YTotRet-J10))/($E$10*YPER1)) -> 0 | H97: =IF($E$10=0,0,(YTotExp-(YTotExp+YTotRet-J10))/($E$10*YPER1)) -> 0
B98: 0.9 | C98: =E10*YPER2 -> 0 | E98: =IF($E$10=0,0,(YVarExp-(YTotExp+YTotRet-J10))/($E$10*YPER2)) -> 0 | H98: =IF($E$10=0,0,(YTotExp-(YTotExp+YTotRet-J10))/($E$10*YPER2)) -> 0
B99: 1 | C99: =+E10 -> 0 | E99: =IF($E$10=0,0,(YVarExp-(YTotExp+YTotRet-J10))/($E$10*YPER3)) -> 0 | H99: =IF($E$10=0,0,(YTotExp-(YTotExp+YTotRet-J10))/($E$10*YPER3)) -> 0
B100: 1.1 | C100: =E10*YPER4 -> 0 | E100: =IF($E$10=0,0,(YVarExp-(YTotExp+YTotRet-J10))/($E$10*YPER4)) -> 0 | H100: =IF($E$10=0,0,(YTotExp-(YTotExp+YTotRet-J10))/($E$10*YPER4)) -> 0
B101: 1.25 | C101: =E10*YPER5 -> 0 | E101: =IF($E$10=0,0,(YVarExp-(YTotExp+YTotRet-J10))/($E$10*YPER5)) -> 0 | H101: =IF($E$10=0,0,(YTotExp-(YTotExp+YTotRet-J10))/($E$10*YPER5)) -> 0
A103: Developed by Andrew Wright, Assistant Professor and Extension Specialist, Texas A&M AgriLife Extension, 806-746-6101
A105: Information presented is prepared solely as a general guide and not intended to recognize or predict the costs and returns from any one operation. Brand names are mentioned only as examples and imply no endorsement.

Sheet Corn
A1: Projections for Planning Purposes Only -- Not to be Used without Updating
A2: 2025 Estimated Costs and Returns per Acre
A3: Irrigated Corn
A4: Enter your name for this budget in the cell above.
A5: Enter Your Values in the cells highlighed in MAROON.
E6: Your Acres | R6: Your
C7: Crop Acres | D7: 122 | L7: Your | Q7: Enterprise | R7: Enterprise
E8: Your | H8: Your | I8: Cash | J8: Your | K8: Landlord | L8: Landlord | N8: Your | P8: Your | Q8: Total | R8: Total
A9: REVENUE | D9: Quantity | E9: Quantity | F9: Units | G9: $/Unit | H9: $/Unit | I9: Total | J9: Total | K9: Share | L9: Share | M9: Landlord | N9: Landlord | O9: Tenant | P9: Tenant | Q9: (122 acres) | R9: ="(" & E7 & " acres)" -> ( acres)
B10: Corn | D10: 210 | F10: Bushel | G10: 4.88 | I10: 1024.8 | J10: =E10*H10 -> 0 | K10: 0 | M10: 0 | N10: =J10*L10 -> 0 | O10: 1024.8 | P10: =+J10-N10 -> 0 | Q10: 125025.6 | R10: =+J10*E$7 -> 0
D11: 0 | G11: 0 | I11: 0 | J11: 0 | K11: 0 | M11: 0 | N11: 0 | O11: 0 | P11: =+J11-N11 -> 0 | Q11: 0 | R11: 0
D12: 0 | G12: 0 | I12: 0 | J12: 0 | K12: 0 | M12: 0 | N12: 0 | O12: 0 | P12: 0 | Q12: 0 | R12: 0
A13: Total Revenue | I13: 1024.8 | J13: =SUM(J10:J12) -> 0 | M13: 0 | N13: =SUM(N10:N12) -> 0 | O13: 1024.8 | P13: =SUM(P10:P12) -> 0 | Q13: 125025.6 | R13: =SUM(R10:R12) -> 0
Q14: Enterprise | R14: Enterprise
A15: VARIABLE COSTS | D15: Quantity | E15: Quantity | F15: Units | G15: $/Unit | H15: $/Unit | I15: Total | J15: Total | K15: Share | L15: Share | M15: Landlord | N15: Landlord | O15: Tenant | P15: Tenant | Q15: Total | R15: Total
A16: Production Costs
B17: Custom
C18: Crop Consultant | D18: 1 | F18: Acre | G18: 12 | I18: 12 | J18: =E18*H18 -> 0 | K18: 0 | M18: 0 | N18: =J18*L18 -> 0 | O18: 12 | P18: =+J18-N18 -> 0 | Q18: 1464 | R18: =+J18*E$7 -> 0
C19: Harvest and Haul - Corn | D19: 210 | F19: Bushel | G19: 0.35 | I19: 73.5 | J19: 0 | K19: 0 | M19: 0 | N19: 0 | O19: 73.5 | P19: 0 | Q19: 8967 | R19: 0
C20: Fertilizer Application - Liquid High | D20: 1 | F20: Acre | G20: 4.75 | I20: 4.75 | J20: 0 | K20: 0 | M20: 0 | N20: 0 | O20: 4.75 | P20: 0 | Q20: 579.5 | R20: 0
C21: Fertilizer Application - Dry | D21: 1 | F21: Acre | G21: 4 | I21: 4 | J21: 0 | K21: 0 | M21: 0 | N21: 0 | O21: 4 | P21: 0 | Q21: 488 | R21: 0
C22: Fertilizer Application - NH3 | D22: 1 | F22: Acre | G22: 3.5 | I22: 3.5 | J22: 0 | K22: 0 | M22: 0 | N22: 0 | O22: 3.5 | P22: 0 | Q22: 427 | R22: 0
B23: Fertilizer
C24: Fertilizer (N) - Liquid | D24: 120 | F24: Pound | G24: 0.6 | I24: 72 | J24: 0 | K24: 0 | M24: 0 | N24: 0 | O24: 72 | P24: 0 | Q24: 8784 | R24: 0
C25: Fertilizer (P) - Dry | D25: 108 | F25: Pound | G25: 0.47 | I25: 50.76 | J25: 0 | K25: 0 | M25: 0 | N25: 0 | O25: 50.76 | P25: 0 | Q25: 6192.72 | R25: 0
C26: Fertilizer (N) - NH3 | D26: 150 | F26: Pound | G26: 0.448 | I26: 67.2 | J26: 0 | K26: 0 | M26: 0 | N26: 0 | O26: 67.2 | P26: 0 | Q26: 8198.4 | R26: 0
B27: Herbicide
C28: Herbicide and Apply Corn | D28: 1 | F28: Acre | G28: 45 | I28: 45 | J28: 0 | K28: 0 | M28: 0 | N28: 0 | O28: 45 | P28: 0 | Q28: 5490 | R28: 0
B29: Insecticide
C30: Insecticide and Apply Corn | D30: 1 | F30: Acre | G30: 25 | I30: 25 | J30: 0 | K30: 0 | M30: 0 | N30: 0 | O30: 25 | P30: 0 | Q30: 3050 | R30: 0
B31: Miscellaneous
C32: Crop Insurance Corn Irrigated | D32: 1 | F32: Acre | G32: 27.33 | I32: 27.33 | J32: 0 | K32: 0 | M32: 0 | N32: 0 | O32: 27.33 | P32: 0 | Q32: 3334.26 | R32: 0
B33: Seed
C34: Seed - Corn | D34: 0.4375 | F34: Bag | G34: 272 | I34: 119 | J34: 0 | K34: 0 | M34: 0 | N34: 0 | O34: 119 | P34: 0 | Q34: 14518 | R34: 0
D35: 0 | G35: 0 | I35: 0 | J35: 0 | K35: 0 | M35: 0 | N35: 0 | O35: 0 | P35: 0 | Q35: 0 | R35: 0
D36: 0 | G36: 0 | I36: 0 | J36: 0 | K36: 0 | M36: 0 | N36: 0 | O36: 0 | P36: 0 | Q36: 0 | R36: 0
D37: 0 | G37: 0 | I37: 0 | J37: =E37*H37 -> 0 | K37: 0 | M37: 0 | N37: =J37*L37 -> 0 | O37: 0 | P37: =+J37-N37 -> 0 | Q37: 0 | R37: =+J37*E$7 -> 0
B38: Irrigation
C39: Energy Cost | D39: 20 | F39: AcreInch | G39: 10 | I39: 200 | J39: =E39*H39 -> 0 | K39: 0 | M39: 0 | N39: =J39*L39 -> 0 | O39: 200 | P39: =+J39-N39 -> 0 | Q39: 24400 | R39: =+J39*E$7 -> 0
C40: Irrigation Labor | D40: 1.25 | F40: Hour | G40: 16 | I40: 20 | J40: 0 | K40: 0 | M40: 0 | N40: 0 | O40: 20 | P40: 0 | Q40: 2440 | R40: 0
B41: Machinery Labor
C42: Tractors/Self-Propelled | D42: 0.46 | F42: Hour | G42: 16 | I42: 7.36 | J42: =E42*H42 -> 0 | K42: 0 | M42: 0 | N42: =J42*L42 -> 0 | O42: 7.36 | P42: =+J42-N42 -> 0 | Q42: 897.92 | R42: =+J42*E$7 -> 0
C43: Other Labor | D43: 0.54 | F43: Hour | G43: 16 | I43: 8.64 | J43: =E43*H43 -> 0 | K43: 0 | M43: 0 | N43: =J43*L43 -> 0 | O43: 8.64 | P43: =+J43-N43 -> 0 | Q43: 1054.08 | R43: =+J43*E$7 -> 0
B45: Diesel Fuel
C46: Pickup/General Use Equipment | D46: 1 | F46: Acre | G46: 0 | I46: 0 | J46: =E46*H46 -> 0 | K46: 0 | M46: 0 | N46: =J46*L46 -> 0 | O46: 0 | P46: =+J46-N46 -> 0 | Q46: 0 | R46: =+J46*E$7 -> 0
C47: Tractors/Self-Propelled | D47: 2.4 | F47: Gallon | G47: 2.919 | I47: 7.0056 | J47: =E47*H47 -> 0 | K47: 0 | M47: 0 | N47: =J47*L47 -> 0 | O47: 7.0056 | P47: =+J47-N47 -> 0 | Q47: 854.6832 | R47: =+J47*E$7 -> 0
B49: Gasoline
C50: Pickup/General Use Equipment | D50: 1 | F50: Acre | G50: 5.407786885 | I50: 5.407786885 | J50: =E50*H50 -> 0 | K50: 0 | M50: 0 | N50: =J50*L50 -> 0 | O50: 5.407786885 | P50: =+J50-N50 -> 0 | Q50: 659.75 | R50: =+J50*E$7 -> 0
C51: Tractors/Self-Propelled | D51: 0 | F51: Gallon | G51: 2.639 | I51: 0 | J51: =E51*H51 -> 0 | K51: 0 | M51: 0 | N51: =J51*L51 -> 0 | O51: 0 | P51: =+J51-N51 -> 0 | Q51: 0 | R51: =+J51*E$7 -> 0
B53: Repairs & Maintenance
C54: Pickup/General Use Equipment | D54: 1 | F54: Acre | G54: 0.5 | I54: 0.5 | J54: =E54*H54 -> 0 | K54: 0 | M54: 0 | N54: =J54*L54 -> 0 | O54: 0.5 | P54: =+J54-N54 -> 0 | Q54: 61 | R54: =+J54*E$7 -> 0
C55: Irrigation Equipment | D55: 1 | F55: Acre | G55: 38 | I55: 38 | J55: 0 | K55: 0 | M55: 0 | N55: 0 | O55: 38 | P55: 0 | Q55: 4636 | R55: 0
C56: Tractors/Self-Propelled | D56: 1 | F56: Acre | G56: 6 | I56: 6 | J56: 0 | K56: 0 | M56: 0 | N56: 0 | O56: 6 | P56: 0 | Q56: 732 | R56: 0
C57: Implements | D57: 1 | F57: Acre | G57: 3 | I57: 3 | J57: 0 | K57: 0 | M57: 0 | N57: 0 | O57: 3 | P57: 0 | Q57: 366 | R57: 0
I58: 0 | J58: 0 | K58: 0 | M58: 0 | N58: 0 | O58: 0 | P58: 0 | Q58: 0 | R58: 0
I59: 0 | J59: 0 | K59: 0 | M59: 0 | N59: 0 | O59: 0 | P59: 0 | Q59: 0 | R59: 0
B60: Interest on Credit Line | G60: 0.085 | I60: 20.74467118 | J60: =+SUM(J17:J59)/2*H60 -> 0 | M60: 0 | N60: =+SUM(N17:N59)/2*L60 -> 0 | O60: 20.74467118 | P60: =+SUM(P17:P59)/2*L60 -> 0 | Q60: 2530.849884 | R60: =+J60*E$7 -> 0
A61: Total Variable Costs | I61: 820.6980581 | J61: =SUM(J18:J60) -> 0 | M61: 0 | N61: =SUM(N18:N60) -> 0 | O61: 820.6980581 | P61: =SUM(P18:P60) -> 0 | Q61: 100125.1631 | R61: =SUM(R18:R60) -> 0
A62: Planned Returns Above Variable Costs: | I62: 204.1019419 | J62: =+J13-J61 -> 0 | M62: 0 | N62: =+N13-N61 -> 0 | O62: 204.1019419 | P62: =+P13-P61 -> 0 | Q62: 24900.43692 | R62: =+R13-R61 -> 0
B63: Breakeven Price to Cover Variable Costs | G63: 3.908085991 | H63: =IF(E10=0,"n/a",(YVarExp-(YTotExp+YTotRet-J10))/E10) -> n/a | I63: Bushel
Q64: Enterprise | R64: Enterprise
A65: FIXED COSTS | D65: Quantity | E65: Quantity | F65: Units | G65: $/Unit | H65: $/Unit | I65: Total | J65: Total | K65: Share | L65: Share | M65: Landlord | N65: Landlord | O65: Tenant | P65: Tenant | Q65: Total | R65: Total
B66: Equipment Fixed Costs
C67: Pickup/General Use Equipment | D67: 1 | F67: Acre | G67: 1.25 | I67: 1.25 | J67: =E67*H67 -> 0 | K67: 0 | M67: 0 | N67: =J67*L67 -> 0 | O67: 1.25 | P67: =+J67-N67 -> 0 | Q67: 152.5 | R67: =+J67*E$7 -> 0
C68: Irrigation Equipment | D68: 1 | F68: Acre | G68: 55 | I68: 55 | J68: 0 | K68: 0 | M68: 0 | N68: 0 | O68: 55 | P68: 0 | Q68: 6710 | R68: 0
C69: Tractors/Self-Propelled | D69: 1 | F69: Acre | G69: 12 | I69: 12 | J69: 0 | K69: 0 | M69: 0 | N69: 0 | O69: 12 | P69: 0 | Q69: 1464 | R69: 0
C70: Implements | D70: 1 | F70: Acre | G70: 10 | I70: 10 | J70: 0 | K70: 0 | M70: 0 | N70: 0 | O70: 10 | P70: 0 | Q70: 1220 | R70: 0
B71: Salaried Labor | D71: 1 | F71: Acre | G71: 0 | I71: 0 | J71: =E71*H71 -> 0 | K71: 0 | M71: 0 | N71: 0 | O71: 0 | P71: 0 | Q71: 0 | R71: 0
B72: Management Fee, Owner/Operator Labor | D72: 1 | F72: Acre | G72: 25 | I72: 25 | J72: 0 | K72: 0 | M72: 0 | N72: 0 | O72: 25 | P72: 0 | Q72: 3050 | R72: 0
B73: Allocated Establishment Cost | D73: 1 | F73: Acre | G73: 0 | I73: 0 | J73: 0 | K73: 0 | M73: 0 | N73: 0 | O73: 0 | P73: 0 | Q73: 0 | R73: 0
B74: Cash Rent - Corn | D74: 1 | F74: Acre | G74: 130 | I74: 130 | J74: 0 | K74: 0 | M74: 0 | N74: 0 | O74: 130 | P74: 0 | Q74: 15860 | R74: 0
B75: Property Taxes | D75: 1 | F75: Acre | G75: 0 | I75: 0 | J75: 0 | K75: 0 | M75: 0 | N75: 0 | O75: 0 | P75: 0 | Q75: 0 | R75: 0
B76: Whole Farm Insurance | D76: 1 | F76: Acre | G76: 2 | I76: 2 | J76: 0 | K76: 0 | M76: 0 | N76: 0 | O76: 2 | P76: 0 | Q76: 244 | R76: 0
D77: 1 | G77: 0 | I77: 0 | J77: 0 | K77: 0 | M77: 0 | N77: 0 | O77: 0 | P77: 0 | Q77: 0 | R77: 0
D78: 1 | G78: 0 | I78: 0 | J78: =E78*H78 -> 0 | K78: 0 | M78: 0 | N78: 0 | O78: 0 | P78: 0 | Q78: 0 | R78: 0
A79: Total Fixed Costs | I79: 235.25 | J79: =+SUM(J66:J78) -> 0 | M79: 0 | N79: =+SUM(N66:N78) -> 0 | O79: 235.25 | P79: =+SUM(P66:P78) -> 0 | Q79: 28700.5 | R79: =+SUM(R66:R78) -> 0
A80: Total Specified Costs | I80: 1055.948058 | J80: =+J61+J79 -> 0 | M80: 0 | N80: =+N61+N79 -> 0 | O80: 1055.948058 | P80: =+P61+P79 -> 0 | Q80: 128825.6631 | R80: =+R61+R79 -> 0
A82: Returns Above Specified Costs | I82: -31.14805806 | J82: =+J13-J80 -> 0 | M82: 0 | N82: =+N13-N80 -> 0 | O82: -31.14805806 | P82: =+P13-P80 -> 0 | Q82: -3800.063084 | R82: =+R13-R80 -> 0
A84: Breakeven Price to Cover Total Costs | G84: 5.028324086 | H84: =IF(E10=0,"n/a",(YTotExp-(YTotExp+YTotRet-J10))/E10) -> n/a | I84: Bushel
D86: Example Breakeven Prices
B87: Example | C87: Example | D87: To Cover | G87: To Cover
B88: Yield | C88: Yield | D88: Variable | G88: Total
B89: Percent | C89: Bushel | D89: Costs | G89: Costs
B90: 0.75 | C90: 157.5 | D90: 5.210781321 | G90: 6.704432115
B91: 0.9 | C91: 189 | D91: 4.342317768 | G91: 5.587026762
B92: 1 | C92: 210 | D92: 3.908085991 | G92: 5.028324086
B93: 1.1 | C93: 231 | D93: 3.552805446 | G93: 4.571203715
B94: 1.25 | C94: 262.5 | D94: 3.126468793 | G94: 4.022659269
D96: Your Breakeven Prices
B97: Your | C97: Your | E97: To Cover | H97: To Cover
B98: Yield | C98: Yield | E98: Variable | H98: Total
B99: Percent | C99: Bushel | E99: Costs | H99: Costs
B100: 0.75 | C100: =E10*YPER1 -> 0 | E100: =IF($E$10=0,0,(YVarExp-(YTotExp+YTotRet-J10))/($E$10*YPER1)) -> 0 | H100: =IF($E$10=0,0,(YTotExp-(YTotExp+YTotRet-J10))/($E$10*YPER1)) -> 0
B101: 0.9 | C101: =E10*YPER2 -> 0 | E101: =IF($E$10=0,0,(YVarExp-(YTotExp+YTotRet-J10))/($E$10*YPER2)) -> 0 | H101: =IF($E$10=0,0,(YTotExp-(YTotExp+YTotRet-J10))/($E$10*YPER2)) -> 0
B102: 1 | C102: =+E10 -> 0 | E102: =IF($E$10=0,0,(YVarExp-(YTotExp+YTotRet-J10))/($E$10*YPER3)) -> 0 | H102: =IF($E$10=0,0,(YTotExp-(YTotExp+YTotRet-J10))/($E$10*YPER3)) -> 0
B103: 1.1 | C103: =E10*YPER4 -> 0 | E103: =IF($E$10=0,0,(YVarExp-(YTotExp+YTotRet-J10))/($E$10*YPER4)) -> 0 | H103: =IF($E$10=0,0,(YTotExp-(YTotExp+YTotRet-J10))/($E$10*YPER4)) -> 0
B104: 1.25 | C104: =E10*YPER5 -> 0 | E104: =IF($E$10=0,0,(YVarExp-(YTotExp+YTotRet-J10))/($E$10*YPER5)) -> 0 | H104: =IF($E$10=0,0,(YTotExp-(YTotExp+YTotRet-J10))/($E$10*YPER5)) -> 0
A106: Developed by Andrew Wright, Assistant Professor and Extension Specialist, Texas A&M AgriLife Extension, 806-746-6101
A108: Information presented is prepared solely as a general guide and not intended to recognize or predict the costs and returns from any one operation. Brand names are mentioned only as examples and imply no endorsement.

Sheet CornSilage
A1: Projections for Planning Purposes Only -- Not to be Used without Updating
A2: 2025 Estimated Costs and Returns per Acre
A3: Irrigated Corn Silage
A4: Enter your name for this budget in the cell above.
A5: Enter Your Values in the cells highlighed in MAROON.
E6: Your Acres | R6: Your
C7: Crop Acres | D7: 122 | L7: Your | Q7: Enterprise | R7: Enterprise
E8: Your | H8: Your | I8: Cash | J8: Your | K8: Landlord | L8: Landlord | N8: Your | P8: Your | Q8: Total | R8: Total
A9: REVENUE | D9: Quantity | E9: Quantity | F9: Units | G9: $/Unit | H9: $/Unit | I9: Total | J9: Total | K9: Share | L9: Share | M9: Landlord | N9: Landlord | O9: Tenant | P9: Tenant | Q9: (122 acres) | R9: ="(" & E7 & " acres)" -> ( acres)
B10: Corn Silage | D10: 27 | F10: Ton | G10: 50 | I10: 1350 | J10: =E10*H10 -> 0 | K10: 0 | M10: 0 | N10: =J10*L10 -> 0 | O10: 1350 | P10: =+J10-N10 -> 0 | Q10: 164700 | R10: =+J10*E$7 -> 0
D11: 0 | G11: 0 | I11: 0 | J11: 0 | K11: 0 | M11: 0 | N11: 0 | O11: 0 | P11: =+J11-N11 -> 0 | Q11: 0 | R11: 0
D12: 0 | G12: 0 | I12: 0 | J12: 0 | K12: 0 | M12: 0 | N12: 0 | O12: 0 | P12: 0 | Q12: 0 | R12: 0
A13: Total Revenue | I13: 1350 | J13: =SUM(J10:J12) -> 0 | M13: 0 | N13: =SUM(N10:N12) -> 0 | O13: 1350 | P13: =SUM(P10:P12) -> 0 | Q13: 164700 | R13: =SUM(R10:R12) -> 0
Q14: Enterprise | R14: Enterprise
A15: VARIABLE COSTS | D15: Quantity | E15: Quantity | F15: Units | G15: $/Unit | H15: $/Unit | I15: Total | J15: Total | K15: Share | L15: Share | M15: Landlord | N15: Landlord | O15: Tenant | P15: Tenant | Q15: Total | R15: Total
A16: Production Costs
B17: Custom
C18: Harvest and Haul - Corn Silage | D18: 27 | F18: Ton | G18: 7 | I18: 189 | J18: =E18*H18 -> 0 | K18: 0 | M18: 0 | N18: =J18*L18 -> 0 | O18: 189 | P18: =+J18-N18 -> 0 | Q18: 23058 | R18: =+J18*E$7 -> 0
C19: Fertilizer Application - Liquid High | D19: 1 | F19: Acre | G19: 4.75 | I19: 4.75 | J19: 0 | K19: 0 | M19: 0 | N19: 0 | O19: 4.75 | P19: 0 | Q19: 579.5 | R19: 0
C20: Fertilizer Application - Dry | D20: 1 | F20: Acre | G20: 4 | I20: 4 | J20: 0 | K20: 0 | M20: 0 | N20: 0 | O20: 4 | P20: 0 | Q20: 488 | R20: 0
C21: Fertilizer Application - NH3 | D21: 1 | F21: Acre | G21: 3.5 | I21: 3.5 | J21: 0 | K21: 0 | M21: 0 | N21: 0 | O21: 3.5 | P21: 0 | Q21: 427 | R21: 0
B22: Fertilizer
C23: Fertilizer (N) - Liquid | D23: 175 | F23: Pound | G23: 0.6 | I23: 105 | J23: 0 | K23: 0 | M23: 0 | N23: 0 | O23: 105 | P23: 0 | Q23: 12810 | R23: 0
C24: Fertilizer (P) - Dry | D24: 110 | F24: Pound | G24: 0.47 | I24: 51.7 | J24: 0 | K24: 0 | M24: 0 | N24: 0 | O24: 51.7 | P24: 0 | Q24: 6307.4 | R24: 0
C25: Fertilizer (N) - NH3 | D25: 150 | F25: Pound | G25: 0.448 | I25: 67.2 | J25: 0 | K25: 0 | M25: 0 | N25: 0 | O25: 67.2 | P25: 0 | Q25: 8198.4 | R25: 0
B26: Herbicide
C27: Herbicide and Apply Corn Silage | D27: 1 | F27: Acre | G27: 21.12 | I27: 21.12 | J27: 0 | K27: 0 | M27: 0 | N27: 0 | O27: 21.12 | P27: 0 | Q27: 2576.64 | R27: 0
B28: Insecticide
C29: Insecticide and Apply Corn Silage | D29: 1 | F29: Acre | G29: 22.73 | I29: 22.73 | J29: 0 | K29: 0 | M29: 0 | N29: 0 | O29: 22.73 | P29: 0 | Q29: 2773.06 | R29: 0
B30: Miscellaneous
C31: Crop Insurance Corn Silage | D31: 1 | F31: Acre | G31: 27.33 | I31: 27.33 | J31: 0 | K31: 0 | M31: 0 | N31: 0 | O31: 27.33 | P31: 0 | Q31: 3334.26 | R31: 0
B32: Seed
C33: Seed - Corn | D33: 0.5 | F33: Bag | G33: 272 | I33: 136 | J33: 0 | K33: 0 | M33: 0 | N33: 0 | O33: 136 | P33: 0 | Q33: 16592 | R33: 0
D34: 0 | G34: 0 | I34: 0 | J34: 0 | K34: 0 | M34: 0 | N34: 0 | O34: 0 | P34: 0 | Q34: 0 | R34: 0
D35: 0 | G35: 0 | I35: 0 | J35: 0 | K35: 0 | M35: 0 | N35: 0 | O35: 0 | P35: 0 | Q35: 0 | R35: 0
D36: 0 | G36: 0 | I36: 0 | J36: =E36*H36 -> 0 | K36: 0 | M36: 0 | N36: =J36*L36 -> 0 | O36: 0 | P36: =+J36-N36 -> 0 | Q36: 0 | R36: =+J36*E$7 -> 0
B37: Irrigation
C38: Energy Cost | D38: 20 | F38: AcreInch | G38: 10 | I38: 200 | J38: =E38*H38 -> 0 | K38: 0 | M38: 0 | N38: =J38*L38 -> 0 | O38: 200 | P38: =+J38-N38 -> 0 | Q38: 24400 | R38: =+J38*E$7 -> 0
C39: Irrigation Labor | D39: 1.25 | F39: Hour | G39: 16 | I39: 20 | J39: 0 | K39: 0 | M39: 0 | N39: 0 | O39: 20 | P39: 0 | Q39: 2440 | R39: 0
B40: Machinery Labor
C41: Tractors/Self-Propelled | D41: 0.47 | F41: Hour | G41: 16 | I41: 7.52 | J41: =E41*H41 -> 0 | K41: 0 | M41: 0 | N41: =J41*L41 -> 0 | O41: 7.52 | P41: =+J41-N41 -> 0 | Q41: 917.44 | R41: =+J41*E$7 -> 0
C42: Other Labor | D42: 0.53 | F42: Hour | G42: 16 | I42: 8.48 | J42: =E42*H42 -> 0 | K42: 0 | M42: 0 | N42: =J42*L42 -> 0 | O42: 8.48 | P42: =+J42-N42 -> 0 | Q42: 1034.56 | R42: =+J42*E$7 -> 0
B44: Diesel Fuel
C45: Pickup/General Use Equipment | D45: 1 | F45: Acre | G45: 0 | I45: 0 | J45: =E45*H45 -> 0 | K45: 0 | M45: 0 | N45: =J45*L45 -> 0 | O45: 0 | P45: =+J45-N45 -> 0 | Q45: 0 | R45: =+J45*E$7 -> 0
C46: Tractors/Self-Propelled | D46: 2.4 | F46: Gallon | G46: 2.919 | I46: 7.0056 | J46: =E46*H46 -> 0 | K46: 0 | M46: 0 | N46: =J46*L46 -> 0 | O46: 7.0056 | P46: =+J46-N46 -> 0 | Q46: 854.6832 | R46: =+J46*E$7 -> 0
B48: Gasoline
C49: Pickup/General Use Equipment | D49: 1 | F49: Acre | G49: 5.407786885 | I49: 5.407786885 | J49: =E49*H49 -> 0 | K49: 0 | M49: 0 | N49: =J49*L49 -> 0 | O49: 5.407786885 | P49: =+J49-N49 -> 0 | Q49: 659.75 | R49: =+J49*E$7 -> 0
C50: Tractors/Self-Propelled | D50: 0 | F50: Gallon | G50: 2.639 | I50: 0 | J50: =E50*H50 -> 0 | K50: 0 | M50: 0 | N50: =J50*L50 -> 0 | O50: 0 | P50: =+J50-N50 -> 0 | Q50: 0 | R50: =+J50*E$7 -> 0
B52: Repairs & Maintenance
C53: Pickup/General Use Equipment | D53: 1 | F53: Acre | G53: 0.5 | I53: 0.5 | J53: =E53*H53 -> 0 | K53: 0 | M53: 0 | N53: =J53*L53 -> 0 | O53: 0.5 | P53: =+J53-N53 -> 0 | Q53: 61 | R53: =+J53*E$7 -> 0
C54: Irrigation Equipment | D54: 1 | F54: Acre | G54: 40 | I54: 40 | J54: 0 | K54: 0 | M54: 0 | N54: 0 | O54: 40 | P54: 0 | Q54: 4880 | R54: 0
C55: Tractors/Self-Propelled | D55: 1 | F55: Acre | G55: 6 | I55: 6 | J55: 0 | K55: 0 | M55: 0 | N55: 0 | O55: 6 | P55: 0 | Q55: 732 | R55: 0
C56: Implements | D56: 1 | F56: Acre | G56: 3 | I56: 3 | J56: 0 | K56: 0 | M56: 0 | N56: 0 | O56: 3 | P56: 0 | Q56: 366 | R56: 0
I57: 0 | J57: 0 | K57: 0 | M57: 0 | N57: 0 | O57: 0 | P57: 0 | Q57: 0 | R57: 0
I58: 0 | J58: 0 | K58: 0 | M58: 0 | N58: 0 | O58: 0 | P58: 0 | Q58: 0 | R58: 0
B59: Interest on Credit Line | G59: 0.085 | I59: 23.43448777 | J59: =+SUM(J17:J58)/2*H59 -> 0 | M59: 0 | N59: =+SUM(N17:N58)/2*L59 -> 0 | O59: 23.43448777 | P59: =+SUM(P17:P58)/2*L59 -> 0 | Q59: 2859.007508 | R59: =+J59*E$7 -> 0
A60: Total Variable Costs | I60: 953.6778747 | J60: =SUM(J18:J59) -> 0 | M60: 0 | N60: =SUM(N18:N59) -> 0 | O60: 953.6778747 | P60: =SUM(P18:P59) -> 0 | Q60: 116348.7007 | R60: =SUM(R18:R59) -> 0
A61: Planned Returns Above Variable Costs: | I61: 396.3221253 | J61: =+J13-J60 -> 0 | M61: 0 | N61: =+N13-N60 -> 0 | O61: 396.3221253 | P61: =+P13-P60 -> 0 | Q61: 48351.29929 | R61: =+R13-R60 -> 0
B62: Breakeven Price to Cover Variable Costs | G62: 35.32140276 | H62: =IF(E10=0,"n/a",(YVarExp-(YTotExp+YTotRet-J10))/E10) -> n/a | I62: Ton
Q63: Enterprise | R63: Enterprise
A64: FIXED COSTS | D64: Quantity | E64: Quantity | F64: Units | G64: $/Unit | H64: $/Unit | I64: Total | J64: Total | K64: Share | L64: Share | M64: Landlord | N64: Landlord | O64: Tenant | P64: Tenant | Q64: Total | R64: Total
B65: Equipment Fixed Costs
C66: Pickup/General Use Equipment | D66: 1 | F66: Acre | G66: 1.25 | I66: 1.25 | J66: =E66*H66 -> 0 | K66: 0 | M66: 0 | N66: =J66*L66 -> 0 | O66: 1.25 | P66: =+J66-N66 -> 0 | Q66: 152.5 | R66: =+J66*E$7 -> 0
C67: Irrigation Equipment | D67: 1 | F67: Acre | G67: 55 | I67: 55 | J67: 0 | K67: 0 | M67: 0 | N67: 0 | O67: 55 | P67: 0 | Q67: 6710 | R67: 0
C68: Tractors/Self-Propelled | D68: 1 | F68: Acre | G68: 12 | I68: 12 | J68: 0 | K68: 0 | M68: 0 | N68: 0 | O68: 12 | P68: 0 | Q68: 1464 | R68: 0
C69: Implements | D69: 1 | F69: Acre | G69: 10 | I69: 10 | J69: 0 | K69: 0 | M69: 0 | N69: 0 | O69: 10 | P69: 0 | Q69: 1220 | R69: 0
B70: Salaried Labor | D70: 1 | F70: Acre | G70: 0 | I70: 0 | J70: =E70*H70 -> 0 | K70: 0 | M70: 0 | N70: 0 | O70: 0 | P70: 0 | Q70: 0 | R70: 0
B71: Management Fee, Owner/Operator Labor | D71: 1 | F71: Acre | G71: 25 | I71: 25 | J71: 0 | K71: 0 | M71: 0 | N71: 0 | O71: 25 | P71: 0 | Q71: 3050 | R71: 0
B72: Allocated Establishment Cost | D72: 1 | F72: Acre | G72: 0 | I72: 0 | J72: 0 | K72: 0 | M72: 0 | N72: 0 | O72: 0 | P72: 0 | Q72: 0 | R72: 0
B73: Cash Rent - Corn | D73: 1 | F73: Acre | G73: 130 | I73: 130 | J73: 0 | K73: 0 | M73: 0 | N73: 0 | O73: 130 | P73: 0 | Q73: 15860 | R73: 0
B74: Property Taxes | D74: 1 | F74: Acre | G74: 0 | I74: 0 | J74: 0 | K74: 0 | M74: 0 | N74: 0 | O74: 0 | P74: 0 | Q74: 0 | R74: 0
B75: Whole Farm Insurance | D75: 1 | F75: Acre | G75: 2 | I75: 2 | J75: 0 | K75: 0 | M75: 0 | N75: 0 | O75: 2 | P75: 0 | Q75: 244 | R75: 0
D76: 1 | G76: 0 | I76: 0 | J76: 0 | K76: 0 | M76: 0 | N76: 0 | O76: 0 | P76: 0 | Q76: 0 | R76: 0
D77: 1 | G77: 0 | I77: 0 | J77: =E77*H77 -> 0 | K77: 0 | M77: 0 | N77: 0 | O77: 0 | P77: 0 | Q77: 0 | R77: 0
A78: Total Fixed Costs | I78: 235.25 | J78: =+SUM(J65:J77) -> 0 | M78: 0 | N78: =+SUM(N65:N77) -> 0 | O78: 235.25 | P78: =+SUM(P65:P77) -> 0 | Q78: 28700.5 | R78: =+SUM(R65:R77) -> 0
A79: Total Specified Costs | I79: 1188.927875 | J79: =+J60+J78 -> 0 | M79: 0 | N79: =+N60+N78 -> 0 | O79: 1188.927875 | P79: =+P60+P78 -> 0 | Q79: 145049.2007 | R79: =+R60+R78 -> 0
A81: Returns Above Specified Costs | I81: 161.0721253 | J81: =+J13-J79 -> 0 | M81: 0 | N81: =+N13-N79 -> 0 | O81: 161.0721253 | P81: =+P13-P79 -> 0 | Q81: 19650.79929 | R81: =+R13-R79 -> 0
A83: Breakeven Price to Cover Total Costs | G83: 44.03436573 | H83: =IF(E10=0,"n/a",(YTotExp-(YTotExp+YTotRet-J10))/E10) -> n/a | I83: Ton
D85: Example Breakeven Prices
B86: Example | C86: Example | D86: To Cover | G86: To Cover
B87: Yield | C87: Yield | D87: Variable | G87: Total
B88: Percent | C88: Ton | D88: Costs | G88: Costs
B89: 0.75 | C89: 20.25 | D89: 47.09520369 | G89: 58.71248764
B90: 0.9 | C90: 24.3 | D90: 39.24600307 | G90: 48.92707303
B91: 1 | C91: 27 | D91: 35.32140276 | G91: 44.03436573
B92: 1.1 | C92: 29.7 | D92: 32.11036615 | G92: 40.03124157
B93: 1.25 | C93: 33.75 | D93: 28.25712221 | G93: 35.22749258
D95: Your Breakeven Prices
B96: Your | C96: Your | E96: To Cover | H96: To Cover
B97: Yield | C97: Yield | E97: Variable | H97: Total
B98: Percent | C98: Ton | E98: Costs | H98: Costs
B99: 0.75 | C99: =E10*YPER1 -> 0 | E99: =IF($E$10=0,0,(YVarExp-(YTotExp+YTotRet-J10))/($E$10*YPER1)) -> 0 | H99: =IF($E$10=0,0,(YTotExp-(YTotExp+YTotRet-J10))/($E$10*YPER1)) -> 0
B100: 0.9 | C100: =E10*YPER2 -> 0 | E100: =IF($E$10=0,0,(YVarExp-(YTotExp+YTotRet-J10))/($E$10*YPER2)) -> 0 | H100: =IF($E$10=0,0,(YTotExp-(YTotExp+YTotRet-J10))/($E$10*YPER2)) -> 0
B101: 1 | C101: =+E10 -> 0 | E101: =IF($E$10=0,0,(YVarExp-(YTotExp+YTotRet-J10))/($E$10*YPER3)) -> 0 | H101: =IF($E$10=0,0,(YTotExp-(YTotExp+YTotRet-J10))/($E$10*YPER3)) -> 0
B102: 1.1 | C102: =E10*YPER4 -> 0 | E102: =IF($E$10=0,0,(YVarExp-(YTotExp+YTotRet-J10))/($E$10*YPER4)) -> 0 | H102: =IF($E$10=0,0,(YTotExp-(YTotExp+YTotRet-J10))/($E$10*YPER4)) -> 0
B103: 1.25 | C103: =E10*YPER5 -> 0 | E103: =IF($E$10=0,0,(YVarExp-(YTotExp+YTotRet-J10))/($E$10*YPER5)) -> 0 | H103: =IF($E$10=0,0,(YTotExp-(YTotExp+YTotRet-J10))/($E$10*YPER5)) -> 0
A105: Developed by Andrew Wright, Assistant Professor and Extension Specialist, Texas A&M AgriLife Extension, 806-746-6101
A107: Information presented is prepared solely as a general guide and not intended to recognize or predict the costs and returns from any one operation. Brand names are mentioned only as examples and imply no endorsement.

Sheet CottonDrip
A1: Projections for Planning Purposes Only -- Not to be Used without Updating
A2: 2025 Estimated Costs and Returns per Acre
A3: Irrigated Cotton - Drip
A4: Enter your name for this budget in the cell above.
A5: Enter Your Values in the cells highlighed in MAROON.
E6: Your Acres | R6: Your
C7: Crop Acres | D7: 122 | L7: Your | Q7: Enterprise | R7: Enterprise
E8: Your | H8: Your | I8: Cash | J8: Your | K8: Landlord | L8: Landlord | N8: Your | P8: Your | Q8: Total | R8: Total
A9: REVENUE | D9: Quantity | E9: Quantity | F9: Units | G9: $/Unit | H9: $/Unit | I9: Total | J9: Total | K9: Share | L9: Share | M9: Landlord | N9: Landlord | O9: Tenant | P9: Tenant | Q9: (122 acres) | R9: ="(" & E7 & " acres)" -> ( acres)
B10: Cotton Lint | D10: 1500 | F10: Pound | G10: 0.7 | I10: 1050 | J10: =E10*H10 -> 0 | K10: 0 | M10: 0 | N10: =J10*L10 -> 0 | O10: 1050 | P10: =+J10-N10 -> 0 | Q10: 128100 | R10: =+J10*E$7 -> 0
B11: Cottonseed | D11: 1.065 | F11: Ton | G11: 220 | I11: 234.3 | J11: 0 | K11: 0 | M11: 0 | N11: 0 | O11: 234.3 | P11: =+J11-N11 -> 0 | Q11: 28584.6 | R11: 0
D12: 0 | G12: 0 | I12: 0 | J12: 0 | K12: 0 | M12: 0 | N12: 0 | O12: 0 | P12: 0 | Q12: 0 | R12: 0
D13: 0 | G13: 0 | I13: 0 | J13: 0 | K13: 0 | M13: 0 | N13: 0 | O13: 0 | P13: 0 | Q13: 0 | R13: 0
A14: Total Revenue | I14: 1284.3 | J14: =SUM(J10:J13) -> 0 | M14: 0 | N14: =SUM(N10:N13) -> 0 | O14: 1284.3 | P14: =SUM(P10:P13) -> 0 | Q14: 156684.6 | R14: =SUM(R10:R13) -> 0
Q15: Enterprise | R15: Enterprise
A16: VARIABLE COSTS | D16: Quantity | E16: Quantity | F16: Units | G16: $/Unit | H16: $/Unit | I16: Total | J16: Total | K16: Share | L16: Share | M16: Landlord | N16: Landlord | O16: Tenant | P16: Tenant | Q16: Total | R16: Total
A17: Production Costs
B18: Custom
C19: Fertilizer Application - Liquid High | D19: 1 | F19: Acre | G19: 4.75 | I19: 4.75 | J19: =E19*H19 -> 0 | K19: 0 | M19: 0 | N19: =J19*L19 -> 0 | O19: 4.75 | P19: =+J19-N19 -> 0 | Q19: 579.5 | R19: =+J19*E$7 -> 0
C20: Scouting | D20: 1 | F20: Acre | G20: 9 | I20: 9 | J20: 0 | K20: 0 | M20: 0 | N20: 0 | O20: 9 | P20: 0 | Q20: 1098 | R20: 0
C21: Strip and Module - Cotton | D21: 1500 | F21: Pound | G21: 0.12 | I21: 180 | J21: 0 | K21: 0 | M21: 0 | N21: 0 | O21: 180 | P21: 0 | Q21: 21960 | R21: 0
C22: Ginning - Cotton | D22: 45.45454545 | F22: CWT | G22: 3.25 | I22: 147.7272727 | J22: 0 | K22: 0 | M22: 0 | N22: 0 | O22: 147.7272727 | P22: 0 | Q22: 18022.72727 | R22: 0
B23: Fertilizer
C24: Fertilizer (P) - Liquid | D24: 45 | F24: Pound | G24: 0.916 | I24: 41.22 | J24: 0 | K24: 0 | M24: 0 | N24: 0 | O24: 41.22 | P24: 0 | Q24: 5028.84 | R24: 0
C25: Fertilizer (N) - Liquid | D25: 135 | F25: Pound | G25: 0.6 | I25: 81 | J25: 0 | K25: 0 | M25: 0 | N25: 0 | O25: 81 | P25: 0 | Q25: 9882 | R25: 0
B26: Herbicide
C27: Herbicide - Cotton Preplant | D27: 1 | F27: Acre | G27: 6 | I27: 6 | J27: 0 | K27: 0 | M27: 0 | N27: 0 | O27: 6 | P27: 0 | Q27: 732 | R27: 0
C28: Herbicide - Cotton At Plant | D28: 1 | F28: Acre | G28: 6.5 | I28: 6.5 | J28: 0 | K28: 0 | M28: 0 | N28: 0 | O28: 6.5 | P28: 0 | Q28: 793 | R28: 0
C29: Herbicide - Cotton Postplant | D29: 1 | F29: Acre | G29: 57 | I29: 57 | J29: 0 | K29: 0 | M29: 0 | N29: 0 | O29: 57 | P29: 0 | Q29: 6954 | R29: 0
C30: Spot Spray and Chemical | D30: 0.2 | F30: Acre | G30: 15 | I30: 3 | J30: 0 | K30: 0 | M30: 0 | N30: 0 | O30: 3 | P30: 0 | Q30: 366 | R30: 0
B31: Insecticide
C32: Insecticide and Apply Cotton | D32: 1 | F32: Acre | G32: 12 | I32: 12 | J32: 0 | K32: 0 | M32: 0 | N32: 0 | O32: 12 | P32: 0 | Q32: 1464 | R32: 0
C33: Boll Weevil Assessment Irrigated | D33: 3 | F33: Bale | G33: 4 | I33: 12 | J33: 0 | K33: 0 | M33: 0 | N33: 0 | O33: 12 | P33: 0 | Q33: 1464 | R33: 0
B34: Miscellaneous
C35: Crop Insurance Cotton - Drip | D35: 1 | F35: Acre | G35: 43.65 | I35: 43.65 | J35: 0 | K35: 0 | M35: 0 | N35: 0 | O35: 43.65 | P35: 0 | Q35: 5325.3 | R35: 0
C36: Crop Insurance Hail | D36: 4 | F36: 100 | G36: 2.25 | I36: 9 | J36: 0 | K36: 0 | M36: 0 | N36: 0 | O36: 9 | P36: 0 | Q36: 1098 | R36: 0
B37: Seed
C38: Seed - Cotton Irrigated | D38: 40 | F38: Thousand | G38: 1.59 | I38: 63.6 | J38: 0 | K38: 0 | M38: 0 | N38: 0 | O38: 63.6 | P38: 0 | Q38: 7759.2 | R38: 0
B39: Other Chemicals
C40: Acid | D40: 24 | F40: Pound | G40: 0.5 | I40: 12 | J40: 0 | K40: 0 | M40: 0 | N40: 0 | O40: 12 | P40: 0 | Q40: 1464 | R40: 0
C41: Harvest Aid Apply Cotton Drip | D41: 1 | F41: Acre | G41: 30 | I41: 30 | J41: 0 | K41: 0 | M41: 0 | N41: 0 | O41: 30 | P41: 0 | Q41: 3660 | R41: 0
B42: Other Labor
C43: Hoeing | D43: 0.2 | F43: Acre | G43: 16 | I43: 3.2 | J43: 0 | K43: 0 | M43: 0 | N43: 0 | O43: 3.2 | P43: 0 | Q43: 390.4 | R43: 0
D44: 0 | G44: 0 | I44: 0 | J44: 0 | K44: 0 | M44: 0 | N44: 0 | O44: 0 | P44: 0 | Q44: 0 | R44: 0
D45: 0 | G45: 0 | I45: 0 | J45: 0 | K45: 0 | M45: 0 | N45: 0 | O45: 0 | P45: 0 | Q45: 0 | R45: 0
D46: 0 | G46: 0 | I46: 0 | J46: =E46*H46 -> 0 | K46: 0 | M46: 0 | N46: =J46*L46 -> 0 | O46: 0 | P46: =+J46-N46 -> 0 | Q46: 0 | R46: =+J46*E$7 -> 0
B47: Irrigation
C48: Energy Cost | D48: 14 | F48: AcreInch | G48: 10 | I48: 140 | J48: =E48*H48 -> 0 | K48: 0 | M48: 0 | N48: =J48*L48 -> 0 | O48: 140 | P48: =+J48-N48 -> 0 | Q48: 17080 | R48: =+J48*E$7 -> 0
C49: Irrigation Labor | D49: 1.25 | F49: Hour | G49: 16 | I49: 20 | J49: 0 | K49: 0 | M49: 0 | N49: 0 | O49: 20 | P49: 0 | Q49: 2440 | R49: 0
B50: Machinery Labor
C51: Tractors/Self-Propelled | D51: 0.75 | F51: Hour | G51: 16 | I51: 12 | J51: =E51*H51 -> 0 | K51: 0 | M51: 0 | N51: =J51*L51 -> 0 | O51: 12 | P51: =+J51-N51 -> 0 | Q51: 1464 | R51: =+J51*E$7 -> 0
C52: Other Labor | D52: 0.85 | F52: Hour | G52: 16 | I52: 13.6 | J52: =E52*H52 -> 0 | K52: 0 | M52: 0 | N52: =J52*L52 -> 0 | O52: 13.6 | P52: =+J52-N52 -> 0 | Q52: 1659.2 | R52: =+J52*E$7 -> 0
B54: Diesel Fuel
C55: Pickup/General Use Equipment | D55: 1 | F55: Acre | G55: 0 | I55: 0 | J55: =E55*H55 -> 0 | K55: 0 | M55: 0 | N55: =J55*L55 -> 0 | O55: 0 | P55: =+J55-N55 -> 0 | Q55: 0 | R55: =+J55*E$7 -> 0
C56: Tractors/Self-Propelled | D56: 4 | F56: Gallon | G56: 2.919 | I56: 11.676 | J56: =E56*H56 -> 0 | K56: 0 | M56: 0 | N56: =J56*L56 -> 0 | O56: 11.676 | P56: =+J56-N56 -> 0 | Q56: 1424.472 | R56: =+J56*E$7 -> 0
B58: Gasoline
C59: Pickup/General Use Equipment | D59: 1 | F59: Acre | G59: 5.407786885 | I59: 5.407786885 | J59: =E59*H59 -> 0 | K59: 0 | M59: 0 | N59: =J59*L59 -> 0 | O59: 5.407786885 | P59: =+J59-N59 -> 0 | Q59: 659.75 | R59: =+J59*E$7 -> 0
C60: Tractors/Self-Propelled | D60: 0 | F60: Gallon | G60: 2.639 | I60: 0 | J60: =E60*H60 -> 0 | K60: 0 | M60: 0 | N60: =J60*L60 -> 0 | O60: 0 | P60: =+J60-N60 -> 0 | Q60: 0 | R60: =+J60*E$7 -> 0
B62: Repairs & Maintenance
C63: Pickup/General Use Equipment | D63: 1 | F63: Acre | G63: 0.5 | I63: 0.5 | J63: =E63*H63 -> 0 | K63: 0 | M63: 0 | N63: =J63*L63 -> 0 | O63: 0.5 | P63: =+J63-N63 -> 0 | Q63: 61 | R63: =+J63*E$7 -> 0
C64: Irrigation Equipment | D64: 1 | F64: Acre | G64: 30 | I64: 30 | J64: 0 | K64: 0 | M64: 0 | N64: 0 | O64: 30 | P64: 0 | Q64: 3660 | R64: 0
C65: Tractors/Self-Propelled | D65: 1 | F65: Acre | G65: 6 | I65: 6 | J65: 0 | K65: 0 | M65: 0 | N65: 0 | O65: 6 | P65: 0 | Q65: 732 | R65: 0
C66: Implements | D66: 1 | F66: Acre | G66: 3 | I66: 3 | J66: 0 | K66: 0 | M66: 0 | N66: 0 | O66: 3 | P66: 0 | Q66: 366 | R66: 0
I67: 0 | J67: 0 | K67: 0 | M67: 0 | N67: 0 | O67: 0 | P67: 0 | Q67: 0 | R67: 0
I68: 0 | J68: 0 | K68: 0 | M68: 0 | N68: 0 | O68: 0 | P68: 0 | Q68: 0 | R68: 0
B69: Interest on Credit Line | G69: 0.085 | I69: 29.06682791 | J69: =+SUM(J18:J68)/2*H69 -> 0 | M69: 0 | N69: =+SUM(N18:N68)/2*L69 -> 0 | O69: 29.06682791 | P69: =+SUM(P18:P68)/2*L69 -> 0 | Q69: 3546.153005 | R69: =+J69*E$7 -> 0
A70: Total Variable Costs | I70: 992.8978875 | J70: =SUM(J19:J69) -> 0 | M70: 0 | N70: =SUM(N19:N69) -> 0 | O70: 992.8978875 | P70: =SUM(P19:P69) -> 0 | Q70: 121133.5423 | R70: =SUM(R19:R69) -> 0
A71: Planned Returns Above Variable Costs: | I71: 291.4021125 | J71: =+J14-J70 -> 0 | M71: 0 | N71: =+N14-N70 -> 0 | O71: 291.4021125 | P71: =+P14-P70 -> 0 | Q71: 35551.05772 | R71: =+R14-R70 -> 0
B72: Breakeven Price to Cover Variable Costs | G72: 0.505731925 | H72: =IF(E10=0,"n/a",(YVarExp-(YTotExp+YTotRet-J10))/E10) -> n/a | I72: Pound
Q73: Enterprise | R73: Enterprise
A74: FIXED COSTS | D74: Quantity | E74: Quantity | F74: Units | G74: $/Unit | H74: $/Unit | I74: Total | J74: Total | K74: Share | L74: Share | M74: Landlord | N74: Landlord | O74: Tenant | P74: Tenant | Q74: Total | R74: Total
B75: Equipment Fixed Costs
C76: Pickup/General Use Equipment | D76: 1 | F76: Acre | G76: 1.25 | I76: 1.25 | J76: =E76*H76 -> 0 | K76: 0 | M76: 0 | N76: =J76*L76 -> 0 | O76: 1.25 | P76: =+J76-N76 -> 0 | Q76: 152.5 | R76: =+J76*E$7 -> 0
C77: Irrigation Equipment | D77: 1 | F77: Acre | G77: 75 | I77: 75 | J77: 0 | K77: 0 | M77: 0 | N77: 0 | O77: 75 | P77: 0 | Q77: 9150 | R77: 0
C78: Tractors/Self-Propelled | D78: 1 | F78: Acre | G78: 12 | I78: 12 | J78: 0 | K78: 0 | M78: 0 | N78: 0 | O78: 12 | P78: 0 | Q78: 1464 | R78: 0
C79: Implements | D79: 1 | F79: Acre | G79: 10 | I79: 10 | J79: 0 | K79: 0 | M79: 0 | N79: 0 | O79: 10 | P79: 0 | Q79: 1220 | R79: 0
B80: Salaried Labor | D80: 1 | F80: Acre | G80: 0 | I80: 0 | J80: =E80*H80 -> 0 | K80: 0 | M80: 0 | N80: 0 | O80: 0 | P80: 0 | Q80: 0 | R80: 0
B81: Management Fee, Owner/Operator Labor | D81: 1 | F81: Acre | G81: 25 | I81: 25 | J81: 0 | K81: 0 | M81: 0 | N81: 0 | O81: 25 | P81: 0 | Q81: 3050 | R81: 0
B82: Allocated Establishment Cost | D82: 1 | F82: Acre | G82: 0 | I82: 0 | J82: 0 | K82: 0 | M82: 0 | N82: 0 | O82: 0 | P82: 0 | Q82: 0 | R82: 0
B83: Cash Rent - Cotton Drip | D83: 1 | F83: Acre | G83: 130 | I83: 130 | J83: 0 | K83: 0 | M83: 0 | N83: 0 | O83: 130 | P83: 0 | Q83: 15860 | R83: 0
B84: Property Taxes | D84: 1 | F84: Acre | G84: 0 | I84: 0 | J84: 0 | K84: 0 | M84: 0 | N84: 0 | O84: 0 | P84: 0 | Q84: 0 | R84: 0
B85: Whole Farm Insurance | D85: 1 | F85: Acre | G85: 2 | I85: 2 | J85: 0 | K85: 0 | M85: 0 | N85: 0 | O85: 2 | P85: 0 | Q85: 244 | R85: 0
D86: 1 | G86: 0 | I86: 0 | J86: 0 | K86: 0 | M86: 0 | N86: 0 | O86: 0 | P86: 0 | Q86: 0 | R86: 0
D87: 1 | G87: 0 | I87: 0 | J87: =E87*H87 -> 0 | K87: 0 | M87: 0 | N87: 0 | O87: 0 | P87: 0 | Q87: 0 | R87: 0
A88: Total Fixed Costs | I88: 255.25 | J88: =+SUM(J75:J87) -> 0 | M88: 0 | N88: =+SUM(N75:N87) -> 0 | O88: 255.25 | P88: =+SUM(P75:P87) -> 0 | Q88: 31140.5 | R88: =+SUM(R75:R87) -> 0
A89: Total Specified Costs | I89: 1248.147888 | J89: =+J70+J88 -> 0 | M89: 0 | N89: =+N70+N88 -> 0 | O89: 1248.147888 | P89: =+P70+P88 -> 0 | Q89: 152274.0423 | R89: =+R70+R88 -> 0
A91: Returns Above Specified Costs | I91: 36.15211248 | J91: =+J14-J89 -> 0 | M91: 0 | N91: =+N14-N89 -> 0 | O91: 36.15211248 | P91: =+P14-P89 -> 0 | Q91: 4410.557722 | R91: =+R14-R89 -> 0
A93: Breakeven Price to Cover Total Costs | G93: 0.6758985917 | H93: =IF(E10=0,"n/a",(YTotExp-(YTotExp+YTotRet-J10))/E10) -> n/a | I93: Pound
D95: Example Breakeven Prices
B96: Example | C96: Example | D96: To Cover | G96: To Cover
B97: Yield | C97: Yield | D97: Variable | G97: Total
B98: Percent | C98: Pound | D98: Costs | G98: Costs
B99: 0.75 | C99: 1125 | D99: 0.6743092334 | G99: 0.9011981222
B100: 0.9 | C100: 1350 | D100: 0.5619243611 | G100: 0.7509984352
B101: 1 | C101: 1500 | D101: 0.505731925 | G101: 0.6758985917
B102: 1.1 | C102: 1650 | D102: 0.4597562955 | G102: 0.6144532652
B103: 1.25 | C103: 1875 | D103: 0.40458554 | G103: 0.5407188733
D105: Your Breakeven Prices
B106: Your | C106: Your | E106: To Cover | H106: To Cover
B107: Yield | C107: Yield | E107: Variable | H107: Total
B108: Percent | C108: Pound | E108: Costs | H108: Costs
B109: 0.75 | C109: =E10*YPER1 -> 0 | E109: =IF($E$10=0,0,(YVarExp-(YTotExp+YTotRet-J10))/($E$10*YPER1)) -> 0 | H109: =IF($E$10=0,0,(YTotExp-(YTotExp+YTotRet-J10))/($E$10*YPER1)) -> 0
B110: 0.9 | C110: =E10*YPER2 -> 0 | E110: =IF($E$10=0,0,(YVarExp-(YTotExp+YTotRet-J10))/($E$10*YPER2)) -> 0 | H110: =IF($E$10=0,0,(YTotExp-(YTotExp+YTotRet-J10))/($E$10*YPER2)) -> 0
B111: 1 | C111: =+E10 -> 0 | E111: =IF($E$10=0,0,(YVarExp-(YTotExp+YTotRet-J10))/($E$10*YPER3)) -> 0 | H111: =IF($E$10=0,0,(YTotExp-(YTotExp+YTotRet-J10))/($E$10*YPER3)) -> 0
B112: 1.1 | C112: =E10*YPER4 -> 0 | E112: =IF($E$10=0,0,(YVarExp-(YTotExp+YTotRet-J10))/($E$10*YPER4)) -> 0 | H112: =IF($E$10=0,0,(YTotExp-(YTotExp+YTotRet-J10))/($E$10*YPER4)) -> 0
B113: 1.25 | C113: =E10*YPER5 -> 0 | E113: =IF($E$10=0,0,(YVarExp-(YTotExp+YTotRet-J10))/($E$10*YPER5)) -> 0 | H113: =IF($E$10=0,0,(YTotExp-(YTotExp+YTotRet-J10))/($E$10*YPER5)) -> 0
A115: Developed by Andrew Wright, Assistant Professor and Extension Specialist, Texas A&M AgriLife Extension, 806-746-6101
A117: Information presented is prepared solely as a general guide and not intended to recognize or predict the costs and returns from any one operation. Brand names are mentioned only as examples and imply no endorsement.

Sheet CottonPivot
A1: Projections for Planning Purposes Only -- Not to be Used without Updating
A2: 2025 Estimated Costs and Returns per Acre
A3: Irrigated Cotton - Pivot
A4: Enter your name for this budget in the cell above.
A5: Enter Your Values in the cells highlighed in MAROON.
E6: Your Acres | R6: Your
C7: Crop Acres | D7: 122 | L7: Your | Q7: Enterprise | R7: Enterprise
E8: Your | H8: Your | I8: Cash | J8: Your | K8: Landlord | L8: Landlord | N8: Your | P8: Your | Q8: Total | R8: Total
A9: REVENUE | D9: Quantity | E9: Quantity | F9: Units | G9: $/Unit | H9: $/Unit | I9: Total | J9: Total | K9: Share | L9: Share | M9: Landlord | N9: Landlord | O9: Tenant | P9: Tenant | Q9: (122 acres) | R9: ="(" & E7 & " acres)" -> ( acres)
B10: Cotton Lint | D10: 1000 | F10: Pound | G10: 0.7 | I10: 700 | J10: =E10*H10 -> 0 | K10: 0 | M10: 0 | N10: =J10*L10 -> 0 | O10: 700 | P10: =+J10-N10 -> 0 | Q10: 85400 | R10: =+J10*E$7 -> 0
B11: Cottonseed | D11: 0.71 | F11: Ton | G11: 220 | I11: 156.2 | J11: 0 | K11: 0 | M11: 0 | N11: 0 | O11: 156.2 | P11: =+J11-N11 -> 0 | Q11: 19056.4 | R11: 0
D12: 0 | G12: 0 | I12: 0 | J12: 0 | K12: 0 | M12: 0 | N12: 0 | O12: 0 | P12: 0 | Q12: 0 | R12: 0
D13: 0 | G13: 0 | I13: 0 | J13: 0 | K13: 0 | M13: 0 | N13: 0 | O13: 0 | P13: 0 | Q13: 0 | R13: 0
A14: Total Revenue | I14: 856.2 | J14: =SUM(J10:J13) -> 0 | M14: 0 | N14: =SUM(N10:N13) -> 0 | O14: 856.2 | P14: =SUM(P10:P13) -> 0 | Q14: 104456.4 | R14: =SUM(R10:R13) -> 0
Q15: Enterprise | R15: Enterprise
A16: VARIABLE COSTS | D16: Quantity | E16: Quantity | F16: Units | G16: $/Unit | H16: $/Unit | I16: Total | J16: Total | K16: Share | L16: Share | M16: Landlord | N16: Landlord | O16: Tenant | P16: Tenant | Q16: Total | R16: Total
A17: Production Costs
B18: Custom
C19: Strip and Module - Cotton | D19: 1000 | F19: Pound | G19: 0.12 | I19: 120 | J19: =E19*H19 -> 0 | K19: 0 | M19: 0 | N19: =J19*L19 -> 0 | O19: 120 | P19: =+J19-N19 -> 0 | Q19: 14640 | R19: =+J19*E$7 -> 0
C20: Ginning - Cotton | D20: 31.25 | F20: CWT | G20: 3.25 | I20: 101.5625 | J20: 0 | K20: 0 | M20: 0 | N20: 0 | O20: 101.5625 | P20: 0 | Q20: 12390.625 | R20: 0
C21: Fertilizer Application - Liquid High | D21: 1 | F21: Acre | G21: 4.75 | I21: 4.75 | J21: 0 | K21: 0 | M21: 0 | N21: 0 | O21: 4.75 | P21: 0 | Q21: 579.5 | R21: 0
C22: Scouting | D22: 1 | F22: Acre | G22: 9 | I22: 9 | J22: 0 | K22: 0 | M22: 0 | N22: 0 | O22: 9 | P22: 0 | Q22: 1098 | R22: 0
B23: Fertilizer
C24: Fertilizer (P) - Liquid | D24: 25 | F24: Pound | G24: 0.916 | I24: 22.9 | J24: 0 | K24: 0 | M24: 0 | N24: 0 | O24: 22.9 | P24: 0 | Q24: 2793.8 | R24: 0
C25: Fertilizer (N) - Liquid | D25: 90 | F25: Pound | G25: 0.6 | I25: 54 | J25: 0 | K25: 0 | M25: 0 | N25: 0 | O25: 54 | P25: 0 | Q25: 6588 | R25: 0
B26: Herbicide
C27: Herbicide - Cotton Preplant | D27: 1 | F27: Acre | G27: 6 | I27: 6 | J27: 0 | K27: 0 | M27: 0 | N27: 0 | O27: 6 | P27: 0 | Q27: 732 | R27: 0
C28: Herbicide - Cotton At Plant | D28: 1 | F28: Acre | G28: 6.5 | I28: 6.5 | J28: 0 | K28: 0 | M28: 0 | N28: 0 | O28: 6.5 | P28: 0 | Q28: 793 | R28: 0
C29: Herbicide - Cotton Postplant | D29: 1 | F29: Acre | G29: 57 | I29: 57 | J29: 0 | K29: 0 | M29: 0 | N29: 0 | O29: 57 | P29: 0 | Q29: 6954 | R29: 0
C30: Spot Spray and Chemical | D30: 0.2 | F30: Acre | G30: 15 | I30: 3 | J30: 0 | K30: 0 | M30: 0 | N30: 0 | O30: 3 | P30: 0 | Q30: 366 | R30: 0
B31: Insecticide
C32: Insecticide and Apply Cotton | D32: 1 | F32: Acre | G32: 12 | I32: 12 | J32: 0 | K32: 0 | M32: 0 | N32: 0 | O32: 12 | P32: 0 | Q32: 1464 | R32: 0
C33: Boll Weevil Assessment Irrigated | D33: 2.5 | F33: Bale | G33: 4 | I33: 10 | J33: 0 | K33: 0 | M33: 0 | N33: 0 | O33: 10 | P33: 0 | Q33: 1220 | R33: 0
B34: Miscellaneous
C35: Crop Insurance Cotton - Irrigated | D35: 1 | F35: Acre | G35: 43.65 | I35: 43.65 | J35: 0 | K35: 0 | M35: 0 | N35: 0 | O35: 43.65 | P35: 0 | Q35: 5325.3 | R35: 0
B36: Seed
C37: Seed - Cotton Irrigated | D37: 40 | F37: Thousand | G37: 1.59 | I37: 63.6 | J37: 0 | K37: 0 | M37: 0 | N37: 0 | O37: 63.6 | P37: 0 | Q37: 7759.2 | R37: 0
B38: Other Chemicals
C39: Harvest Aid Apply Cotton Irrigated | D39: 1 | F39: Acre | G39: 25 | I39: 25 | J39: 0 | K39: 0 | M39: 0 | N39: 0 | O39: 25 | P39: 0 | Q39: 3050 | R39: 0
B40: Other Labor
C41: Hoeing | D41: 0.2 | F41: Acre | G41: 16 | I41: 3.2 | J41: 0 | K41: 0 | M41: 0 | N41: 0 | O41: 3.2 | P41: 0 | Q41: 390.4 | R41: 0
D42: 0 | G42: 0 | I42: 0 | J42: 0 | K42: 0 | M42: 0 | N42: 0 | O42: 0 | P42: 0 | Q42: 0 | R42: 0
D43: 0 | G43: 0 | I43: 0 | J43: 0 | K43: 0 | M43: 0 | N43: 0 | O43: 0 | P43: 0 | Q43: 0 | R43: 0
D44: 0 | G44: 0 | I44: 0 | J44: =E44*H44 -> 0 | K44: 0 | M44: 0 | N44: =J44*L44 -> 0 | O44: 0 | P44: =+J44-N44 -> 0 | Q44: 0 | R44: =+J44*E$7 -> 0
B45: Irrigation
C46: Energy Cost | D46: 10 | F46: AcreInch | G46: 10 | I46: 100 | J46: =E46*H46 -> 0 | K46: 0 | M46: 0 | N46: =J46*L46 -> 0 | O46: 100 | P46: =+J46-N46 -> 0 | Q46: 12200 | R46: =+J46*E$7 -> 0
C47: Irrigation Labor | D47: 1 | F47: Hour | G47: 16 | I47: 16 | J47: 0 | K47: 0 | M47: 0 | N47: 0 | O47: 16 | P47: 0 | Q47: 1952 | R47: 0
B48: Machinery Labor
C49: Tractors/Self-Propelled | D49: 0.74 | F49: Hour | G49: 16 | I49: 11.84 | J49: =E49*H49 -> 0 | K49: 0 | M49: 0 | N49: =J49*L49 -> 0 | O49: 11.84 | P49: =+J49-N49 -> 0 | Q49: 1444.48 | R49: =+J49*E$7 -> 0
C50: Other Labor | D50: 0.86 | F50: Hour | G50: 16 | I50: 13.76 | J50: =E50*H50 -> 0 | K50: 0 | M50: 0 | N50: =J50*L50 -> 0 | O50: 13.76 | P50: =+J50-N50 -> 0 | Q50: 1678.72 | R50: =+J50*E$7 -> 0
B52: Diesel Fuel
C53: Pickup/General Use Equipment | D53: 1 | F53: Acre | G53: 0 | I53: 0 | J53: =E53*H53 -> 0 | K53: 0 | M53: 0 | N53: =J53*L53 -> 0 | O53: 0 | P53: =+J53-N53 -> 0 | Q53: 0 | R53: =+J53*E$7 -> 0
C54: Tractors/Self-Propelled | D54: 4 | F54: Gallon | G54: 2.919 | I54: 11.676 | J54: =E54*H54 -> 0 | K54: 0 | M54: 0 | N54: =J54*L54 -> 0 | O54: 11.676 | P54: =+J54-N54 -> 0 | Q54: 1424.472 | R54: =+J54*E$7 -> 0
B56: Gasoline
C57: Pickup/General Use Equipment | D57: 1 | F57: Acre | G57: 5.407786885 | I57: 5.407786885 | J57: =E57*H57 -> 0 | K57: 0 | M57: 0 | N57: =J57*L57 -> 0 | O57: 5.407786885 | P57: =+J57-N57 -> 0 | Q57: 659.75 | R57: =+J57*E$7 -> 0
C58: Tractors/Self-Propelled | D58: 0 | F58: Gallon | G58: 2.639 | I58: 0 | J58: =E58*H58 -> 0 | K58: 0 | M58: 0 | N58: =J58*L58 -> 0 | O58: 0 | P58: =+J58-N58 -> 0 | Q58: 0 | R58: =+J58*E$7 -> 0
B60: Repairs & Maintenance
C61: Pickup/General Use Equipment | D61: 1 | F61: Acre | G61: 0.5 | I61: 0.5 | J61: =E61*H61 -> 0 | K61: 0 | M61: 0 | N61: =J61*L61 -> 0 | O61: 0.5 | P61: =+J61-N61 -> 0 | Q61: 61 | R61: =+J61*E$7 -> 0
C62: Irrigation Equipment | D62: 1 | F62: Acre | G62: 19 | I62: 19 | J62: 0 | K62: 0 | M62: 0 | N62: 0 | O62: 19 | P62: 0 | Q62: 2318 | R62: 0
C63: Tractors/Self-Propelled | D63: 1 | F63: Acre | G63: 6 | I63: 6 | J63: 0 | K63: 0 | M63: 0 | N63: 0 | O63: 6 | P63: 0 | Q63: 732 | R63: 0
C64: Implements | D64: 1 | F64: Acre | G64: 3 | I64: 3 | J64: 0 | K64: 0 | M64: 0 | N64: 0 | O64: 3 | P64: 0 | Q64: 366 | R64: 0
I65: 0 | J65: 0 | K65: 0 | M65: 0 | N65: 0 | O65: 0 | P65: 0 | Q65: 0 | R65: 0
I66: 0 | J66: 0 | K66: 0 | M66: 0 | N66: 0 | O66: 0 | P66: 0 | Q66: 0 | R66: 0
B67: Interest on Credit Line | G67: 0.085 | I67: 23.34169263 | J67: =+SUM(J18:J66)/2*H67 -> 0 | M67: 0 | N67: =+SUM(N18:N66)/2*L67 -> 0 | O67: 23.34169263 | P67: =+SUM(P18:P66)/2*L67 -> 0 | Q67: 2847.686501 | R67: =+J67*E$7 -> 0
A68: Total Variable Costs | I68: 752.6879795 | J68: =SUM(J19:J67) -> 0 | M68: 0 | N68: =SUM(N19:N67) -> 0 | O68: 752.6879795 | P68: =SUM(P19:P67) -> 0 | Q68: 91827.9335 | R68: =SUM(R19:R67) -> 0
A69: Planned Returns Above Variable Costs: | I69: 103.5120205 | J69: =+J14-J68 -> 0 | M69: 0 | N69: =+N14-N68 -> 0 | O69: 103.5120205 | P69: =+P14-P68 -> 0 | Q69: 12628.4665 | R69: =+R14-R68 -> 0
B70: Breakeven Price to Cover Variable Costs | G70: 0.5964879795 | H70: =IF(E10=0,"n/a",(YVarExp-(YTotExp+YTotRet-J10))/E10) -> n/a | I70: Pound
Q71: Enterprise | R71: Enterprise
A72: FIXED COSTS | D72: Quantity | E72: Quantity | F72: Units | G72: $/Unit | H72: $/Unit | I72: Total | J72: Total | K72: Share | L72: Share | M72: Landlord | N72: Landlord | O72: Tenant | P72: Tenant | Q72: Total | R72: Total
B73: Equipment Fixed Costs
C74: Pickup/General Use Equipment | D74: 1 | F74: Acre | G74: 1.25 | I74: 1.25 | J74: =E74*H74 -> 0 | K74: 0 | M74: 0 | N74: =J74*L74 -> 0 | O74: 1.25 | P74: =+J74-N74 -> 0 | Q74: 152.5 | R74: =+J74*E$7 -> 0
C75: Irrigation Equipment | D75: 1 | F75: Acre | G75: 55 | I75: 55 | J75: 0 | K75: 0 | M75: 0 | N75: 0 | O75: 55 | P75: 0 | Q75: 6710 | R75: 0
C76: Tractors/Self-Propelled | D76: 1 | F76: Acre | G76: 12 | I76: 12 | J76: 0 | K76: 0 | M76: 0 | N76: 0 | O76: 12 | P76: 0 | Q76: 1464 | R76: 0
C77: Implements | D77: 1 | F77: Acre | G77: 10 | I77: 10 | J77: 0 | K77: 0 | M77: 0 | N77: 0 | O77: 10 | P77: 0 | Q77: 1220 | R77: 0
B78: Salaried Labor | D78: 1 | F78: Acre | G78: 0 | I78: 0 | J78: =E78*H78 -> 0 | K78: 0 | M78: 0 | N78: 0 | O78: 0 | P78: 0 | Q78: 0 | R78: 0
B79: Management Fee, Owner/Operator Labor | D79: 1 | F79: Acre | G79: 25 | I79: 25 | J79: 0 | K79: 0 | M79: 0 | N79: 0 | O79: 25 | P79: 0 | Q79: 3050 | R79: 0
B80: Allocated Establishment Cost | D80: 1 | F80: Acre | G80: 0 | I80: 0 | J80: 0 | K80: 0 | M80: 0 | N80: 0 | O80: 0 | P80: 0 | Q80: 0 | R80: 0
B81: Cash Rent - Cotton Irrigated | D81: 1 | F81: Acre | G81: 100 | I81: 100 | J81: 0 | K81: 0 | M81: 0 | N81: 0 | O81: 100 | P81: 0 | Q81: 12200 | R81: 0
B82: Property Taxes | D82: 1 | F82: Acre | G82: 0 | I82: 0 | J82: 0 | K82: 0 | M82: 0 | N82: 0 | O82: 0 | P82: 0 | Q82: 0 | R82: 0
B83: Whole Farm Insurance | D83: 1 | F83: Acre | G83: 2 | I83: 2 | J83: 0 | K83: 0 | M83: 0 | N83: 0 | O83: 2 | P83: 0 | Q83: 244 | R83: 0
D84: 1 | G84: 0 | I84: 0 | J84: 0 | K84: 0 | M84: 0 | N84: 0 | O84: 0 | P84: 0 | Q84: 0 | R84: 0
D85: 1 | G85: 0 | I85: 0 | J85: =E85*H85 -> 0 | K85: 0 | M85: 0 | N85: 0 | O85: 0 | P85: 0 | Q85: 0 | R85: 0
A86: Total Fixed Costs | I86: 205.25 | J86: =+SUM(J73:J85) -> 0 | M86: 0 | N86: =+SUM(N73:N85) -> 0 | O86: 205.25 | P86: =+SUM(P73:P85) -> 0 | Q86: 25040.5 | R86: =+SUM(R73:R85) -> 0
A87: Total Specified Costs | I87: 957.9379795 | J87: =+J68+J86 -> 0 | M87: 0 | N87: =+N68+N86 -> 0 | O87: 957.9379795 | P87: =+P68+P86 -> 0 | Q87: 116868.4335 | R87: =+R68+R86 -> 0
A89: Returns Above Specified Costs | I89: -101.7379795 | J89: =+J14-J87 -> 0 | M89: 0 | N89: =+N14-N87 -> 0 | O89: -101.7379795 | P89: =+P14-P87 -> 0 | Q89: -12412.0335 | R89: =+R14-R87 -> 0
A91: Breakeven Price to Cover Total Costs | G91: 0.8017379795 | H91: =IF(E10=0,"n/a",(YTotExp-(YTotExp+YTotRet-J10))/E10) -> n/a | I91: Pound
D93: Example Breakeven Prices
B94: Example | C94: Example | D94: To Cover | G94: To Cover
B95: Yield | C95: Yield | D95: Variable | G95: Total
B96: Percent | C96: Pound | D96: Costs | G96: Costs
B97: 0.75 | C97: 750 | D97: 0.795317306 | G97: 1.068983973
B98: 0.9 | C98: 900 | D98: 0.6627644217 | G98: 0.8908199772
B99: 1 | C99: 1000 | D99: 0.5964879795 | G99: 0.8017379795
B100: 1.1 | C100: 1100 | D100: 0.5422617996 | G100: 0.7288527087
B101: 1.25 | C101: 1250 | D101: 0.4771903836 | G101: 0.6413903836
D103: Your Breakeven Prices
B104: Your | C104: Your | E104: To Cover | H104: To Cover
B105: Yield | C105: Yield | E105: Variable | H105: Total
B106: Percent | C106: Pound | E106: Costs | H106: Costs
B107: 0.75 | C107: =E10*YPER1 -> 0 | E107: =IF($E$10=0,0,(YVarExp-(YTotExp+YTotRet-J10))/($E$10*YPER1)) -> 0 | H107: =IF($E$10=0,0,(YTotExp-(YTotExp+YTotRet-J10))/($E$10*YPER1)) -> 0
B108: 0.9 | C108: =E10*YPER2 -> 0 | E108: =IF($E$10=0,0,(YVarExp-(YTotExp+YTotRet-J10))/($E$10*YPER2)) -> 0 | H108: =IF($E$10=0,0,(YTotExp-(YTotExp+YTotRet-J10))/($E$10*YPER2)) -> 0
B109: 1 | C109: =+E10 -> 0 | E109: =IF($E$10=0,0,(YVarExp-(YTotExp+YTotRet-J10))/($E$10*YPER3)) -> 0 | H109: =IF($E$10=0,0,(YTotExp-(YTotExp+YTotRet-J10))/($E$10*YPER3)) -> 0
B110: 1.1 | C110: =E10*YPER4 -> 0 | E110: =IF($E$10=0,0,(YVarExp-(YTotExp+YTotRet-J10))/($E$10*YPER4)) -> 0 | H110: =IF($E$10=0,0,(YTotExp-(YTotExp+YTotRet-J10))/($E$10*YPER4)) -> 0
B111: 1.25 | C111: =E10*YPER5 -> 0 | E111: =IF($E$10=0,0,(YVarExp-(YTotExp+YTotRet-J10))/($E$10*YPER5)) -> 0 | H111: =IF($E$10=0,0,(YTotExp-(YTotExp+YTotRet-J10))/($E$10*YPER5)) -> 0
A113: Developed by Andrew Wright, Assistant Professor and Extension Specialist, Texas A&M AgriLife Extension, 806-746-6101
A115: Information presented is prepared solely as a general guide and not intended to recognize or predict the costs and returns from any one operation. Brand names are mentioned only as examples and imply no endorsement.

Sheet GuarIrragated
A1: Projections for Planning Purposes Only -- Not to be Used without Updating
A2: 2025 Estimated Costs and Returns per Acre
A3: Irrigated Guar
A4: Enter your name for this budget in the cell above.
A5: Enter Your Values in the cells highlighed in MAROON.
E6: Your Acres | R6: Your
C7: Crop Acres | D7: 122 | L7: Your | Q7: Enterprise | R7: Enterprise
E8: Your | H8: Your | I8: Cash | J8: Your | K8: Landlord | L8: Landlord | N8: Your | P8: Your | Q8: Total | R8: Total
A9: REVENUE | D9: Quantity | E9: Quantity | F9: Units | G9: $/Unit | H9: $/Unit | I9: Total | J9: Total | K9: Share | L9: Share | M9: Landlord | N9: Landlord | O9: Tenant | P9: Tenant | Q9: (122 acres) | R9: ="(" & E7 & " acres)" -> ( acres)
B10: Guar | D10: 1200 | F10: Pound | G10: 0.6 | I10: 720 | J10: =E10*H10 -> 0 | K10: 0 | M10: 0 | N10: =J10*L10 -> 0 | O10: 720 | P10: =+J10-N10 -> 0 | Q10: 87840 | R10: =+J10*E$7 -> 0
D11: 0 | G11: 0 | I11: 0 | J11: 0 | K11: 0 | M11: 0 | N11: 0 | O11: 0 | P11: =+J11-N11 -> 0 | Q11: 0 | R11: 0
D12: 0 | G12: 0 | I12: 0 | J12: 0 | K12: 0 | M12: 0 | N12: 0 | O12: 0 | P12: 0 | Q12: 0 | R12: 0
A13: Total Revenue | I13: 720 | J13: =SUM(J10:J12) -> 0 | M13: 0 | N13: =SUM(N10:N12) -> 0 | O13: 720 | P13: =SUM(P10:P12) -> 0 | Q13: 87840 | R13: =SUM(R10:R12) -> 0
Q14: Enterprise | R14: Enterprise
A15: VARIABLE COSTS | D15: Quantity | E15: Quantity | F15: Units | G15: $/Unit | H15: $/Unit | I15: Total | J15: Total | K15: Share | L15: Share | M15: Landlord | N15: Landlord | O15: Tenant | P15: Tenant | Q15: Total | R15: Total
A16: Production Costs
B17: Custom
C18: Fertilizer Application - Dry | D18: 1 | F18: Acre | G18: 4 | I18: 4 | J18: =E18*H18 -> 0 | K18: 0 | M18: 0 | N18: =J18*L18 -> 0 | O18: 4 | P18: =+J18-N18 -> 0 | Q18: 488 | R18: =+J18*E$7 -> 0
C19: Harvest and Haul - Guar Acre | D19: 1 | F19: Acre | G19: 30 | I19: 30 | J19: 0 | K19: 0 | M19: 0 | N19: 0 | O19: 30 | P19: 0 | Q19: 3660 | R19: 0
C20: Harvest and Haul - Guar CWT | D20: 12 | F20: CWT | G20: 0.2 | I20: 2.4 | J20: 0 | K20: 0 | M20: 0 | N20: 0 | O20: 2.4 | P20: 0 | Q20: 292.8 | R20: 0
B21: Fertilizer
C22: Fertilizer (P) - Dry | D22: 40 | F22: Pound | G22: 0.47 | I22: 18.8 | J22: 0 | K22: 0 | M22: 0 | N22: 0 | O22: 18.8 | P22: 0 | Q22: 2293.6 | R22: 0
B23: Herbicide
C24: Herbicide and Apply Guar | D24: 1 | F24: Acre | G24: 4 | I24: 4 | J24: 0 | K24: 0 | M24: 0 | N24: 0 | O24: 4 | P24: 0 | Q24: 488 | R24: 0
B25: Miscellaneous
C26: Crop Insurance Guar | D26: 1 | F26: Acre | G26: 2.5 | I26: 2.5 | J26: 0 | K26: 0 | M26: 0 | N26: 0 | O26: 2.5 | P26: 0 | Q26: 305 | R26: 0
B27: Seed
C28: Seed - Guar | D28: 10 | F28: Pound | G28: 1.5 | I28: 15 | J28: 0 | K28: 0 | M28: 0 | N28: 0 | O28: 15 | P28: 0 | Q28: 1830 | R28: 0
C29: Innoculant Guar | D29: 2 | F29: Pound | G29: 3 | I29: 6 | J29: 0 | K29: 0 | M29: 0 | N29: 0 | O29: 6 | P29: 0 | Q29: 732 | R29: 0
D30: 0 | G30: 0 | I30: 0 | J30: 0 | K30: 0 | M30: 0 | N30: 0 | O30: 0 | P30: 0 | Q30: 0 | R30: 0
D31: 0 | G31: 0 | I31: 0 | J31: 0 | K31: 0 | M31: 0 | N31: 0 | O31: 0 | P31: 0 | Q31: 0 | R31: 0
D32: 0 | G32: 0 | I32: 0 | J32: =E32*H32 -> 0 | K32: 0 | M32: 0 | N32: =J32*L32 -> 0 | O32: 0 | P32: =+J32-N32 -> 0 | Q32: 0 | R32: =+J32*E$7 -> 0
B33: Irrigation
C34: Energy Cost | D34: 4 | F34: AcreInch | G34: 10 | I34: 40 | J34: =E34*H34 -> 0 | K34: 0 | M34: 0 | N34: =J34*L34 -> 0 | O34: 40 | P34: =+J34-N34 -> 0 | Q34: 4880 | R34: =+J34*E$7 -> 0
C35: Irrigation Labor | D35: 0.75 | F35: Hour | G35: 16 | I35: 12 | J35: 0 | K35: 0 | M35: 0 | N35: 0 | O35: 12 | P35: 0 | Q35: 1464 | R35: 0
B36: Machinery Labor
C37: Tractors/Self-Propelled | D37: 1 | F37: Hour | G37: 16 | I37: 16 | J37: =E37*H37 -> 0 | K37: 0 | M37: 0 | N37: =J37*L37 -> 0 | O37: 16 | P37: =+J37-N37 -> 0 | Q37: 1952 | R37: =+J37*E$7 -> 0
C38: Other Labor | D38: 0 | F38: Hour | G38: 16 | I38: 0 | J38: =E38*H38 -> 0 | K38: 0 | M38: 0 | N38: =J38*L38 -> 0 | O38: 0 | P38: =+J38-N38 -> 0 | Q38: 0 | R38: =+J38*E$7 -> 0
B40: Diesel Fuel
C41: Pickup/General Use Equipment | D41: 1 | F41: Acre | G41: 0 | I41: 0 | J41: =E41*H41 -> 0 | K41: 0 | M41: 0 | N41: =J41*L41 -> 0 | O41: 0 | P41: =+J41-N41 -> 0 | Q41: 0 | R41: =+J41*E$7 -> 0
C42: Tractors/Self-Propelled | D42: 2.4 | F42: Gallon | G42: 2.919 | I42: 7.0056 | J42: =E42*H42 -> 0 | K42: 0 | M42: 0 | N42: =J42*L42 -> 0 | O42: 7.0056 | P42: =+J42-N42 -> 0 | Q42: 854.6832 | R42: =+J42*E$7 -> 0
B44: Gasoline
C45: Pickup/General Use Equipment | D45: 1 | F45: Acre | G45: 5.407786885 | I45: 5.407786885 | J45: =E45*H45 -> 0 | K45: 0 | M45: 0 | N45: =J45*L45 -> 0 | O45: 5.407786885 | P45: =+J45-N45 -> 0 | Q45: 659.75 | R45: =+J45*E$7 -> 0
C46: Tractors/Self-Propelled | D46: 0 | F46: Gallon | G46: 2.639 | I46: 0 | J46: =E46*H46 -> 0 | K46: 0 | M46: 0 | N46: =J46*L46 -> 0 | O46: 0 | P46: =+J46-N46 -> 0 | Q46: 0 | R46: =+J46*E$7 -> 0
B48: Repairs & Maintenance
C49: Pickup/General Use Equipment | D49: 1 | F49: Acre | G49: 0.5 | I49: 0.5 | J49: =E49*H49 -> 0 | K49: 0 | M49: 0 | N49: =J49*L49 -> 0 | O49: 0.5 | P49: =+J49-N49 -> 0 | Q49: 61 | R49: =+J49*E$7 -> 0
C50: Irrigation Equipment | D50: 1 | F50: Acre | G50: 22 | I50: 22 | J50: 0 | K50: 0 | M50: 0 | N50: 0 | O50: 22 | P50: 0 | Q50: 2684 | R50: 0
C51: Tractors/Self-Propelled | D51: 1 | F51: Acre | G51: 6 | I51: 6 | J51: 0 | K51: 0 | M51: 0 | N51: 0 | O51: 6 | P51: 0 | Q51: 732 | R51: 0
C52: Implements | D52: 1 | F52: Acre | G52: 3 | I52: 3 | J52: 0 | K52: 0 | M52: 0 | N52: 0 | O52: 3 | P52: 0 | Q52: 366 | R52: 0
I53: 0 | J53: 0 | K53: 0 | M53: 0 | N53: 0 | O53: 0 | P53: 0 | Q53: 0 | R53: 0
I54: 0 | J54: 0 | K54: 0 | M54: 0 | N54: 0 | O54: 0 | P54: 0 | Q54: 0 | R54: 0
B55: Interest on Credit Line | G55: 0.085 | I55: 6.352018131 | J55: =+SUM(J17:J54)/2*H55 -> 0 | M55: 0 | N55: =+SUM(N17:N54)/2*L55 -> 0 | O55: 6.352018131 | P55: =+SUM(P17:P54)/2*L55 -> 0 | Q55: 774.946212 | R55: =+J55*E$7 -> 0
A56: Total Variable Costs | I56: 200.965405 | J56: =SUM(J18:J55) -> 0 | M56: 0 | N56: =SUM(N18:N55) -> 0 | O56: 200.965405 | P56: =SUM(P18:P55) -> 0 | Q56: 24517.77941 | R56: =SUM(R18:R55) -> 0
A57: Planned Returns Above Variable Costs: | I57: 519.034595 | J57: =+J13-J56 -> 0 | M57: 0 | N57: =+N13-N56 -> 0 | O57: 519.034595 | P57: =+P13-P56 -> 0 | Q57: 63322.22059 | R57: =+R13-R56 -> 0
B58: Breakeven Price to Cover Variable Costs | G58: 0.1674711708 | H58: =IF(E10=0,"n/a",(YVarExp-(YTotExp+YTotRet-J10))/E10) -> n/a | I58: Pound
Q59: Enterprise | R59: Enterprise
A60: FIXED COSTS | D60: Quantity | E60: Quantity | F60: Units | G60: $/Unit | H60: $/Unit | I60: Total | J60: Total | K60: Share | L60: Share | M60: Landlord | N60: Landlord | O60: Tenant | P60: Tenant | Q60: Total | R60: Total
B61: Equipment Fixed Costs
C62: Pickup/General Use Equipment | D62: 1 | F62: Acre | G62: 1.25 | I62: 1.25 | J62: =E62*H62 -> 0 | K62: 0 | M62: 0 | N62: =J62*L62 -> 0 | O62: 1.25 | P62: =+J62-N62 -> 0 | Q62: 152.5 | R62: =+J62*E$7 -> 0
C63: Irrigation Equipment | D63: 1 | F63: Acre | G63: 55 | I63: 55 | J63: 0 | K63: 0 | M63: 0 | N63: 0 | O63: 55 | P63: 0 | Q63: 6710 | R63: 0
C64: Tractors/Self-Propelled | D64: 1 | F64: Acre | G64: 12 | I64: 12 | J64: 0 | K64: 0 | M64: 0 | N64: 0 | O64: 12 | P64: 0 | Q64: 1464 | R64: 0
C65: Implements | D65: 1 | F65: Acre | G65: 10 | I65: 10 | J65: 0 | K65: 0 | M65: 0 | N65: 0 | O65: 10 | P65: 0 | Q65: 1220 | R65: 0
B66: Salaried Labor | D66: 1 | F66: Acre | G66: 0 | I66: 0 | J66: =E66*H66 -> 0 | K66: 0 | M66: 0 | N66: 0 | O66: 0 | P66: 0 | Q66: 0 | R66: 0
B67: Management Fee, Owner/Operator Labor | D67: 1 | F67: Acre | G67: 25 | I67: 25 | J67: 0 | K67: 0 | M67: 0 | N67: 0 | O67: 25 | P67: 0 | Q67: 3050 | R67: 0
B68: Allocated Establishment Cost | D68: 1 | F68: Acre | G68: 0 | I68: 0 | J68: 0 | K68: 0 | M68: 0 | N68: 0 | O68: 0 | P68: 0 | Q68: 0 | R68: 0
B69: Cash Rent - Irrigated | D69: 1 | F69: Acre | G69: 100 | I69: 100 | J69: 0 | K69: 0 | M69: 0 | N69: 0 | O69: 100 | P69: 0 | Q69: 12200 | R69: 0
B70: Property Taxes | D70: 1 | F70: Acre | G70: 0 | I70: 0 | J70: 0 | K70: 0 | M70: 0 | N70: 0 | O70: 0 | P70: 0 | Q70: 0 | R70: 0
B71: Whole Farm Insurance | D71: 1 | F71: Acre | G71: 2 | I71: 2 | J71: 0 | K71: 0 | M71: 0 | N71: 0 | O71: 2 | P71: 0 | Q71: 244 | R71: 0
D72: 1 | G72: 0 | I72: 0 | J72: 0 | K72: 0 | M72: 0 | N72: 0 | O72: 0 | P72: 0 | Q72: 0 | R72: 0
D73: 1 | G73: 0 | I73: 0 | J73: =E73*H73 -> 0 | K73: 0 | M73: 0 | N73: 0 | O73: 0 | P73: 0 | Q73: 0 | R73: 0
A74: Total Fixed Costs | I74: 205.25 | J74: =+SUM(J61:J73) -> 0 | M74: 0 | N74: =+SUM(N61:N73) -> 0 | O74: 205.25 | P74: =+SUM(P61:P73) -> 0 | Q74: 25040.5 | R74: =+SUM(R61:R73) -> 0
A75: Total Specified Costs | I75: 406.215405 | J75: =+J56+J74 -> 0 | M75: 0 | N75: =+N56+N74 -> 0 | O75: 406.215405 | P75: =+P56+P74 -> 0 | Q75: 49558.27941 | R75: =+R56+R74 -> 0
A77: Returns Above Specified Costs | I77: 313.784595 | J77: =+J13-J75 -> 0 | M77: 0 | N77: =+N13-N75 -> 0 | O77: 313.784595 | P77: =+P13-P75 -> 0 | Q77: 38281.72059 | R77: =+R13-R75 -> 0
A79: Breakeven Price to Cover Total Costs | G79: 0.3385128375 | H79: =IF(E10=0,"n/a",(YTotExp-(YTotExp+YTotRet-J10))/E10) -> n/a | I79: Pound
D81: Example Breakeven Prices
B82: Example | C82: Example | D82: To Cover | G82: To Cover
B83: Yield | C83: Yield | D83: Variable | G83: Total
B84: Percent | C84: Pound | D84: Costs | G84: Costs
B85: 0.75 | C85: 900 | D85: 0.2232948945 | G85: 0.45135045
B86: 0.9 | C86: 1080 | D86: 0.1860790787 | G86: 0.376125375
B87: 1 | C87: 1200 | D87: 0.1674711708 | G87: 0.3385128375
B88: 1.1 | C88: 1320 | D88: 0.152246519 | G88: 0.3077389432
B89: 1.25 | C89: 1500 | D89: 0.1339769367 | G89: 0.27081027
D91: Your Breakeven Prices
B92: Your | C92: Your | E92: To Cover | H92: To Cover
B93: Yield | C93: Yield | E93: Variable | H93: Total
B94: Percent | C94: Pound | E94: Costs | H94: Costs
B95: 0.75 | C95: =E10*YPER1 -> 0 | E95: =IF($E$10=0,0,(YVarExp-(YTotExp+YTotRet-J10))/($E$10*YPER1)) -> 0 | H95: =IF($E$10=0,0,(YTotExp-(YTotExp+YTotRet-J10))/($E$10*YPER1)) -> 0
B96: 0.9 | C96: =E10*YPER2 -> 0 | E96: =IF($E$10=0,0,(YVarExp-(YTotExp+YTotRet-J10))/($E$10*YPER2)) -> 0 | H96: =IF($E$10=0,0,(YTotExp-(YTotExp+YTotRet-J10))/($E$10*YPER2)) -> 0
B97: 1 | C97: =+E10 -> 0 | E97: =IF($E$10=0,0,(YVarExp-(YTotExp+YTotRet-J10))/($E$10*YPER3)) -> 0 | H97: =IF($E$10=0,0,(YTotExp-(YTotExp+YTotRet-J10))/($E$10*YPER3)) -> 0
B98: 1.1 | C98: =E10*YPER4 -> 0 | E98: =IF($E$10=0,0,(YVarExp-(YTotExp+YTotRet-J10))/($E$10*YPER4)) -> 0 | H98: =IF($E$10=0,0,(YTotExp-(YTotExp+YTotRet-J10))/($E$10*YPER4)) -> 0
B99: 1.25 | C99: =E10*YPER5 -> 0 | E99: =IF($E$10=0,0,(YVarExp-(YTotExp+YTotRet-J10))/($E$10*YPER5)) -> 0 | H99: =IF($E$10=0,0,(YTotExp-(YTotExp+YTotRet-J10))/($E$10*YPER5)) -> 0
A101: Developed by Andrew Wright, Assistant Professor and Extension Specialist, Texas A&M AgriLife Extension, 806-746-6101
A103: Information presented is prepared solely as a general guide and not intended to recognize or predict the costs and returns from any one operation. Brand names are mentioned only as examples and imply no endorsement.

Sheet Peanuts
A1: Projections for Planning Purposes Only -- Not to be Used without Updating
A2: 2025 Estimated Costs and Returns per Acre
A3: Irrigated Peanuts
A4: Enter your name for this budget in the cell above.
A5: Enter Your Values in the cells highlighed in MAROON.
E6: Your Acres | R6: Your
C7: Crop Acres | D7: 122 | L7: Your | Q7: Enterprise | R7: Enterprise
E8: Your | H8: Your | I8: Cash | J8: Your | K8: Landlord | L8: Landlord | N8: Your | P8: Your | Q8: Total | R8: Total
A9: REVENUE | D9: Quantity | E9: Quantity | F9: Units | G9: $/Unit | H9: $/Unit | I9: Total | J9: Total | K9: Share | L9: Share | M9: Landlord | N9: Landlord | O9: Tenant | P9: Tenant | Q9: (122 acres) | R9: ="(" & E7 & " acres)" -> ( acres)
B10: Peanuts - Runner | D10: 2.2 | F10: Ton | G10: 600 | I10: 1320 | J10: =E10*H10 -> 0 | K10: 0 | M10: 0 | N10: =J10*L10 -> 0 | O10: 1320 | P10: =+J10-N10 -> 0 | Q10: 161040 | R10: =+J10*E$7 -> 0
D11: 0 | G11: 0 | I11: 0 | J11: 0 | K11: 0 | M11: 0 | N11: 0 | O11: 0 | P11: =+J11-N11 -> 0 | Q11: 0 | R11: 0
D12: 0 | G12: 0 | I12: 0 | J12: 0 | K12: 0 | M12: 0 | N12: 0 | O12: 0 | P12: 0 | Q12: 0 | R12: 0
A13: Total Revenue | I13: 1320 | J13: =SUM(J10:J12) -> 0 | M13: 0 | N13: =SUM(N10:N12) -> 0 | O13: 1320 | P13: =SUM(P10:P12) -> 0 | Q13: 161040 | R13: =SUM(R10:R12) -> 0
Q14: Enterprise | R14: Enterprise
A15: VARIABLE COSTS | D15: Quantity | E15: Quantity | F15: Units | G15: $/Unit | H15: $/Unit | I15: Total | J15: Total | K15: Share | L15: Share | M15: Landlord | N15: Landlord | O15: Tenant | P15: Tenant | Q15: Total | R15: Total
A16: Production Costs
B17: Custom
C18: Dig and Shake | D18: 1 | F18: Acre | G18: 25 | I18: 25 | J18: =E18*H18 -> 0 | K18: 0 | M18: 0 | N18: =J18*L18 -> 0 | O18: 25 | P18: =+J18-N18 -> 0 | Q18: 3050 | R18: =+J18*E$7 -> 0
C19: Harvest and Haul - Peanuts | D19: 2.2 | F19: Ton | G19: 60 | I19: 132 | J19: 0 | K19: 0 | M19: 0 | N19: 0 | O19: 132 | P19: 0 | Q19: 16104 | R19: 0
C20: Drying - Peanuts | D20: 2.2 | F20: Ton | G20: 30 | I20: 66 | J20: 0 | K20: 0 | M20: 0 | N20: 0 | O20: 66 | P20: 0 | Q20: 8052 | R20: 0
C21: Fertilizer Application - Liquid High | D21: 1 | F21: Acre | G21: 4.75 | I21: 4.75 | J21: 0 | K21: 0 | M21: 0 | N21: 0 | O21: 4.75 | P21: 0 | Q21: 579.5 | R21: 0
C22: Scouting - Peanuts | D22: 1 | F22: Acre | G22: 10 | I22: 10 | J22: 0 | K22: 0 | M22: 0 | N22: 0 | O22: 10 | P22: 0 | Q22: 1220 | R22: 0
B23: Fertilizer
C24: Fertilizer (P) - Liquid | D24: 50 | F24: Pound | G24: 0.916 | I24: 45.8 | J24: 0 | K24: 0 | M24: 0 | N24: 0 | O24: 45.8 | P24: 0 | Q24: 5587.6 | R24: 0
C25: Fertilizer (N) - Liquid | D25: 80 | F25: Pound | G25: 0.6 | I25: 48 | J25: 0 | K25: 0 | M25: 0 | N25: 0 | O25: 48 | P25: 0 | Q25: 5856 | R25: 0
B26: Herbicide
C27: Herbicide - Peanut | D27: 1 | F27: Acre | G27: 20 | I27: 20 | J27: 0 | K27: 0 | M27: 0 | N27: 0 | O27: 20 | P27: 0 | Q27: 2440 | R27: 0
B28: Insecticide
C29: Insecticide and Apply Peanut | D29: 1 | F29: Application | G29: 12 | I29: 12 | J29: 0 | K29: 0 | M29: 0 | N29: 0 | O29: 12 | P29: 0 | Q29: 1464 | R29: 0
B30: Miscellaneous
C31: Crop Insurance Peanuts - Irrigated | D31: 1 | F31: Acre | G31: 27 | I31: 27 | J31: 0 | K31: 0 | M31: 0 | N31: 0 | O31: 27 | P31: 0 | Q31: 3294 | R31: 0
B32: Seed
C33: Seed - Peanut | D33: 120 | F33: Pound | G33: 0.75 | I33: 90 | J33: 0 | K33: 0 | M33: 0 | N33: 0 | O33: 90 | P33: 0 | Q33: 10980 | R33: 0
C34: Innoculant Peanut | D34: 1 | F34: Acre | G34: 7 | I34: 7 | J34: 0 | K34: 0 | M34: 0 | N34: 0 | O34: 7 | P34: 0 | Q34: 854 | R34: 0
B35: Fungicides
C36: Fungicide and Apply Peanut | D36: 1 | F36: Application | G36: 35 | I36: 35 | J36: 0 | K36: 0 | M36: 0 | N36: 0 | O36: 35 | P36: 0 | Q36: 4270 | R36: 0
B37: Other Labor
C38: Hoeing | D38: 1 | F38: Acre | G38: 16 | I38: 16 | J38: 0 | K38: 0 | M38: 0 | N38: 0 | O38: 16 | P38: 0 | Q38: 1952 | R38: 0
D39: 0 | G39: 0 | I39: 0 | J39: 0 | K39: 0 | M39: 0 | N39: 0 | O39: 0 | P39: 0 | Q39: 0 | R39: 0
D40: 0 | G40: 0 | I40: 0 | J40: 0 | K40: 0 | M40: 0 | N40: 0 | O40: 0 | P40: 0 | Q40: 0 | R40: 0
D41: 0 | G41: 0 | I41: 0 | J41: =E41*H41 -> 0 | K41: 0 | M41: 0 | N41: =J41*L41 -> 0 | O41: 0 | P41: =+J41-N41 -> 0 | Q41: 0 | R41: =+J41*E$7 -> 0
B42: Irrigation
C43: Energy Cost | D43: 22 | F43: AcreInch | G43: 10 | I43: 220 | J43: =E43*H43 -> 0 | K43: 0 | M43: 0 | N43: =J43*L43 -> 0 | O43: 220 | P43: =+J43-N43 -> 0 | Q43: 26840 | R43: =+J43*E$7 -> 0
C44: Irrigation Labor | D44: 1.25 | F44: Hour | G44: 16 | I44: 20 | J44: 0 | K44: 0 | M44: 0 | N44: 0 | O44: 20 | P44: 0 | Q44: 2440 | R44: 0
B45: Machinery Labor
C46: Tractors/Self-Propelled | D46: 1.39 | F46: Hour | G46: 16 | I46: 22.24 | J46: =E46*H46 -> 0 | K46: 0 | M46: 0 | N46: =J46*L46 -> 0 | O46: 22.24 | P46: =+J46-N46 -> 0 | Q46: 2713.28 | R46: =+J46*E$7 -> 0
C47: Other Labor | D47: 1.61 | F47: Hour | G47: 16 | I47: 25.76 | J47: =E47*H47 -> 0 | K47: 0 | M47: 0 | N47: =J47*L47 -> 0 | O47: 25.76 | P47: =+J47-N47 -> 0 | Q47: 3142.72 | R47: =+J47*E$7 -> 0
B49: Diesel Fuel
C50: Pickup/General Use Equipment | D50: 1 | F50: Acre | G50: 0 | I50: 0 | J50: =E50*H50 -> 0 | K50: 0 | M50: 0 | N50: =J50*L50 -> 0 | O50: 0 | P50: =+J50-N50 -> 0 | Q50: 0 | R50: =+J50*E$7 -> 0
C51: Tractors/Self-Propelled | D51: 7.6 | F51: Gallon | G51: 2.919 | I51: 22.1844 | J51: =E51*H51 -> 0 | K51: 0 | M51: 0 | N51: =J51*L51 -> 0 | O51: 22.1844 | P51: =+J51-N51 -> 0 | Q51: 2706.4968 | R51: =+J51*E$7 -> 0
B53: Gasoline
C54: Pickup/General Use Equipment | D54: 1 | F54: Acre | G54: 5.407786885 | I54: 5.407786885 | J54: =E54*H54 -> 0 | K54: 0 | M54: 0 | N54: =J54*L54 -> 0 | O54: 5.407786885 | P54: =+J54-N54 -> 0 | Q54: 659.75 | R54: =+J54*E$7 -> 0
C55: Tractors/Self-Propelled | D55: 0 | F55: Gallon | G55: 2.639 | I55: 0 | J55: =E55*H55 -> 0 | K55: 0 | M55: 0 | N55: =J55*L55 -> 0 | O55: 0 | P55: =+J55-N55 -> 0 | Q55: 0 | R55: =+J55*E$7 -> 0
B57: Repairs & Maintenance
C58: Pickup/General Use Equipment | D58: 1 | F58: Acre | G58: 0.5 | I58: 0.5 | J58: =E58*H58 -> 0 | K58: 0 | M58: 0 | N58: =J58*L58 -> 0 | O58: 0.5 | P58: =+J58-N58 -> 0 | Q58: 61 | R58: =+J58*E$7 -> 0
C59: Irrigation Equipment | D59: 1 | F59: Acre | G59: 40 | I59: 40 | J59: 0 | K59: 0 | M59: 0 | N59: 0 | O59: 40 | P59: 0 | Q59: 4880 | R59: 0
C60: Tractors/Self-Propelled | D60: 1 | F60: Acre | G60: 6 | I60: 6 | J60: 0 | K60: 0 | M60: 0 | N60: 0 | O60: 6 | P60: 0 | Q60: 732 | R60: 0
C61: Implements | D61: 1 | F61: Acre | G61: 3 | I61: 3 | J61: 0 | K61: 0 | M61: 0 | N61: 0 | O61: 3 | P61: 0 | Q61: 366 | R61: 0
I62: 0 | J62: 0 | K62: 0 | M62: 0 | N62: 0 | O62: 0 | P62: 0 | Q62: 0 | R62: 0
I63: 0 | J63: 0 | K63: 0 | M63: 0 | N63: 0 | O63: 0 | P63: 0 | Q63: 0 | R63: 0
B64: Interest on Credit Line | G64: 0.085 | I64: 28.4904987 | J64: =+SUM(J17:J63)/2*H64 -> 0 | M64: 0 | N64: =+SUM(N17:N63)/2*L64 -> 0 | O64: 28.4904987 | P64: =+SUM(P17:P63)/2*L64 -> 0 | Q64: 3475.840842 | R64: =+J64*E$7 -> 0
A65: Total Variable Costs | I65: 932.1326856 | J65: =SUM(J18:J64) -> 0 | M65: 0 | N65: =SUM(N18:N64) -> 0 | O65: 932.1326856 | P65: =SUM(P18:P64) -> 0 | Q65: 113720.1876 | R65: =SUM(R18:R64) -> 0
A66: Planned Returns Above Variable Costs: | I66: 387.8673144 | J66: =+J13-J65 -> 0 | M66: 0 | N66: =+N13-N65 -> 0 | O66: 387.8673144 | P66: =+P13-P65 -> 0 | Q66: 47319.81236 | R66: =+R13-R65 -> 0
B67: Breakeven Price to Cover Variable Costs | G67: 423.6966753 | H67: =IF(E10=0,"n/a",(YVarExp-(YTotExp+YTotRet-J10))/E10) -> n/a | I67: Ton
Q68: Enterprise | R68: Enterprise
A69: FIXED COSTS | D69: Quantity | E69: Quantity | F69: Units | G69: $/Unit | H69: $/Unit | I69: Total | J69: Total | K69: Share | L69: Share | M69: Landlord | N69: Landlord | O69: Tenant | P69: Tenant | Q69: Total | R69: Total
B70: Equipment Fixed Costs
C71: Pickup/General Use Equipment | D71: 1 | F71: Acre | G71: 1.25 | I71: 1.25 | J71: =E71*H71 -> 0 | K71: 0 | M71: 0 | N71: =J71*L71 -> 0 | O71: 1.25 | P71: =+J71-N71 -> 0 | Q71: 152.5 | R71: =+J71*E$7 -> 0
C72: Irrigation Equipment | D72: 1 | F72: Acre | G72: 55 | I72: 55 | J72: 0 | K72: 0 | M72: 0 | N72: 0 | O72: 55 | P72: 0 | Q72: 6710 | R72: 0
C73: Tractors/Self-Propelled | D73: 1 | F73: Acre | G73: 12 | I73: 12 | J73: 0 | K73: 0 | M73: 0 | N73: 0 | O73: 12 | P73: 0 | Q73: 1464 | R73: 0
C74: Implements | D74: 1 | F74: Acre | G74: 10 | I74: 10 | J74: 0 | K74: 0 | M74: 0 | N74: 0 | O74: 10 | P74: 0 | Q74: 1220 | R74: 0
B75: Salaried Labor | D75: 1 | F75: Acre | G75: 0 | I75: 0 | J75: =E75*H75 -> 0 | K75: 0 | M75: 0 | N75: 0 | O75: 0 | P75: 0 | Q75: 0 | R75: 0
B76: Management Fee, Owner/Operator Labor | D76: 1 | F76: Acre | G76: 25 | I76: 25 | J76: 0 | K76: 0 | M76: 0 | N76: 0 | O76: 25 | P76: 0 | Q76: 3050 | R76: 0
B77: Allocated Establishment Cost | D77: 1 | F77: Acre | G77: 0 | I77: 0 | J77: 0 | K77: 0 | M77: 0 | N77: 0 | O77: 0 | P77: 0 | Q77: 0 | R77: 0
B78: Cash Rent - Peanuts | D78: 1 | F78: Acre | G78: 130 | I78: 130 | J78: 0 | K78: 0 | M78: 0 | N78: 0 | O78: 130 | P78: 0 | Q78: 15860 | R78: 0
B79: Property Taxes | D79: 1 | F79: Acre | G79: 0 | I79: 0 | J79: 0 | K79: 0 | M79: 0 | N79: 0 | O79: 0 | P79: 0 | Q79: 0 | R79: 0
B80: Whole Farm Insurance | D80: 1 | F80: Acre | G80: 2 | I80: 2 | J80: 0 | K80: 0 | M80: 0 | N80: 0 | O80: 2 | P80: 0 | Q80: 244 | R80: 0
D81: 1 | G81: 0 | I81: 0 | J81: 0 | K81: 0 | M81: 0 | N81: 0 | O81: 0 | P81: 0 | Q81: 0 | R81: 0
D82: 1 | G82: 0 | I82: 0 | J82: =E82*H82 -> 0 | K82: 0 | M82: 0 | N82: 0 | O82: 0 | P82: 0 | Q82: 0 | R82: 0
A83: Total Fixed Costs | I83: 235.25 | J83: =+SUM(J70:J82) -> 0 | M83: 0 | N83: =+SUM(N70:N82) -> 0 | O83: 235.25 | P83: =+SUM(P70:P82) -> 0 | Q83: 28700.5 | R83: =+SUM(R70:R82) -> 0
A84: Total Specified Costs | I84: 1167.382686 | J84: =+J65+J83 -> 0 | M84: 0 | N84: =+N65+N83 -> 0 | O84: 1167.382686 | P84: =+P65+P83 -> 0 | Q84: 142420.6876 | R84: =+R65+R83 -> 0
A86: Returns Above Specified Costs | I86: 152.6173144 | J86: =+J13-J84 -> 0 | M86: 0 | N86: =+N13-N84 -> 0 | O86: 152.6173144 | P86: =+P13-P84 -> 0 | Q86: 18619.31236 | R86: =+R13-R84 -> 0
A88: Breakeven Price to Cover Total Costs | G88: 530.6284934 | H88: =IF(E10=0,"n/a",(YTotExp-(YTotExp+YTotRet-J10))/E10) -> n/a | I88: Ton
D90: Example Breakeven Prices
B91: Example | C91: Example | D91: To Cover | G91: To Cover
B92: Yield | C92: Yield | D92: Variable | G92: Total
B93: Percent | C93: Ton | D93: Costs | G93: Costs
B94: 0.75 | C94: 1.65 | D94: 564.9289004 | G94: 707.5046579
B95: 0.9 | C95: 1.98 | D95: 470.7740836 | G95: 589.5872149
B96: 1 | C96: 2.2 | D96: 423.6966753 | G96: 530.6284934
B97: 1.1 | C97: 2.42 | D97: 385.1787957 | G97: 482.3895395
B98: 1.25 | C98: 2.75 | D98: 338.9573402 | G98: 424.5027948
D100: Your Breakeven Prices
B101: Your | C101: Your | E101: To Cover | H101: To Cover
B102: Yield | C102: Yield | E102: Variable | H102: Total
B103: Percent | C103: Ton | E103: Costs | H103: Costs
B104: 0.75 | C104: =E10*YPER1 -> 0 | E104: =IF($E$10=0,0,(YVarExp-(YTotExp+YTotRet-J10))/($E$10*YPER1)) -> 0 | H104: =IF($E$10=0,0,(YTotExp-(YTotExp+YTotRet-J10))/($E$10*YPER1)) -> 0
B105: 0.9 | C105: =E10*YPER2 -> 0 | E105: =IF($E$10=0,0,(YVarExp-(YTotExp+YTotRet-J10))/($E$10*YPER2)) -> 0 | H105: =IF($E$10=0,0,(YTotExp-(YTotExp+YTotRet-J10))/($E$10*YPER2)) -> 0
B106: 1 | C106: =+E10 -> 0 | E106: =IF($E$10=0,0,(YVarExp-(YTotExp+YTotRet-J10))/($E$10*YPER3)) -> 0 | H106: =IF($E$10=0,0,(YTotExp-(YTotExp+YTotRet-J10))/($E$10*YPER3)) -> 0
B107: 1.1 | C107: =E10*YPER4 -> 0 | E107: =IF($E$10=0,0,(YVarExp-(YTotExp+YTotRet-J10))/($E$10*YPER4)) -> 0 | H107: =IF($E$10=0,0,(YTotExp-(YTotExp+YTotRet-J10))/($E$10*YPER4)) -> 0
B108: 1.25 | C108: =E10*YPER5 -> 0 | E108: =IF($E$10=0,0,(YVarExp-(YTotExp+YTotRet-J10))/($E$10*YPER5)) -> 0 | H108: =IF($E$10=0,0,(YTotExp-(YTotExp+YTotRet-J10))/($E$10*YPER5)) -> 0
A110: Developed by Andrew Wright, Assistant Professor and Extension Specialist, Texas A&M AgriLife Extension, 806-746-6101
A112: Information presented is prepared solely as a general guide and not intended to recognize or predict the costs and returns from any one operation. Brand names are mentioned only as examples and imply no endorsement.

Sheet SesameIrrigated
A1: Projections for Planning Purposes Only -- Not to be Used without Updating
A2: 2025 Estimated Costs and Returns per Acre
A3: Irrigated Sesame
A4: Enter your name for this budget in the cell above.
A5: Enter Your Values in the cells highlighed in MAROON.
E6: Your Acres | R6: Your
C7: Crop Acres | D7: 122 | L7: Your | Q7: Enterprise | R7: Enterprise
E8: Your | H8: Your | I8: Cash | J8: Your | K8: Landlord | L8: Landlord | N8: Your | P8: Your | Q8: Total | R8: Total
A9: REVENUE | D9: Quantity | E9: Quantity | F9: Units | G9: $/Unit | H9: $/Unit | I9: Total | J9: Total | K9: Share | L9: Share | M9: Landlord | N9: Landlord | O9: Tenant | P9: Tenant | Q9: (122 acres) | R9: ="(" & E7 & " acres)" -> ( acres)
B10: Sesame - Irrigated | D10: 1200 | F10: Pound | G10: 0.32 | I10: 384 | J10: =E10*H10 -> 0 | K10: 0 | M10: 0 | N10: =J10*L10 -> 0 | O10: 384 | P10: =+J10-N10 -> 0 | Q10: 46848 | R10: =+J10*E$7 -> 0
D11: 0 | G11: 0 | I11: 0 | J11: 0 | K11: 0 | M11: 0 | N11: 0 | O11: 0 | P11: =+J11-N11 -> 0 | Q11: 0 | R11: 0
D12: 0 | G12: 0 | I12: 0 | J12: 0 | K12: 0 | M12: 0 | N12: 0 | O12: 0 | P12: 0 | Q12: 0 | R12: 0
A13: Total Revenue | I13: 384 | J13: =SUM(J10:J12) -> 0 | M13: 0 | N13: =SUM(N10:N12) -> 0 | O13: 384 | P13: =SUM(P10:P12) -> 0 | Q13: 46848 | R13: =SUM(R10:R12) -> 0
Q14: Enterprise | R14: Enterprise
A15: VARIABLE COSTS | D15: Quantity | E15: Quantity | F15: Units | G15: $/Unit | H15: $/Unit | I15: Total | J15: Total | K15: Share | L15: Share | M15: Landlord | N15: Landlord | O15: Tenant | P15: Tenant | Q15: Total | R15: Total
A16: Production Costs
B17: Herbicide
C18: Herbicide - Sesame | D18: 1 | F18: Acre | G18: 21.75 | I18: 21.75 | J18: =E18*H18 -> 0 | K18: 0 | M18: 0 | N18: =J18*L18 -> 0 | O18: 21.75 | P18: =+J18-N18 -> 0 | Q18: 2653.5 | R18: =+J18*E$7 -> 0
B19: Seed
C20: Seed - Sesame | D20: 2.5 | F20: Pound | G20: 4 | I20: 10 | J20: 0 | K20: 0 | M20: 0 | N20: 0 | O20: 10 | P20: 0 | Q20: 1220 | R20: 0
B21: Fertilizer
C22: Fertilizer (P) - Liquid | D22: 30 | F22: Pound | G22: 0.916 | I22: 27.48 | J22: 0 | K22: 0 | M22: 0 | N22: 0 | O22: 27.48 | P22: 0 | Q22: 3352.56 | R22: 0
C23: Fertilizer (N) - Liquid | D23: 75 | F23: Pound | G23: 0.6 | I23: 45 | J23: 0 | K23: 0 | M23: 0 | N23: 0 | O23: 45 | P23: 0 | Q23: 5490 | R23: 0
B24: Custom
C25: Fertilizer Application - Liquid High | D25: 1 | F25: Acre | G25: 4.75 | I25: 4.75 | J25: 0 | K25: 0 | M25: 0 | N25: 0 | O25: 4.75 | P25: 0 | Q25: 579.5 | R25: 0
C26: Custom Harvest - Sesame | D26: 1 | F26: Acre | G26: 25 | I26: 25 | J26: 0 | K26: 0 | M26: 0 | N26: 0 | O26: 25 | P26: 0 | Q26: 3050 | R26: 0
C27: Custom Haul - Sesame | D27: 15 | F27: CWT | G27: 0.12 | I27: 1.8 | J27: 0 | K27: 0 | M27: 0 | N27: 0 | O27: 1.8 | P27: 0 | Q27: 219.6 | R27: 0
B28: Miscellaneous
C29: Crop Insurance Sesame - Irrigated | D29: 1 | F29: Acre | G29: 12.5 | I29: 12.5 | J29: 0 | K29: 0 | M29: 0 | N29: 0 | O29: 12.5 | P29: 0 | Q29: 1525 | R29: 0
B30: Other Labor
C31: Hoeing | D31: 1 | F31: Acre | G31: 16 | I31: 16 | J31: 0 | K31: 0 | M31: 0 | N31: 0 | O31: 16 | P31: 0 | Q31: 1952 | R31: 0
D32: 0 | G32: 0 | I32: 0 | J32: 0 | K32: 0 | M32: 0 | N32: 0 | O32: 0 | P32: 0 | Q32: 0 | R32: 0
D33: 0 | G33: 0 | I33: 0 | J33: 0 | K33: 0 | M33: 0 | N33: 0 | O33: 0 | P33: 0 | Q33: 0 | R33: 0
D34: 0 | G34: 0 | I34: 0 | J34: =E34*H34 -> 0 | K34: 0 | M34: 0 | N34: =J34*L34 -> 0 | O34: 0 | P34: =+J34-N34 -> 0 | Q34: 0 | R34: =+J34*E$7 -> 0
B35: Irrigation
C36: Energy Cost | D36: 11 | F36: AcreInch | G36: 10 | I36: 110 | J36: =E36*H36 -> 0 | K36: 0 | M36: 0 | N36: =J36*L36 -> 0 | O36: 110 | P36: =+J36-N36 -> 0 | Q36: 13420 | R36: =+J36*E$7 -> 0
C37: Irrigation Labor | D37: 1 | F37: Hour | G37: 16 | I37: 16 | J37: 0 | K37: 0 | M37: 0 | N37: 0 | O37: 16 | P37: 0 | Q37: 1952 | R37: 0
B38: Machinery Labor
C39: Tractors/Self-Propelled | D39: 0.46 | F39: Hour | G39: 16 | I39: 7.36 | J39: =E39*H39 -> 0 | K39: 0 | M39: 0 | N39: =J39*L39 -> 0 | O39: 7.36 | P39: =+J39-N39 -> 0 | Q39: 897.92 | R39: =+J39*E$7 -> 0
C40: Other Labor | D40: 0.54 | F40: Hour | G40: 16 | I40: 8.64 | J40: =E40*H40 -> 0 | K40: 0 | M40: 0 | N40: =J40*L40 -> 0 | O40: 8.64 | P40: =+J40-N40 -> 0 | Q40: 1054.08 | R40: =+J40*E$7 -> 0
B42: Diesel Fuel
C43: Pickup/General Use Equipment | D43: 1 | F43: Acre | G43: 0 | I43: 0 | J43: =E43*H43 -> 0 | K43: 0 | M43: 0 | N43: =J43*L43 -> 0 | O43: 0 | P43: =+J43-N43 -> 0 | Q43: 0 | R43: =+J43*E$7 -> 0
C44: Tractors/Self-Propelled | D44: 2.4 | F44: Gallon | G44: 2.919 | I44: 7.0056 | J44: =E44*H44 -> 0 | K44: 0 | M44: 0 | N44: =J44*L44 -> 0 | O44: 7.0056 | P44: =+J44-N44 -> 0 | Q44: 854.6832 | R44: =+J44*E$7 -> 0
B46: Gasoline
C47: Pickup/General Use Equipment | D47: 1 | F47: Acre | G47: 5.278 | I47: 5.278 | J47: =E47*H47 -> 0 | K47: 0 | M47: 0 | N47: =J47*L47 -> 0 | O47: 5.278 | P47: =+J47-N47 -> 0 | Q47: 643.916 | R47: =+J47*E$7 -> 0
C48: Tractors/Self-Propelled | D48: 0 | F48: Gallon | G48: 2.639 | I48: 0 | J48: =E48*H48 -> 0 | K48: 0 | M48: 0 | N48: =J48*L48 -> 0 | O48: 0 | P48: =+J48-N48 -> 0 | Q48: 0 | R48: =+J48*E$7 -> 0
B50: Repairs & Maintenance
C51: Pickup/General Use Equipment | D51: 1 | F51: Acre | G51: 0.5 | I51: 0.5 | J51: =E51*H51 -> 0 | K51: 0 | M51: 0 | N51: =J51*L51 -> 0 | O51: 0.5 | P51: =+J51-N51 -> 0 | Q51: 61 | R51: =+J51*E$7 -> 0
C52: Irrigation Equipment | D52: 1 | F52: Acre | G52: 19.25 | I52: 19.25 | J52: 0 | K52: 0 | M52: 0 | N52: 0 | O52: 19.25 | P52: 0 | Q52: 2348.5 | R52: 0
C53: Tractors/Self-Propelled | D53: 1 | F53: Acre | G53: 6 | I53: 6 | J53: 0 | K53: 0 | M53: 0 | N53: 0 | O53: 6 | P53: 0 | Q53: 732 | R53: 0
C54: Implements | D54: 1 | F54: Acre | G54: 3 | I54: 3 | J54: 0 | K54: 0 | M54: 0 | N54: 0 | O54: 3 | P54: 0 | Q54: 366 | R54: 0
I55: 0 | J55: 0 | K55: 0 | M55: 0 | N55: 0 | O55: 0 | P55: 0 | Q55: 0 | R55: 0
I56: 0 | J56: 0 | K56: 0 | M56: 0 | N56: 0 | O56: 0 | P56: 0 | Q56: 0 | R56: 0
B57: Interest on Credit Line | G57: 0.085 | I57: 13.14120016 | J57: =+SUM(J17:J56)/2*H57 -> 0 | M57: 0 | N57: =+SUM(N17:N56)/2*L57 -> 0 | O57: 13.14120016 | P57: =+SUM(P17:P56)/2*L57 -> 0 | Q57: 1603.226419 | R57: =+J57*E$7 -> 0
A58: Total Variable Costs | I58: 360.4548002 | J58: =SUM(J18:J57) -> 0 | M58: 0 | N58: =SUM(N18:N57) -> 0 | O58: 360.4548002 | P58: =SUM(P18:P57) -> 0 | Q58: 43975.48562 | R58: =SUM(R18:R57) -> 0
A59: Planned Returns Above Variable Costs: | I59: 23.54519984 | J59: =+J13-J58 -> 0 | M59: 0 | N59: =+N13-N58 -> 0 | O59: 23.54519984 | P59: =+P13-P58 -> 0 | Q59: 2872.514381 | R59: =+R13-R58 -> 0
B60: Breakeven Price to Cover Variable Costs | G60: 0.3003790001 | H60: =IF(E10=0,"n/a",(YVarExp-(YTotExp+YTotRet-J10))/E10) -> n/a | I60: Pound
Q61: Enterprise | R61: Enterprise
A62: FIXED COSTS | D62: Quantity | E62: Quantity | F62: Units | G62: $/Unit | H62: $/Unit | I62: Total | J62: Total | K62: Share | L62: Share | M62: Landlord | N62: Landlord | O62: Tenant | P62: Tenant | Q62: Total | R62: Total
B63: Equipment Fixed Costs
C64: Pickup/General Use Equipment | D64: 1 | F64: Acre | G64: 1.25 | I64: 1.25 | J64: =E64*H64 -> 0 | K64: 0 | M64: 0 | N64: =J64*L64 -> 0 | O64: 1.25 | P64: =+J64-N64 -> 0 | Q64: 152.5 | R64: =+J64*E$7 -> 0
C65: Irrigation Equipment | D65: 1 | F65: Acre | G65: 55 | I65: 55 | J65: 0 | K65: 0 | M65: 0 | N65: 0 | O65: 55 | P65: 0 | Q65: 6710 | R65: 0
C66: Tractors/Self-Propelled | D66: 1 | F66: Acre | G66: 12 | I66: 12 | J66: 0 | K66: 0 | M66: 0 | N66: 0 | O66: 12 | P66: 0 | Q66: 1464 | R66: 0
C67: Implements | D67: 1 | F67: Acre | G67: 10 | I67: 10 | J67: 0 | K67: 0 | M67: 0 | N67: 0 | O67: 10 | P67: 0 | Q67: 1220 | R67: 0
B68: Salaried Labor | D68: 1 | F68: Acre | G68: 0 | I68: 0 | J68: =E68*H68 -> 0 | K68: 0 | M68: 0 | N68: 0 | O68: 0 | P68: 0 | Q68: 0 | R68: 0
B69: Management Fee, Owner/Operator Labor | D69: 1 | F69: Acre | G69: 25 | I69: 25 | J69: 0 | K69: 0 | M69: 0 | N69: 0 | O69: 25 | P69: 0 | Q69: 3050 | R69: 0
B70: Allocated Establishment Cost | D70: 1 | F70: Acre | G70: 0 | I70: 0 | J70: 0 | K70: 0 | M70: 0 | N70: 0 | O70: 0 | P70: 0 | Q70: 0 | R70: 0
B71: Cash Rent - Sesame | D71: 1 | F71: Acre | G71: 100 | I71: 100 | J71: 0 | K71: 0 | M71: 0 | N71: 0 | O71: 100 | P71: 0 | Q71: 12200 | R71: 0
B72: Property Taxes | D72: 1 | F72: Acre | G72: 0 | I72: 0 | J72: 0 | K72: 0 | M72: 0 | N72: 0 | O72: 0 | P72: 0 | Q72: 0 | R72: 0
B73: Whole Farm Insurance | D73: 1 | F73: Acre | G73: 2 | I73: 2 | J73: 0 | K73: 0 | M73: 0 | N73: 0 | O73: 2 | P73: 0 | Q73: 244 | R73: 0
D74: 1 | G74: 0 | I74: 0 | J74: 0 | K74: 0 | M74: 0 | N74: 0 | O74: 0 | P74: 0 | Q74: 0 | R74: 0
D75: 1 | G75: 0 | I75: 0 | J75: =E75*H75 -> 0 | K75: 0 | M75: 0 | N75: 0 | O75: 0 | P75: 0 | Q75: 0 | R75: 0
A76: Total Fixed Costs | I76: 205.25 | J76: =+SUM(J63:J75) -> 0 | M76: 0 | N76: =+SUM(N63:N75) -> 0 | O76: 205.25 | P76: =+SUM(P63:P75) -> 0 | Q76: 25040.5 | R76: =+SUM(R63:R75) -> 0
A77: Total Specified Costs | I77: 565.7048002 | J77: =+J58+J76 -> 0 | M77: 0 | N77: =+N58+N76 -> 0 | O77: 565.7048002 | P77: =+P58+P76 -> 0 | Q77: 69015.98562 | R77: =+R58+R76 -> 0
A79: Returns Above Specified Costs | I79: -181.7048002 | J79: =+J13-J77 -> 0 | M79: 0 | N79: =+N13-N77 -> 0 | O79: -181.7048002 | P79: =+P13-P77 -> 0 | Q79: -22167.98562 | R79: =+R13-R77 -> 0
A81: Breakeven Price to Cover Total Costs | G81: 0.4714206668 | H81: =IF(E10=0,"n/a",(YTotExp-(YTotExp+YTotRet-J10))/E10) -> n/a | I81: Pound
D83: Example Breakeven Prices
B84: Example | C84: Example | D84: To Cover | G84: To Cover
B85: Yield | C85: Yield | D85: Variable | G85: Total
B86: Percent | C86: Pound | D86: Costs | G86: Costs
B87: 0.75 | C87: 900 | D87: 0.4005053335 | G87: 0.6285608891
B88: 0.9 | C88: 1080 | D88: 0.3337544446 | G88: 0.5238007409
B89: 1 | C89: 1200 | D89: 0.3003790001 | G89: 0.4714206668
B90: 1.1 | C90: 1320 | D90: 0.2730718183 | G90: 0.4285642425
B91: 1.25 | C91: 1500 | D91: 0.2403032001 | G91: 0.3771365334
D93: Your Breakeven Prices
B94: Your | C94: Your | E94: To Cover | H94: To Cover
B95: Yield | C95: Yield | E95: Variable | H95: Total
B96: Percent | C96: Pound | E96: Costs | H96: Costs
B97: 0.75 | C97: =E10*YPER1 -> 0 | E97: =IF($E$10=0,0,(YVarExp-(YTotExp+YTotRet-J10))/($E$10*YPER1)) -> 0 | H97: =IF($E$10=0,0,(YTotExp-(YTotExp+YTotRet-J10))/($E$10*YPER1)) -> 0
B98: 0.9 | C98: =E10*YPER2 -> 0 | E98: =IF($E$10=0,0,(YVarExp-(YTotExp+YTotRet-J10))/($E$10*YPER2)) -> 0 | H98: =IF($E$10=0,0,(YTotExp-(YTotExp+YTotRet-J10))/($E$10*YPER2)) -> 0
B99: 1 | C99: =+E10 -> 0 | E99: =IF($E$10=0,0,(YVarExp-(YTotExp+YTotRet-J10))/($E$10*YPER3)) -> 0 | H99: =IF($E$10=0,0,(YTotExp-(YTotExp+YTotRet-J10))/($E$10*YPER3)) -> 0
B100: 1.1 | C100: =E10*YPER4 -> 0 | E100: =IF($E$10=0,0,(YVarExp-(YTotExp+YTotRet-J10))/($E$10*YPER4)) -> 0 | H100: =IF($E$10=0,0,(YTotExp-(YTotExp+YTotRet-J10))/($E$10*YPER4)) -> 0
B101: 1.25 | C101: =E10*YPER5 -> 0 | E101: =IF($E$10=0,0,(YVarExp-(YTotExp+YTotRet-J10))/($E$10*YPER5)) -> 0 | H101: =IF($E$10=0,0,(YTotExp-(YTotExp+YTotRet-J10))/($E$10*YPER5)) -> 0
A103: Developed by Andrew Wright, Assistant Professor and Extension Specialist, Texas A&M AgriLife Extension, 806-746-6101
A105: Information presented is prepared solely as a general guide and not intended to recognize or predict the costs and returns from any one operation. Brand names are mentioned only as examples and imply no endorsement.

Sheet SorghumIrrigated
A1: Projections for Planning Purposes Only -- Not to be Used without Updating
A2: 2025 Estimated Costs and Returns per Acre
A3: Irrigated Sorghum
A4: Enter your name for this budget in the cell above.
A5: Enter Your Values in the cells highlighed in MAROON.
E6: Your Acres | R6: Your
C7: Crop Acres | D7: 122 | L7: Your | Q7: Enterprise | R7: Enterprise
E8: Your | H8: Your | I8: Cash | J8: Your | K8: Landlord | L8: Landlord | N8: Your | P8: Your | Q8: Total | R8: Total
A9: REVENUE | D9: Quantity | E9: Quantity | F9: Units | G9: $/Unit | H9: $/Unit | I9: Total | J9: Total | K9: Share | L9: Share | M9: Landlord | N9: Landlord | O9: Tenant | P9: Tenant | Q9: (122 acres) | R9: ="(" & E7 & " acres)" -> ( acres)
B10: Grain Sorghum | D10: 45 | F10: CWT | G10: 7.67 | I10: 345.15 | J10: =E10*H10 -> 0 | K10: 0 | M10: 0 | N10: =J10*L10 -> 0 | O10: 345.15 | P10: =+J10-N10 -> 0 | Q10: 42108.3 | R10: =+J10*E$7 -> 0
D11: 0 | G11: 0 | I11: 0 | J11: 0 | K11: 0 | M11: 0 | N11: 0 | O11: 0 | P11: =+J11-N11 -> 0 | Q11: 0 | R11: 0
D12: 0 | G12: 0 | I12: 0 | J12: 0 | K12: 0 | M12: 0 | N12: 0 | O12: 0 | P12: 0 | Q12: 0 | R12: 0
A13: Total Revenue | I13: 345.15 | J13: =SUM(J10:J12) -> 0 | M13: 0 | N13: =SUM(N10:N12) -> 0 | O13: 345.15 | P13: =SUM(P10:P12) -> 0 | Q13: 42108.3 | R13: =SUM(R10:R12) -> 0
Q14: Enterprise | R14: Enterprise
A15: VARIABLE COSTS | D15: Quantity | E15: Quantity | F15: Units | G15: $/Unit | H15: $/Unit | I15: Total | J15: Total | K15: Share | L15: Share | M15: Landlord | N15: Landlord | O15: Tenant | P15: Tenant | Q15: Total | R15: Total
A16: Production Costs
B17: Herbicide
C18: Herbicide and Apply Sorghum Irrigated | D18: 1 | F18: Acre | G18: 21.12 | I18: 21.12 | J18: =E18*H18 -> 0 | K18: 0 | M18: 0 | N18: =J18*L18 -> 0 | O18: 21.12 | P18: =+J18-N18 -> 0 | Q18: 2576.64 | R18: =+J18*E$7 -> 0
B19: Seed
C20: Seed - Sorghum | D20: 4.5 | F20: Pound | G20: 2.4 | I20: 10.8 | J20: 0 | K20: 0 | M20: 0 | N20: 0 | O20: 10.8 | P20: 0 | Q20: 1317.6 | R20: 0
B21: Fertilizer
C22: Fertilizer (N) - Liquid | D22: 40 | F22: Pound | G22: 0.6 | I22: 24 | J22: 0 | K22: 0 | M22: 0 | N22: 0 | O22: 24 | P22: 0 | Q22: 2928 | R22: 0
C23: Fertilizer (P) - Liquid | D23: 50 | F23: Pound | G23: 0.916 | I23: 45.8 | J23: 0 | K23: 0 | M23: 0 | N23: 0 | O23: 45.8 | P23: 0 | Q23: 5587.6 | R23: 0
C24: Fertilizer (N) - NH3 | D24: 60 | F24: Pound | G24: 0.448 | I24: 26.88 | J24: 0 | K24: 0 | M24: 0 | N24: 0 | O24: 26.88 | P24: 0 | Q24: 3279.36 | R24: 0
B25: Custom
C26: Harvest and Haul - Sorghum | D26: 55 | F26: CWT | G26: 0.6 | I26: 33 | J26: 0 | K26: 0 | M26: 0 | N26: 0 | O26: 33 | P26: 0 | Q26: 4026 | R26: 0
C27: Fertilizer Application - Liquid High | D27: 1 | F27: Acre | G27: 4.75 | I27: 4.75 | J27: 0 | K27: 0 | M27: 0 | N27: 0 | O27: 4.75 | P27: 0 | Q27: 579.5 | R27: 0
C28: Fertilizer Application - Liquid Low | D28: 1 | F28: Acre | G28: 3.5 | I28: 3.5 | J28: 0 | K28: 0 | M28: 0 | N28: 0 | O28: 3.5 | P28: 0 | Q28: 427 | R28: 0
C29: Fertilizer Application - NH3 | D29: 1 | F29: Acre | G29: 3.5 | I29: 3.5 | J29: 0 | K29: 0 | M29: 0 | N29: 0 | O29: 3.5 | P29: 0 | Q29: 427 | R29: 0
B30: Miscellaneous
C31: Crop Insurance Sorghum - Irrigated | D31: 1 | F31: Acre | G31: 22.4 | I31: 22.4 | J31: 0 | K31: 0 | M31: 0 | N31: 0 | O31: 22.4 | P31: 0 | Q31: 2732.8 | R31: 0
B32: Insecticide
C33: Insecticide and Apply Sorghum | D33: 1 | F33: Acre | G33: 25 | I33: 25 | J33: 0 | K33: 0 | M33: 0 | N33: 0 | O33: 25 | P33: 0 | Q33: 3050 | R33: 0
D34: 0 | G34: 0 | I34: 0 | J34: 0 | K34: 0 | M34: 0 | N34: 0 | O34: 0 | P34: 0 | Q34: 0 | R34: 0
D35: 0 | G35: 0 | I35: 0 | J35: 0 | K35: 0 | M35: 0 | N35: 0 | O35: 0 | P35: 0 | Q35: 0 | R35: 0
D36: 0 | G36: 0 | I36: 0 | J36: =E36*H36 -> 0 | K36: 0 | M36: 0 | N36: =J36*L36 -> 0 | O36: 0 | P36: =+J36-N36 -> 0 | Q36: 0 | R36: =+J36*E$7 -> 0
B37: Irrigation
C38: Energy Cost | D38: 9 | F38: AcreInch | G38: 10 | I38: 90 | J38: =E38*H38 -> 0 | K38: 0 | M38: 0 | N38: =J38*L38 -> 0 | O38: 90 | P38: =+J38-N38 -> 0 | Q38: 10980 | R38: =+J38*E$7 -> 0
C39: Irrigation Labor | D39: 0.75 | F39: Hour | G39: 16 | I39: 12 | J39: 0 | K39: 0 | M39: 0 | N39: 0 | O39: 12 | P39: 0 | Q39: 1464 | R39: 0
B40: Machinery Labor
C41: Tractors/Self-Propelled | D41: 0.61 | F41: Hour | G41: 16 | I41: 9.76 | J41: =E41*H41 -> 0 | K41: 0 | M41: 0 | N41: =J41*L41 -> 0 | O41: 9.76 | P41: =+J41-N41 -> 0 | Q41: 1190.72 | R41: =+J41*E$7 -> 0
C42: Other Labor | D42: 0.69 | F42: Hour | G42: 16 | I42: 11.04 | J42: =E42*H42 -> 0 | K42: 0 | M42: 0 | N42: =J42*L42 -> 0 | O42: 11.04 | P42: =+J42-N42 -> 0 | Q42: 1346.88 | R42: =+J42*E$7 -> 0
B44: Diesel Fuel
C45: Pickup/General Use Equipment | D45: 1 | F45: Acre | G45: 0 | I45: 0 | J45: =E45*H45 -> 0 | K45: 0 | M45: 0 | N45: =J45*L45 -> 0 | O45: 0 | P45: =+J45-N45 -> 0 | Q45: 0 | R45: =+J45*E$7 -> 0
C46: Tractors/Self-Propelled | D46: 3.2 | F46: Gallon | G46: 2.919 | I46: 9.3408 | J46: =E46*H46 -> 0 | K46: 0 | M46: 0 | N46: =J46*L46 -> 0 | O46: 9.3408 | P46: =+J46-N46 -> 0 | Q46: 1139.5776 | R46: =+J46*E$7 -> 0
B48: Gasoline
C49: Pickup/General Use Equipment | D49: 1 | F49: Acre | G49: 5.407786885 | I49: 5.407786885 | J49: =E49*H49 -> 0 | K49: 0 | M49: 0 | N49: =J49*L49 -> 0 | O49: 5.407786885 | P49: =+J49-N49 -> 0 | Q49: 659.75 | R49: =+J49*E$7 -> 0
C50: Tractors/Self-Propelled | D50: 0 | F50: Gallon | G50: 2.639 | I50: 0 | J50: =E50*H50 -> 0 | K50: 0 | M50: 0 | N50: =J50*L50 -> 0 | O50: 0 | P50: =+J50-N50 -> 0 | Q50: 0 | R50: =+J50*E$7 -> 0
B52: Repairs & Maintenance
C53: Pickup/General Use Equipment | D53: 1 | F53: Acre | G53: 0.5 | I53: 0.5 | J53: =E53*H53 -> 0 | K53: 0 | M53: 0 | N53: =J53*L53 -> 0 | O53: 0.5 | P53: =+J53-N53 -> 0 | Q53: 61 | R53: =+J53*E$7 -> 0
C54: Irrigation Equipment | D54: 1 | F54: Acre | G54: 15.75 | I54: 15.75 | J54: 0 | K54: 0 | M54: 0 | N54: 0 | O54: 15.75 | P54: 0 | Q54: 1921.5 | R54: 0
C55: Tractors/Self-Propelled | D55: 1 | F55: Acre | G55: 6 | I55: 6 | J55: 0 | K55: 0 | M55: 0 | N55: 0 | O55: 6 | P55: 0 | Q55: 732 | R55: 0
C56: Implements | D56: 1 | F56: Acre | G56: 3 | I56: 3 | J56: 0 | K56: 0 | M56: 0 | N56: 0 | O56: 3 | P56: 0 | Q56: 366 | R56: 0
I57: 0 | J57: 0 | K57: 0 | M57: 0 | N57: 0 | O57: 0 | P57: 0 | Q57: 0 | R57: 0
I58: 0 | J58: 0 | K58: 0 | M58: 0 | N58: 0 | O58: 0 | P58: 0 | Q58: 0 | R58: 0
B59: Interest on Credit Line | G59: 0.085 | I59: 13.22210073 | J59: =+SUM(J17:J58)/2*H59 -> 0 | M59: 0 | N59: =+SUM(N17:N58)/2*L59 -> 0 | O59: 13.22210073 | P59: =+SUM(P17:P58)/2*L59 -> 0 | Q59: 1613.09629 | R59: =+J59*E$7 -> 0
A60: Total Variable Costs | I60: 396.7706876 | J60: =SUM(J18:J59) -> 0 | M60: 0 | N60: =SUM(N18:N59) -> 0 | O60: 396.7706876 | P60: =SUM(P18:P59) -> 0 | Q60: 48406.02389 | R60: =SUM(R18:R59) -> 0
A61: Planned Returns Above Variable Costs: | I61: -51.62068762 | J61: =+J13-J60 -> 0 | M61: 0 | N61: =+N13-N60 -> 0 | O61: -51.62068762 | P61: =+P13-P60 -> 0 | Q61: -6297.72389 | R61: =+R13-R60 -> 0
B62: Breakeven Price to Cover Variable Costs | G62: 8.817126392 | H62: =IF(E10=0,"n/a",(YVarExp-(YTotExp+YTotRet-J10))/E10) -> n/a | I62: CWT
Q63: Enterprise | R63: Enterprise
A64: FIXED COSTS | D64: Quantity | E64: Quantity | F64: Units | G64: $/Unit | H64: $/Unit | I64: Total | J64: Total | K64: Share | L64: Share | M64: Landlord | N64: Landlord | O64: Tenant | P64: Tenant | Q64: Total | R64: Total
B65: Equipment Fixed Costs
C66: Pickup/General Use Equipment | D66: 1 | F66: Acre | G66: 1.25 | I66: 1.25 | J66: =E66*H66 -> 0 | K66: 0 | M66: 0 | N66: =J66*L66 -> 0 | O66: 1.25 | P66: =+J66-N66 -> 0 | Q66: 152.5 | R66: =+J66*E$7 -> 0
C67: Irrigation Equipment | D67: 1 | F67: Acre | G67: 55 | I67: 55 | J67: 0 | K67: 0 | M67: 0 | N67: 0 | O67: 55 | P67: 0 | Q67: 6710 | R67: 0
C68: Tractors/Self-Propelled | D68: 1 | F68: Acre | G68: 12 | I68: 12 | J68: 0 | K68: 0 | M68: 0 | N68: 0 | O68: 12 | P68: 0 | Q68: 1464 | R68: 0
C69: Implements | D69: 1 | F69: Acre | G69: 10 | I69: 10 | J69: 0 | K69: 0 | M69: 0 | N69: 0 | O69: 10 | P69: 0 | Q69: 1220 | R69: 0
B70: Salaried Labor | D70: 1 | F70: Acre | G70: 0 | I70: 0 | J70: =E70*H70 -> 0 | K70: 0 | M70: 0 | N70: 0 | O70: 0 | P70: 0 | Q70: 0 | R70: 0
B71: Management Fee, Owner/Operator Labor | D71: 1 | F71: Acre | G71: 30 | I71: 30 | J71: 0 | K71: 0 | M71: 0 | N71: 0 | O71: 30 | P71: 0 | Q71: 3660 | R71: 0
B72: Allocated Establishment Cost | D72: 1 | F72: Acre | G72: 0 | I72: 0 | J72: 0 | K72: 0 | M72: 0 | N72: 0 | O72: 0 | P72: 0 | Q72: 0 | R72: 0
B73: Cash Rent - Sorghum Irrigated | D73: 1 | F73: Acre | G73: 100 | I73: 100 | J73: 0 | K73: 0 | M73: 0 | N73: 0 | O73: 100 | P73: 0 | Q73: 12200 | R73: 0
B74: Property Taxes | D74: 1 | F74: Acre | G74: 0 | I74: 0 | J74: 0 | K74: 0 | M74: 0 | N74: 0 | O74: 0 | P74: 0 | Q74: 0 | R74: 0
B75: Whole Farm Insurance | D75: 1 | F75: Acre | G75: 2 | I75: 2 | J75: 0 | K75: 0 | M75: 0 | N75: 0 | O75: 2 | P75: 0 | Q75: 244 | R75: 0
D76: 1 | G76: 0 | I76: 0 | J76: 0 | K76: 0 | M76: 0 | N76: 0 | O76: 0 | P76: 0 | Q76: 0 | R76: 0
D77: 1 | G77: 0 | I77: 0 | J77: =E77*H77 -> 0 | K77: 0 | M77: 0 | N77: 0 | O77: 0 | P77: 0 | Q77: 0 | R77: 0
A78: Total Fixed Costs | I78: 210.25 | J78: =+SUM(J65:J77) -> 0 | M78: 0 | N78: =+SUM(N65:N77) -> 0 | O78: 210.25 | P78: =+SUM(P65:P77) -> 0 | Q78: 25650.5 | R78: =+SUM(R65:R77) -> 0
A79: Total Specified Costs | I79: 607.0206876 | J79: =+J60+J78 -> 0 | M79: 0 | N79: =+N60+N78 -> 0 | O79: 607.0206876 | P79: =+P60+P78 -> 0 | Q79: 74056.52389 | R79: =+R60+R78 -> 0
A81: Returns Above Specified Costs | I81: -261.8706876 | J81: =+J13-J79 -> 0 | M81: 0 | N81: =+N13-N79 -> 0 | O81: -261.8706876 | P81: =+P13-P79 -> 0 | Q81: -31948.22389 | R81: =+R13-R79 -> 0
A83: Breakeven Price to Cover Total Costs | G83: 13.48934861 | H83: =IF(E10=0,"n/a",(YTotExp-(YTotExp+YTotRet-J10))/E10) -> n/a | I83: CWT
D85: Example Breakeven Prices
B86: Example | C86: Example | D86: To Cover | G86: To Cover
B87: Yield | C87: Yield | D87: Variable | G87: Total
B88: Percent | C88: CWT | D88: Costs | G88: Costs
B89: 0.75 | C89: 33.75 | D89: 11.75616852 | G89: 17.98579815
B90: 0.9 | C90: 40.5 | D90: 9.796807102 | G90: 14.98816513
B91: 1 | C91: 45 | D91: 8.817126392 | G91: 13.48934861
B92: 1.1 | C92: 49.5 | D92: 8.015569447 | G92: 12.26304419
B93: 1.25 | C93: 56.25 | D93: 7.053701113 | G93: 10.79147889
D95: Your Breakeven Prices
B96: Your | C96: Your | E96: To Cover | H96: To Cover
B97: Yield | C97: Yield | E97: Variable | H97: Total
B98: Percent | C98: CWT | E98: Costs | H98: Costs
B99: 0.75 | C99: =E10*YPER1 -> 0 | E99: =IF($E$10=0,0,(YVarExp-(YTotExp+YTotRet-J10))/($E$10*YPER1)) -> 0 | H99: =IF($E$10=0,0,(YTotExp-(YTotExp+YTotRet-J10))/($E$10*YPER1)) -> 0
B100: 0.9 | C100: =E10*YPER2 -> 0 | E100: =IF($E$10=0,0,(YVarExp-(YTotExp+YTotRet-J10))/($E$10*YPER2)) -> 0 | H100: =IF($E$10=0,0,(YTotExp-(YTotExp+YTotRet-J10))/($E$10*YPER2)) -> 0
B101: 1 | C101: =+E10 -> 0 | E101: =IF($E$10=0,0,(YVarExp-(YTotExp+YTotRet-J10))/($E$10*YPER3)) -> 0 | H101: =IF($E$10=0,0,(YTotExp-(YTotExp+YTotRet-J10))/($E$10*YPER3)) -> 0
B102: 1.1 | C102: =E10*YPER4 -> 0 | E102: =IF($E$10=0,0,(YVarExp-(YTotExp+YTotRet-J10))/($E$10*YPER4)) -> 0 | H102: =IF($E$10=0,0,(YTotExp-(YTotExp+YTotRet-J10))/($E$10*YPER4)) -> 0
B103: 1.25 | C103: =E10*YPER5 -> 0 | E103: =IF($E$10=0,0,(YVarExp-(YTotExp+YTotRet-J10))/($E$10*YPER5)) -> 0 | H103: =IF($E$10=0,0,(YTotExp-(YTotExp+YTotRet-J10))/($E$10*YPER5)) -> 0
A105: Developed by Andrew Wright, Assistant Professor and Extension Specialist, Texas A&M AgriLife Extension, 806-746-6101
A107: Information presented is prepared solely as a general guide and not intended to recognize or predict the costs and returns from any one operation. Brand names are mentioned only as examples and imply no endorsement.

Sheet SorghumSilage
A1: Projections for Planning Purposes Only -- Not to be Used without Updating
A2: 2025 Estimated Costs and Returns per Acre
A3: Irrigated Sorghum Silage
A4: Enter your name for this budget in the cell above.
A5: Enter Your Values in the cells highlighed in MAROON.
E6: Your Acres | R6: Your
C7: Crop Acres | D7: 122 | L7: Your | Q7: Enterprise | R7: Enterprise
E8: Your | H8: Your | I8: Cash | J8: Your | K8: Landlord | L8: Landlord | N8: Your | P8: Your | Q8: Total | R8: Total
A9: REVENUE | D9: Quantity | E9: Quantity | F9: Units | G9: $/Unit | H9: $/Unit | I9: Total | J9: Total | K9: Share | L9: Share | M9: Landlord | N9: Landlord | O9: Tenant | P9: Tenant | Q9: (122 acres) | R9: ="(" & E7 & " acres)" -> ( acres)
B10: Sorghum Silage | D10: 24 | F10: Ton | G10: 42.9 | I10: 1029.6 | J10: =E10*H10 -> 0 | K10: 0 | M10: 0 | N10: =J10*L10 -> 0 | O10: 1029.6 | P10: =+J10-N10 -> 0 | Q10: 125611.2 | R10: =+J10*E$7 -> 0
D11: 0 | G11: 0 | I11: 0 | J11: 0 | K11: 0 | M11: 0 | N11: 0 | O11: 0 | P11: =+J11-N11 -> 0 | Q11: 0 | R11: 0
D12: 0 | G12: 0 | I12: 0 | J12: 0 | K12: 0 | M12: 0 | N12: 0 | O12: 0 | P12: 0 | Q12: 0 | R12: 0
A13: Total Revenue | I13: 1029.6 | J13: =SUM(J10:J12) -> 0 | M13: 0 | N13: =SUM(N10:N12) -> 0 | O13: 1029.6 | P13: =SUM(P10:P12) -> 0 | Q13: 125611.2 | R13: =SUM(R10:R12) -> 0
Q14: Enterprise | R14: Enterprise
A15: VARIABLE COSTS | D15: Quantity | E15: Quantity | F15: Units | G15: $/Unit | H15: $/Unit | I15: Total | J15: Total | K15: Share | L15: Share | M15: Landlord | N15: Landlord | O15: Tenant | P15: Tenant | Q15: Total | R15: Total
A16: Production Costs
B17: Fertilizer
C18: Fertilizer (N) - Liquid | D18: 70 | F18: Pound | G18: 0.6 | I18: 42 | J18: =E18*H18 -> 0 | K18: 0 | M18: 0 | N18: =J18*L18 -> 0 | O18: 42 | P18: =+J18-N18 -> 0 | Q18: 5124 | R18: =+J18*E$7 -> 0
C19: Fertilizer (P) - Liquid | D19: 88 | F19: Pound | G19: 0.916 | I19: 80.608 | J19: 0 | K19: 0 | M19: 0 | N19: 0 | O19: 80.608 | P19: 0 | Q19: 9834.176 | R19: 0
C20: Fertilizer (N) - NH3 | D20: 150 | F20: Pound | G20: 0.448 | I20: 67.2 | J20: 0 | K20: 0 | M20: 0 | N20: 0 | O20: 67.2 | P20: 0 | Q20: 8198.4 | R20: 0
B21: Custom
C22: Harvest and Haul - Sorghum Silage | D22: 24 | F22: Ton | G22: 7 | I22: 168 | J22: 0 | K22: 0 | M22: 0 | N22: 0 | O22: 168 | P22: 0 | Q22: 20496 | R22: 0
C23: Fertilizer Application - Liquid High | D23: 1 | F23: Acre | G23: 4.75 | I23: 4.75 | J23: 0 | K23: 0 | M23: 0 | N23: 0 | O23: 4.75 | P23: 0 | Q23: 579.5 | R23: 0
C24: Fertilizer Application - Liquid Low | D24: 1 | F24: Acre | G24: 3.5 | I24: 3.5 | J24: 0 | K24: 0 | M24: 0 | N24: 0 | O24: 3.5 | P24: 0 | Q24: 427 | R24: 0
C25: Fertilizer Application - NH3 | D25: 1 | F25: Acre | G25: 3.5 | I25: 3.5 | J25: 0 | K25: 0 | M25: 0 | N25: 0 | O25: 3.5 | P25: 0 | Q25: 427 | R25: 0
B26: Miscellaneous
C27: Crop Insurance Sorghum Silage | D27: 1 | F27: Acre | G27: 22.4 | I27: 22.4 | J27: 0 | K27: 0 | M27: 0 | N27: 0 | O27: 22.4 | P27: 0 | Q27: 2732.8 | R27: 0
B28: Insecticide
C29: Insecticide and Apply Sorghum Silage | D29: 1 | F29: Acre | G29: 4.29 | I29: 4.29 | J29: 0 | K29: 0 | M29: 0 | N29: 0 | O29: 4.29 | P29: 0 | Q29: 523.38 | R29: 0
B30: Herbicide
C31: Herbicide and Apply Sorghum Silage | D31: 1 | F31: Acre | G31: 10.5 | I31: 10.5 | J31: 0 | K31: 0 | M31: 0 | N31: 0 | O31: 10.5 | P31: 0 | Q31: 1281 | R31: 0
B32: Seed
C33: Seed - Sorghum | D33: 7 | F33: Pound | G33: 2.4 | I33: 16.8 | J33: 0 | K33: 0 | M33: 0 | N33: 0 | O33: 16.8 | P33: 0 | Q33: 2049.6 | R33: 0
D34: 0 | G34: 0 | I34: 0 | J34: 0 | K34: 0 | M34: 0 | N34: 0 | O34: 0 | P34: 0 | Q34: 0 | R34: 0
D35: 0 | G35: 0 | I35: 0 | J35: 0 | K35: 0 | M35: 0 | N35: 0 | O35: 0 | P35: 0 | Q35: 0 | R35: 0
D36: 0 | G36: 0 | I36: 0 | J36: =E36*H36 -> 0 | K36: 0 | M36: 0 | N36: =J36*L36 -> 0 | O36: 0 | P36: =+J36-N36 -> 0 | Q36: 0 | R36: =+J36*E$7 -> 0
B37: Irrigation
C38: Energy Cost | D38: 16 | F38: AcreInch | G38: 10 | I38: 160 | J38: =E38*H38 -> 0 | K38: 0 | M38: 0 | N38: =J38*L38 -> 0 | O38: 160 | P38: =+J38-N38 -> 0 | Q38: 19520 | R38: =+J38*E$7 -> 0
C39: Irrigation Labor | D39: 1 | F39: Hour | G39: 16 | I39: 16 | J39: 0 | K39: 0 | M39: 0 | N39: 0 | O39: 16 | P39: 0 | Q39: 1952 | R39: 0
B40: Machinery Labor
C41: Tractors/Self-Propelled | D41: 0.61 | F41: Hour | G41: 16 | I41: 9.76 | J41: =E41*H41 -> 0 | K41: 0 | M41: 0 | N41: =J41*L41 -> 0 | O41: 9.76 | P41: =+J41-N41 -> 0 | Q41: 1190.72 | R41: =+J41*E$7 -> 0
C42: Other Labor | D42: 0.69 | F42: Hour | G42: 16 | I42: 11.04 | J42: =E42*H42 -> 0 | K42: 0 | M42: 0 | N42: =J42*L42 -> 0 | O42: 11.04 | P42: =+J42-N42 -> 0 | Q42: 1346.88 | R42: =+J42*E$7 -> 0
B44: Diesel Fuel
C45: Pickup/General Use Equipment | D45: 1 | F45: Acre | G45: 0 | I45: 0 | J45: =E45*H45 -> 0 | K45: 0 | M45: 0 | N45: =J45*L45 -> 0 | O45: 0 | P45: =+J45-N45 -> 0 | Q45: 0 | R45: =+J45*E$7 -> 0
C46: Tractors/Self-Propelled | D46: 3.2 | F46: Gallon | G46: 2.919 | I46: 9.3408 | J46: =E46*H46 -> 0 | K46: 0 | M46: 0 | N46: =J46*L46 -> 0 | O46: 9.3408 | P46: =+J46-N46 -> 0 | Q46: 1139.5776 | R46: =+J46*E$7 -> 0
B48: Gasoline
C49: Pickup/General Use Equipment | D49: 1 | F49: Acre | G49: 5.407786885 | I49: 5.407786885 | J49: =E49*H49 -> 0 | K49: 0 | M49: 0 | N49: =J49*L49 -> 0 | O49: 5.407786885 | P49: =+J49-N49 -> 0 | Q49: 659.75 | R49: =+J49*E$7 -> 0
C50: Tractors/Self-Propelled | D50: 0 | F50: Gallon | G50: 2.639 | I50: 0 | J50: =E50*H50 -> 0 | K50: 0 | M50: 0 | N50: =J50*L50 -> 0 | O50: 0 | P50: =+J50-N50 -> 0 | Q50: 0 | R50: =+J50*E$7 -> 0
B52: Repairs & Maintenance
C53: Pickup/General Use Equipment | D53: 1 | F53: Acre | G53: 0.5 | I53: 0.5 | J53: =E53*H53 -> 0 | K53: 0 | M53: 0 | N53: =J53*L53 -> 0 | O53: 0.5 | P53: =+J53-N53 -> 0 | Q53: 61 | R53: =+J53*E$7 -> 0
C54: Irrigation Equipment | D54: 1 | F54: Acre | G54: 27.25 | I54: 27.25 | J54: 0 | K54: 0 | M54: 0 | N54: 0 | O54: 27.25 | P54: 0 | Q54: 3324.5 | R54: 0
C55: Tractors/Self-Propelled | D55: 1 | F55: Acre | G55: 6 | I55: 6 | J55: 0 | K55: 0 | M55: 0 | N55: 0 | O55: 6 | P55: 0 | Q55: 732 | R55: 0
C56: Implements | D56: 1 | F56: Acre | G56: 3 | I56: 3 | J56: 0 | K56: 0 | M56: 0 | N56: 0 | O56: 3 | P56: 0 | Q56: 366 | R56: 0
I57: 0 | J57: 0 | K57: 0 | M57: 0 | N57: 0 | O57: 0 | P57: 0 | Q57: 0 | R57: 0
I58: 0 | J58: 0 | K58: 0 | M58: 0 | N58: 0 | O58: 0 | P58: 0 | Q58: 0 | R58: 0
B59: Interest on Credit Line | G59: 0.085 | I59: 13.14772678 | J59: =+SUM(J17:J58)/2*H59 -> 0 | M59: 0 | N59: =+SUM(N17:N58)/2*L59 -> 0 | O59: 13.14772678 | P59: =+SUM(P17:P58)/2*L59 -> 0 | Q59: 1604.022667 | R59: =+J59*E$7 -> 0
A60: Total Variable Costs | I60: 684.9943137 | J60: =SUM(J18:J59) -> 0 | M60: 0 | N60: =SUM(N18:N59) -> 0 | O60: 684.9943137 | P60: =SUM(P18:P59) -> 0 | Q60: 83569.30627 | R60: =SUM(R18:R59) -> 0
A61: Planned Returns Above Variable Costs: | I61: 344.6056863 | J61: =+J13-J60 -> 0 | M61: 0 | N61: =+N13-N60 -> 0 | O61: 344.6056863 | P61: =+P13-P60 -> 0 | Q61: 42041.89373 | R61: =+R13-R60 -> 0
B62: Breakeven Price to Cover Variable Costs | G62: 28.54142974 | H62: =IF(E10=0,"n/a",(YVarExp-(YTotExp+YTotRet-J10))/E10) -> n/a | I62: Ton
Q63: Enterprise | R63: Enterprise
A64: FIXED COSTS | D64: Quantity | E64: Quantity | F64: Units | G64: $/Unit | H64: $/Unit | I64: Total | J64: Total | K64: Share | L64: Share | M64: Landlord | N64: Landlord | O64: Tenant | P64: Tenant | Q64: Total | R64: Total
B65: Equipment Fixed Costs
C66: Pickup/General Use Equipment | D66: 1 | F66: Acre | G66: 1.25 | I66: 1.25 | J66: =E66*H66 -> 0 | K66: 0 | M66: 0 | N66: =J66*L66 -> 0 | O66: 1.25 | P66: =+J66-N66 -> 0 | Q66: 152.5 | R66: =+J66*E$7 -> 0
C67: Irrigation Equipment | D67: 1 | F67: Acre | G67: 55 | I67: 55 | J67: 0 | K67: 0 | M67: 0 | N67: 0 | O67: 55 | P67: 0 | Q67: 6710 | R67: 0
C68: Tractors/Self-Propelled | D68: 1 | F68: Acre | G68: 12 | I68: 12 | J68: 0 | K68: 0 | M68: 0 | N68: 0 | O68: 12 | P68: 0 | Q68: 1464 | R68: 0
C69: Implements | D69: 1 | F69: Acre | G69: 10 | I69: 10 | J69: 0 | K69: 0 | M69: 0 | N69: 0 | O69: 10 | P69: 0 | Q69: 1220 | R69: 0
B70: Salaried Labor | D70: 1 | F70: Acre | G70: 0 | I70: 0 | J70: =E70*H70 -> 0 | K70: 0 | M70: 0 | N70: 0 | O70: 0 | P70: 0 | Q70: 0 | R70: 0
B71: Management Fee, Owner/Operator Labor | D71: 1 | F71: Acre | G71: 25 | I71: 25 | J71: 0 | K71: 0 | M71: 0 | N71: 0 | O71: 25 | P71: 0 | Q71: 3050 | R71: 0
B72: Allocated Establishment Cost | D72: 1 | F72: Acre | G72: 0 | I72: 0 | J72: 0 | K72: 0 | M72: 0 | N72: 0 | O72: 0 | P72: 0 | Q72: 0 | R72: 0
B73: Cash Rent - Sorghum Silage | D73: 1 | F73: Acre | G73: 100 | I73: 100 | J73: 0 | K73: 0 | M73: 0 | N73: 0 | O73: 100 | P73: 0 | Q73: 12200 | R73: 0
B74: Property Taxes | D74: 1 | F74: Acre | G74: 0 | I74: 0 | J74: 0 | K74: 0 | M74: 0 | N74: 0 | O74: 0 | P74: 0 | Q74: 0 | R74: 0
B75: Whole Farm Insurance | D75: 1 | F75: Acre | G75: 2 | I75: 2 | J75: 0 | K75: 0 | M75: 0 | N75: 0 | O75: 2 | P75: 0 | Q75: 244 | R75: 0
D76: 1 | G76: 0 | I76: 0 | J76: 0 | K76: 0 | M76: 0 | N76: 0 | O76: 0 | P76: 0 | Q76: 0 | R76: 0
D77: 1 | G77: 0 | I77: 0 | J77: =E77*H77 -> 0 | K77: 0 | M77: 0 | N77: 0 | O77: 0 | P77: 0 | Q77: 0 | R77: 0
A78: Total Fixed Costs | I78: 205.25 | J78: =+SUM(J65:J77) -> 0 | M78: 0 | N78: =+SUM(N65:N77) -> 0 | O78: 205.25 | P78: =+SUM(P65:P77) -> 0 | Q78: 25040.5 | R78: =+SUM(R65:R77) -> 0
A79: Total Specified Costs | I79: 890.2443137 | J79: =+J60+J78 -> 0 | M79: 0 | N79: =+N60+N78 -> 0 | O79: 890.2443137 | P79: =+P60+P78 -> 0 | Q79: 108609.8063 | R79: =+R60+R78 -> 0
A81: Returns Above Specified Costs | I81: 139.3556863 | J81: =+J13-J79 -> 0 | M81: 0 | N81: =+N13-N79 -> 0 | O81: 139.3556863 | P81: =+P13-P79 -> 0 | Q81: 17001.39373 | R81: =+R13-R79 -> 0
A83: Breakeven Price to Cover Total Costs | G83: 37.09351307 | H83: =IF(E10=0,"n/a",(YTotExp-(YTotExp+YTotRet-J10))/E10) -> n/a | I83: Ton
D85: Example Breakeven Prices
B86: Example | C86: Example | D86: To Cover | G86: To Cover
B87: Yield | C87: Yield | D87: Variable | G87: Total
B88: Percent | C88: Ton | D88: Costs | G88: Costs
B89: 0.75 | C89: 18 | D89: 38.05523965 | G89: 49.45801743
B90: 0.9 | C90: 21.6 | D90: 31.71269971 | G90: 41.21501452
B91: 1 | C91: 24 | D91: 28.54142974 | G91: 37.09351307
B92: 1.1 | C92: 26.4 | D92: 25.94675431 | G92: 33.72137552
B93: 1.25 | C93: 30 | D93: 22.83314379 | G93: 29.67481046
D95: Your Breakeven Prices
B96: Your | C96: Your | E96: To Cover | H96: To Cover
B97: Yield | C97: Yield | E97: Variable | H97: Total
B98: Percent | C98: Ton | E98: Costs | H98: Costs
B99: 0.75 | C99: =E10*YPER1 -> 0 | E99: =IF($E$10=0,0,(YVarExp-(YTotExp+YTotRet-J10))/($E$10*YPER1)) -> 0 | H99: =IF($E$10=0,0,(YTotExp-(YTotExp+YTotRet-J10))/($E$10*YPER1)) -> 0
B100: 0.9 | C100: =E10*YPER2 -> 0 | E100: =IF($E$10=0,0,(YVarExp-(YTotExp+YTotRet-J10))/($E$10*YPER2)) -> 0 | H100: =IF($E$10=0,0,(YTotExp-(YTotExp+YTotRet-J10))/($E$10*YPER2)) -> 0
B101: 1 | C101: =+E10 -> 0 | E101: =IF($E$10=0,0,(YVarExp-(YTotExp+YTotRet-J10))/($E$10*YPER3)) -> 0 | H101: =IF($E$10=0,0,(YTotExp-(YTotExp+YTotRet-J10))/($E$10*YPER3)) -> 0
B102: 1.1 | C102: =E10*YPER4 -> 0 | E102: =IF($E$10=0,0,(YVarExp-(YTotExp+YTotRet-J10))/($E$10*YPER4)) -> 0 | H102: =IF($E$10=0,0,(YTotExp-(YTotExp+YTotRet-J10))/($E$10*YPER4)) -> 0
B103: 1.25 | C103: =E10*YPER5 -> 0 | E103: =IF($E$10=0,0,(YVarExp-(YTotExp+YTotRet-J10))/($E$10*YPER5)) -> 0 | H103: =IF($E$10=0,0,(YTotExp-(YTotExp+YTotRet-J10))/($E$10*YPER5)) -> 0
A105: Developed by Andrew Wright, Assistant Professor and Extension Specialist, Texas A&M AgriLife Extension, 806-746-6101
A107: Information presented is prepared solely as a general guide and not intended to recognize or predict the costs and returns from any one operation. Brand names are mentioned only as examples and imply no endorsement.

Sheet Soybeans
A1: Projections for Planning Purposes Only -- Not to be Used without Updating
A2: 2025 Estimated Costs and Returns per Acre
A3: Irrigated Soybeans
A4: Enter your name for this budget in the cell above.
A5: Enter Your Values in the cells highlighed in MAROON.
E6: Your Acres | R6: Your
C7: Crop Acres | D7: 122 | L7: Your | Q7: Enterprise | R7: Enterprise
E8: Your | H8: Your | I8: Cash | J8: Your | K8: Landlord | L8: Landlord | N8: Your | P8: Your | Q8: Total | R8: Total
A9: REVENUE | D9: Quantity | E9: Quantity | F9: Units | G9: $/Unit | H9: $/Unit | I9: Total | J9: Total | K9: Share | L9: Share | M9: Landlord | N9: Landlord | O9: Tenant | P9: Tenant | Q9: (122 acres) | R9: ="(" & E7 & " acres)" -> ( acres)
B10: Soybeans | D10: 40 | F10: Bushel | G10: 9.23 | I10: 369.2 | J10: =E10*H10 -> 0 | K10: 0 | M10: 0 | N10: =J10*L10 -> 0 | O10: 369.2 | P10: =+J10-N10 -> 0 | Q10: 45042.4 | R10: =+J10*E$7 -> 0
D11: 0 | G11: 0 | I11: 0 | J11: 0 | K11: 0 | M11: 0 | N11: 0 | O11: 0 | P11: =+J11-N11 -> 0 | Q11: 0 | R11: 0
D12: 0 | G12: 0 | I12: 0 | J12: 0 | K12: 0 | M12: 0 | N12: 0 | O12: 0 | P12: 0 | Q12: 0 | R12: 0
A13: Total Revenue | I13: 369.2 | J13: =SUM(J10:J12) -> 0 | M13: 0 | N13: =SUM(N10:N12) -> 0 | O13: 369.2 | P13: =SUM(P10:P12) -> 0 | Q13: 45042.4 | R13: =SUM(R10:R12) -> 0
Q14: Enterprise | R14: Enterprise
A15: VARIABLE COSTS | D15: Quantity | E15: Quantity | F15: Units | G15: $/Unit | H15: $/Unit | I15: Total | J15: Total | K15: Share | L15: Share | M15: Landlord | N15: Landlord | O15: Tenant | P15: Tenant | Q15: Total | R15: Total
A16: Production Costs
B17: Herbicide
C18: Herbicide and Apply Soybeans | D18: 1 | F18: Acre | G18: 18 | I18: 18 | J18: =E18*H18 -> 0 | K18: 0 | M18: 0 | N18: =J18*L18 -> 0 | O18: 18 | P18: =+J18-N18 -> 0 | Q18: 2196 | R18: =+J18*E$7 -> 0
B19: Seed
C20: Seed - Soybeans | D20: 60 | F20: Pound | G20: 0.65 | I20: 39 | J20: 0 | K20: 0 | M20: 0 | N20: 0 | O20: 39 | P20: 0 | Q20: 4758 | R20: 0
C21: Innoculant Soybeans | D21: 1 | F21: Acre | G21: 7 | I21: 7 | J21: 0 | K21: 0 | M21: 0 | N21: 0 | O21: 7 | P21: 0 | Q21: 854 | R21: 0
B22: Fertilizer
C23: Fertilizer (P) - Liquid | D23: 45 | F23: Pound | G23: 0.916 | I23: 41.22 | J23: 0 | K23: 0 | M23: 0 | N23: 0 | O23: 41.22 | P23: 0 | Q23: 5028.84 | R23: 0
B24: Custom
C25: Harvest and Haul - Soybeans | D25: 40 | F25: Bushel | G25: 0.5 | I25: 20 | J25: 0 | K25: 0 | M25: 0 | N25: 0 | O25: 20 | P25: 0 | Q25: 2440 | R25: 0
B26: Miscellaneous
C27: Crop Insurance Soybeans | D27: 1 | F27: Acre | G27: 23 | I27: 23 | J27: 0 | K27: 0 | M27: 0 | N27: 0 | O27: 23 | P27: 0 | Q27: 2806 | R27: 0
C28: Crop Insurance Hail Soybeans | D28: 2 | F28: Acre | G28: 6 | I28: 12 | J28: 0 | K28: 0 | M28: 0 | N28: 0 | O28: 12 | P28: 0 | Q28: 1464 | R28: 0
B29: Insecticide
C30: Insecticide and Apply Soybeans | D30: 1 | F30: Acre | G30: 5.12 | I30: 5.12 | J30: 0 | K30: 0 | M30: 0 | N30: 0 | O30: 5.12 | P30: 0 | Q30: 624.64 | R30: 0
D31: 0 | G31: 0 | I31: 0 | J31: 0 | K31: 0 | M31: 0 | N31: 0 | O31: 0 | P31: 0 | Q31: 0 | R31: 0
D32: 0 | G32: 0 | I32: 0 | J32: 0 | K32: 0 | M32: 0 | N32: 0 | O32: 0 | P32: 0 | Q32: 0 | R32: 0
D33: 0 | G33: 0 | I33: 0 | J33: =E33*H33 -> 0 | K33: 0 | M33: 0 | N33: =J33*L33 -> 0 | O33: 0 | P33: =+J33-N33 -> 0 | Q33: 0 | R33: =+J33*E$7 -> 0
B34: Irrigation
C35: Energy Cost | D35: 15 | F35: AcreInch | G35: 10 | I35: 150 | J35: =E35*H35 -> 0 | K35: 0 | M35: 0 | N35: =J35*L35 -> 0 | O35: 150 | P35: =+J35-N35 -> 0 | Q35: 18300 | R35: =+J35*E$7 -> 0
C36: Irrigation Labor | D36: 1 | F36: Hour | G36: 16 | I36: 16 | J36: 0 | K36: 0 | M36: 0 | N36: 0 | O36: 16 | P36: 0 | Q36: 1952 | R36: 0
B37: Machinery Labor
C38: Tractors/Self-Propelled | D38: 0.7 | F38: Hour | G38: 16 | I38: 11.2 | J38: =E38*H38 -> 0 | K38: 0 | M38: 0 | N38: =J38*L38 -> 0 | O38: 11.2 | P38: =+J38-N38 -> 0 | Q38: 1366.4 | R38: =+J38*E$7 -> 0
C39: Other Labor | D39: 0.8 | F39: Hour | G39: 16 | I39: 12.8 | J39: =E39*H39 -> 0 | K39: 0 | M39: 0 | N39: =J39*L39 -> 0 | O39: 12.8 | P39: =+J39-N39 -> 0 | Q39: 1561.6 | R39: =+J39*E$7 -> 0
B41: Diesel Fuel
C42: Pickup/General Use Equipment | D42: 1 | F42: Acre | G42: 0 | I42: 0 | J42: =E42*H42 -> 0 | K42: 0 | M42: 0 | N42: =J42*L42 -> 0 | O42: 0 | P42: =+J42-N42 -> 0 | Q42: 0 | R42: =+J42*E$7 -> 0
C43: Tractors/Self-Propelled | D43: 3.8 | F43: Gallon | G43: 2.919 | I43: 11.0922 | J43: =E43*H43 -> 0 | K43: 0 | M43: 0 | N43: =J43*L43 -> 0 | O43: 11.0922 | P43: =+J43-N43 -> 0 | Q43: 1353.2484 | R43: =+J43*E$7 -> 0
B45: Gasoline
C46: Pickup/General Use Equipment | D46: 1 | F46: Acre | G46: 5.407786885 | I46: 5.407786885 | J46: =E46*H46 -> 0 | K46: 0 | M46: 0 | N46: =J46*L46 -> 0 | O46: 5.407786885 | P46: =+J46-N46 -> 0 | Q46: 659.75 | R46: =+J46*E$7 -> 0
C47: Tractors/Self-Propelled | D47: 0 | F47: Gallon | G47: 2.639 | I47: 0 | J47: =E47*H47 -> 0 | K47: 0 | M47: 0 | N47: =J47*L47 -> 0 | O47: 0 | P47: =+J47-N47 -> 0 | Q47: 0 | R47: =+J47*E$7 -> 0
B49: Repairs & Maintenance
C50: Pickup/General Use Equipment | D50: 1 | F50: Acre | G50: 0.5 | I50: 0.5 | J50: =E50*H50 -> 0 | K50: 0 | M50: 0 | N50: =J50*L50 -> 0 | O50: 0.5 | P50: =+J50-N50 -> 0 | Q50: 61 | R50: =+J50*E$7 -> 0
C51: Irrigation Equipment | D51: 1 | F51: Acre | G51: 26.25 | I51: 26.25 | J51: 0 | K51: 0 | M51: 0 | N51: 0 | O51: 26.25 | P51: 0 | Q51: 3202.5 | R51: 0
C52: Tractors/Self-Propelled | D52: 1 | F52: Acre | G52: 6 | I52: 6 | J52: 0 | K52: 0 | M52: 0 | N52: 0 | O52: 6 | P52: 0 | Q52: 732 | R52: 0
C53: Implements | D53: 1 | F53: Acre | G53: 3 | I53: 3 | J53: 0 | K53: 0 | M53: 0 | N53: 0 | O53: 3 | P53: 0 | Q53: 366 | R53: 0
I54: 0 | J54: 0 | K54: 0 | M54: 0 | N54: 0 | O54: 0 | P54: 0 | Q54: 0 | R54: 0
I55: 0 | J55: 0 | K55: 0 | M55: 0 | N55: 0 | O55: 0 | P55: 0 | Q55: 0 | R55: 0
B56: Interest on Credit Line | G56: 0.085 | I56: 12.01383506 | J56: =+SUM(J17:J55)/2*H56 -> 0 | M56: 0 | N56: =+SUM(N17:N55)/2*L56 -> 0 | O56: 12.01383506 | P56: =+SUM(P17:P55)/2*L56 -> 0 | Q56: 1465.687878 | R56: =+J56*E$7 -> 0
A57: Total Variable Costs | I57: 419.6038219 | J57: =SUM(J18:J56) -> 0 | M57: 0 | N57: =SUM(N18:N56) -> 0 | O57: 419.6038219 | P57: =SUM(P18:P56) -> 0 | Q57: 51191.66628 | R57: =SUM(R18:R56) -> 0
A58: Planned Returns Above Variable Costs: | I58: -50.40382195 | J58: =+J13-J57 -> 0 | M58: 0 | N58: =+N13-N57 -> 0 | O58: -50.40382195 | P58: =+P13-P57 -> 0 | Q58: -6149.266278 | R58: =+R13-R57 -> 0
B59: Breakeven Price to Cover Variable Costs | G59: 10.49009555 | H59: =IF(E10=0,"n/a",(YVarExp-(YTotExp+YTotRet-J10))/E10) -> n/a | I59: Bushel
Q60: Enterprise | R60: Enterprise
A61: FIXED COSTS | D61: Quantity | E61: Quantity | F61: Units | G61: $/Unit | H61: $/Unit | I61: Total | J61: Total | K61: Share | L61: Share | M61: Landlord | N61: Landlord | O61: Tenant | P61: Tenant | Q61: Total | R61: Total
B62: Equipment Fixed Costs
C63: Pickup/General Use Equipment | D63: 1 | F63: Acre | G63: 1.25 | I63: 1.25 | J63: =E63*H63 -> 0 | K63: 0 | M63: 0 | N63: =J63*L63 -> 0 | O63: 1.25 | P63: =+J63-N63 -> 0 | Q63: 152.5 | R63: =+J63*E$7 -> 0
C64: Irrigation Equipment | D64: 1 | F64: Acre | G64: 55 | I64: 55 | J64: 0 | K64: 0 | M64: 0 | N64: 0 | O64: 55 | P64: 0 | Q64: 6710 | R64: 0
C65: Tractors/Self-Propelled | D65: 1 | F65: Acre | G65: 12 | I65: 12 | J65: 0 | K65: 0 | M65: 0 | N65: 0 | O65: 12 | P65: 0 | Q65: 1464 | R65: 0
C66: Implements | D66: 1 | F66: Acre | G66: 10 | I66: 10 | J66: 0 | K66: 0 | M66: 0 | N66: 0 | O66: 10 | P66: 0 | Q66: 1220 | R66: 0
B67: Salaried Labor | D67: 1 | F67: Acre | G67: 0 | I67: 0 | J67: =E67*H67 -> 0 | K67: 0 | M67: 0 | N67: 0 | O67: 0 | P67: 0 | Q67: 0 | R67: 0
B68: Management Fee, Owner/Operator Labor | D68: 1 | F68: Acre | G68: 25 | I68: 25 | J68: 0 | K68: 0 | M68: 0 | N68: 0 | O68: 25 | P68: 0 | Q68: 3050 | R68: 0
B69: Allocated Establishment Cost | D69: 1 | F69: Acre | G69: 0 | I69: 0 | J69: 0 | K69: 0 | M69: 0 | N69: 0 | O69: 0 | P69: 0 | Q69: 0 | R69: 0
B70: Cash Rent - Soybeans | D70: 1 | F70: Acre | G70: 100 | I70: 100 | J70: 0 | K70: 0 | M70: 0 | N70: 0 | O70: 100 | P70: 0 | Q70: 12200 | R70: 0
B71: Property Taxes | D71: 1 | F71: Acre | G71: 0 | I71: 0 | J71: 0 | K71: 0 | M71: 0 | N71: 0 | O71: 0 | P71: 0 | Q71: 0 | R71: 0
B72: Whole Farm Insurance | D72: 1 | F72: Acre | G72: 2 | I72: 2 | J72: 0 | K72: 0 | M72: 0 | N72: 0 | O72: 2 | P72: 0 | Q72: 244 | R72: 0
D73: 1 | G73: 0 | I73: 0 | J73: 0 | K73: 0 | M73: 0 | N73: 0 | O73: 0 | P73: 0 | Q73: 0 | R73: 0
D74: 1 | G74: 0 | I74: 0 | J74: =E74*H74 -> 0 | K74: 0 | M74: 0 | N74: 0 | O74: 0 | P74: 0 | Q74: 0 | R74: 0
A75: Total Fixed Costs | I75: 205.25 | J75: =+SUM(J62:J74) -> 0 | M75: 0 | N75: =+SUM(N62:N74) -> 0 | O75: 205.25 | P75: =+SUM(P62:P74) -> 0 | Q75: 25040.5 | R75: =+SUM(R62:R74) -> 0
A76: Total Specified Costs | I76: 624.8538219 | J76: =+J57+J75 -> 0 | M76: 0 | N76: =+N57+N75 -> 0 | O76: 624.8538219 | P76: =+P57+P75 -> 0 | Q76: 76232.16628 | R76: =+R57+R75 -> 0
A78: Returns Above Specified Costs | I78: -255.6538219 | J78: =+J13-J76 -> 0 | M78: 0 | N78: =+N13-N76 -> 0 | O78: -255.6538219 | P78: =+P13-P76 -> 0 | Q78: -31189.76628 | R78: =+R13-R76 -> 0
A80: Breakeven Price to Cover Total Costs | G80: 15.62134555 | H80: =IF(E10=0,"n/a",(YTotExp-(YTotExp+YTotRet-J10))/E10) -> n/a | I80: Bushel
D82: Example Breakeven Prices
B83: Example | C83: Example | D83: To Cover | G83: To Cover
B84: Yield | C84: Yield | D84: Variable | G84: Total
B85: Percent | C85: Bushel | D85: Costs | G85: Costs
B86: 0.75 | C86: 30 | D86: 13.98679406 | G86: 20.82846073
B87: 0.9 | C87: 36 | D87: 11.65566172 | G87: 17.35705061
B88: 1 | C88: 40 | D88: 10.49009555 | G88: 15.62134555
B89: 1.1 | C89: 44 | D89: 9.536450499 | G89: 14.20122323
B90: 1.25 | C90: 50 | D90: 8.392076439 | G90: 12.49707644
D92: Your Breakeven Prices
B93: Your | C93: Your | E93: To Cover | H93: To Cover
B94: Yield | C94: Yield | E94: Variable | H94: Total
B95: Percent | C95: Bushel | E95: Costs | H95: Costs
B96: 0.75 | C96: =E10*YPER1 -> 0 | E96: =IF($E$10=0,0,(YVarExp-(YTotExp+YTotRet-J10))/($E$10*YPER1)) -> 0 | H96: =IF($E$10=0,0,(YTotExp-(YTotExp+YTotRet-J10))/($E$10*YPER1)) -> 0
B97: 0.9 | C97: =E10*YPER2 -> 0 | E97: =IF($E$10=0,0,(YVarExp-(YTotExp+YTotRet-J10))/($E$10*YPER2)) -> 0 | H97: =IF($E$10=0,0,(YTotExp-(YTotExp+YTotRet-J10))/($E$10*YPER2)) -> 0
B98: 1 | C98: =+E10 -> 0 | E98: =IF($E$10=0,0,(YVarExp-(YTotExp+YTotRet-J10))/($E$10*YPER3)) -> 0 | H98: =IF($E$10=0,0,(YTotExp-(YTotExp+YTotRet-J10))/($E$10*YPER3)) -> 0
B99: 1.1 | C99: =E10*YPER4 -> 0 | E99: =IF($E$10=0,0,(YVarExp-(YTotExp+YTotRet-J10))/($E$10*YPER4)) -> 0 | H99: =IF($E$10=0,0,(YTotExp-(YTotExp+YTotRet-J10))/($E$10*YPER4)) -> 0
B100: 1.25 | C100: =E10*YPER5 -> 0 | E100: =IF($E$10=0,0,(YVarExp-(YTotExp+YTotRet-J10))/($E$10*YPER5)) -> 0 | H100: =IF($E$10=0,0,(YTotExp-(YTotExp+YTotRet-J10))/($E$10*YPER5)) -> 0
A102: Developed by Andrew Wright, Assistant Professor and Extension Specialist, Texas A&M AgriLife Extension, 806-746-6101
A104: Information presented is prepared solely as a general guide and not intended to recognize or predict the costs and returns from any one operation. Brand names are mentioned only as examples and imply no endorsement.

Sheet SunflowersConfectionary
A1: Projections for Planning Purposes Only -- Not to be Used without Updating
A2: 2025 Estimated Costs and Returns per Acre
A3: Irrigated Sunflowers - Confectionary
A4: Enter your name for this budget in the cell above.
A5: Enter Your Values in the cells highlighed in MAROON.
E6: Your Acres | R6: Your
C7: Crop Acres | D7: 122 | L7: Your | Q7: Enterprise | R7: Enterprise
E8: Your | H8: Your | I8: Cash | J8: Your | K8: Landlord | L8: Landlord | N8: Your | P8: Your | Q8: Total | R8: Total
A9: REVENUE | D9: Quantity | E9: Quantity | F9: Units | G9: $/Unit | H9: $/Unit | I9: Total | J9: Total | K9: Share | L9: Share | M9: Landlord | N9: Landlord | O9: Tenant | P9: Tenant | Q9: (122 acres) | R9: ="(" & E7 & " acres)" -> ( acres)
B10: Confectionary Sunflowers | D10: 2000 | F10: Pound | G10: 0.275 | I10: 550 | J10: =E10*H10 -> 0 | K10: 0 | M10: 0 | N10: =J10*L10 -> 0 | O10: 550 | P10: =+J10-N10 -> 0 | Q10: 67100 | R10: =+J10*E$7 -> 0
D11: 0 | G11: 0 | I11: 0 | J11: 0 | K11: 0 | M11: 0 | N11: 0 | O11: 0 | P11: =+J11-N11 -> 0 | Q11: 0 | R11: 0
D12: 0 | G12: 0 | I12: 0 | J12: 0 | K12: 0 | M12: 0 | N12: 0 | O12: 0 | P12: 0 | Q12: 0 | R12: 0
A13: Total Revenue | I13: 550 | J13: =SUM(J10:J12) -> 0 | M13: 0 | N13: =SUM(N10:N12) -> 0 | O13: 550 | P13: =SUM(P10:P12) -> 0 | Q13: 67100 | R13: =SUM(R10:R12) -> 0
Q14: Enterprise | R14: Enterprise
A15: VARIABLE COSTS | D15: Quantity | E15: Quantity | F15: Units | G15: $/Unit | H15: $/Unit | I15: Total | J15: Total | K15: Share | L15: Share | M15: Landlord | N15: Landlord | O15: Tenant | P15: Tenant | Q15: Total | R15: Total
A16: Production Costs
B17: Herbicide
C18: Herbicide and Apply Conf. Sunflowers | D18: 1 | F18: Acre | G18: 35 | I18: 35 | J18: =E18*H18 -> 0 | K18: 0 | M18: 0 | N18: =J18*L18 -> 0 | O18: 35 | P18: =+J18-N18 -> 0 | Q18: 4270 | R18: =+J18*E$7 -> 0
B19: Seed
C20: Seed - Confectionary Sunflower | D20: 1 | F20: Acre | G20: 21 | I20: 21 | J20: 0 | K20: 0 | M20: 0 | N20: 0 | O20: 21 | P20: 0 | Q20: 2562 | R20: 0
B21: Fertilizer
C22: Fertilizer (N) - Liquid | D22: 70 | F22: Pound | G22: 0.6 | I22: 42 | J22: 0 | K22: 0 | M22: 0 | N22: 0 | O22: 42 | P22: 0 | Q22: 5124 | R22: 0
C23: Fertilizer (P) - Liquid | D23: 24 | F23: Pound | G23: 0.916 | I23: 21.984 | J23: 0 | K23: 0 | M23: 0 | N23: 0 | O23: 21.984 | P23: 0 | Q23: 2682.048 | R23: 0
B24: Custom
C25: Custom Haul - Sunflowers | D25: 20 | F25: CWT | G25: 0.3 | I25: 6 | J25: 0 | K25: 0 | M25: 0 | N25: 0 | O25: 6 | P25: 0 | Q25: 732 | R25: 0
C26: Custom Harvest - Sunflowers Irrigated | D26: 1 | F26: Acre | G26: 20 | I26: 20 | J26: 0 | K26: 0 | M26: 0 | N26: 0 | O26: 20 | P26: 0 | Q26: 2440 | R26: 0
B27: Miscellaneous
C28: Crop Insurance Conf. Sunflowers | D28: 1 | F28: Acre | G28: 17 | I28: 17 | J28: 0 | K28: 0 | M28: 0 | N28: 0 | O28: 17 | P28: 0 | Q28: 2074 | R28: 0
B29: Insecticide
C30: Insecticide and Apply Conf. Sunflowers | D30: 1 | F30: Acre | G30: 25 | I30: 25 | J30: 0 | K30: 0 | M30: 0 | N30: 0 | O30: 25 | P30: 0 | Q30: 3050 | R30: 0
D31: 0 | G31: 0 | I31: 0 | J31: 0 | K31: 0 | M31: 0 | N31: 0 | O31: 0 | P31: 0 | Q31: 0 | R31: 0
D32: 0 | G32: 0 | I32: 0 | J32: 0 | K32: 0 | M32: 0 | N32: 0 | O32: 0 | P32: 0 | Q32: 0 | R32: 0
D33: 0 | G33: 0 | I33: 0 | J33: =E33*H33 -> 0 | K33: 0 | M33: 0 | N33: =J33*L33 -> 0 | O33: 0 | P33: =+J33-N33 -> 0 | Q33: 0 | R33: =+J33*E$7 -> 0
B34: Irrigation
C35: Energy Cost | D35: 8 | F35: AcreInch | G35: 10 | I35: 80 | J35: =E35*H35 -> 0 | K35: 0 | M35: 0 | N35: =J35*L35 -> 0 | O35: 80 | P35: =+J35-N35 -> 0 | Q35: 9760 | R35: =+J35*E$7 -> 0
C36: Irrigation Labor | D36: 0.75 | F36: Hour | G36: 16 | I36: 12 | J36: 0 | K36: 0 | M36: 0 | N36: 0 | O36: 12 | P36: 0 | Q36: 1464 | R36: 0
B37: Machinery Labor
C38: Tractors/Self-Propelled | D38: 0.68 | F38: Hour | G38: 16 | I38: 10.88 | J38: =E38*H38 -> 0 | K38: 0 | M38: 0 | N38: =J38*L38 -> 0 | O38: 10.88 | P38: =+J38-N38 -> 0 | Q38: 1327.36 | R38: =+J38*E$7 -> 0
C39: Other Labor | D39: 0.82 | F39: Hour | G39: 16 | I39: 13.12 | J39: =E39*H39 -> 0 | K39: 0 | M39: 0 | N39: =J39*L39 -> 0 | O39: 13.12 | P39: =+J39-N39 -> 0 | Q39: 1600.64 | R39: =+J39*E$7 -> 0
B41: Diesel Fuel
C42: Pickup/General Use Equipment | D42: 1 | F42: Acre | G42: 0 | I42: 0 | J42: =E42*H42 -> 0 | K42: 0 | M42: 0 | N42: =J42*L42 -> 0 | O42: 0 | P42: =+J42-N42 -> 0 | Q42: 0 | R42: =+J42*E$7 -> 0
C43: Tractors/Self-Propelled | D43: 3.8 | F43: Gallon | G43: 2.919 | I43: 11.0922 | J43: =E43*H43 -> 0 | K43: 0 | M43: 0 | N43: =J43*L43 -> 0 | O43: 11.0922 | P43: =+J43-N43 -> 0 | Q43: 1353.2484 | R43: =+J43*E$7 -> 0
B45: Gasoline
C46: Pickup/General Use Equipment | D46: 1 | F46: Acre | G46: 5.407786885 | I46: 5.407786885 | J46: =E46*H46 -> 0 | K46: 0 | M46: 0 | N46: =J46*L46 -> 0 | O46: 5.407786885 | P46: =+J46-N46 -> 0 | Q46: 659.75 | R46: =+J46*E$7 -> 0
C47: Tractors/Self-Propelled | D47: 0 | F47: Gallon | G47: 2.639 | I47: 0 | J47: =E47*H47 -> 0 | K47: 0 | M47: 0 | N47: =J47*L47 -> 0 | O47: 0 | P47: =+J47-N47 -> 0 | Q47: 0 | R47: =+J47*E$7 -> 0
B49: Repairs & Maintenance
C50: Pickup/General Use Equipment | D50: 1 | F50: Acre | G50: 0.5 | I50: 0.5 | J50: =E50*H50 -> 0 | K50: 0 | M50: 0 | N50: =J50*L50 -> 0 | O50: 0.5 | P50: =+J50-N50 -> 0 | Q50: 61 | R50: =+J50*E$7 -> 0
C51: Irrigation Equipment | D51: 1 | F51: Acre | G51: 14 | I51: 14 | J51: 0 | K51: 0 | M51: 0 | N51: 0 | O51: 14 | P51: 0 | Q51: 1708 | R51: 0
C52: Tractors/Self-Propelled | D52: 1 | F52: Acre | G52: 6 | I52: 6 | J52: 0 | K52: 0 | M52: 0 | N52: 0 | O52: 6 | P52: 0 | Q52: 732 | R52: 0
C53: Implements | D53: 1 | F53: Acre | G53: 3 | I53: 3 | J53: 0 | K53: 0 | M53: 0 | N53: 0 | O53: 3 | P53: 0 | Q53: 366 | R53: 0
I54: 0 | J54: 0 | K54: 0 | M54: 0 | N54: 0 | O54: 0 | P54: 0 | Q54: 0 | R54: 0
I55: 0 | J55: 0 | K55: 0 | M55: 0 | N55: 0 | O55: 0 | P55: 0 | Q55: 0 | R55: 0
B56: Interest on Credit Line | G56: 0.085 | I56: 12.56979777 | J56: =+SUM(J17:J55)/2*H56 -> 0 | M56: 0 | N56: =+SUM(N17:N55)/2*L56 -> 0 | O56: 12.56979777 | P56: =+SUM(P17:P55)/2*L56 -> 0 | Q56: 1533.515328 | R56: =+J56*E$7 -> 0
A57: Total Variable Costs | I57: 356.5537847 | J57: =SUM(J18:J56) -> 0 | M57: 0 | N57: =SUM(N18:N56) -> 0 | O57: 356.5537847 | P57: =SUM(P18:P56) -> 0 | Q57: 43499.56173 | R57: =SUM(R18:R56) -> 0
A58: Planned Returns Above Variable Costs: | I58: 193.4462153 | J58: =+J13-J57 -> 0 | M58: 0 | N58: =+N13-N57 -> 0 | O58: 193.4462153 | P58: =+P13-P57 -> 0 | Q58: 23600.43827 | R58: =+R13-R57 -> 0
B59: Breakeven Price to Cover Variable Costs | G59: 0.1782768923 | H59: =IF(E10=0,"n/a",(YVarExp-(YTotExp+YTotRet-J10))/E10) -> n/a | I59: Pound
Q60: Enterprise | R60: Enterprise
A61: FIXED COSTS | D61: Quantity | E61: Quantity | F61: Units | G61: $/Unit | H61: $/Unit | I61: Total | J61: Total | K61: Share | L61: Share | M61: Landlord | N61: Landlord | O61: Tenant | P61: Tenant | Q61: Total | R61: Total
B62: Equipment Fixed Costs
C63: Pickup/General Use Equipment | D63: 1 | F63: Acre | G63: 1.25 | I63: 1.25 | J63: =E63*H63 -> 0 | K63: 0 | M63: 0 | N63: =J63*L63 -> 0 | O63: 1.25 | P63: =+J63-N63 -> 0 | Q63: 152.5 | R63: =+J63*E$7 -> 0
C64: Irrigation Equipment | D64: 1 | F64: Acre | G64: 55 | I64: 55 | J64: 0 | K64: 0 | M64: 0 | N64: 0 | O64: 55 | P64: 0 | Q64: 6710 | R64: 0
C65: Tractors/Self-Propelled | D65: 1 | F65: Acre | G65: 12 | I65: 12 | J65: 0 | K65: 0 | M65: 0 | N65: 0 | O65: 12 | P65: 0 | Q65: 1464 | R65: 0
C66: Implements | D66: 1 | F66: Acre | G66: 10 | I66: 10 | J66: 0 | K66: 0 | M66: 0 | N66: 0 | O66: 10 | P66: 0 | Q66: 1220 | R66: 0
B67: Salaried Labor | D67: 1 | F67: Acre | G67: 0 | I67: 0 | J67: =E67*H67 -> 0 | K67: 0 | M67: 0 | N67: 0 | O67: 0 | P67: 0 | Q67: 0 | R67: 0
B68: Management Fee, Owner/Operator Labor | D68: 1 | F68: Acre | G68: 25 | I68: 25 | J68: 0 | K68: 0 | M68: 0 | N68: 0 | O68: 25 | P68: 0 | Q68: 3050 | R68: 0
B69: Allocated Establishment Cost | D69: 1 | F69: Acre | G69: 0 | I69: 0 | J69: 0 | K69: 0 | M69: 0 | N69: 0 | O69: 0 | P69: 0 | Q69: 0 | R69: 0
B70: Cash Rent - Sunflowers Irrigated | D70: 1 | F70: Acre | G70: 100 | I70: 100 | J70: 0 | K70: 0 | M70: 0 | N70: 0 | O70: 100 | P70: 0 | Q70: 12200 | R70: 0
B71: Property Taxes | D71: 1 | F71: Acre | G71: 0 | I71: 0 | J71: 0 | K71: 0 | M71: 0 | N71: 0 | O71: 0 | P71: 0 | Q71: 0 | R71: 0
B72: Whole Farm Insurance | D72: 1 | F72: Acre | G72: 2 | I72: 2 | J72: 0 | K72: 0 | M72: 0 | N72: 0 | O72: 2 | P72: 0 | Q72: 244 | R72: 0
D73: 1 | G73: 0 | I73: 0 | J73: 0 | K73: 0 | M73: 0 | N73: 0 | O73: 0 | P73: 0 | Q73: 0 | R73: 0
D74: 1 | G74: 0 | I74: 0 | J74: =E74*H74 -> 0 | K74: 0 | M74: 0 | N74: 0 | O74: 0 | P74: 0 | Q74: 0 | R74: 0
A75: Total Fixed Costs | I75: 205.25 | J75: =+SUM(J62:J74) -> 0 | M75: 0 | N75: =+SUM(N62:N74) -> 0 | O75: 205.25 | P75: =+SUM(P62:P74) -> 0 | Q75: 25040.5 | R75: =+SUM(R62:R74) -> 0
A76: Total Specified Costs | I76: 561.8037847 | J76: =+J57+J75 -> 0 | M76: 0 | N76: =+N57+N75 -> 0 | O76: 561.8037847 | P76: =+P57+P75 -> 0 | Q76: 68540.06173 | R76: =+R57+R75 -> 0
A78: Returns Above Specified Costs | I78: -11.80378466 | J78: =+J13-J76 -> 0 | M78: 0 | N78: =+N13-N76 -> 0 | O78: -11.80378466 | P78: =+P13-P76 -> 0 | Q78: -1440.061728 | R78: =+R13-R76 -> 0
A80: Breakeven Price to Cover Total Costs | G80: 0.2809018923 | H80: =IF(E10=0,"n/a",(YTotExp-(YTotExp+YTotRet-J10))/E10) -> n/a | I80: Pound
D82: Example Breakeven Prices
B83: Example | C83: Example | D83: To Cover | G83: To Cover
B84: Yield | C84: Yield | D84: Variable | G84: Total
B85: Percent | C85: Pound | D85: Costs | G85: Costs
B86: 0.75 | C86: 1500 | D86: 0.2377025231 | G86: 0.3745358564
B87: 0.9 | C87: 1800 | D87: 0.1980854359 | G87: 0.3121132137
B88: 1 | C88: 2000 | D88: 0.1782768923 | G88: 0.2809018923
B89: 1.1 | C89: 2200 | D89: 0.1620699021 | G89: 0.2553653567
B90: 1.25 | C90: 2500 | D90: 0.1426215139 | G90: 0.2247215139
D92: Your Breakeven Prices
B93: Your | C93: Your | E93: To Cover | H93: To Cover
B94: Yield | C94: Yield | E94: Variable | H94: Total
B95: Percent | C95: Pound | E95: Costs | H95: Costs
B96: 0.75 | C96: =E10*YPER1 -> 0 | E96: =IF($E$10=0,0,(YVarExp-(YTotExp+YTotRet-J10))/($E$10*YPER1)) -> 0 | H96: =IF($E$10=0,0,(YTotExp-(YTotExp+YTotRet-J10))/($E$10*YPER1)) -> 0
B97: 0.9 | C97: =E10*YPER2 -> 0 | E97: =IF($E$10=0,0,(YVarExp-(YTotExp+YTotRet-J10))/($E$10*YPER2)) -> 0 | H97: =IF($E$10=0,0,(YTotExp-(YTotExp+YTotRet-J10))/($E$10*YPER2)) -> 0
B98: 1 | C98: =+E10 -> 0 | E98: =IF($E$10=0,0,(YVarExp-(YTotExp+YTotRet-J10))/($E$10*YPER3)) -> 0 | H98: =IF($E$10=0,0,(YTotExp-(YTotExp+YTotRet-J10))/($E$10*YPER3)) -> 0
B99: 1.1 | C99: =E10*YPER4 -> 0 | E99: =IF($E$10=0,0,(YVarExp-(YTotExp+YTotRet-J10))/($E$10*YPER4)) -> 0 | H99: =IF($E$10=0,0,(YTotExp-(YTotExp+YTotRet-J10))/($E$10*YPER4)) -> 0
B100: 1.25 | C100: =E10*YPER5 -> 0 | E100: =IF($E$10=0,0,(YVarExp-(YTotExp+YTotRet-J10))/($E$10*YPER5)) -> 0 | H100: =IF($E$10=0,0,(YTotExp-(YTotExp+YTotRet-J10))/($E$10*YPER5)) -> 0
A102: Developed by Andrew Wright, Assistant Professor and Extension Specialist, Texas A&M AgriLife Extension, 806-746-6101
A104: Information presented is prepared solely as a general guide and not intended to recognize or predict the costs and returns from any one operation. Brand names are mentioned only as examples and imply no endorsement.

Sheet SunflowersOilseed
A1: Projections for Planning Purposes Only -- Not to be Used without Updating
A2: 2025 Estimated Costs and Returns per Acre
A3: Irrigated Sunflowers - Oilseed
A4: Enter your name for this budget in the cell above.
A5: Enter Your Values in the cells highlighed in MAROON.
E6: Your Acres | R6: Your
C7: Crop Acres | D7: 122 | L7: Your | Q7: Enterprise | R7: Enterprise
E8: Your | H8: Your | I8: Cash | J8: Your | K8: Landlord | L8: Landlord | N8: Your | P8: Your | Q8: Total | R8: Total
A9: REVENUE | D9: Quantity | E9: Quantity | F9: Units | G9: $/Unit | H9: $/Unit | I9: Total | J9: Total | K9: Share | L9: Share | M9: Landlord | N9: Landlord | O9: Tenant | P9: Tenant | Q9: (122 acres) | R9: ="(" & E7 & " acres)" -> ( acres)
B10: Oilseed Sunflowers | D10: 2000 | F10: Pound | G10: 0.225 | I10: 450 | J10: =E10*H10 -> 0 | K10: 0 | M10: 0 | N10: =J10*L10 -> 0 | O10: 450 | P10: =+J10-N10 -> 0 | Q10: 54900 | R10: =+J10*E$7 -> 0
D11: 0 | G11: 0 | I11: 0 | J11: 0 | K11: 0 | M11: 0 | N11: 0 | O11: 0 | P11: =+J11-N11 -> 0 | Q11: 0 | R11: 0
D12: 0 | G12: 0 | I12: 0 | J12: 0 | K12: 0 | M12: 0 | N12: 0 | O12: 0 | P12: 0 | Q12: 0 | R12: 0
A13: Total Revenue | I13: 450 | J13: =SUM(J10:J12) -> 0 | M13: 0 | N13: =SUM(N10:N12) -> 0 | O13: 450 | P13: =SUM(P10:P12) -> 0 | Q13: 54900 | R13: =SUM(R10:R12) -> 0
Q14: Enterprise | R14: Enterprise
A15: VARIABLE COSTS | D15: Quantity | E15: Quantity | F15: Units | G15: $/Unit | H15: $/Unit | I15: Total | J15: Total | K15: Share | L15: Share | M15: Landlord | N15: Landlord | O15: Tenant | P15: Tenant | Q15: Total | R15: Total
A16: Production Costs
B17: Herbicide
C18: Herbicide and Apply Oilseed Sunflowers | D18: 1 | F18: Acre | G18: 34.75 | I18: 34.75 | J18: =E18*H18 -> 0 | K18: 0 | M18: 0 | N18: =J18*L18 -> 0 | O18: 34.75 | P18: =+J18-N18 -> 0 | Q18: 4239.5 | R18: =+J18*E$7 -> 0
B19: Seed
C20: Seed - Oilseed Sunflower | D20: 1 | F20: Acre | G20: 21 | I20: 21 | J20: 0 | K20: 0 | M20: 0 | N20: 0 | O20: 21 | P20: 0 | Q20: 2562 | R20: 0
B21: Fertilizer
C22: Fertilizer (N) - Liquid | D22: 70 | F22: Pound | G22: 0.6 | I22: 42 | J22: 0 | K22: 0 | M22: 0 | N22: 0 | O22: 42 | P22: 0 | Q22: 5124 | R22: 0
C23: Fertilizer (P) - Liquid | D23: 24 | F23: Pound | G23: 0.916 | I23: 21.984 | J23: 0 | K23: 0 | M23: 0 | N23: 0 | O23: 21.984 | P23: 0 | Q23: 2682.048 | R23: 0
B24: Custom
C25: Custom Haul - Sunflowers | D25: 20 | F25: CWT | G25: 0.3 | I25: 6 | J25: 0 | K25: 0 | M25: 0 | N25: 0 | O25: 6 | P25: 0 | Q25: 732 | R25: 0
C26: Custom Harvest - Sunflowers Irrigated | D26: 1 | F26: Acre | G26: 20 | I26: 20 | J26: 0 | K26: 0 | M26: 0 | N26: 0 | O26: 20 | P26: 0 | Q26: 2440 | R26: 0
B27: Miscellaneous
C28: Crop Insurance Oilseed Sunflowers | D28: 1 | F28: Acre | G28: 13 | I28: 13 | J28: 0 | K28: 0 | M28: 0 | N28: 0 | O28: 13 | P28: 0 | Q28: 1586 | R28: 0
B29: Insecticide
C30: Insecticide and Apply Oil Sunflowers | D30: 1 | F30: Acre | G30: 12.62 | I30: 12.62 | J30: 0 | K30: 0 | M30: 0 | N30: 0 | O30: 12.62 | P30: 0 | Q30: 1539.64 | R30: 0
D31: 0 | G31: 0 | I31: 0 | J31: 0 | K31: 0 | M31: 0 | N31: 0 | O31: 0 | P31: 0 | Q31: 0 | R31: 0
D32: 0 | G32: 0 | I32: 0 | J32: 0 | K32: 0 | M32: 0 | N32: 0 | O32: 0 | P32: 0 | Q32: 0 | R32: 0
D33: 0 | G33: 0 | I33: 0 | J33: =E33*H33 -> 0 | K33: 0 | M33: 0 | N33: =J33*L33 -> 0 | O33: 0 | P33: =+J33-N33 -> 0 | Q33: 0 | R33: =+J33*E$7 -> 0
B34: Irrigation
C35: Energy Cost | D35: 8 | F35: AcreInch | G35: 10 | I35: 80 | J35: =E35*H35 -> 0 | K35: 0 | M35: 0 | N35: =J35*L35 -> 0 | O35: 80 | P35: =+J35-N35 -> 0 | Q35: 9760 | R35: =+J35*E$7 -> 0
C36: Irrigation Labor | D36: 0.75 | F36: Hour | G36: 16 | I36: 12 | J36: 0 | K36: 0 | M36: 0 | N36: 0 | O36: 12 | P36: 0 | Q36: 1464 | R36: 0
B37: Machinery Labor
C38: Tractors/Self-Propelled | D38: 0.68 | F38: Hour | G38: 16 | I38: 10.88 | J38: =E38*H38 -> 0 | K38: 0 | M38: 0 | N38: =J38*L38 -> 0 | O38: 10.88 | P38: =+J38-N38 -> 0 | Q38: 1327.36 | R38: =+J38*E$7 -> 0
C39: Other Labor | D39: 0.82 | F39: Hour | G39: 16 | I39: 13.12 | J39: =E39*H39 -> 0 | K39: 0 | M39: 0 | N39: =J39*L39 -> 0 | O39: 13.12 | P39: =+J39-N39 -> 0 | Q39: 1600.64 | R39: =+J39*E$7 -> 0
B41: Diesel Fuel
C42: Pickup/General Use Equipment | D42: 1 | F42: Acre | G42: 0 | I42: 0 | J42: =E42*H42 -> 0 | K42: 0 | M42: 0 | N42: =J42*L42 -> 0 | O42: 0 | P42: =+J42-N42 -> 0 | Q42: 0 | R42: =+J42*E$7 -> 0
C43: Tractors/Self-Propelled | D43: 3.8 | F43: Gallon | G43: 2.919 | I43: 11.0922 | J43: =E43*H43 -> 0 | K43: 0 | M43: 0 | N43: =J43*L43 -> 0 | O43: 11.0922 | P43: =+J43-N43 -> 0 | Q43: 1353.2484 | R43: =+J43*E$7 -> 0
B45: Gasoline
C46: Pickup/General Use Equipment | D46: 1 | F46: Acre | G46: 5.407786885 | I46: 5.407786885 | J46: =E46*H46 -> 0 | K46: 0 | M46: 0 | N46: =J46*L46 -> 0 | O46: 5.407786885 | P46: =+J46-N46 -> 0 | Q46: 659.75 | R46: =+J46*E$7 -> 0
C47: Tractors/Self-Propelled | D47: 0 | F47: Gallon | G47: 2.639 | I47: 0 | J47: =E47*H47 -> 0 | K47: 0 | M47: 0 | N47: =J47*L47 -> 0 | O47: 0 | P47: =+J47-N47 -> 0 | Q47: 0 | R47: =+J47*E$7 -> 0
B49: Repairs & Maintenance
C50: Pickup/General Use Equipment | D50: 1 | F50: Acre | G50: 0.5 | I50: 0.5 | J50: =E50*H50 -> 0 | K50: 0 | M50: 0 | N50: =J50*L50 -> 0 | O50: 0.5 | P50: =+J50-N50 -> 0 | Q50: 61 | R50: =+J50*E$7 -> 0
C51: Irrigation Equipment | D51: 1 | F51: Acre | G51: 14 | I51: 14 | J51: 0 | K51: 0 | M51: 0 | N51: 0 | O51: 14 | P51: 0 | Q51: 1708 | R51: 0
C52: Tractors/Self-Propelled | D52: 1 | F52: Acre | G52: 6 | I52: 6 | J52: 0 | K52: 0 | M52: 0 | N52: 0 | O52: 6 | P52: 0 | Q52: 732 | R52: 0
C53: Implements | D53: 1 | F53: Acre | G53: 3 | I53: 3 | J53: 0 | K53: 0 | M53: 0 | N53: 0 | O53: 3 | P53: 0 | Q53: 366 | R53: 0
I54: 0 | J54: 0 | K54: 0 | M54: 0 | N54: 0 | O54: 0 | P54: 0 | Q54: 0 | R54: 0
I55: 0 | J55: 0 | K55: 0 | M55: 0 | N55: 0 | O55: 0 | P55: 0 | Q55: 0 | R55: 0
B56: Interest on Credit Line | G56: 0.085 | I56: 12.15848263 | J56: =+SUM(J17:J55)/2*H56 -> 0 | M56: 0 | N56: =+SUM(N17:N55)/2*L56 -> 0 | O56: 12.15848263 | P56: =+SUM(P17:P55)/2*L56 -> 0 | Q56: 1483.33488 | R56: =+J56*E$7 -> 0
A57: Total Variable Costs | I57: 339.5124695 | J57: =SUM(J18:J56) -> 0 | M57: 0 | N57: =SUM(N18:N56) -> 0 | O57: 339.5124695 | P57: =SUM(P18:P56) -> 0 | Q57: 41420.52128 | R57: =SUM(R18:R56) -> 0
A58: Planned Returns Above Variable Costs: | I58: 110.4875305 | J58: =+J13-J57 -> 0 | M58: 0 | N58: =+N13-N57 -> 0 | O58: 110.4875305 | P58: =+P13-P57 -> 0 | Q58: 13479.47872 | R58: =+R13-R57 -> 0
B59: Breakeven Price to Cover Variable Costs | G59: 0.1697562348 | H59: =IF(E10=0,"n/a",(YVarExp-(YTotExp+YTotRet-J10))/E10) -> n/a | I59: Pound
Q60: Enterprise | R60: Enterprise
A61: FIXED COSTS | D61: Quantity | E61: Quantity | F61: Units | G61: $/Unit | H61: $/Unit | I61: Total | J61: Total | K61: Share | L61: Share | M61: Landlord | N61: Landlord | O61: Tenant | P61: Tenant | Q61: Total | R61: Total
B62: Equipment Fixed Costs
C63: Pickup/General Use Equipment | D63: 1 | F63: Acre | G63: 1.25 | I63: 1.25 | J63: =E63*H63 -> 0 | K63: 0 | M63: 0 | N63: =J63*L63 -> 0 | O63: 1.25 | P63: =+J63-N63 -> 0 | Q63: 152.5 | R63: =+J63*E$7 -> 0
C64: Irrigation Equipment | D64: 1 | F64: Acre | G64: 55 | I64: 55 | J64: 0 | K64: 0 | M64: 0 | N64: 0 | O64: 55 | P64: 0 | Q64: 6710 | R64: 0
C65: Tractors/Self-Propelled | D65: 1 | F65: Acre | G65: 12 | I65: 12 | J65: 0 | K65: 0 | M65: 0 | N65: 0 | O65: 12 | P65: 0 | Q65: 1464 | R65: 0
C66: Implements | D66: 1 | F66: Acre | G66: 10 | I66: 10 | J66: 0 | K66: 0 | M66: 0 | N66: 0 | O66: 10 | P66: 0 | Q66: 1220 | R66: 0
B67: Salaried Labor | D67: 1 | F67: Acre | G67: 0 | I67: 0 | J67: =E67*H67 -> 0 | K67: 0 | M67: 0 | N67: 0 | O67: 0 | P67: 0 | Q67: 0 | R67: 0
B68: Management Fee, Owner/Operator Labor | D68: 1 | F68: Acre | G68: 25 | I68: 25 | J68: 0 | K68: 0 | M68: 0 | N68: 0 | O68: 25 | P68: 0 | Q68: 3050 | R68: 0
B69: Allocated Establishment Cost | D69: 1 | F69: Acre | G69: 0 | I69: 0 | J69: 0 | K69: 0 | M69: 0 | N69: 0 | O69: 0 | P69: 0 | Q69: 0 | R69: 0
B70: Cash Rent - Sunflowers Irrigated | D70: 1 | F70: Acre | G70: 100 | I70: 100 | J70: 0 | K70: 0 | M70: 0 | N70: 0 | O70: 100 | P70: 0 | Q70: 12200 | R70: 0
B71: Property Taxes | D71: 1 | F71: Acre | G71: 0 | I71: 0 | J71: 0 | K71: 0 | M71: 0 | N71: 0 | O71: 0 | P71: 0 | Q71: 0 | R71: 0
B72: Whole Farm Insurance | D72: 1 | F72: Acre | G72: 2 | I72: 2 | J72: 0 | K72: 0 | M72: 0 | N72: 0 | O72: 2 | P72: 0 | Q72: 244 | R72: 0
D73: 1 | G73: 0 | I73: 0 | J73: 0 | K73: 0 | M73: 0 | N73: 0 | O73: 0 | P73: 0 | Q73: 0 | R73: 0
D74: 1 | G74: 0 | I74: 0 | J74: =E74*H74 -> 0 | K74: 0 | M74: 0 | N74: 0 | O74: 0 | P74: 0 | Q74: 0 | R74: 0
A75: Total Fixed Costs | I75: 205.25 | J75: =+SUM(J62:J74) -> 0 | M75: 0 | N75: =+SUM(N62:N74) -> 0 | O75: 205.25 | P75: =+SUM(P62:P74) -> 0 | Q75: 25040.5 | R75: =+SUM(R62:R74) -> 0
A76: Total Specified Costs | I76: 544.7624695 | J76: =+J57+J75 -> 0 | M76: 0 | N76: =+N57+N75 -> 0 | O76: 544.7624695 | P76: =+P57+P75 -> 0 | Q76: 66461.02128 | R76: =+R57+R75 -> 0
A78: Returns Above Specified Costs | I78: -94.76246951 | J78: =+J13-J76 -> 0 | M78: 0 | N78: =+N13-N76 -> 0 | O78: -94.76246951 | P78: =+P13-P76 -> 0 | Q78: -11561.02128 | R78: =+R13-R76 -> 0
A80: Breakeven Price to Cover Total Costs | G80: 0.2723812348 | H80: =IF(E10=0,"n/a",(YTotExp-(YTotExp+YTotRet-J10))/E10) -> n/a | I80: Pound
D82: Example Breakeven Prices
B83: Example | C83: Example | D83: To Cover | G83: To Cover
B84: Yield | C84: Yield | D84: Variable | G84: Total
B85: Percent | C85: Pound | D85: Costs | G85: Costs
B86: 0.75 | C86: 1500 | D86: 0.2263416463 | G86: 0.3631749797
B87: 0.9 | C87: 1800 | D87: 0.1886180386 | G87: 0.3026458164
B88: 1 | C88: 2000 | D88: 0.1697562348 | G88: 0.2723812348
B89: 1.1 | C89: 2200 | D89: 0.1543238498 | G89: 0.2476193043
B90: 1.25 | C90: 2500 | D90: 0.1358049878 | G90: 0.2179049878
D92: Your Breakeven Prices
B93: Your | C93: Your | E93: To Cover | H93: To Cover
B94: Yield | C94: Yield | E94: Variable | H94: Total
B95: Percent | C95: Pound | E95: Costs | H95: Costs
B96: 0.75 | C96: =E10*YPER1 -> 0 | E96: =IF($E$10=0,0,(YVarExp-(YTotExp+YTotRet-J10))/($E$10*YPER1)) -> 0 | H96: =IF($E$10=0,0,(YTotExp-(YTotExp+YTotRet-J10))/($E$10*YPER1)) -> 0
B97: 0.9 | C97: =E10*YPER2 -> 0 | E97: =IF($E$10=0,0,(YVarExp-(YTotExp+YTotRet-J10))/($E$10*YPER2)) -> 0 | H97: =IF($E$10=0,0,(YTotExp-(YTotExp+YTotRet-J10))/($E$10*YPER2)) -> 0
B98: 1 | C98: =+E10 -> 0 | E98: =IF($E$10=0,0,(YVarExp-(YTotExp+YTotRet-J10))/($E$10*YPER3)) -> 0 | H98: =IF($E$10=0,0,(YTotExp-(YTotExp+YTotRet-J10))/($E$10*YPER3)) -> 0
B99: 1.1 | C99: =E10*YPER4 -> 0 | E99: =IF($E$10=0,0,(YVarExp-(YTotExp+YTotRet-J10))/($E$10*YPER4)) -> 0 | H99: =IF($E$10=0,0,(YTotExp-(YTotExp+YTotRet-J10))/($E$10*YPER4)) -> 0
B100: 1.25 | C100: =E10*YPER5 -> 0 | E100: =IF($E$10=0,0,(YVarExp-(YTotExp+YTotRet-J10))/($E$10*YPER5)) -> 0 | H100: =IF($E$10=0,0,(YTotExp-(YTotExp+YTotRet-J10))/($E$10*YPER5)) -> 0
A102: Developed by Andrew Wright, Assistant Professor and Extension Specialist, Texas A&M AgriLife Extension, 806-746-6101
A104: Information presented is prepared solely as a general guide and not intended to recognize or predict the costs and returns from any one operation. Brand names are mentioned only as examples and imply no endorsement.

Sheet WheatIrrigated
A1: Projections for Planning Purposes Only -- Not to be Used without Updating
A2: 2025 Estimated Costs and Returns per Acre
A3: Irrigated Wheat
A4: Enter your name for this budget in the cell above.
A5: Enter Your Values in the cells highlighed in MAROON.
E6: Your Acres | R6: Your
C7: Crop Acres | D7: 122 | L7: Your | Q7: Enterprise | R7: Enterprise
E8: Your | H8: Your | I8: Cash | J8: Your | K8: Landlord | L8: Landlord | N8: Your | P8: Your | Q8: Total | R8: Total
A9: REVENUE | D9: Quantity | E9: Quantity | F9: Units | G9: $/Unit | H9: $/Unit | I9: Total | J9: Total | K9: Share | L9: Share | M9: Landlord | N9: Landlord | O9: Tenant | P9: Tenant | Q9: (122 acres) | R9: ="(" & E7 & " acres)" -> ( acres)
B10: Wheat | D10: 60 | F10: Bushel | G10: 5.38 | I10: 322.8 | J10: =E10*H10 -> 0 | K10: 0 | M10: 0 | N10: =J10*L10 -> 0 | O10: 322.8 | P10: =+J10-N10 -> 0 | Q10: 39381.6 | R10: =+J10*E$7 -> 0
B11: Grazing - Wheat Irrigated | D11: 136 | F11: Pound | G11: 0.75 | I11: 102 | J11: 0 | K11: 0 | M11: 0 | N11: 0 | O11: 102 | P11: =+J11-N11 -> 0 | Q11: 12444 | R11: 0
D12: 0 | G12: 0 | I12: 0 | J12: 0 | K12: 0 | M12: 0 | N12: 0 | O12: 0 | P12: 0 | Q12: 0 | R12: 0
D13: 0 | G13: 0 | I13: 0 | J13: 0 | K13: 0 | M13: 0 | N13: 0 | O13: 0 | P13: 0 | Q13: 0 | R13: 0
A14: Total Revenue | I14: 424.8 | J14: =SUM(J10:J13) -> 0 | M14: 0 | N14: =SUM(N10:N13) -> 0 | O14: 424.8 | P14: =SUM(P10:P13) -> 0 | Q14: 51825.6 | R14: =SUM(R10:R13) -> 0
Q15: Enterprise | R15: Enterprise
A16: VARIABLE COSTS | D16: Quantity | E16: Quantity | F16: Units | G16: $/Unit | H16: $/Unit | I16: Total | J16: Total | K16: Share | L16: Share | M16: Landlord | N16: Landlord | O16: Tenant | P16: Tenant | Q16: Total | R16: Total
A17: Production Costs
B18: Seed
C19: Seed - Wheat | D19: 1.5 | F19: Bushel | G19: 25 | I19: 37.5 | J19: =E19*H19 -> 0 | K19: 0 | M19: 0 | N19: =J19*L19 -> 0 | O19: 37.5 | P19: =+J19-N19 -> 0 | Q19: 4575 | R19: =+J19*E$7 -> 0
B20: Fertilizer
C21: Fertilizer (P) - Liquid | D21: 56 | F21: Pound | G21: 0.916 | I21: 51.296 | J21: 0 | K21: 0 | M21: 0 | N21: 0 | O21: 51.296 | P21: 0 | Q21: 6258.112 | R21: 0
C22: Fertilizer (N) - Liquid | D22: 50 | F22: Pound | G22: 0.6 | I22: 30 | J22: 0 | K22: 0 | M22: 0 | N22: 0 | O22: 30 | P22: 0 | Q22: 3660 | R22: 0
C23: Fertilizer (N) - NH3 | D23: 90 | F23: Pound | G23: 0.448 | I23: 40.32 | J23: 0 | K23: 0 | M23: 0 | N23: 0 | O23: 40.32 | P23: 0 | Q23: 4919.04 | R23: 0
B24: Custom
C25: Harvest and Haul - Wheat Irrigated | D25: 60 | F25: Bushel | G25: 0.5 | I25: 30 | J25: 0 | K25: 0 | M25: 0 | N25: 0 | O25: 30 | P25: 0 | Q25: 3660 | R25: 0
C26: Fertilizer Application - NH3 | D26: 1 | F26: Acre | G26: 3.5 | I26: 3.5 | J26: 0 | K26: 0 | M26: 0 | N26: 0 | O26: 3.5 | P26: 0 | Q26: 427 | R26: 0
C27: Fertilizer Application - Liquid Low | D27: 1 | F27: Acre | G27: 3.5 | I27: 3.5 | J27: 0 | K27: 0 | M27: 0 | N27: 0 | O27: 3.5 | P27: 0 | Q27: 427 | R27: 0
C28: Fertilizer Application - Liquid High | D28: 1 | F28: Acre | G28: 4.75 | I28: 4.75 | J28: 0 | K28: 0 | M28: 0 | N28: 0 | O28: 4.75 | P28: 0 | Q28: 579.5 | R28: 0
B29: Miscellaneous
C30: Crop Insurance Wheat Irrigated | D30: 1 | F30: Acre | G30: 28.02 | I30: 28.02 | J30: 0 | K30: 0 | M30: 0 | N30: 0 | O30: 28.02 | P30: 0 | Q30: 3418.44 | R30: 0
B31: Insecticide
C32: Insecticide and Apply Wheat | D32: 1 | F32: Acre | G32: 11 | I32: 11 | J32: 0 | K32: 0 | M32: 0 | N32: 0 | O32: 11 | P32: 0 | Q32: 1342 | R32: 0
D33: 0 | G33: 0 | I33: 0 | J33: 0 | K33: 0 | M33: 0 | N33: 0 | O33: 0 | P33: 0 | Q33: 0 | R33: 0
D34: 0 | G34: 0 | I34: 0 | J34: 0 | K34: 0 | M34: 0 | N34: 0 | O34: 0 | P34: 0 | Q34: 0 | R34: 0
D35: 0 | G35: 0 | I35: 0 | J35: =E35*H35 -> 0 | K35: 0 | M35: 0 | N35: =J35*L35 -> 0 | O35: 0 | P35: =+J35-N35 -> 0 | Q35: 0 | R35: =+J35*E$7 -> 0
B36: Irrigation
C37: Energy Cost | D37: 14 | F37: AcreInch | G37: 10 | I37: 140 | J37: =E37*H37 -> 0 | K37: 0 | M37: 0 | N37: =J37*L37 -> 0 | O37: 140 | P37: =+J37-N37 -> 0 | Q37: 17080 | R37: =+J37*E$7 -> 0
C38: Irrigation Labor | D38: 1 | F38: Hour | G38: 16 | I38: 16 | J38: 0 | K38: 0 | M38: 0 | N38: 0 | O38: 16 | P38: 0 | Q38: 1952 | R38: 0
B39: Machinery Labor
C40: Tractors/Self-Propelled | D40: 0.47 | F40: Hour | G40: 16 | I40: 7.52 | J40: =E40*H40 -> 0 | K40: 0 | M40: 0 | N40: =J40*L40 -> 0 | O40: 7.52 | P40: =+J40-N40 -> 0 | Q40: 917.44 | R40: =+J40*E$7 -> 0
C41: Other Labor | D41: 0.53 | F41: Hour | G41: 16 | I41: 8.48 | J41: =E41*H41 -> 0 | K41: 0 | M41: 0 | N41: =J41*L41 -> 0 | O41: 8.48 | P41: =+J41-N41 -> 0 | Q41: 1034.56 | R41: =+J41*E$7 -> 0
B43: Diesel Fuel
C44: Pickup/General Use Equipment | D44: 1 | F44: Acre | G44: 0 | I44: 0 | J44: =E44*H44 -> 0 | K44: 0 | M44: 0 | N44: =J44*L44 -> 0 | O44: 0 | P44: =+J44-N44 -> 0 | Q44: 0 | R44: =+J44*E$7 -> 0
C45: Tractors/Self-Propelled | D45: 2.4 | F45: Gallon | G45: 2.919 | I45: 7.0056 | J45: =E45*H45 -> 0 | K45: 0 | M45: 0 | N45: =J45*L45 -> 0 | O45: 7.0056 | P45: =+J45-N45 -> 0 | Q45: 854.6832 | R45: =+J45*E$7 -> 0
B47: Gasoline
C48: Pickup/General Use Equipment | D48: 1 | F48: Acre | G48: 5.407786885 | I48: 5.407786885 | J48: =E48*H48 -> 0 | K48: 0 | M48: 0 | N48: =J48*L48 -> 0 | O48: 5.407786885 | P48: =+J48-N48 -> 0 | Q48: 659.75 | R48: =+J48*E$7 -> 0
C49: Tractors/Self-Propelled | D49: 0 | F49: Gallon | G49: 2.639 | I49: 0 | J49: =E49*H49 -> 0 | K49: 0 | M49: 0 | N49: =J49*L49 -> 0 | O49: 0 | P49: =+J49-N49 -> 0 | Q49: 0 | R49: =+J49*E$7 -> 0
B51: Repairs & Maintenance
C52: Pickup/General Use Equipment | D52: 1 | F52: Acre | G52: 0.5 | I52: 0.5 | J52: =E52*H52 -> 0 | K52: 0 | M52: 0 | N52: =J52*L52 -> 0 | O52: 0.5 | P52: =+J52-N52 -> 0 | Q52: 61 | R52: =+J52*E$7 -> 0
C53: Irrigation Equipment | D53: 1 | F53: Acre | G53: 25.25 | I53: 25.25 | J53: 0 | K53: 0 | M53: 0 | N53: 0 | O53: 25.25 | P53: 0 | Q53: 3080.5 | R53: 0
C54: Tractors/Self-Propelled | D54: 1 | F54: Acre | G54: 6 | I54: 6 | J54: 0 | K54: 0 | M54: 0 | N54: 0 | O54: 6 | P54: 0 | Q54: 732 | R54: 0
C55: Implements | D55: 1 | F55: Acre | G55: 3 | I55: 3 | J55: 0 | K55: 0 | M55: 0 | N55: 0 | O55: 3 | P55: 0 | Q55: 366 | R55: 0
I56: 0 | J56: 0 | K56: 0 | M56: 0 | N56: 0 | O56: 0 | P56: 0 | Q56: 0 | R56: 0
I57: 0 | J57: 0 | K57: 0 | M57: 0 | N57: 0 | O57: 0 | P57: 0 | Q57: 0 | R57: 0
B58: Interest on Credit Line | G58: 0.085 | I58: 23.11506936 | J58: =+SUM(J18:J57)/2*H58 -> 0 | M58: 0 | N58: =+SUM(N18:N57)/2*L58 -> 0 | O58: 23.11506936 | P58: =+SUM(P18:P57)/2*L58 -> 0 | Q58: 2820.038462 | R58: =+J58*E$7 -> 0
A59: Total Variable Costs | I59: 482.1644562 | J59: =SUM(J19:J58) -> 0 | M59: 0 | N59: =SUM(N19:N58) -> 0 | O59: 482.1644562 | P59: =SUM(P19:P58) -> 0 | Q59: 58824.06366 | R59: =SUM(R19:R58) -> 0
A60: Planned Returns Above Variable Costs: | I60: -57.36445625 | J60: =+J14-J59 -> 0 | M60: 0 | N60: =+N14-N59 -> 0 | O60: -57.36445625 | P60: =+P14-P59 -> 0 | Q60: -6998.463662 | R60: =+R14-R59 -> 0
B61: Breakeven Price to Cover Variable Costs | G61: 6.336074271 | H61: =IF(E10=0,"n/a",(YVarExp-(YTotExp+YTotRet-J10))/E10) -> n/a | I61: Bushel
Q62: Enterprise | R62: Enterprise
A63: FIXED COSTS | D63: Quantity | E63: Quantity | F63: Units | G63: $/Unit | H63: $/Unit | I63: Total | J63: Total | K63: Share | L63: Share | M63: Landlord | N63: Landlord | O63: Tenant | P63: Tenant | Q63: Total | R63: Total
B64: Equipment Fixed Costs
C65: Pickup/General Use Equipment | D65: 1 | F65: Acre | G65: 1.25 | I65: 1.25 | J65: =E65*H65 -> 0 | K65: 0 | M65: 0 | N65: =J65*L65 -> 0 | O65: 1.25 | P65: =+J65-N65 -> 0 | Q65: 152.5 | R65: =+J65*E$7 -> 0
C66: Irrigation Equipment | D66: 1 | F66: Acre | G66: 55 | I66: 55 | J66: 0 | K66: 0 | M66: 0 | N66: 0 | O66: 55 | P66: 0 | Q66: 6710 | R66: 0
C67: Tractors/Self-Propelled | D67: 1 | F67: Acre | G67: 12 | I67: 12 | J67: 0 | K67: 0 | M67: 0 | N67: 0 | O67: 12 | P67: 0 | Q67: 1464 | R67: 0
C68: Implements | D68: 1 | F68: Acre | G68: 10 | I68: 10 | J68: 0 | K68: 0 | M68: 0 | N68: 0 | O68: 10 | P68: 0 | Q68: 1220 | R68: 0
B69: Salaried Labor | D69: 1 | F69: Acre | G69: 0 | I69: 0 | J69: =E69*H69 -> 0 | K69: 0 | M69: 0 | N69: 0 | O69: 0 | P69: 0 | Q69: 0 | R69: 0
B70: Management Fee, Owner/Operator Labor | D70: 1 | F70: Acre | G70: 25 | I70: 25 | J70: 0 | K70: 0 | M70: 0 | N70: 0 | O70: 25 | P70: 0 | Q70: 3050 | R70: 0
B71: Allocated Establishment Cost | D71: 1 | F71: Acre | G71: 0 | I71: 0 | J71: 0 | K71: 0 | M71: 0 | N71: 0 | O71: 0 | P71: 0 | Q71: 0 | R71: 0
B72: Cash Rent - Wheat Irrigated | D72: 1 | F72: Acre | G72: 100 | I72: 100 | J72: 0 | K72: 0 | M72: 0 | N72: 0 | O72: 100 | P72: 0 | Q72: 12200 | R72: 0
B73: Property Taxes | D73: 1 | F73: Acre | G73: 0 | I73: 0 | J73: 0 | K73: 0 | M73: 0 | N73: 0 | O73: 0 | P73: 0 | Q73: 0 | R73: 0
B74: Whole Farm Insurance | D74: 1 | F74: Acre | G74: 2 | I74: 2 | J74: 0 | K74: 0 | M74: 0 | N74: 0 | O74: 2 | P74: 0 | Q74: 244 | R74: 0
D75: 1 | G75: 0 | I75: 0 | J75: 0 | K75: 0 | M75: 0 | N75: 0 | O75: 0 | P75: 0 | Q75: 0 | R75: 0
D76: 1 | G76: 0 | I76: 0 | J76: =E76*H76 -> 0 | K76: 0 | M76: 0 | N76: 0 | O76: 0 | P76: 0 | Q76: 0 | R76: 0
A77: Total Fixed Costs | I77: 205.25 | J77: =+SUM(J64:J76) -> 0 | M77: 0 | N77: =+SUM(N64:N76) -> 0 | O77: 205.25 | P77: =+SUM(P64:P76) -> 0 | Q77: 25040.5 | R77: =+SUM(R64:R76) -> 0
A78: Total Specified Costs | I78: 687.4144562 | J78: =+J59+J77 -> 0 | M78: 0 | N78: =+N59+N77 -> 0 | O78: 687.4144562 | P78: =+P59+P77 -> 0 | Q78: 83864.56366 | R78: =+R59+R77 -> 0
A80: Returns Above Specified Costs | I80: -262.6144562 | J80: =+J14-J78 -> 0 | M80: 0 | N80: =+N14-N78 -> 0 | O80: -262.6144562 | P80: =+P14-P78 -> 0 | Q80: -32038.96366 | R80: =+R14-R78 -> 0
A82: Breakeven Price to Cover Total Costs | G82: 9.756907604 | H82: =IF(E10=0,"n/a",(YTotExp-(YTotExp+YTotRet-J10))/E10) -> n/a | I82: Bushel
D84: Example Breakeven Prices
B85: Example | C85: Example | D85: To Cover | G85: To Cover
B86: Yield | C86: Yield | D86: Variable | G86: Total
B87: Percent | C87: Bushel | D87: Costs | G87: Costs
B88: 0.75 | C88: 45 | D88: 8.448099028 | G88: 13.00921014
B89: 0.9 | C89: 54 | D89: 7.040082523 | G89: 10.84100845
B90: 1 | C90: 60 | D90: 6.336074271 | G90: 9.756907604
B91: 1.1 | C91: 66 | D91: 5.760067519 | G91: 8.869916004
B92: 1.25 | C92: 75 | D92: 5.068859417 | G92: 7.805526083
D94: Your Breakeven Prices
B95: Your | C95: Your | E95: To Cover | H95: To Cover
B96: Yield | C96: Yield | E96: Variable | H96: Total
B97: Percent | C97: Bushel | E97: Costs | H97: Costs
B98: 0.75 | C98: =E10*YPER1 -> 0 | E98: =IF($E$10=0,0,(YVarExp-(YTotExp+YTotRet-J10))/($E$10*YPER1)) -> 0 | H98: =IF($E$10=0,0,(YTotExp-(YTotExp+YTotRet-J10))/($E$10*YPER1)) -> 0
B99: 0.9 | C99: =E10*YPER2 -> 0 | E99: =IF($E$10=0,0,(YVarExp-(YTotExp+YTotRet-J10))/($E$10*YPER2)) -> 0 | H99: =IF($E$10=0,0,(YTotExp-(YTotExp+YTotRet-J10))/($E$10*YPER2)) -> 0
B100: 1 | C100: =+E10 -> 0 | E100: =IF($E$10=0,0,(YVarExp-(YTotExp+YTotRet-J10))/($E$10*YPER3)) -> 0 | H100: =IF($E$10=0,0,(YTotExp-(YTotExp+YTotRet-J10))/($E$10*YPER3)) -> 0
B101: 1.1 | C101: =E10*YPER4 -> 0 | E101: =IF($E$10=0,0,(YVarExp-(YTotExp+YTotRet-J10))/($E$10*YPER4)) -> 0 | H101: =IF($E$10=0,0,(YTotExp-(YTotExp+YTotRet-J10))/($E$10*YPER4)) -> 0
B102: 1.25 | C102: =E10*YPER5 -> 0 | E102: =IF($E$10=0,0,(YVarExp-(YTotExp+YTotRet-J10))/($E$10*YPER5)) -> 0 | H102: =IF($E$10=0,0,(YTotExp-(YTotExp+YTotRet-J10))/($E$10*YPER5)) -> 0
A104: Developed by Andrew Wright, Assistant Professor and Extension Specialist, Texas A&M AgriLife Extension, 806-746-6101
A106: Information presented is prepared solely as a general guide and not intended to recognize or predict the costs and returns from any one operation. Brand names are mentioned only as examples and imply no endorsement.

Sheet CottonDryland
A1: Projections for Planning Purposes Only -- Not to be Used without Updating
A2: 2025 Estimated Costs and Returns per Acre
A3: Dryland Cotton - Herbicide Tolerant
A4: Enter your name for this budget in the cell above.
A5: Enter Your Values in the cells highlighed in MAROON.
E6: Your Acres | R6: Your
C7: Crop Acres | D7: 160 | L7: Your | Q7: Enterprise | R7: Enterprise
E8: Your | H8: Your | I8: Cash | J8: Your | K8: Landlord | L8: Landlord | N8: Your | P8: Your | Q8: Total | R8: Total
A9: REVENUE | D9: Quantity | E9: Quantity | F9: Units | G9: $/Unit | H9: $/Unit | I9: Total | J9: Total | K9: Share | L9: Share | M9: Landlord | N9: Landlord | O9: Tenant | P9: Tenant | Q9: (160 acres) | R9: ="(" & E7 & " acres)" -> ( acres)
B10: Cotton Lint | D10: 400 | F10: Pound | G10: 0.7 | I10: 280 | J10: =E10*H10 -> 0 | K10: 0 | M10: 0 | N10: =J10*L10 -> 0 | O10: 280 | P10: =+J10-N10 -> 0 | Q10: 44800 | R10: =+J10*E$7 -> 0
B11: Cottonseed | D11: 0.284 | F11: Ton | G11: 220 | I11: 62.48 | J11: 0 | K11: 0 | M11: 0 | N11: 0 | O11: 62.48 | P11: =+J11-N11 -> 0 | Q11: 9996.8 | R11: 0
D12: 0 | G12: 0 | I12: 0 | J12: 0 | K12: 0 | M12: 0 | N12: 0 | O12: 0 | P12: 0 | Q12: 0 | R12: 0
D13: 0 | G13: 0 | I13: 0 | J13: 0 | K13: 0 | M13: 0 | N13: 0 | O13: 0 | P13: 0 | Q13: 0 | R13: 0
A14: Total Revenue | I14: 342.48 | J14: =SUM(J10:J13) -> 0 | M14: 0 | N14: =SUM(N10:N13) -> 0 | O14: 342.48 | P14: =SUM(P10:P13) -> 0 | Q14: 54796.8 | R14: =SUM(R10:R13) -> 0
Q15: Enterprise | R15: Enterprise
A16: VARIABLE COSTS | D16: Quantity | E16: Quantity | F16: Units | G16: $/Unit | H16: $/Unit | I16: Total | J16: Total | K16: Share | L16: Share | M16: Landlord | N16: Landlord | O16: Tenant | P16: Tenant | Q16: Total | R16: Total
A17: Production Costs
B18: Custom
C19: Strip and Module - Cotton | D19: 400 | F19: Pound | G19: 0.12 | I19: 48 | J19: =E19*H19 -> 0 | K19: 0 | M19: 0 | N19: =J19*L19 -> 0 | O19: 48 | P19: =+J19-N19 -> 0 | Q19: 7680 | R19: =+J19*E$7 -> 0
C20: Ginning - Cotton | D20: 13.33333333 | F20: CWT | G20: 3.25 | I20: 43.33333333 | J20: 0 | K20: 0 | M20: 0 | N20: 0 | O20: 43.33333333 | P20: 0 | Q20: 6933.333333 | R20: 0
C21: Fertilizer Application - Liquid High | D21: 0 | F21: Acre | G21: 4.75 | I21: 0 | J21: 0 | K21: 0 | M21: 0 | N21: 0 | O21: 0 | P21: 0 | Q21: 0 | R21: 0
C22: Scouting - Dryland Cotton | D22: 1 | F22: Acre | G22: 5 | I22: 5 | J22: 0 | K22: 0 | M22: 0 | N22: 0 | O22: 5 | P22: 0 | Q22: 800 | R22: 0
B23: Fertilizer
C24: Fertilizer (N) - Liquid | D24: 0 | F24: Pound | G24: 0.6 | I24: 0 | J24: 0 | K24: 0 | M24: 0 | N24: 0 | O24: 0 | P24: 0 | Q24: 0 | R24: 0
C25: Fertilizer (P) - Liquid | D25: 0 | F25: Pound | G25: 0.916 | I25: 0 | J25: 0 | K25: 0 | M25: 0 | N25: 0 | O25: 0 | P25: 0 | Q25: 0 | R25: 0
B26: Herbicide
C27: Herbicide - Cotton Preplant | D27: 1 | F27: Acre | G27: 6 | I27: 6 | J27: 0 | K27: 0 | M27: 0 | N27: 0 | O27: 6 | P27: 0 | Q27: 960 | R27: 0
C28: Herbicide - Cotton At Plant | D28: 1 | F28: Acre | G28: 6.5 | I28: 6.5 | J28: 0 | K28: 0 | M28: 0 | N28: 0 | O28: 6.5 | P28: 0 | Q28: 1040 | R28: 0
C29: Herbicide - Cotton Postplant Dryland | D29: 1 | F29: Acre | G29: 29 | I29: 29 | J29: 0 | K29: 0 | M29: 0 | N29: 0 | O29: 29 | P29: 0 | Q29: 4640 | R29: 0
C30: Spot Spray and Chemical | D30: 0.1 | F30: Acre | G30: 15 | I30: 1.5 | J30: 0 | K30: 0 | M30: 0 | N30: 0 | O30: 1.5 | P30: 0 | Q30: 240 | R30: 0
B31: Insecticide
C32: Boll Weevil Assessment Dryland | D32: 0.8 | F32: Bale | G32: 4 | I32: 3.2 | J32: 0 | K32: 0 | M32: 0 | N32: 0 | O32: 3.2 | P32: 0 | Q32: 512 | R32: 0
C33: Insecticide and Apply Cotton Dryland | D33: 1 | F33: Acre | G33: 6 | I33: 6 | J33: 0 | K33: 0 | M33: 0 | N33: 0 | O33: 6 | P33: 0 | Q33: 960 | R33: 0
B34: Miscellaneous
C35: Crop Insurance Cotton - Dryland | D35: 1 | F35: Acre | G35: 37.11 | I35: 37.11 | J35: 0 | K35: 0 | M35: 0 | N35: 0 | O35: 37.11 | P35: 0 | Q35: 5937.6 | R35: 0
B36: Seed
C37: Seed - Cotton Dryland HT | D37: 35 | F37: Thousand | G37: 1.06 | I37: 37.1 | J37: 0 | K37: 0 | M37: 0 | N37: 0 | O37: 37.1 | P37: 0 | Q37: 5936 | R37: 0
B38: Other Chemicals
C39: Harvest Aid Apply Cotton Dryland | D39: 1 | F39: Acre | G39: 10 | I39: 10 | J39: 0 | K39: 0 | M39: 0 | N39: 0 | O39: 10 | P39: 0 | Q39: 1600 | R39: 0
B40: Other Labor
C41: Hoeing | D41: 0.1 | F41: Acre | G41: 16 | I41: 1.6 | J41: 0 | K41: 0 | M41: 0 | N41: 0 | O41: 1.6 | P41: 0 | Q41: 256 | R41: 0
D42: 0 | G42: 0 | I42: 0 | J42: 0 | K42: 0 | M42: 0 | N42: 0 | O42: 0 | P42: 0 | Q42: 0 | R42: 0
D43: 0 | G43: 0 | I43: 0 | J43: 0 | K43: 0 | M43: 0 | N43: 0 | O43: 0 | P43: 0 | Q43: 0 | R43: 0
D44: 0 | G44: 0 | I44: 0 | J44: =E44*H44 -> 0 | K44: 0 | M44: 0 | N44: =J44*L44 -> 0 | O44: 0 | P44: =+J44-N44 -> 0 | Q44: 0 | R44: =+J44*E$7 -> 0
B45: Machinery Labor
C46: Tractors/Self-Propelled | D46: 0.65 | F46: Hour | G46: 16 | I46: 10.4 | J46: =E46*H46 -> 0 | K46: 0 | M46: 0 | N46: =J46*L46 -> 0 | O46: 10.4 | P46: =+J46-N46 -> 0 | Q46: 1664 | R46: =+J46*E$7 -> 0
C47: Other Labor | D47: 0.75 | F47: Hour | G47: 16 | I47: 12 | J47: =E47*H47 -> 0 | K47: 0 | M47: 0 | N47: =J47*L47 -> 0 | O47: 12 | P47: =+J47-N47 -> 0 | Q47: 1920 | R47: =+J47*E$7 -> 0
B49: Diesel Fuel
C50: Pickup/General Use Equipment | D50: 1 | F50: Acre | G50: 0 | I50: 0 | J50: =E50*H50 -> 0 | K50: 0 | M50: 0 | N50: =J50*L50 -> 0 | O50: 0 | P50: =+J50-N50 -> 0 | Q50: 0 | R50: =+J50*E$7 -> 0
C51: Tractors/Self-Propelled | D51: 3.4 | F51: Gallon | G51: 2.919 | I51: 9.9246 | J51: =E51*H51 -> 0 | K51: 0 | M51: 0 | N51: =J51*L51 -> 0 | O51: 9.9246 | P51: =+J51-N51 -> 0 | Q51: 1587.936 | R51: =+J51*E$7 -> 0
B53: Gasoline
C54: Pickup/General Use Equipment | D54: 1 | F54: Acre | G54: 5.36046875 | I54: 5.36046875 | J54: =E54*H54 -> 0 | K54: 0 | M54: 0 | N54: =J54*L54 -> 0 | O54: 5.36046875 | P54: =+J54-N54 -> 0 | Q54: 857.675 | R54: =+J54*E$7 -> 0
C55: Tractors/Self-Propelled | D55: 0 | F55: Gallon | G55: 2.639 | I55: 0 | J55: =E55*H55 -> 0 | K55: 0 | M55: 0 | N55: =J55*L55 -> 0 | O55: 0 | P55: =+J55-N55 -> 0 | Q55: 0 | R55: =+J55*E$7 -> 0
B57: Repairs & Maintenance
C58: Pickup/General Use Equipment | D58: 1 | F58: Acre | G58: 0.5 | I58: 0.5 | J58: =E58*H58 -> 0 | K58: 0 | M58: 0 | N58: =J58*L58 -> 0 | O58: 0.5 | P58: =+J58-N58 -> 0 | Q58: 80 | R58: =+J58*E$7 -> 0
C59: Irrigation Equipment | D59: 1 | F59: Acre | G59: 0 | I59: 0 | J59: 0 | K59: 0 | M59: 0 | N59: 0 | O59: 0 | P59: 0 | Q59: 0 | R59: 0
C60: Tractors/Self-Propelled | D60: 1 | F60: Acre | G60: 6 | I60: 6 | J60: 0 | K60: 0 | M60: 0 | N60: 0 | O60: 6 | P60: 0 | Q60: 960 | R60: 0
C61: Implements | D61: 1 | F61: Acre | G61: 3 | I61: 3 | J61: 0 | K61: 0 | M61: 0 | N61: 0 | O61: 3 | P61: 0 | Q61: 480 | R61: 0
I62: 0 | J62: 0 | K62: 0 | M62: 0 | N62: 0 | O62: 0 | P62: 0 | Q62: 0 | R62: 0
I63: 0 | J63: 0 | K63: 0 | M63: 0 | N63: 0 | O63: 0 | P63: 0 | Q63: 0 | R63: 0
B64: Interest on Credit Line | G64: 0.085 | I64: 9.774222258 | J64: =+SUM(J18:J63)/2*H64 -> 0 | M64: 0 | N64: =+SUM(N18:N63)/2*L64 -> 0 | O64: 9.774222258 | P64: =+SUM(P18:P63)/2*L64 -> 0 | Q64: 1563.875561 | R64: =+J64*E$7 -> 0
A65: Total Variable Costs | I65: 291.3026243 | J65: =SUM(J19:J64) -> 0 | M65: 0 | N65: =SUM(N19:N64) -> 0 | O65: 291.3026243 | P65: =SUM(P19:P64) -> 0 | Q65: 46608.41989 | R65: =SUM(R19:R64) -> 0
A66: Planned Returns Above Variable Costs: | I66: 51.17737566 | J66: =+J14-J65 -> 0 | M66: 0 | N66: =+N14-N65 -> 0 | O66: 51.17737566 | P66: =+P14-P65 -> 0 | Q66: 8188.380105 | R66: =+R14-R65 -> 0
B67: Breakeven Price to Cover Variable Costs | G67: 0.5720565609 | H67: =IF(E10=0,"n/a",(YVarExp-(YTotExp+YTotRet-J10))/E10) -> n/a | I67: Pound
Q68: Enterprise | R68: Enterprise
A69: FIXED COSTS | D69: Quantity | E69: Quantity | F69: Units | G69: $/Unit | H69: $/Unit | I69: Total | J69: Total | K69: Share | L69: Share | M69: Landlord | N69: Landlord | O69: Tenant | P69: Tenant | Q69: Total | R69: Total
B70: Equipment Fixed Costs
C71: Pickup/General Use Equipment | D71: 1 | F71: Acre | G71: 1.25 | I71: 1.25 | J71: =E71*H71 -> 0 | K71: 0 | M71: 0 | N71: =J71*L71 -> 0 | O71: 1.25 | P71: =+J71-N71 -> 0 | Q71: 200 | R71: =+J71*E$7 -> 0
C72: Tractors/Self-Propelled | D72: 1 | F72: Acre | G72: 12 | I72: 12 | J72: 0 | K72: 0 | M72: 0 | N72: 0 | O72: 12 | P72: 0 | Q72: 1920 | R72: 0
C73: Implements | D73: 1 | F73: Acre | G73: 10 | I73: 10 | J73: 0 | K73: 0 | M73: 0 | N73: 0 | O73: 10 | P73: 0 | Q73: 1600 | R73: 0
B74: Salaried Labor | D74: 1 | F74: Acre | G74: 0 | I74: 0 | J74: =E74*H74 -> 0 | K74: 0 | M74: 0 | N74: 0 | O74: 0 | P74: 0 | Q74: 0 | R74: 0
B75: Management Fee, Owner/Operator Labor | D75: 1 | F75: Acre | G75: 25 | I75: 25 | J75: 0 | K75: 0 | M75: 0 | N75: 0 | O75: 25 | P75: 0 | Q75: 4000 | R75: 0
B76: Allocated Establishment Cost | D76: 1 | F76: Acre | G76: 0 | I76: 0 | J76: 0 | K76: 0 | M76: 0 | N76: 0 | O76: 0 | P76: 0 | Q76: 0 | R76: 0
B77: Cash Rent - Cotton Dryland | D77: 1 | F77: Acre | G77: 50 | I77: 50 | J77: 0 | K77: 0 | M77: 0 | N77: 0 | O77: 50 | P77: 0 | Q77: 8000 | R77: 0
B78: Property Taxes | D78: 1 | F78: Acre | G78: 0 | I78: 0 | J78: 0 | K78: 0 | M78: 0 | N78: 0 | O78: 0 | P78: 0 | Q78: 0 | R78: 0
B79: Whole Farm Insurance | D79: 1 | F79: Acre | G79: 2 | I79: 2 | J79: 0 | K79: 0 | M79: 0 | N79: 0 | O79: 2 | P79: 0 | Q79: 320 | R79: 0
D80: 1 | G80: 0 | I80: 0 | J80: 0 | K80: 0 | M80: 0 | N80: 0 | O80: 0 | P80: 0 | Q80: 0 | R80: 0
D81: 1 | G81: 0 | I81: 0 | J81: =E81*H81 -> 0 | K81: 0 | M81: 0 | N81: 0 | O81: 0 | P81: 0 | Q81: 0 | R81: 0
A82: Total Fixed Costs | I82: 100.25 | J82: =+SUM(J70:J81) -> 0 | M82: 0 | N82: =+SUM(N70:N81) -> 0 | O82: 100.25 | P82: =+SUM(P70:P81) -> 0 | Q82: 16040 | R82: =+SUM(R70:R81) -> 0
A83: Total Specified Costs | I83: 391.5526243 | J83: =+J65+J82 -> 0 | M83: 0 | N83: =+N65+N82 -> 0 | O83: 391.5526243 | P83: =+P65+P82 -> 0 | Q83: 62648.41989 | R83: =+R65+R82 -> 0
A85: Returns Above Specified Costs | I85: -49.07262434 | J85: =+J14-J83 -> 0 | M85: 0 | N85: =+N14-N83 -> 0 | O85: -49.07262434 | P85: =+P14-P83 -> 0 | Q85: -7851.619895 | R85: =+R14-R83 -> 0
A87: Breakeven Price to Cover Total Costs | G87: 0.8226815609 | H87: =IF(E10=0,"n/a",(YTotExp-(YTotExp+YTotRet-J10))/E10) -> n/a | I87: Pound
D89: Example Breakeven Prices
B90: Example | C90: Example | D90: To Cover | G90: To Cover
B91: Yield | C91: Yield | D91: Variable | G91: Total
B92: Percent | C92: Pound | D92: Costs | G92: Costs
B93: 0.75 | C93: 300 | D93: 0.7627420811 | G93: 1.096908748
B94: 0.9 | C94: 360 | D94: 0.6356184009 | G94: 0.9140906232
B95: 1 | C95: 400 | D95: 0.5720565609 | G95: 0.8226815609
B96: 1.1 | C96: 440 | D96: 0.520051419 | G96: 0.747892328
B97: 1.25 | C97: 500 | D97: 0.4576452487 | G97: 0.6581452487
D99: Your Breakeven Prices
B100: Your | C100: Your | E100: To Cover | H100: To Cover
B101: Yield | C101: Yield | E101: Variable | H101: Total
B102: Percent | C102: Pound | E102: Costs | H102: Costs
B103: 0.75 | C103: =E10*YPER1 -> 0 | E103: =IF($E$10=0,0,(YVarExp-(YTotExp+YTotRet-J10))/($E$10*YPER1)) -> 0 | H103: =IF($E$10=0,0,(YTotExp-(YTotExp+YTotRet-J10))/($E$10*YPER1)) -> 0
B104: 0.9 | C104: =E10*YPER2 -> 0 | E104: =IF($E$10=0,0,(YVarExp-(YTotExp+YTotRet-J10))/($E$10*YPER2)) -> 0 | H104: =IF($E$10=0,0,(YTotExp-(YTotExp+YTotRet-J10))/($E$10*YPER2)) -> 0
B105: 1 | C105: =+E10 -> 0 | E105: =IF($E$10=0,0,(YVarExp-(YTotExp+YTotRet-J10))/($E$10*YPER3)) -> 0 | H105: =IF($E$10=0,0,(YTotExp-(YTotExp+YTotRet-J10))/($E$10*YPER3)) -> 0
B106: 1.1 | C106: =E10*YPER4 -> 0 | E106: =IF($E$10=0,0,(YVarExp-(YTotExp+YTotRet-J10))/($E$10*YPER4)) -> 0 | H106: =IF($E$10=0,0,(YTotExp-(YTotExp+YTotRet-J10))/($E$10*YPER4)) -> 0
B107: 1.25 | C107: =E10*YPER5 -> 0 | E107: =IF($E$10=0,0,(YVarExp-(YTotExp+YTotRet-J10))/($E$10*YPER5)) -> 0 | H107: =IF($E$10=0,0,(YTotExp-(YTotExp+YTotRet-J10))/($E$10*YPER5)) -> 0
A109: Developed by Andrew Wright, Assistant Professor and Extension Specialist, Texas A&M AgriLife Extension, 806-746-6101
A111: Information presented is prepared solely as a general guide and not intended to recognize or predict the costs and returns from any one operation. Brand names are mentioned only as examples and imply no endorsement.

Sheet GuarDryland
A1: Projections for Planning Purposes Only -- Not to be Used without Updating
A2: 2025 Estimated Costs and Returns per Acre
A3: Dryland Guar - Herbicide Tolerant
A4: Enter your name for this budget in the cell above.
A5: Enter Your Values in the cells highlighed in MAROON.
E6: Your Acres | R6: Your
C7: Crop Acres | D7: 160 | L7: Your | Q7: Enterprise | R7: Enterprise
E8: Your | H8: Your | I8: Cash | J8: Your | K8: Landlord | L8: Landlord | N8: Your | P8: Your | Q8: Total | R8: Total
A9: REVENUE | D9: Quantity | E9: Quantity | F9: Units | G9: $/Unit | H9: $/Unit | I9: Total | J9: Total | K9: Share | L9: Share | M9: Landlord | N9: Landlord | O9: Tenant | P9: Tenant | Q9: (160 acres) | R9: ="(" & E7 & " acres)" -> ( acres)
B10: Guar | D10: 600 | F10: Pound | G10: 0.6 | I10: 360 | J10: =E10*H10 -> 0 | K10: 0 | M10: 0 | N10: =J10*L10 -> 0 | O10: 360 | P10: =+J10-N10 -> 0 | Q10: 57600 | R10: =+J10*E$7 -> 0
D11: 0 | G11: 0 | I11: 0 | J11: 0 | K11: 0 | M11: 0 | N11: 0 | O11: 0 | P11: =+J11-N11 -> 0 | Q11: 0 | R11: 0
D12: 0 | G12: 0 | I12: 0 | J12: 0 | K12: 0 | M12: 0 | N12: 0 | O12: 0 | P12: 0 | Q12: 0 | R12: 0
A13: Total Revenue | I13: 360 | J13: =SUM(J10:J12) -> 0 | M13: 0 | N13: =SUM(N10:N12) -> 0 | O13: 360 | P13: =SUM(P10:P12) -> 0 | Q13: 57600 | R13: =SUM(R10:R12) -> 0
Q14: Enterprise | R14: Enterprise
A15: VARIABLE COSTS | D15: Quantity | E15: Quantity | F15: Units | G15: $/Unit | H15: $/Unit | I15: Total | J15: Total | K15: Share | L15: Share | M15: Landlord | N15: Landlord | O15: Tenant | P15: Tenant | Q15: Total | R15: Total
A16: Production Costs
B17: Custom
C18: Fertilizer Application - Dry | D18: 1 | F18: Acre | G18: 4 | I18: 4 | J18: =E18*H18 -> 0 | K18: 0 | M18: 0 | N18: =J18*L18 -> 0 | O18: 4 | P18: =+J18-N18 -> 0 | Q18: 640 | R18: =+J18*E$7 -> 0
C19: Harvest and Haul - Guar CWT | D19: 6 | F19: CWT | G19: 0.2 | I19: 1.2 | J19: 0 | K19: 0 | M19: 0 | N19: 0 | O19: 1.2 | P19: 0 | Q19: 192 | R19: 0
C20: Harvest and Haul - Guar Dryland | D20: 1 | F20: Acre | G20: 25 | I20: 25 | J20: 0 | K20: 0 | M20: 0 | N20: 0 | O20: 25 | P20: 0 | Q20: 4000 | R20: 0
B21: Fertilizer
C22: Fertilizer (P) - Dry | D22: 20 | F22: Pound | G22: 0.47 | I22: 9.4 | J22: 0 | K22: 0 | M22: 0 | N22: 0 | O22: 9.4 | P22: 0 | Q22: 1504 | R22: 0
B23: Herbicide
C24: Herbicide - Guar Dryland | D24: 1 | F24: Acre | G24: 2.34 | I24: 2.34 | J24: 0 | K24: 0 | M24: 0 | N24: 0 | O24: 2.34 | P24: 0 | Q24: 374.4 | R24: 0
B25: Miscellaneous
C26: Crop Insurance Guar | D26: 1 | F26: Acre | G26: 2.5 | I26: 2.5 | J26: 0 | K26: 0 | M26: 0 | N26: 0 | O26: 2.5 | P26: 0 | Q26: 400 | R26: 0
B27: Seed
C28: Seed - Guar | D28: 8 | F28: Pound | G28: 1.5 | I28: 12 | J28: 0 | K28: 0 | M28: 0 | N28: 0 | O28: 12 | P28: 0 | Q28: 1920 | R28: 0
C29: Innoculant Guar | D29: 1 | F29: Pound | G29: 3 | I29: 3 | J29: 0 | K29: 0 | M29: 0 | N29: 0 | O29: 3 | P29: 0 | Q29: 480 | R29: 0
D30: 0 | G30: 0 | I30: 0 | J30: 0 | K30: 0 | M30: 0 | N30: 0 | O30: 0 | P30: 0 | Q30: 0 | R30: 0
D31: 0 | G31: 0 | I31: 0 | J31: 0 | K31: 0 | M31: 0 | N31: 0 | O31: 0 | P31: 0 | Q31: 0 | R31: 0
D32: 0 | G32: 0 | I32: 0 | J32: =E32*H32 -> 0 | K32: 0 | M32: 0 | N32: =J32*L32 -> 0 | O32: 0 | P32: =+J32-N32 -> 0 | Q32: 0 | R32: =+J32*E$7 -> 0
B33: Machinery Labor
C34: Tractors/Self-Propelled | D34: 0.64 | F34: Hour | G34: 16 | I34: 10.24 | J34: =E34*H34 -> 0 | K34: 0 | M34: 0 | N34: =J34*L34 -> 0 | O34: 10.24 | P34: =+J34-N34 -> 0 | Q34: 1638.4 | R34: =+J34*E$7 -> 0
C35: Other Labor | D35: 0.11 | F35: Hour | G35: 16 | I35: 1.76 | J35: =E35*H35 -> 0 | K35: 0 | M35: 0 | N35: =J35*L35 -> 0 | O35: 1.76 | P35: =+J35-N35 -> 0 | Q35: 281.6 | R35: =+J35*E$7 -> 0
B37: Diesel Fuel
C38: Pickup/General Use Equipment | D38: 1 | F38: Acre | G38: 0 | I38: 0 | J38: =E38*H38 -> 0 | K38: 0 | M38: 0 | N38: =J38*L38 -> 0 | O38: 0 | P38: =+J38-N38 -> 0 | Q38: 0 | R38: =+J38*E$7 -> 0
C39: Tractors/Self-Propelled | D39: 2.4 | F39: Gallon | G39: 2.919 | I39: 7.0056 | J39: =E39*H39 -> 0 | K39: 0 | M39: 0 | N39: =J39*L39 -> 0 | O39: 7.0056 | P39: =+J39-N39 -> 0 | Q39: 1120.896 | R39: =+J39*E$7 -> 0
B41: Gasoline
C42: Pickup/General Use Equipment | D42: 1 | F42: Acre | G42: 5.278 | I42: 5.278 | J42: =E42*H42 -> 0 | K42: 0 | M42: 0 | N42: =J42*L42 -> 0 | O42: 5.278 | P42: =+J42-N42 -> 0 | Q42: 844.48 | R42: =+J42*E$7 -> 0
C43: Tractors/Self-Propelled | D43: 0 | F43: Gallon | G43: 2.639 | I43: 0 | J43: =E43*H43 -> 0 | K43: 0 | M43: 0 | N43: =J43*L43 -> 0 | O43: 0 | P43: =+J43-N43 -> 0 | Q43: 0 | R43: =+J43*E$7 -> 0
B45: Repairs & Maintenance
C46: Pickup/General Use Equipment | D46: 1 | F46: Acre | G46: 0.5 | I46: 0.5 | J46: =E46*H46 -> 0 | K46: 0 | M46: 0 | N46: =J46*L46 -> 0 | O46: 0.5 | P46: =+J46-N46 -> 0 | Q46: 80 | R46: =+J46*E$7 -> 0
C47: Irrigation Equipment | D47: 1 | F47: Acre | G47: 0 | I47: 0 | J47: 0 | K47: 0 | M47: 0 | N47: 0 | O47: 0 | P47: 0 | Q47: 0 | R47: 0
C48: Tractors/Self-Propelled | D48: 1 | F48: Acre | G48: 6 | I48: 6 | J48: 0 | K48: 0 | M48: 0 | N48: 0 | O48: 6 | P48: 0 | Q48: 960 | R48: 0
C49: Implements | D49: 1 | F49: Acre | G49: 3 | I49: 3 | J49: 0 | K49: 0 | M49: 0 | N49: 0 | O49: 3 | P49: 0 | Q49: 480 | R49: 0
I50: 0 | J50: 0 | K50: 0 | M50: 0 | N50: 0 | O50: 0 | P50: 0 | Q50: 0 | R50: 0
I51: 0 | J51: 0 | K51: 0 | M51: 0 | N51: 0 | O51: 0 | P51: 0 | Q51: 0 | R51: 0
B52: Interest on Credit Line | G52: 0.085 | I52: 4.071355755 | J52: =+SUM(J17:J51)/2*H52 -> 0 | M52: 0 | N52: =+SUM(N17:N51)/2*L52 -> 0 | O52: 4.071355755 | P52: =+SUM(P17:P51)/2*L52 -> 0 | Q52: 651.4169208 | R52: =+J52*E$7 -> 0
A53: Total Variable Costs | I53: 97.29495576 | J53: =SUM(J18:J52) -> 0 | M53: 0 | N53: =SUM(N18:N52) -> 0 | O53: 97.29495576 | P53: =SUM(P18:P52) -> 0 | Q53: 15567.19292 | R53: =SUM(R18:R52) -> 0
A54: Planned Returns Above Variable Costs: | I54: 262.7050442 | J54: =+J13-J53 -> 0 | M54: 0 | N54: =+N13-N53 -> 0 | O54: 262.7050442 | P54: =+P13-P53 -> 0 | Q54: 42032.80708 | R54: =+R13-R53 -> 0
B55: Breakeven Price to Cover Variable Costs | G55: 0.1621582596 | H55: =IF(E10=0,"n/a",(YVarExp-(YTotExp+YTotRet-J10))/E10) -> n/a | I55: Pound
Q56: Enterprise | R56: Enterprise
A57: FIXED COSTS | D57: Quantity | E57: Quantity | F57: Units | G57: $/Unit | H57: $/Unit | I57: Total | J57: Total | K57: Share | L57: Share | M57: Landlord | N57: Landlord | O57: Tenant | P57: Tenant | Q57: Total | R57: Total
B58: Equipment Fixed Costs
C59: Pickup/General Use Equipment | D59: 1 | F59: Acre | G59: 1.25 | I59: 1.25 | J59: =E59*H59 -> 0 | K59: 0 | M59: 0 | N59: =J59*L59 -> 0 | O59: 1.25 | P59: =+J59-N59 -> 0 | Q59: 200 | R59: =+J59*E$7 -> 0
C60: Tractors/Self-Propelled | D60: 1 | F60: Acre | G60: 12 | I60: 12 | J60: 0 | K60: 0 | M60: 0 | N60: 0 | O60: 12 | P60: 0 | Q60: 1920 | R60: 0
C61: Implements | D61: 1 | F61: Acre | G61: 10 | I61: 10 | J61: 0 | K61: 0 | M61: 0 | N61: 0 | O61: 10 | P61: 0 | Q61: 1600 | R61: 0
B62: Salaried Labor | D62: 1 | F62: Acre | G62: 0 | I62: 0 | J62: =E62*H62 -> 0 | K62: 0 | M62: 0 | N62: 0 | O62: 0 | P62: 0 | Q62: 0 | R62: 0
B63: Management Fee, Owner/Operator Labor | D63: 1 | F63: Acre | G63: 25 | I63: 25 | J63: 0 | K63: 0 | M63: 0 | N63: 0 | O63: 25 | P63: 0 | Q63: 4000 | R63: 0
B64: Allocated Establishment Cost | D64: 1 | F64: Acre | G64: 0 | I64: 0 | J64: 0 | K64: 0 | M64: 0 | N64: 0 | O64: 0 | P64: 0 | Q64: 0 | R64: 0
B65: Cash Rent - Dryland | D65: 1 | F65: Acre | G65: 50 | I65: 50 | J65: 0 | K65: 0 | M65: 0 | N65: 0 | O65: 50 | P65: 0 | Q65: 8000 | R65: 0
B66: Property Taxes | D66: 1 | F66: Acre | G66: 0 | I66: 0 | J66: 0 | K66: 0 | M66: 0 | N66: 0 | O66: 0 | P66: 0 | Q66: 0 | R66: 0
B67: Whole Farm Insurance | D67: 1 | F67: Acre | G67: 2 | I67: 2 | J67: 0 | K67: 0 | M67: 0 | N67: 0 | O67: 2 | P67: 0 | Q67: 320 | R67: 0
D68: 1 | G68: 0 | I68: 0 | J68: 0 | K68: 0 | M68: 0 | N68: 0 | O68: 0 | P68: 0 | Q68: 0 | R68: 0
D69: 1 | G69: 0 | I69: 0 | J69: =E69*H69 -> 0 | K69: 0 | M69: 0 | N69: 0 | O69: 0 | P69: 0 | Q69: 0 | R69: 0
A70: Total Fixed Costs | I70: 100.25 | J70: =+SUM(J58:J69) -> 0 | M70: 0 | N70: =+SUM(N58:N69) -> 0 | O70: 100.25 | P70: =+SUM(P58:P69) -> 0 | Q70: 16040 | R70: =+SUM(R58:R69) -> 0
A71: Total Specified Costs | I71: 197.5449558 | J71: =+J53+J70 -> 0 | M71: 0 | N71: =+N53+N70 -> 0 | O71: 197.5449558 | P71: =+P53+P70 -> 0 | Q71: 31607.19292 | R71: =+R53+R70 -> 0
A73: Returns Above Specified Costs | I73: 162.4550442 | J73: =+J13-J71 -> 0 | M73: 0 | N73: =+N13-N71 -> 0 | O73: 162.4550442 | P73: =+P13-P71 -> 0 | Q73: 25992.80708 | R73: =+R13-R71 -> 0
A75: Breakeven Price to Cover Total Costs | G75: 0.3292415929 | H75: =IF(E10=0,"n/a",(YTotExp-(YTotExp+YTotRet-J10))/E10) -> n/a | I75: Pound
D77: Example Breakeven Prices
B78: Example | C78: Example | D78: To Cover | G78: To Cover
B79: Yield | C79: Yield | D79: Variable | G79: Total
B80: Percent | C80: Pound | D80: Costs | G80: Costs
B81: 0.75 | C81: 450 | D81: 0.2162110128 | G81: 0.4389887906
B82: 0.9 | C82: 540 | D82: 0.180175844 | G82: 0.3658239921
B83: 1 | C83: 600 | D83: 0.1621582596 | G83: 0.3292415929
B84: 1.1 | C84: 660 | D84: 0.1474165996 | G84: 0.299310539
B85: 1.25 | C85: 750 | D85: 0.1297266077 | G85: 0.2633932743
D87: Your Breakeven Prices
B88: Your | C88: Your | E88: To Cover | H88: To Cover
B89: Yield | C89: Yield | E89: Variable | H89: Total
B90: Percent | C90: Pound | E90: Costs | H90: Costs
B91: 0.75 | C91: =E10*YPER1 -> 0 | E91: =IF($E$10=0,0,(YVarExp-(YTotExp+YTotRet-J10))/($E$10*YPER1)) -> 0 | H91: =IF($E$10=0,0,(YTotExp-(YTotExp+YTotRet-J10))/($E$10*YPER1)) -> 0
B92: 0.9 | C92: =E10*YPER2 -> 0 | E92: =IF($E$10=0,0,(YVarExp-(YTotExp+YTotRet-J10))/($E$10*YPER2)) -> 0 | H92: =IF($E$10=0,0,(YTotExp-(YTotExp+YTotRet-J10))/($E$10*YPER2)) -> 0
B93: 1 | C93: =+E10 -> 0 | E93: =IF($E$10=0,0,(YVarExp-(YTotExp+YTotRet-J10))/($E$10*YPER3)) -> 0 | H93: =IF($E$10=0,0,(YTotExp-(YTotExp+YTotRet-J10))/($E$10*YPER3)) -> 0
B94: 1.1 | C94: =E10*YPER4 -> 0 | E94: =IF($E$10=0,0,(YVarExp-(YTotExp+YTotRet-J10))/($E$10*YPER4)) -> 0 | H94: =IF($E$10=0,0,(YTotExp-(YTotExp+YTotRet-J10))/($E$10*YPER4)) -> 0
B95: 1.25 | C95: =E10*YPER5 -> 0 | E95: =IF($E$10=0,0,(YVarExp-(YTotExp+YTotRet-J10))/($E$10*YPER5)) -> 0 | H95: =IF($E$10=0,0,(YTotExp-(YTotExp+YTotRet-J10))/($E$10*YPER5)) -> 0
A97: Developed by Andrew Wright, Assistant Professor and Extension Specialist, Texas A&M AgriLife Extension, 806-746-6101
A99: Information presented is prepared solely as a general guide and not intended to recognize or predict the costs and returns from any one operation. Brand names are mentioned only as examples and imply no endorsement.

Sheet SesameDryland
A1: Projections for Planning Purposes Only -- Not to be Used without Updating
A2: 2025 Estimated Costs and Returns per Acre
A3: Dryland Sesame
A4: Enter your name for this budget in the cell above.
A5: Enter Your Values in the cells highlighed in MAROON.
E6: Your Acres | R6: Your
C7: Crop Acres | D7: 160 | L7: Your | Q7: Enterprise | R7: Enterprise
E8: Your | H8: Your | I8: Cash | J8: Your | K8: Landlord | L8: Landlord | N8: Your | P8: Your | Q8: Total | R8: Total
A9: REVENUE | D9: Quantity | E9: Quantity | F9: Units | G9: $/Unit | H9: $/Unit | I9: Total | J9: Total | K9: Share | L9: Share | M9: Landlord | N9: Landlord | O9: Tenant | P9: Tenant | Q9: (160 acres) | R9: ="(" & E7 & " acres)" -> ( acres)
B10: Sesame - Non-irrigated | D10: 600 | F10: Pound | G10: 0.28 | I10: 168 | J10: =E10*H10 -> 0 | K10: 0 | M10: 0 | N10: =J10*L10 -> 0 | O10: 168 | P10: =+J10-N10 -> 0 | Q10: 26880 | R10: =+J10*E$7 -> 0
D11: 0 | G11: 0 | I11: 0 | J11: 0 | K11: 0 | M11: 0 | N11: 0 | O11: 0 | P11: =+J11-N11 -> 0 | Q11: 0 | R11: 0
D12: 0 | G12: 0 | I12: 0 | J12: 0 | K12: 0 | M12: 0 | N12: 0 | O12: 0 | P12: 0 | Q12: 0 | R12: 0
A13: Total Revenue | I13: 168 | J13: =SUM(J10:J12) -> 0 | M13: 0 | N13: =SUM(N10:N12) -> 0 | O13: 168 | P13: =SUM(P10:P12) -> 0 | Q13: 26880 | R13: =SUM(R10:R12) -> 0
Q14: Enterprise | R14: Enterprise
A15: VARIABLE COSTS | D15: Quantity | E15: Quantity | F15: Units | G15: $/Unit | H15: $/Unit | I15: Total | J15: Total | K15: Share | L15: Share | M15: Landlord | N15: Landlord | O15: Tenant | P15: Tenant | Q15: Total | R15: Total
A16: Production Costs
B17: Custom
C18: Fertilizer Application - Liquid High | D18: 1 | F18: Acre | G18: 4.75 | I18: 4.75 | J18: =E18*H18 -> 0 | K18: 0 | M18: 0 | N18: =J18*L18 -> 0 | O18: 4.75 | P18: =+J18-N18 -> 0 | Q18: 760 | R18: =+J18*E$7 -> 0
C19: Custom Harvest - Sesame | D19: 1 | F19: Acre | G19: 25 | I19: 25 | J19: 0 | K19: 0 | M19: 0 | N19: 0 | O19: 25 | P19: 0 | Q19: 4000 | R19: 0
C20: Custom Haul - Sesame | D20: 6 | F20: CWT | G20: 0.12 | I20: 0.72 | J20: 0 | K20: 0 | M20: 0 | N20: 0 | O20: 0.72 | P20: 0 | Q20: 115.2 | R20: 0
B21: Fertilizer
C22: Fertilizer (N) - Liquid | D22: 30 | F22: Pound | G22: 0.6 | I22: 18 | J22: 0 | K22: 0 | M22: 0 | N22: 0 | O22: 18 | P22: 0 | Q22: 2880 | R22: 0
B23: Herbicide
C24: Herbicide - Sesame | D24: 1 | F24: Acre | G24: 21.75 | I24: 21.75 | J24: 0 | K24: 0 | M24: 0 | N24: 0 | O24: 21.75 | P24: 0 | Q24: 3480 | R24: 0
B25: Miscellaneous
C26: Crop Insurance Sesame - Dryland | D26: 1 | F26: Acre | G26: 10 | I26: 10 | J26: 0 | K26: 0 | M26: 0 | N26: 0 | O26: 10 | P26: 0 | Q26: 1600 | R26: 0
B27: Seed
C28: Seed - Sesame | D28: 2.5 | F28: Pound | G28: 4 | I28: 10 | J28: 0 | K28: 0 | M28: 0 | N28: 0 | O28: 10 | P28: 0 | Q28: 1600 | R28: 0
D29: 0 | G29: 0 | I29: 0 | J29: 0 | K29: 0 | M29: 0 | N29: 0 | O29: 0 | P29: 0 | Q29: 0 | R29: 0
D30: 0 | G30: 0 | I30: 0 | J30: 0 | K30: 0 | M30: 0 | N30: 0 | O30: 0 | P30: 0 | Q30: 0 | R30: 0
D31: 0 | G31: 0 | I31: 0 | J31: =E31*H31 -> 0 | K31: 0 | M31: 0 | N31: =J31*L31 -> 0 | O31: 0 | P31: =+J31-N31 -> 0 | Q31: 0 | R31: =+J31*E$7 -> 0
B32: Machinery Labor
C33: Tractors/Self-Propelled | D33: 0.46 | F33: Hour | G33: 16 | I33: 7.36 | J33: =E33*H33 -> 0 | K33: 0 | M33: 0 | N33: =J33*L33 -> 0 | O33: 7.36 | P33: =+J33-N33 -> 0 | Q33: 1177.6 | R33: =+J33*E$7 -> 0
C34: Other Labor | D34: 0.54 | F34: Hour | G34: 16 | I34: 8.64 | J34: =E34*H34 -> 0 | K34: 0 | M34: 0 | N34: =J34*L34 -> 0 | O34: 8.64 | P34: =+J34-N34 -> 0 | Q34: 1382.4 | R34: =+J34*E$7 -> 0
B36: Diesel Fuel
C37: Pickup/General Use Equipment | D37: 1 | F37: Acre | G37: 0 | I37: 0 | J37: =E37*H37 -> 0 | K37: 0 | M37: 0 | N37: =J37*L37 -> 0 | O37: 0 | P37: =+J37-N37 -> 0 | Q37: 0 | R37: =+J37*E$7 -> 0
C38: Tractors/Self-Propelled | D38: 2.2 | F38: Gallon | G38: 2.919 | I38: 6.4218 | J38: =E38*H38 -> 0 | K38: 0 | M38: 0 | N38: =J38*L38 -> 0 | O38: 6.4218 | P38: =+J38-N38 -> 0 | Q38: 1027.488 | R38: =+J38*E$7 -> 0
B40: Gasoline
C41: Pickup/General Use Equipment | D41: 1 | F41: Acre | G41: 5.278 | I41: 5.278 | J41: =E41*H41 -> 0 | K41: 0 | M41: 0 | N41: =J41*L41 -> 0 | O41: 5.278 | P41: =+J41-N41 -> 0 | Q41: 844.48 | R41: =+J41*E$7 -> 0
C42: Tractors/Self-Propelled | D42: 0 | F42: Gallon | G42: 2.639 | I42: 0 | J42: =E42*H42 -> 0 | K42: 0 | M42: 0 | N42: =J42*L42 -> 0 | O42: 0 | P42: =+J42-N42 -> 0 | Q42: 0 | R42: =+J42*E$7 -> 0
B44: Repairs & Maintenance
C45: Pickup/General Use Equipment | D45: 1 | F45: Acre | G45: 0.5 | I45: 0.5 | J45: =E45*H45 -> 0 | K45: 0 | M45: 0 | N45: =J45*L45 -> 0 | O45: 0.5 | P45: =+J45-N45 -> 0 | Q45: 80 | R45: =+J45*E$7 -> 0
C46: Irrigation Equipment | D46: 1 | F46: Acre | G46: 0 | I46: 0 | J46: 0 | K46: 0 | M46: 0 | N46: 0 | O46: 0 | P46: 0 | Q46: 0 | R46: 0
C47: Tractors/Self-Propelled | D47: 1 | F47: Acre | G47: 6 | I47: 6 | J47: 0 | K47: 0 | M47: 0 | N47: 0 | O47: 6 | P47: 0 | Q47: 960 | R47: 0
C48: Implements | D48: 1 | F48: Acre | G48: 3 | I48: 3 | J48: 0 | K48: 0 | M48: 0 | N48: 0 | O48: 3 | P48: 0 | Q48: 480 | R48: 0
I49: 0 | J49: 0 | K49: 0 | M49: 0 | N49: 0 | O49: 0 | P49: 0 | Q49: 0 | R49: 0
I50: 0 | J50: 0 | K50: 0 | M50: 0 | N50: 0 | O50: 0 | P50: 0 | Q50: 0 | R50: 0
B51: Interest on Credit Line | G51: 0.085 | I51: 6.128436443 | J51: =+SUM(J17:J50)/2*H51 -> 0 | M51: 0 | N51: =+SUM(N17:N50)/2*L51 -> 0 | O51: 6.128436443 | P51: =+SUM(P17:P50)/2*L51 -> 0 | Q51: 980.5498309 | R51: =+J51*E$7 -> 0
A52: Total Variable Costs | I52: 133.5482364 | J52: =SUM(J18:J51) -> 0 | M52: 0 | N52: =SUM(N18:N51) -> 0 | O52: 133.5482364 | P52: =SUM(P18:P51) -> 0 | Q52: 21367.71783 | R52: =SUM(R18:R51) -> 0
A53: Planned Returns Above Variable Costs: | I53: 34.45176356 | J53: =+J13-J52 -> 0 | M53: 0 | N53: =+N13-N52 -> 0 | O53: 34.45176356 | P53: =+P13-P52 -> 0 | Q53: 5512.282169 | R53: =+R13-R52 -> 0
B54: Breakeven Price to Cover Variable Costs | G54: 0.2225803941 | H54: =IF(E10=0,"n/a",(YVarExp-(YTotExp+YTotRet-J10))/E10) -> n/a | I54: Pound
Q55: Enterprise | R55: Enterprise
A56: FIXED COSTS | D56: Quantity | E56: Quantity | F56: Units | G56: $/Unit | H56: $/Unit | I56: Total | J56: Total | K56: Share | L56: Share | M56: Landlord | N56: Landlord | O56: Tenant | P56: Tenant | Q56: Total | R56: Total
B57: Equipment Fixed Costs
C58: Pickup/General Use Equipment | D58: 1 | F58: Acre | G58: 1.25 | I58: 1.25 | J58: =E58*H58 -> 0 | K58: 0 | M58: 0 | N58: =J58*L58 -> 0 | O58: 1.25 | P58: =+J58-N58 -> 0 | Q58: 200 | R58: =+J58*E$7 -> 0
C59: Tractors/Self-Propelled | D59: 1 | F59: Acre | G59: 12 | I59: 12 | J59: 0 | K59: 0 | M59: 0 | N59: 0 | O59: 12 | P59: 0 | Q59: 1920 | R59: 0
C60: Implements | D60: 1 | F60: Acre | G60: 10 | I60: 10 | J60: 0 | K60: 0 | M60: 0 | N60: 0 | O60: 10 | P60: 0 | Q60: 1600 | R60: 0
B61: Salaried Labor | D61: 1 | F61: Acre | G61: 0 | I61: 0 | J61: =E61*H61 -> 0 | K61: 0 | M61: 0 | N61: 0 | O61: 0 | P61: 0 | Q61: 0 | R61: 0
B62: Management Fee, Owner/Operator Labor | D62: 1 | F62: Acre | G62: 25 | I62: 25 | J62: 0 | K62: 0 | M62: 0 | N62: 0 | O62: 25 | P62: 0 | Q62: 4000 | R62: 0
B63: Allocated Establishment Cost | D63: 1 | F63: Acre | G63: 0 | I63: 0 | J63: 0 | K63: 0 | M63: 0 | N63: 0 | O63: 0 | P63: 0 | Q63: 0 | R63: 0
B64: Cash Rent - Dryland | D64: 1 | F64: Acre | G64: 50 | I64: 50 | J64: 0 | K64: 0 | M64: 0 | N64: 0 | O64: 50 | P64: 0 | Q64: 8000 | R64: 0
B65: Property Taxes | D65: 1 | F65: Acre | G65: 0 | I65: 0 | J65: 0 | K65: 0 | M65: 0 | N65: 0 | O65: 0 | P65: 0 | Q65: 0 | R65: 0
B66: Whole Farm Insurance | D66: 1 | F66: Acre | G66: 2 | I66: 2 | J66: 0 | K66: 0 | M66: 0 | N66: 0 | O66: 2 | P66: 0 | Q66: 320 | R66: 0
D67: 1 | G67: 0 | I67: 0 | J67: 0 | K67: 0 | M67: 0 | N67: 0 | O67: 0 | P67: 0 | Q67: 0 | R67: 0
D68: 1 | G68: 0 | I68: 0 | J68: =E68*H68 -> 0 | K68: 0 | M68: 0 | N68: 0 | O68: 0 | P68: 0 | Q68: 0 | R68: 0
A69: Total Fixed Costs | I69: 100.25 | J69: =+SUM(J57:J68) -> 0 | M69: 0 | N69: =+SUM(N57:N68) -> 0 | O69: 100.25 | P69: =+SUM(P57:P68) -> 0 | Q69: 16040 | R69: =+SUM(R57:R68) -> 0
A70: Total Specified Costs | I70: 233.7982364 | J70: =+J52+J69 -> 0 | M70: 0 | N70: =+N52+N69 -> 0 | O70: 233.7982364 | P70: =+P52+P69 -> 0 | Q70: 37407.71783 | R70: =+R52+R69 -> 0
A72: Returns Above Specified Costs | I72: -65.79823644 | J72: =+J13-J70 -> 0 | M72: 0 | N72: =+N13-N70 -> 0 | O72: -65.79823644 | P72: =+P13-P70 -> 0 | Q72: -10527.71783 | R72: =+R13-R70 -> 0
A74: Breakeven Price to Cover Total Costs | G74: 0.3896637274 | H74: =IF(E10=0,"n/a",(YTotExp-(YTotExp+YTotRet-J10))/E10) -> n/a | I74: Pound
D76: Example Breakeven Prices
B77: Example | C77: Example | D77: To Cover | G77: To Cover
B78: Yield | C78: Yield | D78: Variable | G78: Total
B79: Percent | C79: Pound | D79: Costs | G79: Costs
B80: 0.75 | C80: 450 | D80: 0.2967738588 | G80: 0.5195516365
B81: 0.9 | C81: 540 | D81: 0.247311549 | G81: 0.4329596971
B82: 1 | C82: 600 | D82: 0.2225803941 | G82: 0.3896637274
B83: 1.1 | C83: 660 | D83: 0.2023458128 | G83: 0.3542397522
B84: 1.25 | C84: 750 | D84: 0.1780643153 | G84: 0.3117309819
D86: Your Breakeven Prices
B87: Your | C87: Your | E87: To Cover | H87: To Cover
B88: Yield | C88: Yield | E88: Variable | H88: Total
B89: Percent | C89: Pound | E89: Costs | H89: Costs
B90: 0.75 | C90: =E10*YPER1 -> 0 | E90: =IF($E$10=0,0,(YVarExp-(YTotExp+YTotRet-J10))/($E$10*YPER1)) -> 0 | H90: =IF($E$10=0,0,(YTotExp-(YTotExp+YTotRet-J10))/($E$10*YPER1)) -> 0
B91: 0.9 | C91: =E10*YPER2 -> 0 | E91: =IF($E$10=0,0,(YVarExp-(YTotExp+YTotRet-J10))/($E$10*YPER2)) -> 0 | H91: =IF($E$10=0,0,(YTotExp-(YTotExp+YTotRet-J10))/($E$10*YPER2)) -> 0
B92: 1 | C92: =+E10 -> 0 | E92: =IF($E$10=0,0,(YVarExp-(YTotExp+YTotRet-J10))/($E$10*YPER3)) -> 0 | H92: =IF($E$10=0,0,(YTotExp-(YTotExp+YTotRet-J10))/($E$10*YPER3)) -> 0
B93: 1.1 | C93: =E10*YPER4 -> 0 | E93: =IF($E$10=0,0,(YVarExp-(YTotExp+YTotRet-J10))/($E$10*YPER4)) -> 0 | H93: =IF($E$10=0,0,(YTotExp-(YTotExp+YTotRet-J10))/($E$10*YPER4)) -> 0
B94: 1.25 | C94: =E10*YPER5 -> 0 | E94: =IF($E$10=0,0,(YVarExp-(YTotExp+YTotRet-J10))/($E$10*YPER5)) -> 0 | H94: =IF($E$10=0,0,(YTotExp-(YTotExp+YTotRet-J10))/($E$10*YPER5)) -> 0
A96: Developed by Andrew Wright, Assistant Professor and Extension Specialist, Texas A&M AgriLife Extension, 806-746-6101
A98: Information presented is prepared solely as a general guide and not intended to recognize or predict the costs and returns from any one operation. Brand names are mentioned only as examples and imply no endorsement.

Sheet SorghumDryland
A1: Projections for Planning Purposes Only -- Not to be Used without Updating
A2: 2025 Estimated Costs and Returns per Acre
A3: Dryland Sorghum
A4: Enter your name for this budget in the cell above.
A5: Enter Your Values in the cells highlighed in MAROON.
E6: Your Acres | R6: Your
C7: Crop Acres | D7: 160 | L7: Your | Q7: Enterprise | R7: Enterprise
E8: Your | H8: Your | I8: Cash | J8: Your | K8: Landlord | L8: Landlord | N8: Your | P8: Your | Q8: Total | R8: Total
A9: REVENUE | D9: Quantity | E9: Quantity | F9: Units | G9: $/Unit | H9: $/Unit | I9: Total | J9: Total | K9: Share | L9: Share | M9: Landlord | N9: Landlord | O9: Tenant | P9: Tenant | Q9: (160 acres) | R9: ="(" & E7 & " acres)" -> ( acres)
B10: Grain Sorghum | D10: 18 | F10: CWT | G10: 7.67 | I10: 138.06 | J10: =E10*H10 -> 0 | K10: 0 | M10: 0 | N10: =J10*L10 -> 0 | O10: 138.06 | P10: =+J10-N10 -> 0 | Q10: 22089.6 | R10: =+J10*E$7 -> 0
D11: 0 | G11: 0 | I11: 0 | J11: 0 | K11: 0 | M11: 0 | N11: 0 | O11: 0 | P11: =+J11-N11 -> 0 | Q11: 0 | R11: 0
D12: 0 | G12: 0 | I12: 0 | J12: 0 | K12: 0 | M12: 0 | N12: 0 | O12: 0 | P12: 0 | Q12: 0 | R12: 0
A13: Total Revenue | I13: 138.06 | J13: =SUM(J10:J12) -> 0 | M13: 0 | N13: =SUM(N10:N12) -> 0 | O13: 138.06 | P13: =SUM(P10:P12) -> 0 | Q13: 22089.6 | R13: =SUM(R10:R12) -> 0
Q14: Enterprise | R14: Enterprise
A15: VARIABLE COSTS | D15: Quantity | E15: Quantity | F15: Units | G15: $/Unit | H15: $/Unit | I15: Total | J15: Total | K15: Share | L15: Share | M15: Landlord | N15: Landlord | O15: Tenant | P15: Tenant | Q15: Total | R15: Total
A16: Production Costs
B17: Herbicide
C18: Herbicide and Apply Sorghum Dryland | D18: 1 | F18: Acre | G18: 10.5 | I18: 10.5 | J18: =E18*H18 -> 0 | K18: 0 | M18: 0 | N18: =J18*L18 -> 0 | O18: 10.5 | P18: =+J18-N18 -> 0 | Q18: 1680 | R18: =+J18*E$7 -> 0
B19: Seed
C20: Seed - Sorghum | D20: 2.25 | F20: Pound | G20: 2.4 | I20: 5.4 | J20: 0 | K20: 0 | M20: 0 | N20: 0 | O20: 5.4 | P20: 0 | Q20: 864 | R20: 0
B21: Fertilizer
C22: Fertilizer (N) - Liquid | D22: 30 | F22: Pound | G22: 0.6 | I22: 18 | J22: 0 | K22: 0 | M22: 0 | N22: 0 | O22: 18 | P22: 0 | Q22: 2880 | R22: 0
B23: Custom
C24: Custom Harvest - Sorghum Dryland | D24: 1 | F24: Acre | G24: 14 | I24: 14 | J24: 0 | K24: 0 | M24: 0 | N24: 0 | O24: 14 | P24: 0 | Q24: 2240 | R24: 0
C25: Custom Haul - Sorghum Dryland | D25: 18 | F25: CWT | G25: 0.4 | I25: 7.2 | J25: 0 | K25: 0 | M25: 0 | N25: 0 | O25: 7.2 | P25: 0 | Q25: 1152 | R25: 0
C26: Fertilizer Application - Liquid High | D26: 1 | F26: Acre | G26: 4.75 | I26: 4.75 | J26: 0 | K26: 0 | M26: 0 | N26: 0 | O26: 4.75 | P26: 0 | Q26: 760 | R26: 0
B27: Miscellaneous
C28: Crop Insurance Sorghum - Dryland | D28: 1 | F28: Acre | G28: 14.29 | I28: 14.29 | J28: 0 | K28: 0 | M28: 0 | N28: 0 | O28: 14.29 | P28: 0 | Q28: 2286.4 | R28: 0
B29: Insecticide
C30: Insecticide and Apply Sorghum | D30: 1 | F30: Acre | G30: 25 | I30: 25 | J30: 0 | K30: 0 | M30: 0 | N30: 0 | O30: 25 | P30: 0 | Q30: 4000 | R30: 0
D31: 0 | G31: 0 | I31: 0 | J31: 0 | K31: 0 | M31: 0 | N31: 0 | O31: 0 | P31: 0 | Q31: 0 | R31: 0
D32: 0 | G32: 0 | I32: 0 | J32: 0 | K32: 0 | M32: 0 | N32: 0 | O32: 0 | P32: 0 | Q32: 0 | R32: 0
D33: 0 | G33: 0 | I33: 0 | J33: =E33*H33 -> 0 | K33: 0 | M33: 0 | N33: =J33*L33 -> 0 | O33: 0 | P33: =+J33-N33 -> 0 | Q33: 0 | R33: =+J33*E$7 -> 0
B34: Machinery Labor
C35: Tractors/Self-Propelled | D35: 0.47 | F35: Hour | G35: 16 | I35: 7.52 | J35: =E35*H35 -> 0 | K35: 0 | M35: 0 | N35: =J35*L35 -> 0 | O35: 7.52 | P35: =+J35-N35 -> 0 | Q35: 1203.2 | R35: =+J35*E$7 -> 0
C36: Other Labor | D36: 0.53 | F36: Hour | G36: 16 | I36: 8.48 | J36: =E36*H36 -> 0 | K36: 0 | M36: 0 | N36: =J36*L36 -> 0 | O36: 8.48 | P36: =+J36-N36 -> 0 | Q36: 1356.8 | R36: =+J36*E$7 -> 0
B38: Diesel Fuel
C39: Pickup/General Use Equipment | D39: 1 | F39: Acre | G39: 0 | I39: 0 | J39: =E39*H39 -> 0 | K39: 0 | M39: 0 | N39: =J39*L39 -> 0 | O39: 0 | P39: =+J39-N39 -> 0 | Q39: 0 | R39: =+J39*E$7 -> 0
C40: Tractors/Self-Propelled | D40: 2.4 | F40: Gallon | G40: 2.919 | I40: 7.0056 | J40: =E40*H40 -> 0 | K40: 0 | M40: 0 | N40: =J40*L40 -> 0 | O40: 7.0056 | P40: =+J40-N40 -> 0 | Q40: 1120.896 | R40: =+J40*E$7 -> 0
B42: Gasoline
C43: Pickup/General Use Equipment | D43: 1 | F43: Acre | G43: 5.278 | I43: 5.278 | J43: =E43*H43 -> 0 | K43: 0 | M43: 0 | N43: =J43*L43 -> 0 | O43: 5.278 | P43: =+J43-N43 -> 0 | Q43: 844.48 | R43: =+J43*E$7 -> 0
C44: Tractors/Self-Propelled | D44: 0 | F44: Gallon | G44: 2.639 | I44: 0 | J44: =E44*H44 -> 0 | K44: 0 | M44: 0 | N44: =J44*L44 -> 0 | O44: 0 | P44: =+J44-N44 -> 0 | Q44: 0 | R44: =+J44*E$7 -> 0
B46: Repairs & Maintenance
C47: Pickup/General Use Equipment | D47: 1 | F47: Acre | G47: 0.5 | I47: 0.5 | J47: =E47*H47 -> 0 | K47: 0 | M47: 0 | N47: =J47*L47 -> 0 | O47: 0.5 | P47: =+J47-N47 -> 0 | Q47: 80 | R47: =+J47*E$7 -> 0
C48: Irrigation Equipment | D48: 1 | F48: Acre | G48: 0 | I48: 0 | J48: 0 | K48: 0 | M48: 0 | N48: 0 | O48: 0 | P48: 0 | Q48: 0 | R48: 0
C49: Tractors/Self-Propelled | D49: 1 | F49: Acre | G49: 6 | I49: 6 | J49: 0 | K49: 0 | M49: 0 | N49: 0 | O49: 6 | P49: 0 | Q49: 960 | R49: 0
C50: Implements | D50: 1 | F50: Acre | G50: 3 | I50: 3 | J50: 0 | K50: 0 | M50: 0 | N50: 0 | O50: 3 | P50: 0 | Q50: 480 | R50: 0
I51: 0 | J51: 0 | K51: 0 | M51: 0 | N51: 0 | O51: 0 | P51: 0 | Q51: 0 | R51: 0
I52: 0 | J52: 0 | K52: 0 | M52: 0 | N52: 0 | O52: 0 | P52: 0 | Q52: 0 | R52: 0
B53: Interest on Credit Line | G53: 0.085 | I53: 6.081337813 | J53: =+SUM(J17:J52)/2*H53 -> 0 | M53: 0 | N53: =+SUM(N17:N52)/2*L53 -> 0 | O53: 6.081337813 | P53: =+SUM(P17:P52)/2*L53 -> 0 | Q53: 973.01405 | R53: =+J53*E$7 -> 0
A54: Total Variable Costs | I54: 143.0049378 | J54: =SUM(J18:J53) -> 0 | M54: 0 | N54: =SUM(N18:N53) -> 0 | O54: 143.0049378 | P54: =SUM(P18:P53) -> 0 | Q54: 22880.79005 | R54: =SUM(R18:R53) -> 0
A55: Planned Returns Above Variable Costs: | I55: -4.944937813 | J55: =+J13-J54 -> 0 | M55: 0 | N55: =+N13-N54 -> 0 | O55: -4.944937813 | P55: =+P13-P54 -> 0 | Q55: -791.19005 | R55: =+R13-R54 -> 0
B56: Breakeven Price to Cover Variable Costs | G56: 7.944718767 | H56: =IF(E10=0,"n/a",(YVarExp-(YTotExp+YTotRet-J10))/E10) -> n/a | I56: CWT
Q57: Enterprise | R57: Enterprise
A58: FIXED COSTS | D58: Quantity | E58: Quantity | F58: Units | G58: $/Unit | H58: $/Unit | I58: Total | J58: Total | K58: Share | L58: Share | M58: Landlord | N58: Landlord | O58: Tenant | P58: Tenant | Q58: Total | R58: Total
B59: Equipment Fixed Costs
C60: Pickup/General Use Equipment | D60: 1 | F60: Acre | G60: 1.25 | I60: 1.25 | J60: =E60*H60 -> 0 | K60: 0 | M60: 0 | N60: =J60*L60 -> 0 | O60: 1.25 | P60: =+J60-N60 -> 0 | Q60: 200 | R60: =+J60*E$7 -> 0
C61: Tractors/Self-Propelled | D61: 1 | F61: Acre | G61: 12 | I61: 12 | J61: 0 | K61: 0 | M61: 0 | N61: 0 | O61: 12 | P61: 0 | Q61: 1920 | R61: 0
C62: Implements | D62: 1 | F62: Acre | G62: 10 | I62: 10 | J62: 0 | K62: 0 | M62: 0 | N62: 0 | O62: 10 | P62: 0 | Q62: 1600 | R62: 0
B63: Salaried Labor | D63: 1 | F63: Acre | G63: 0 | I63: 0 | J63: =E63*H63 -> 0 | K63: 0 | M63: 0 | N63: 0 | O63: 0 | P63: 0 | Q63: 0 | R63: 0
B64: Management Fee, Owner/Operator Labor | D64: 1 | F64: Acre | G64: 25 | I64: 25 | J64: 0 | K64: 0 | M64: 0 | N64: 0 | O64: 25 | P64: 0 | Q64: 4000 | R64: 0
B65: Allocated Establishment Cost | D65: 1 | F65: Acre | G65: 0 | I65: 0 | J65: 0 | K65: 0 | M65: 0 | N65: 0 | O65: 0 | P65: 0 | Q65: 0 | R65: 0
B66: Cash Rent - Sorghum | D66: 1 | F66: Acre | G66: 50 | I66: 50 | J66: 0 | K66: 0 | M66: 0 | N66: 0 | O66: 50 | P66: 0 | Q66: 8000 | R66: 0
B67: Property Taxes | D67: 1 | F67: Acre | G67: 0 | I67: 0 | J67: 0 | K67: 0 | M67: 0 | N67: 0 | O67: 0 | P67: 0 | Q67: 0 | R67: 0
B68: Whole Farm Insurance | D68: 1 | F68: Acre | G68: 2 | I68: 2 | J68: 0 | K68: 0 | M68: 0 | N68: 0 | O68: 2 | P68: 0 | Q68: 320 | R68: 0
D69: 1 | G69: 0 | I69: 0 | J69: 0 | K69: 0 | M69: 0 | N69: 0 | O69: 0 | P69: 0 | Q69: 0 | R69: 0
D70: 1 | G70: 0 | I70: 0 | J70: =E70*H70 -> 0 | K70: 0 | M70: 0 | N70: 0 | O70: 0 | P70: 0 | Q70: 0 | R70: 0
A71: Total Fixed Costs | I71: 100.25 | J71: =+SUM(J59:J70) -> 0 | M71: 0 | N71: =+SUM(N59:N70) -> 0 | O71: 100.25 | P71: =+SUM(P59:P70) -> 0 | Q71: 16040 | R71: =+SUM(R59:R70) -> 0
A72: Total Specified Costs | I72: 243.2549378 | J72: =+J54+J71 -> 0 | M72: 0 | N72: =+N54+N71 -> 0 | O72: 243.2549378 | P72: =+P54+P71 -> 0 | Q72: 38920.79005 | R72: =+R54+R71 -> 0
A74: Returns Above Specified Costs | I74: -105.1949378 | J74: =+J13-J72 -> 0 | M74: 0 | N74: =+N13-N72 -> 0 | O74: -105.1949378 | P74: =+P13-P72 -> 0 | Q74: -16831.19005 | R74: =+R13-R72 -> 0
A76: Breakeven Price to Cover Total Costs | G76: 13.51416321 | H76: =IF(E10=0,"n/a",(YTotExp-(YTotExp+YTotRet-J10))/E10) -> n/a | I76: CWT
D78: Example Breakeven Prices
B79: Example | C79: Example | D79: To Cover | G79: To Cover
B80: Yield | C80: Yield | D80: Variable | G80: Total
B81: Percent | C81: CWT | D81: Costs | G81: Costs
B82: 0.75 | C82: 13.5 | D82: 10.59295836 | G82: 18.01888428
B83: 0.9 | C83: 16.2 | D83: 8.827465297 | G83: 15.0157369
B84: 1 | C84: 18 | D84: 7.944718767 | G84: 13.51416321
B85: 1.1 | C85: 19.8 | D85: 7.222471607 | G85: 12.28560292
B86: 1.25 | C86: 22.5 | D86: 6.355775014 | G86: 10.81133057
D88: Your Breakeven Prices
B89: Your | C89: Your | E89: To Cover | H89: To Cover
B90: Yield | C90: Yield | E90: Variable | H90: Total
B91: Percent | C91: CWT | E91: Costs | H91: Costs
B92: 0.75 | C92: =E10*YPER1 -> 0 | E92: =IF($E$10=0,0,(YVarExp-(YTotExp+YTotRet-J10))/($E$10*YPER1)) -> 0 | H92: =IF($E$10=0,0,(YTotExp-(YTotExp+YTotRet-J10))/($E$10*YPER1)) -> 0
B93: 0.9 | C93: =E10*YPER2 -> 0 | E93: =IF($E$10=0,0,(YVarExp-(YTotExp+YTotRet-J10))/($E$10*YPER2)) -> 0 | H93: =IF($E$10=0,0,(YTotExp-(YTotExp+YTotRet-J10))/($E$10*YPER2)) -> 0
B94: 1 | C94: =+E10 -> 0 | E94: =IF($E$10=0,0,(YVarExp-(YTotExp+YTotRet-J10))/($E$10*YPER3)) -> 0 | H94: =IF($E$10=0,0,(YTotExp-(YTotExp+YTotRet-J10))/($E$10*YPER3)) -> 0
B95: 1.1 | C95: =E10*YPER4 -> 0 | E95: =IF($E$10=0,0,(YVarExp-(YTotExp+YTotRet-J10))/($E$10*YPER4)) -> 0 | H95: =IF($E$10=0,0,(YTotExp-(YTotExp+YTotRet-J10))/($E$10*YPER4)) -> 0
B96: 1.25 | C96: =E10*YPER5 -> 0 | E96: =IF($E$10=0,0,(YVarExp-(YTotExp+YTotRet-J10))/($E$10*YPER5)) -> 0 | H96: =IF($E$10=0,0,(YTotExp-(YTotExp+YTotRet-J10))/($E$10*YPER5)) -> 0
A98: Developed by Andrew Wright, Assistant Professor and Extension Specialist, Texas A&M AgriLife Extension, 806-746-6101
A100: Information presented is prepared solely as a general guide and not intended to recognize or predict the costs and returns from any one operation. Brand names are mentioned only as examples and imply no endorsement.

Sheet SunflowersDryland
A1: Projections for Planning Purposes Only -- Not to be Used without Updating
A2: 2025 Estimated Costs and Returns per Acre
A3: Dryland Sunflowers - Oilseed
A4: Enter your name for this budget in the cell above.
A5: Enter Your Values in the cells highlighed in MAROON.
E6: Your Acres | R6: Your
C7: Crop Acres | D7: 160 | L7: Your | Q7: Enterprise | R7: Enterprise
E8: Your | H8: Your | I8: Cash | J8: Your | K8: Landlord | L8: Landlord | N8: Your | P8: Your | Q8: Total | R8: Total
A9: REVENUE | D9: Quantity | E9: Quantity | F9: Units | G9: $/Unit | H9: $/Unit | I9: Total | J9: Total | K9: Share | L9: Share | M9: Landlord | N9: Landlord | O9: Tenant | P9: Tenant | Q9: (160 acres) | R9: ="(" & E7 & " acres)" -> ( acres)
B10: Oilseed Sunflowers | D10: 1000 | F10: Pound | G10: 0.225 | I10: 225 | J10: =E10*H10 -> 0 | K10: 0 | M10: 0 | N10: =J10*L10 -> 0 | O10: 225 | P10: =+J10-N10 -> 0 | Q10: 36000 | R10: =+J10*E$7 -> 0
D11: 0 | G11: 0 | I11: 0 | J11: 0 | K11: 0 | M11: 0 | N11: 0 | O11: 0 | P11: =+J11-N11 -> 0 | Q11: 0 | R11: 0
D12: 0 | G12: 0 | I12: 0 | J12: 0 | K12: 0 | M12: 0 | N12: 0 | O12: 0 | P12: 0 | Q12: 0 | R12: 0
A13: Total Revenue | I13: 225 | J13: =SUM(J10:J12) -> 0 | M13: 0 | N13: =SUM(N10:N12) -> 0 | O13: 225 | P13: =SUM(P10:P12) -> 0 | Q13: 36000 | R13: =SUM(R10:R12) -> 0
Q14: Enterprise | R14: Enterprise
A15: VARIABLE COSTS | D15: Quantity | E15: Quantity | F15: Units | G15: $/Unit | H15: $/Unit | I15: Total | J15: Total | K15: Share | L15: Share | M15: Landlord | N15: Landlord | O15: Tenant | P15: Tenant | Q15: Total | R15: Total
A16: Production Costs
B17: Herbicide
C18: Herbicide and Apply Oilseed Sunflowers | D18: 1 | F18: Acre | G18: 34.75 | I18: 34.75 | J18: =E18*H18 -> 0 | K18: 0 | M18: 0 | N18: =J18*L18 -> 0 | O18: 34.75 | P18: =+J18-N18 -> 0 | Q18: 5560 | R18: =+J18*E$7 -> 0
B19: Seed
C20: Seed - Oil Sunflower Dryland | D20: 1 | F20: Acre | G20: 12.5 | I20: 12.5 | J20: 0 | K20: 0 | M20: 0 | N20: 0 | O20: 12.5 | P20: 0 | Q20: 2000 | R20: 0
B21: Fertilizer
C22: Fertilizer (N) - Liquid | D22: 40 | F22: Pound | G22: 0.6 | I22: 24 | J22: 0 | K22: 0 | M22: 0 | N22: 0 | O22: 24 | P22: 0 | Q22: 3840 | R22: 0
B23: Custom
C24: Custom Haul - Sunflowers | D24: 10 | F24: CWT | G24: 0.3 | I24: 3 | J24: 0 | K24: 0 | M24: 0 | N24: 0 | O24: 3 | P24: 0 | Q24: 480 | R24: 0
C25: Fertilizer Application - Liquid High | D25: 1 | F25: Acre | G25: 4.75 | I25: 4.75 | J25: 0 | K25: 0 | M25: 0 | N25: 0 | O25: 4.75 | P25: 0 | Q25: 760 | R25: 0
C26: Custom Harvest - Sunflowers Dryland | D26: 1 | F26: Acre | G26: 15 | I26: 15 | J26: 0 | K26: 0 | M26: 0 | N26: 0 | O26: 15 | P26: 0 | Q26: 2400 | R26: 0
B27: Miscellaneous
C28: Crop Insurance Oil Sunflowers Dryland | D28: 1 | F28: Acre | G28: 11 | I28: 11 | J28: 0 | K28: 0 | M28: 0 | N28: 0 | O28: 11 | P28: 0 | Q28: 1760 | R28: 0
B29: Insecticide
C30: Insecticide and Apply Oil Sunflowers Dry | D30: 1 | F30: Acre | G30: 11.63 | I30: 11.63 | J30: 0 | K30: 0 | M30: 0 | N30: 0 | O30: 11.63 | P30: 0 | Q30: 1860.8 | R30: 0
D31: 0 | G31: 0 | I31: 0 | J31: 0 | K31: 0 | M31: 0 | N31: 0 | O31: 0 | P31: 0 | Q31: 0 | R31: 0
D32: 0 | G32: 0 | I32: 0 | J32: 0 | K32: 0 | M32: 0 | N32: 0 | O32: 0 | P32: 0 | Q32: 0 | R32: 0
D33: 0 | G33: 0 | I33: 0 | J33: =E33*H33 -> 0 | K33: 0 | M33: 0 | N33: =J33*L33 -> 0 | O33: 0 | P33: =+J33-N33 -> 0 | Q33: 0 | R33: =+J33*E$7 -> 0
B34: Machinery Labor
C35: Tractors/Self-Propelled | D35: 0.45 | F35: Hour | G35: 16 | I35: 7.2 | J35: =E35*H35 -> 0 | K35: 0 | M35: 0 | N35: =J35*L35 -> 0 | O35: 7.2 | P35: =+J35-N35 -> 0 | Q35: 1152 | R35: =+J35*E$7 -> 0
C36: Other Labor | D36: 0.55 | F36: Hour | G36: 16 | I36: 8.8 | J36: =E36*H36 -> 0 | K36: 0 | M36: 0 | N36: =J36*L36 -> 0 | O36: 8.8 | P36: =+J36-N36 -> 0 | Q36: 1408 | R36: =+J36*E$7 -> 0
B38: Diesel Fuel
C39: Pickup/General Use Equipment | D39: 1 | F39: Acre | G39: 0 | I39: 0 | J39: =E39*H39 -> 0 | K39: 0 | M39: 0 | N39: =J39*L39 -> 0 | O39: 0 | P39: =+J39-N39 -> 0 | Q39: 0 | R39: =+J39*E$7 -> 0
C40: Tractors/Self-Propelled | D40: 2.4 | F40: Gallon | G40: 2.919 | I40: 7.0056 | J40: =E40*H40 -> 0 | K40: 0 | M40: 0 | N40: =J40*L40 -> 0 | O40: 7.0056 | P40: =+J40-N40 -> 0 | Q40: 1120.896 | R40: =+J40*E$7 -> 0
B42: Gasoline
C43: Pickup/General Use Equipment | D43: 1 | F43: Acre | G43: 5.278 | I43: 5.278 | J43: =E43*H43 -> 0 | K43: 0 | M43: 0 | N43: =J43*L43 -> 0 | O43: 5.278 | P43: =+J43-N43 -> 0 | Q43: 844.48 | R43: =+J43*E$7 -> 0
C44: Tractors/Self-Propelled | D44: 0 | F44: Gallon | G44: 2.639 | I44: 0 | J44: =E44*H44 -> 0 | K44: 0 | M44: 0 | N44: =J44*L44 -> 0 | O44: 0 | P44: =+J44-N44 -> 0 | Q44: 0 | R44: =+J44*E$7 -> 0
B46: Repairs & Maintenance
C47: Pickup/General Use Equipment | D47: 1 | F47: Acre | G47: 0.5 | I47: 0.5 | J47: =E47*H47 -> 0 | K47: 0 | M47: 0 | N47: =J47*L47 -> 0 | O47: 0.5 | P47: =+J47-N47 -> 0 | Q47: 80 | R47: =+J47*E$7 -> 0
C48: Irrigation Equipment | D48: 1 | F48: Acre | G48: 0 | I48: 0 | J48: 0 | K48: 0 | M48: 0 | N48: 0 | O48: 0 | P48: 0 | Q48: 0 | R48: 0
C49: Tractors/Self-Propelled | D49: 1 | F49: Acre | G49: 6 | I49: 6 | J49: 0 | K49: 0 | M49: 0 | N49: 0 | O49: 6 | P49: 0 | Q49: 960 | R49: 0
C50: Implements | D50: 1 | F50: Acre | G50: 3 | I50: 3 | J50: 0 | K50: 0 | M50: 0 | N50: 0 | O50: 3 | P50: 0 | Q50: 480 | R50: 0
I51: 0 | J51: 0 | K51: 0 | M51: 0 | N51: 0 | O51: 0 | P51: 0 | Q51: 0 | R51: 0
I52: 0 | J52: 0 | K52: 0 | M52: 0 | N52: 0 | O52: 0 | P52: 0 | Q52: 0 | R52: 0
B53: Interest on Credit Line | G53: 0.085 | I53: 6.721178973 | J53: =+SUM(J17:J52)/2*H53 -> 0 | M53: 0 | N53: =+SUM(N17:N52)/2*L53 -> 0 | O53: 6.721178973 | P53: =+SUM(P17:P52)/2*L53 -> 0 | Q53: 1075.388636 | R53: =+J53*E$7 -> 0
A54: Total Variable Costs | I54: 161.134779 | J54: =SUM(J18:J53) -> 0 | M54: 0 | N54: =SUM(N18:N53) -> 0 | O54: 161.134779 | P54: =SUM(P18:P53) -> 0 | Q54: 25781.56464 | R54: =SUM(R18:R53) -> 0
A55: Planned Returns Above Variable Costs: | I55: 63.86522103 | J55: =+J13-J54 -> 0 | M55: 0 | N55: =+N13-N54 -> 0 | O55: 63.86522103 | P55: =+P13-P54 -> 0 | Q55: 10218.43536 | R55: =+R13-R54 -> 0
B56: Breakeven Price to Cover Variable Costs | G56: 0.161134779 | H56: =IF(E10=0,"n/a",(YVarExp-(YTotExp+YTotRet-J10))/E10) -> n/a | I56: Pound
Q57: Enterprise | R57: Enterprise
A58: FIXED COSTS | D58: Quantity | E58: Quantity | F58: Units | G58: $/Unit | H58: $/Unit | I58: Total | J58: Total | K58: Share | L58: Share | M58: Landlord | N58: Landlord | O58: Tenant | P58: Tenant | Q58: Total | R58: Total
B59: Equipment Fixed Costs
C60: Pickup/General Use Equipment | D60: 1 | F60: Acre | G60: 1.25 | I60: 1.25 | J60: =E60*H60 -> 0 | K60: 0 | M60: 0 | N60: =J60*L60 -> 0 | O60: 1.25 | P60: =+J60-N60 -> 0 | Q60: 200 | R60: =+J60*E$7 -> 0
C61: Tractors/Self-Propelled | D61: 1 | F61: Acre | G61: 12 | I61: 12 | J61: 0 | K61: 0 | M61: 0 | N61: 0 | O61: 12 | P61: 0 | Q61: 1920 | R61: 0
C62: Implements | D62: 1 | F62: Acre | G62: 10 | I62: 10 | J62: 0 | K62: 0 | M62: 0 | N62: 0 | O62: 10 | P62: 0 | Q62: 1600 | R62: 0
B63: Salaried Labor | D63: 1 | F63: Acre | G63: 0 | I63: 0 | J63: =E63*H63 -> 0 | K63: 0 | M63: 0 | N63: 0 | O63: 0 | P63: 0 | Q63: 0 | R63: 0
B64: Management Fee, Owner/Operator Labor | D64: 1 | F64: Acre | G64: 25 | I64: 25 | J64: 0 | K64: 0 | M64: 0 | N64: 0 | O64: 25 | P64: 0 | Q64: 4000 | R64: 0
B65: Allocated Establishment Cost | D65: 1 | F65: Acre | G65: 0 | I65: 0 | J65: 0 | K65: 0 | M65: 0 | N65: 0 | O65: 0 | P65: 0 | Q65: 0 | R65: 0
B66: Cash Rent - Sunflowers Dryland | D66: 1 | F66: Acre | G66: 50 | I66: 50 | J66: 0 | K66: 0 | M66: 0 | N66: 0 | O66: 50 | P66: 0 | Q66: 8000 | R66: 0
B67: Property Taxes | D67: 1 | F67: Acre | G67: 0 | I67: 0 | J67: 0 | K67: 0 | M67: 0 | N67: 0 | O67: 0 | P67: 0 | Q67: 0 | R67: 0
B68: Whole Farm Insurance | D68: 1 | F68: Acre | G68: 2 | I68: 2 | J68: 0 | K68: 0 | M68: 0 | N68: 0 | O68: 2 | P68: 0 | Q68: 320 | R68: 0
D69: 1 | G69: 0 | I69: 0 | J69: 0 | K69: 0 | M69: 0 | N69: 0 | O69: 0 | P69: 0 | Q69: 0 | R69: 0
D70: 1 | G70: 0 | I70: 0 | J70: =E70*H70 -> 0 | K70: 0 | M70: 0 | N70: 0 | O70: 0 | P70: 0 | Q70: 0 | R70: 0
A71: Total Fixed Costs | I71: 100.25 | J71: =+SUM(J59:J70) -> 0 | M71: 0 | N71: =+SUM(N59:N70) -> 0 | O71: 100.25 | P71: =+SUM(P59:P70) -> 0 | Q71: 16040 | R71: =+SUM(R59:R70) -> 0
A72: Total Specified Costs | I72: 261.384779 | J72: =+J54+J71 -> 0 | M72: 0 | N72: =+N54+N71 -> 0 | O72: 261.384779 | P72: =+P54+P71 -> 0 | Q72: 41821.56464 | R72: =+R54+R71 -> 0
A74: Returns Above Specified Costs | I74: -36.38477897 | J74: =+J13-J72 -> 0 | M74: 0 | N74: =+N13-N72 -> 0 | O74: -36.38477897 | P74: =+P13-P72 -> 0 | Q74: -5821.564636 | R74: =+R13-R72 -> 0
A76: Breakeven Price to Cover Total Costs | G76: 0.261384779 | H76: =IF(E10=0,"n/a",(YTotExp-(YTotExp+YTotRet-J10))/E10) -> n/a | I76: Pound
D78: Example Breakeven Prices
B79: Example | C79: Example | D79: To Cover | G79: To Cover
B80: Yield | C80: Yield | D80: Variable | G80: Total
B81: Percent | C81: Pound | D81: Costs | G81: Costs
B82: 0.75 | C82: 750 | D82: 0.214846372 | G82: 0.3485130386
B83: 0.9 | C83: 900 | D83: 0.1790386433 | G83: 0.2904275322
B84: 1 | C84: 1000 | D84: 0.161134779 | G84: 0.261384779
B85: 1.1 | C85: 1100 | D85: 0.1464861627 | G85: 0.2376225263
B86: 1.25 | C86: 1250 | D86: 0.1289078232 | G86: 0.2091078232
D88: Your Breakeven Prices
B89: Your | C89: Your | E89: To Cover | H89: To Cover
B90: Yield | C90: Yield | E90: Variable | H90: Total
B91: Percent | C91: Pound | E91: Costs | H91: Costs
B92: 0.75 | C92: =E10*YPER1 -> 0 | E92: =IF($E$10=0,0,(YVarExp-(YTotExp+YTotRet-J10))/($E$10*YPER1)) -> 0 | H92: =IF($E$10=0,0,(YTotExp-(YTotExp+YTotRet-J10))/($E$10*YPER1)) -> 0
B93: 0.9 | C93: =E10*YPER2 -> 0 | E93: =IF($E$10=0,0,(YVarExp-(YTotExp+YTotRet-J10))/($E$10*YPER2)) -> 0 | H93: =IF($E$10=0,0,(YTotExp-(YTotExp+YTotRet-J10))/($E$10*YPER2)) -> 0
B94: 1 | C94: =+E10 -> 0 | E94: =IF($E$10=0,0,(YVarExp-(YTotExp+YTotRet-J10))/($E$10*YPER3)) -> 0 | H94: =IF($E$10=0,0,(YTotExp-(YTotExp+YTotRet-J10))/($E$10*YPER3)) -> 0
B95: 1.1 | C95: =E10*YPER4 -> 0 | E95: =IF($E$10=0,0,(YVarExp-(YTotExp+YTotRet-J10))/($E$10*YPER4)) -> 0 | H95: =IF($E$10=0,0,(YTotExp-(YTotExp+YTotRet-J10))/($E$10*YPER4)) -> 0
B96: 1.25 | C96: =E10*YPER5 -> 0 | E96: =IF($E$10=0,0,(YVarExp-(YTotExp+YTotRet-J10))/($E$10*YPER5)) -> 0 | H96: =IF($E$10=0,0,(YTotExp-(YTotExp+YTotRet-J10))/($E$10*YPER5)) -> 0
A98: Developed by Andrew Wright, Assistant Professor and Extension Specialist, Texas A&M AgriLife Extension, 806-746-6101
A100: Information presented is prepared solely as a general guide and not intended to recognize or predict the costs and returns from any one operation. Brand names are mentioned only as examples and imply no endorsement.

Sheet WheatDryland
A1: Projections for Planning Purposes Only -- Not to be Used without Updating
A2: 2025 Estimated Costs and Returns per Acre
A3: Dryland Wheat
A4: Enter your name for this budget in the cell above.
A5: Enter Your Values in the cells highlighed in MAROON.
E6: Your Acres | R6: Your
C7: Crop Acres | D7: 160 | L7: Your | Q7: Enterprise | R7: Enterprise
E8: Your | H8: Your | I8: Cash | J8: Your | K8: Landlord | L8: Landlord | N8: Your | P8: Your | Q8: Total | R8: Total
A9: REVENUE | D9: Quantity | E9: Quantity | F9: Units | G9: $/Unit | H9: $/Unit | I9: Total | J9: Total | K9: Share | L9: Share | M9: Landlord | N9: Landlord | O9: Tenant | P9: Tenant | Q9: (160 acres) | R9: ="(" & E7 & " acres)" -> ( acres)
B10: Wheat | D10: 18 | F10: Bushel | G10: 5.38 | I10: 96.84 | J10: =E10*H10 -> 0 | K10: 0 | M10: 0 | N10: =J10*L10 -> 0 | O10: 96.84 | P10: =+J10-N10 -> 0 | Q10: 15494.4 | R10: =+J10*E$7 -> 0
B11: Grazing - Wheat | D11: 68 | F11: Pound | G11: 0.75 | I11: 51 | J11: 0 | K11: 0 | M11: 0 | N11: 0 | O11: 51 | P11: =+J11-N11 -> 0 | Q11: 8160 | R11: 0
D12: 0 | G12: 0 | I12: 0 | J12: 0 | K12: 0 | M12: 0 | N12: 0 | O12: 0 | P12: 0 | Q12: 0 | R12: 0
D13: 0 | G13: 0 | I13: 0 | J13: 0 | K13: 0 | M13: 0 | N13: 0 | O13: 0 | P13: 0 | Q13: 0 | R13: 0
A14: Total Revenue | I14: 147.84 | J14: =SUM(J10:J13) -> 0 | M14: 0 | N14: =SUM(N10:N13) -> 0 | O14: 147.84 | P14: =SUM(P10:P13) -> 0 | Q14: 23654.4 | R14: =SUM(R10:R13) -> 0
Q15: Enterprise | R15: Enterprise
A16: VARIABLE COSTS | D16: Quantity | E16: Quantity | F16: Units | G16: $/Unit | H16: $/Unit | I16: Total | J16: Total | K16: Share | L16: Share | M16: Landlord | N16: Landlord | O16: Tenant | P16: Tenant | Q16: Total | R16: Total
A17: Production Costs
B18: Seed
C19: Seed - Wheat | D19: 1 | F19: Bushel | G19: 25 | I19: 25 | J19: =E19*H19 -> 0 | K19: 0 | M19: 0 | N19: =J19*L19 -> 0 | O19: 25 | P19: =+J19-N19 -> 0 | Q19: 4000 | R19: =+J19*E$7 -> 0
B20: Fertilizer
C21: Fertilizer (N) - Liquid | D21: 30 | F21: Pound | G21: 0.6 | I21: 18 | J21: 0 | K21: 0 | M21: 0 | N21: 0 | O21: 18 | P21: 0 | Q21: 2880 | R21: 0
B22: Custom
C23: Custom Harvest - Wheat | D23: 1 | F23: Acre | G23: 14 | I23: 14 | J23: 0 | K23: 0 | M23: 0 | N23: 0 | O23: 14 | P23: 0 | Q23: 2240 | R23: 0
C24: Custom Haul - Wheat | D24: 18 | F24: Bushel | G24: 0.14 | I24: 2.52 | J24: 0 | K24: 0 | M24: 0 | N24: 0 | O24: 2.52 | P24: 0 | Q24: 403.2 | R24: 0
C25: Fertilizer Application - Liquid High | D25: 1 | F25: Acre | G25: 4.75 | I25: 4.75 | J25: 0 | K25: 0 | M25: 0 | N25: 0 | O25: 4.75 | P25: 0 | Q25: 760 | R25: 0
B26: Miscellaneous
C27: Crop Insurance Wheat Dryland | D27: 1 | F27: Acre | G27: 9.25 | I27: 9.25 | J27: 0 | K27: 0 | M27: 0 | N27: 0 | O27: 9.25 | P27: 0 | Q27: 1480 | R27: 0
B28: Herbicide
C29: Herbicide and Apply Wheat Dryland | D29: 1 | F29: Acre | G29: 16.75 | I29: 16.75 | J29: 0 | K29: 0 | M29: 0 | N29: 0 | O29: 16.75 | P29: 0 | Q29: 2680 | R29: 0
B30: Insecticide
C31: Insecticide and Apply Wheat Dryland | D31: 1 | F31: Acre | G31: 5.5 | I31: 5.5 | J31: 0 | K31: 0 | M31: 0 | N31: 0 | O31: 5.5 | P31: 0 | Q31: 880 | R31: 0
D32: 0 | G32: 0 | I32: 0 | J32: 0 | K32: 0 | M32: 0 | N32: 0 | O32: 0 | P32: 0 | Q32: 0 | R32: 0
D33: 0 | G33: 0 | I33: 0 | J33: 0 | K33: 0 | M33: 0 | N33: 0 | O33: 0 | P33: 0 | Q33: 0 | R33: 0
D34: 0 | G34: 0 | I34: 0 | J34: =E34*H34 -> 0 | K34: 0 | M34: 0 | N34: =J34*L34 -> 0 | O34: 0 | P34: =+J34-N34 -> 0 | Q34: 0 | R34: =+J34*E$7 -> 0
B35: Machinery Labor
C36: Tractors/Self-Propelled | D36: 0.43 | F36: Hour | G36: 16 | I36: 6.88 | J36: =E36*H36 -> 0 | K36: 0 | M36: 0 | N36: =J36*L36 -> 0 | O36: 6.88 | P36: =+J36-N36 -> 0 | Q36: 1100.8 | R36: =+J36*E$7 -> 0
C37: Other Labor | D37: 0.47 | F37: Hour | G37: 16 | I37: 7.52 | J37: =E37*H37 -> 0 | K37: 0 | M37: 0 | N37: =J37*L37 -> 0 | O37: 7.52 | P37: =+J37-N37 -> 0 | Q37: 1203.2 | R37: =+J37*E$7 -> 0
B39: Diesel Fuel
C40: Pickup/General Use Equipment | D40: 1 | F40: Acre | G40: 0 | I40: 0 | J40: =E40*H40 -> 0 | K40: 0 | M40: 0 | N40: =J40*L40 -> 0 | O40: 0 | P40: =+J40-N40 -> 0 | Q40: 0 | R40: =+J40*E$7 -> 0
C41: Tractors/Self-Propelled | D41: 2.2 | F41: Gallon | G41: 2.919 | I41: 6.4218 | J41: =E41*H41 -> 0 | K41: 0 | M41: 0 | N41: =J41*L41 -> 0 | O41: 6.4218 | P41: =+J41-N41 -> 0 | Q41: 1027.488 | R41: =+J41*E$7 -> 0
B43: Gasoline
C44: Pickup/General Use Equipment | D44: 1 | F44: Acre | G44: 5.278 | I44: 5.278 | J44: =E44*H44 -> 0 | K44: 0 | M44: 0 | N44: =J44*L44 -> 0 | O44: 5.278 | P44: =+J44-N44 -> 0 | Q44: 844.48 | R44: =+J44*E$7 -> 0
C45: Tractors/Self-Propelled | D45: 0 | F45: Gallon | G45: 2.639 | I45: 0 | J45: =E45*H45 -> 0 | K45: 0 | M45: 0 | N45: =J45*L45 -> 0 | O45: 0 | P45: =+J45-N45 -> 0 | Q45: 0 | R45: =+J45*E$7 -> 0
B47: Repairs & Maintenance
C48: Pickup/General Use Equipment | D48: 1 | F48: Acre | G48: 0.5 | I48: 0.5 | J48: =E48*H48 -> 0 | K48: 0 | M48: 0 | N48: =J48*L48 -> 0 | O48: 0.5 | P48: =+J48-N48 -> 0 | Q48: 80 | R48: =+J48*E$7 -> 0
C49: Irrigation Equipment | D49: 1 | F49: Acre | G49: 0 | I49: 0 | J49: 0 | K49: 0 | M49: 0 | N49: 0 | O49: 0 | P49: 0 | Q49: 0 | R49: 0
C50: Tractors/Self-Propelled | D50: 1 | F50: Acre | G50: 6 | I50: 6 | J50: 0 | K50: 0 | M50: 0 | N50: 0 | O50: 6 | P50: 0 | Q50: 960 | R50: 0
C51: Implements | D51: 1 | F51: Acre | G51: 3 | I51: 3 | J51: 0 | K51: 0 | M51: 0 | N51: 0 | O51: 3 | P51: 0 | Q51: 480 | R51: 0
I52: 0 | J52: 0 | K52: 0 | M52: 0 | N52: 0 | O52: 0 | P52: 0 | Q52: 0 | R52: 0
I53: 0 | J53: 0 | K53: 0 | M53: 0 | N53: 0 | O53: 0 | P53: 0 | Q53: 0 | R53: 0
B54: Interest on Credit Line | G54: 0.085 | I54: 8.850476198 | J54: =+SUM(J18:J53)/2*H54 -> 0 | M54: 0 | N54: =+SUM(N18:N53)/2*L54 -> 0 | O54: 8.850476198 | P54: =+SUM(P18:P53)/2*L54 -> 0 | Q54: 1416.076192 | R54: =+J54*E$7 -> 0
A55: Total Variable Costs | I55: 140.2202762 | J55: =SUM(J19:J54) -> 0 | M55: 0 | N55: =SUM(N19:N54) -> 0 | O55: 140.2202762 | P55: =SUM(P19:P54) -> 0 | Q55: 22435.24419 | R55: =SUM(R19:R54) -> 0
A56: Planned Returns Above Variable Costs: | I56: 7.619723802 | J56: =+J14-J55 -> 0 | M56: 0 | N56: =+N14-N55 -> 0 | O56: 7.619723802 | P56: =+P14-P55 -> 0 | Q56: 1219.155808 | R56: =+R14-R55 -> 0
B57: Breakeven Price to Cover Variable Costs | G57: 4.956682011 | H57: =IF(E10=0,"n/a",(YVarExp-(YTotExp+YTotRet-J10))/E10) -> n/a | I57: Bushel
Q58: Enterprise | R58: Enterprise
A59: FIXED COSTS | D59: Quantity | E59: Quantity | F59: Units | G59: $/Unit | H59: $/Unit | I59: Total | J59: Total | K59: Share | L59: Share | M59: Landlord | N59: Landlord | O59: Tenant | P59: Tenant | Q59: Total | R59: Total
B60: Equipment Fixed Costs
C61: Pickup/General Use Equipment | D61: 1 | F61: Acre | G61: 1.25 | I61: 1.25 | J61: =E61*H61 -> 0 | K61: 0 | M61: 0 | N61: =J61*L61 -> 0 | O61: 1.25 | P61: =+J61-N61 -> 0 | Q61: 200 | R61: =+J61*E$7 -> 0
C62: Tractors/Self-Propelled | D62: 1 | F62: Acre | G62: 12 | I62: 12 | J62: 0 | K62: 0 | M62: 0 | N62: 0 | O62: 12 | P62: 0 | Q62: 1920 | R62: 0
C63: Implements | D63: 1 | F63: Acre | G63: 10 | I63: 10 | J63: 0 | K63: 0 | M63: 0 | N63: 0 | O63: 10 | P63: 0 | Q63: 1600 | R63: 0
B64: Salaried Labor | D64: 1 | F64: Acre | G64: 0 | I64: 0 | J64: =E64*H64 -> 0 | K64: 0 | M64: 0 | N64: 0 | O64: 0 | P64: 0 | Q64: 0 | R64: 0
B65: Management Fee, Owner/Operator Labor | D65: 1 | F65: Acre | G65: 25 | I65: 25 | J65: 0 | K65: 0 | M65: 0 | N65: 0 | O65: 25 | P65: 0 | Q65: 4000 | R65: 0
B66: Allocated Establishment Cost | D66: 1 | F66: Acre | G66: 0 | I66: 0 | J66: 0 | K66: 0 | M66: 0 | N66: 0 | O66: 0 | P66: 0 | Q66: 0 | R66: 0
B67: Cash Rent - Wheat Dryland | D67: 1 | F67: Acre | G67: 50 | I67: 50 | J67: 0 | K67: 0 | M67: 0 | N67: 0 | O67: 50 | P67: 0 | Q67: 8000 | R67: 0
B68: Property Taxes | D68: 1 | F68: Acre | G68: 0 | I68: 0 | J68: 0 | K68: 0 | M68: 0 | N68: 0 | O68: 0 | P68: 0 | Q68: 0 | R68: 0
B69: Whole Farm Insurance | D69: 1 | F69: Acre | G69: 2 | I69: 2 | J69: 0 | K69: 0 | M69: 0 | N69: 0 | O69: 2 | P69: 0 | Q69: 320 | R69: 0
D70: 1 | G70: 0 | I70: 0 | J70: 0 | K70: 0 | M70: 0 | N70: 0 | O70: 0 | P70: 0 | Q70: 0 | R70: 0
D71: 1 | G71: 0 | I71: 0 | J71: =E71*H71 -> 0 | K71: 0 | M71: 0 | N71: 0 | O71: 0 | P71: 0 | Q71: 0 | R71: 0
A72: Total Fixed Costs | I72: 100.25 | J72: =+SUM(J60:J71) -> 0 | M72: 0 | N72: =+SUM(N60:N71) -> 0 | O72: 100.25 | P72: =+SUM(P60:P71) -> 0 | Q72: 16040 | R72: =+SUM(R60:R71) -> 0
A73: Total Specified Costs | I73: 240.4702762 | J73: =+J55+J72 -> 0 | M73: 0 | N73: =+N55+N72 -> 0 | O73: 240.4702762 | P73: =+P55+P72 -> 0 | Q73: 38475.24419 | R73: =+R55+R72 -> 0
A75: Returns Above Specified Costs | I75: -92.6302762 | J75: =+J14-J73 -> 0 | M75: 0 | N75: =+N14-N73 -> 0 | O75: -92.6302762 | P75: =+P14-P73 -> 0 | Q75: -14820.84419 | R75: =+R14-R73 -> 0
A77: Breakeven Price to Cover Total Costs | G77: 10.52612646 | H77: =IF(E10=0,"n/a",(YTotExp-(YTotExp+YTotRet-J10))/E10) -> n/a | I77: Bushel
D79: Example Breakeven Prices
B80: Example | C80: Example | D80: To Cover | G80: To Cover
B81: Yield | C81: Yield | D81: Variable | G81: Total
B82: Percent | C82: Bushel | D82: Costs | G82: Costs
B83: 0.75 | C83: 13.5 | D83: 6.608909348 | G83: 14.03483527
B84: 0.9 | C84: 16.2 | D84: 5.507424457 | G84: 11.69569606
B85: 1 | C85: 18 | D85: 4.956682011 | G85: 10.52612646
B86: 1.1 | C86: 19.8 | D86: 4.506074555 | G86: 9.569205869
B87: 1.25 | C87: 22.5 | D87: 3.965345609 | G87: 8.420901164
D89: Your Breakeven Prices
B90: Your | C90: Your | E90: To Cover | H90: To Cover
B91: Yield | C91: Yield | E91: Variable | H91: Total
B92: Percent | C92: Bushel | E92: Costs | H92: Costs
B93: 0.75 | C93: =E10*YPER1 -> 0 | E93: =IF($E$10=0,0,(YVarExp-(YTotExp+YTotRet-J10))/($E$10*YPER1)) -> 0 | H93: =IF($E$10=0,0,(YTotExp-(YTotExp+YTotRet-J10))/($E$10*YPER1)) -> 0
B94: 0.9 | C94: =E10*YPER2 -> 0 | E94: =IF($E$10=0,0,(YVarExp-(YTotExp+YTotRet-J10))/($E$10*YPER2)) -> 0 | H94: =IF($E$10=0,0,(YTotExp-(YTotExp+YTotRet-J10))/($E$10*YPER2)) -> 0
B95: 1 | C95: =+E10 -> 0 | E95: =IF($E$10=0,0,(YVarExp-(YTotExp+YTotRet-J10))/($E$10*YPER3)) -> 0 | H95: =IF($E$10=0,0,(YTotExp-(YTotExp+YTotRet-J10))/($E$10*YPER3)) -> 0
B96: 1.1 | C96: =E10*YPER4 -> 0 | E96: =IF($E$10=0,0,(YVarExp-(YTotExp+YTotRet-J10))/($E$10*YPER4)) -> 0 | H96: =IF($E$10=0,0,(YTotExp-(YTotExp+YTotRet-J10))/($E$10*YPER4)) -> 0
B97: 1.25 | C97: =E10*YPER5 -> 0 | E97: =IF($E$10=0,0,(YVarExp-(YTotExp+YTotRet-J10))/($E$10*YPER5)) -> 0 | H97: =IF($E$10=0,0,(YTotExp-(YTotExp+YTotRet-J10))/($E$10*YPER5)) -> 0
A99: Developed by Andrew Wright, Assistant Professor and Extension Specialist, Texas A&M AgriLife Extension, 806-746-6101
A101: Information presented is prepared solely as a general guide and not intended to recognize or predict the costs and returns from any one operation. Brand names are mentioned only as examples and imply no endorsement.

Sheet CowCalf
A1: Projections for Planning Purposes Only -- Not to be Used without Updating
A2: 2025 Estimated Costs and Returns per Animal Unit
A3: Rolling Plains Cow-Calf Production
A4: Enter your name for this budget in the cell above.
A5: Enter Your Values in the cells highlighed in MAROON.
E6: Your Cows
B7: Animal Units (AU) | D7: 400 | F7: Animal Unit | N7: Your
B8: Breeding Females | D8: 400 | F8: Calf | G8: Your | M8: Enterprise | N8: Enterprise
E9: Your | F9: Quantity | G9: Quantity | J9: Your | L9: Your | M9: Total | N9: Total
A10: REVENUE | D10: Head | E10: Head | F10: Per Head | G10: Per Head | H10: Units | I10: $/Unit | J10: $/Unit | K10: Total | L10: Total | M10: ="(" & D7 & " AUs)" -> (400 AUs) | N10: ="(" & E7 & " AUs)" -> ( AUs)
B11: Steer | D11: 0.415 | F11: 5.56 | H11: CWT | I11: 305 | K11: 703.757 | L11: =+E11*G11*J11 -> 0 | M11: 281502.8 | N11: =+L11*E$7 -> 0
B12: Heifer | D12: 0.2075 | F12: 5.14 | H12: CWT | I12: 295 | K12: 314.63225 | L12: =+E12*G12*J12 -> 0 | M12: 125852.9 | N12: =+L12*E$7 -> 0
B13: Cull Cow | D13: 0.15 | F13: 10.25 | H13: CWT | I13: 125 | K13: 192.1875 | L13: 0 | M13: 76875 | N13: 0
B14: Cull Bull | D14: 0.009 | F14: 16.5 | H14: CWT | I14: 175 | K14: 25.9875 | L14: 0 | M14: 10395 | N14: 0
D15: 0 | F15: 0 | I15: 0 | K15: 0 | L15: 0 | M15: 0 | N15: 0
D16: 0 | F16: 0 | I16: 0 | K16: 0 | L16: 0 | M16: 0 | N16: 0
A17: Total Revenue | F17: 337.395 | K17: 1236.56425 | L17: =+SUM(L11:L16) -> 0 | M17: 494625.7 | N17: =+SUM(N11:N16) -> 0
F18: 509.5225
F19: 172.1275 | M19: Enterprise | N19: Enterprise
A20: VARIABLE COSTS | F20: Quantity | G20: Quantity | H20: Units | I20: $/Unit | J20: $/Unit | K20: Total | L20: Total | M20: Total | N20: Total
A21: Production Costs
B22: Miscellaneous
C23: Brush Control | F23: 1 | H23: AU | I23: 12 | K23: 12 | L23: =+J23*G23 -> 0 | M23: 4800 | N23: =+L23*E$7 -> 0
C24: Ranch Repairs | F24: 1 | H24: AU | I24: 16.25 | K24: 16.25 | L24: 0 | M24: 6500 | N24: 0
F25: 1 | I25: 0 | K25: 0 | L25: 0 | M25: 0 | N25: 0
F26: 1 | I26: 0 | K26: 0 | L26: 0 | M26: 0 | N26: 0
B27: Marketing Expense | F27: 1 | H27: AU | I27: 11.11765 | K27: 11.11765 | L27: 0 | M27: 4447.06 | N27: 0
B28: Feed
C29: Supplement | F29: 500 | H29: Pound | I29: 0.2 | K29: 100 | L29: =+J29*G29 -> 0 | M29: 40000 | N29: =+L29*E$7 -> 0
C30: Salt and Mineral | F30: 30 | H30: Pound | I30: 0.45 | K30: 13.5 | L30: 0 | M30: 5400 | N30: 0
F31: 0 | I31: 0 | K31: 0 | L31: 0 | M31: 0 | N31: 0
F32: 0 | I32: 0 | K32: 0 | L32: 0 | M32: 0 | N32: 0
F33: 0 | I33: 0 | K33: 0 | L33: 0 | M33: 0 | N33: 0
B34: Vet. Medicine
C35: Vet/Medicine - Cow-Calf | F35: 1 | H35: Head | I35: 32 | K35: 32 | L35: =+J35*G35 -> 0 | M35: 12800 | N35: =+L35*E$7 -> 0
F36: 0 | I36: 0 | K36: 0 | L36: 0 | M36: 0 | N36: 0
F37: 0 | I37: 0 | K37: 0 | L37: 0 | M37: 0 | N37: 0
F38: 0 | I38: 0 | K38: 0 | L38: 0 | M38: 0 | N38: 0
B39: Fuel | F39: 1 | H39: AU | I39: 37.24756825 | K39: 37.24756825 | L39: 0 | M39: 14899.0273 | N39: 0
B40: Lube (As a % of fuel) | F40: 0.1 | H40: Percent | I40: 37.24756825 | K40: 3.724756825 | L40: 0 | M40: 1489.90273 | N40: 0
B41: Repairs | F41: 1 | H41: AU | I41: 0 | K41: 0 | L41: 0 | M41: 0 | N41: 0
B42: Labor | F42: 0.5 | H42: Hours | I42: 15 | K42: 7.5 | L42: 0 | M42: 3000 | N42: 0
B43: Utilities | F43: 1 | H43: AU | I43: 10 | K43: 10 | L43: 0 | M43: 4000 | N43: 0
K44: 0 | L44: =+J44*G44 -> 0 | M44: 0 | N44: 0
K45: 0 | L45: 0 | M45: 0 | N45: 0
K46: 0 | L46: 0 | M46: 0 | N46: 0
B47: Interest on Credit Line | I47: 0.085 | K47: 22.12991662 | L47: =+SUM(L21:L46)/2*J47 -> 0 | M47: 8851.966648 | N47: 0
A48: Total Variable Costs | K48: 265.4698917 | L48: =+SUM(L23:L47) -> 0 | M48: 106187.9567 | N48: =+SUM(N23:N47) -> 0
A50: Planned Returns Above Variable Costs: | K50: 971.0943583 | L50: =+L17-L48 -> 0 | M50: 388437.7433 | N50: =+N17-N48 -> 0
B51: Average Calf Breakeven Price to Cover Variable Costs | I51: 14.01766229 | J51: =IF((E11*G11+E12*G12)=0,"n/a",(L48-SUM(L13:L16))/(E11*G11+E12*G12)) -> n/a | K51: CWT
M52: Enterprise | N52: Enterprise
A53: FIXED COSTS | F53: Quantity | G53: Quantity | H53: Units | I53: $/Unit | J53: $/Unit | K53: Total | L53: Total | M53: Total | N53: Total
B54: Depreciation - Equipment | F54: 1 | H54: AU | I54: 80.08508333 | K54: 80.08508333 | L54: =+G54*J54 -> 0 | M54: 32034.03333 | N54: =+L54*E$7 -> 0
B55: Depreciation - Livestock | F55: 1 | H55: AU | I55: 41.9775 | K55: 41.9775 | L55: 0 | M55: 16791 | N55: 0
B56: Equipment Investment | F56: 1554.4425 | H56: dollars | I56: 0.085 | K56: 132.1276125 | L56: 0 | M56: 52851.045 | N56: 0
B57: Insurance | F57: 1 | H57: AU | I57: 0 | K57: 0 | L57: 0 | M57: 0 | N57: 0
B58: Management Fee, Owner/Operator Labor | F58: 1 | H58: AU | I58: 62.5 | K58: 62.5 | L58: =+J58*G58 -> 0 | M58: 25000 | N58: 0
B59: Salaried Labor | F59: 1 | H59: AU | I59: 37.5 | K59: 37.5 | L59: =+J59*G59 -> 0 | M59: 15000 | N59: 0
B60: Pasture Cost | F60: 11.25 | H60: Acres | I60: 15 | K60: 168.75 | L60: 0 | M60: 67500 | N60: 0
K61: 0 | L61: =+G61*J61 -> 0 | M61: 0 | N61: 0
K62: 0 | L62: 0 | M62: 0 | N62: 0
A63: Total Fixed Costs | K63: 522.9401958 | L63: =+SUM(L54:L60) -> 0 | M63: 209176.0783 | N63: =+SUM(N54:N60) -> 0
A64: Total Costs | K64: 788.4100875 | L64: =+L48+L63 -> 0 | M64: 315364.035 | N64: =+N48+N63 -> 0
A65: Planned Returns to Management, Risk, and Profit: | K65: 448.1541625 | L65: =+L17-L64 -> 0 | M65: 179261.665 | N65: =+N17-N64 -> 0
B66: Average Calf Breakeven Price to Cover Total Costs | I66: 169.0111257 | J66: =IF((E11*G11+E12*G12)=0,"n/a",(L64-SUM(L13:L16))/(E11*G11+E12*G12)) -> n/a | K66: CWT
C68: Sensitivity Analysis for Example
C69: Example Weaning Percent | D69: Example Gross Sales per Animal Unit | F69: Pounds Produced per Animal Unit | H69: Example Breakeven Calf Pay Weight to Cover Total Cost | K69: Example Average Breakeven Price to Cover Total Cost
C70: 0.89 | D70: 1310.18275 | F70: 533.9125 | H70: 255.2977886 | K70: 157.6171172
C71: 0.86 | D71: 1273.3735 | F71: 521.7175 | H71: 266.0850191 | K71: 163.1153887
C72: 0.83 | D72: 1236.56425 | F72: 509.5225 | H72: 277.8240641 | K72: 169.0111257
C73: 0.8 | D73: 1199.755 | F73: 497.3275 | H73: 290.6467132 | K73: 175.3490429
C74: 0.77 | D74: 1162.94575 | F74: 485.1325 | H74: 304.7102638 | K74: 182.1808238
D76: ="Example Male "&F8&" Price" -> Example Male Calf Price | K76: =+I11 -> 305
D77: ="Example Female "&F8&" Price" -> Example Female Calf Price | K77: =+I12 -> 295
D78: ="Example Weighted Average "&F8&" Price ($/cwt)" -> Example Weighted Average Calf Price ($/cwt) | K78: =+(K11+K12)/(D11*F11+D12*F12) -> 301.8388684
C80: Sensitivity Analysis for Your Values
C81: Your Weaning Percent | D81: ="Your Gross Sales per "&F7 -> Your Gross Sales per Animal Unit | F81: ="Pounds Produced per "&F7 -> Pounds Produced per Animal Unit | H81: ="Your Breakeven "&F8&" Pay Weight to Cover Total Cost" -> Your Breakeven Calf Pay Weight to Cover Total Cost | K81: Your Average Breakeven Price to Cover Total Cost
C82: =+C83+C70-C71 -> 1.06 | D82: =+IF($C$84=0,0,$L$17-$L$11-$L$12+($L$11+$L$12)*C82/$C$84) -> 0 | F82: =IF($C$84=0,0,$M$88*C82/$C$84+$M$89) -> 0 | H82: =IF($D$84=0,0,(YTotExp-(YTotRet+YTotExp-$L$11-$L$12))/(YPrice/100)/(C82-$E$13*$E$7/$E$8)/($E$8/$E$7)) -> 0 | K82: =IF(F82-$M$89=0,0,(YTotExp-(YTotRet+YTotExp-$L$11-$L$12))/(F82-$M$89)*100) -> 0
C83: =+C84+C71-C72 -> 1.03 | D83: =+IF($C$84=0,0,$L$17-$L$11-$L$12+($L$11+$L$12)*C83/$C$84) -> 0 | F83: =IF($C$84=0,0,$M$88*C83/$C$84+$M$89) -> 0 | H83: =IF($D$84=0,0,(YTotExp-(YTotRet+YTotExp-$L$11-$L$12))/(YPrice/100)/(C83-$E$13*$E$7/$E$8)/($E$8/$E$7)) -> 0 | K83: =IF(F83-$M$89=0,0,(YTotExp-(YTotRet+YTotExp-$L$11-$L$12))/(F83-$M$89)*100) -> 0
C84: 1 | D84: =+L17 -> 0 | F84: =M88+M89 -> 0 | H84: =IF($D$84=0,0,(YTotExp-(YTotRet+YTotExp-$L$11-$L$12))/(YPrice/100)/(C84-$E$13*$E$7/$E$8)/($E$8/$E$7)) -> 0 | K84: =IF(F84-$M$89=0,0,(YTotExp-(YTotRet+YTotExp-$L$11-$L$12))/(F84-$M$89)*100) -> 0
C85: =+C84+C73-C72 -> 0.97 | D85: =+IF($C$84=0,0,$L$17-$L$11-$L$12+($L$11+$L$12)*C85/$C$84) -> 0 | F85: =IF($C$84=0,0,$M$88*C85/$C$84+$M$89) -> 0 | H85: =IF($D$84=0,0,(YTotExp-(YTotRet+YTotExp-$L$11-$L$12))/(YPrice/100)/(C85-$E$13*$E$7/$E$8)/($E$8/$E$7)) -> 0 | K85: =IF(F85-$M$89=0,0,(YTotExp-(YTotRet+YTotExp-$L$11-$L$12))/(F85-$M$89)*100) -> 0
C86: =+C85+C74-C73 -> 0.94 | D86: =+IF($C$84=0,0,$L$17-$L$11-$L$12+($L$11+$L$12)*C86/$C$84) -> 0 | F86: =IF($C$84=0,0,$M$88*C86/$C$84+$M$89) -> 0 | H86: =IF($D$84=0,0,(YTotExp-(YTotRet+YTotExp-$L$11-$L$12))/(YPrice/100)/(C86-$E$13*$E$7/$E$8)/($E$8/$E$7)) -> 0 | K86: =IF(F86-$M$89=0,0,(YTotExp-(YTotRet+YTotExp-$L$11-$L$12))/(F86-$M$89)*100) -> 0
D88: ="Your Male "&F8&" Price" -> Your Male Calf Price | K88: =+J11 -> 0 | M88: =(E11*G11+E12*G12)*100 -> 0
D89: ="Your Female "&F8&" Price" -> Your Female Calf Price | K89: =+J12 -> 0 | M89: =(E13*G13+E14*G14)*100 -> 0
D90: ="Your Weighted Average "&F8&" Price ($/cwt)" -> Your Weighted Average Calf Price ($/cwt) | K90: =+IF((E11*G11+E12*G12)=0,0,(L11+L12)/(E11*G11+E12*G12)) -> 0
A92: Developed by Andrew Wright, Assistant Professor and Extension Specialist, Texas A&M AgriLife Extension, 806-746-6101
A94: Information presented is prepared solely as a general guide and not intended to recognize or predict the costs and returns from any one operation. Brand names are mentioned only as examples and imply no endorsement.

Sheet StockersMar1
A1: Projections for Planning Purposes Only -- Not to be Used without Updating
A2: 2025 Estimated Costs and Returns per Animal
A3: Stocker Calf Budget - Pull off Wheat March 1
A4: Enter your name for this budget in the cell above.
A5: Enter Your Values in the cells highlighed in MAROON. | M5: Stocker
E6: Your Head | N6: Your
B7: Number of Head | D7: 800 | G7: Your | M7: Enterprise | N7: Enterprise
E8: Your | F8: Pay Weight | G8: Weight | J8: Your | L8: Your | M8: Total | N8: Total
A9: REVENUE | D9: Head | E9: Head | F9: or Amount | G9: or Amount | H9: Units | I9: $/Unit | J9: $/Unit | K9: Total | L9: Total | M9: ="(" & D7 & " Head)" -> (800 Head) | N9: ="(" & E7 & " Head)" -> ( Head)
B11: Stocker | D11: 0.975 | F11: 6.4 | H11: CWT | I11: 280 | K11: 1747.2 | L11: =+J11*G11*E11 -> 0 | M11: 1397760 | N11: =+L11*E$7 -> 0
D12: 0.975 | F12: 0 | I12: 0 | K12: 0 | L12: 0 | M12: 0 | N12: 0
D13: 0.975 | F13: 0 | I13: 0 | K13: 0 | L13: 0 | M13: 0 | N13: 0
A14: Total Revenue | K14: 1747.2 | L14: =+L11 -> 0 | M14: 1397760 | N14: 0
M15: Enterprise | N15: Enterprise
A16: VARIABLE COSTS | F16: Quantity | G16: Quantity | H16: Units | I16: $/Unit | J16: $/Unit | K16: Total | L16: Total | M16: Total | N16: Total
A17: Production Costs
B18: Stocker Purchase | F18: 4.75 | H18: CWT | I18: 340 | K18: 1615 | L18: =+J18*G18 -> 0 | M18: 1292000 | N18: =+L18*E$7 -> 0
B19: Stocker Delivery | F19: 1 | H19: Head | I19: 0 | K19: 0 | L19: =+J19*G19 -> 0 | M19: 0 | N19: =+L19*E$7 -> 0
B20: Grazing
C21: Acre Lease | F21: 0.00125 | H21: Acre | I21: 0 | K21: 0 | L21: 0 | M21: 0 | N21: =+L21*E$7 -> 0
C22: Grazing by Month | F22: 0 | H22: Month | I22: 0 | K22: 0 | L22: 0 | M22: 0 | N22: 0
C23: Gain Contract | F23: 152.8205128 | H23: Pounds | I23: 0.75 | K23: 114.6153846 | L23: 0 | M23: 91692.30769 | N23: 0
C24: On Weight Per Month | F24: 0 | H24: Month | I24: 0 | K24: 0 | L24: =+G24*J24*G18 -> 0 | M24: 0 | N24: 0
B25: Health
C26: Vet/Medicine - Stocker | F26: 1 | H26: Head | I26: 24 | K26: 24 | L26: =+J26*G26 -> 0 | M26: 19200 | N26: =+L26*E$7 -> 0
F27: 0 | I27: 0 | K27: 0 | L27: 0 | M27: 0 | N27: 0
F28: 0 | I28: 0 | K28: 0 | L28: 0 | M28: 0 | N28: 0
F29: 0 | I29: 0 | K29: 0 | L29: 0 | M29: 0 | N29: 0
B30: Feed
C31: Hay | F31: 125 | H31: Pound | I31: 0.1 | K31: 12.5 | L31: 0 | M31: 10000 | N31: 0
C32: Salt & Mineral - Stocker | F32: 15 | H32: Pound | I32: 0.45 | K32: 6.75 | L32: 0 | M32: 5400 | N32: 0
F33: 0 | I33: 0 | K33: 0 | L33: 0 | M33: 0 | N33: 0
F34: 0 | I34: 0 | K34: 0 | L34: 0 | M34: 0 | N34: 0
F35: 0 | I35: 0 | K35: 0 | L35: 0 | M35: 0 | N35: 0
B36: Miscellaneous
F37: 1 | I37: 0 | K37: 0 | L37: =+J37*G37 -> 0 | M37: 0 | N37: =+L37*E$7 -> 0
F38: 1 | I38: 0 | K38: 0 | L38: 0 | M38: 0 | N38: 0
B39: Fuel | F39: 1 | H39: Head | I39: 8.46691875 | K39: 8.46691875 | L39: 0 | M39: 6773.535 | N39: 0
B40: Lube (As a % of fuel) | F40: 0.1 | H40: Percent | I40: 8.46691875 | K40: 0.846691875 | L40: 0 | M40: 677.3535 | N40: 0
B41: Utilities | F41: 1 | H41: Head | I41: 0 | K41: 0 | L41: 0 | M41: 0 | N41: 0
B42: Repairs | F42: 1 | H42: Head | I42: 0 | K42: 0 | L42: 0 | M42: 0 | N42: 0
B43: Marketing | F43: 0.975 | H43: Head | I43: 12 | K43: 11.7 | L43: 0 | M43: 9360 | N43: 0
B44: Labor | F44: 1 | H44: Head | I44: 8.415 | K44: 8.415 | L44: 0 | M44: 6732 | N44: 0
K45: 0 | L45: =+J45*G45 -> 0 | M45: 0 | N45: =+L45*E$7 -> 0
K46: 0 | L46: =+J46*G46 -> 0 | M46: 0 | N46: =+L46*E$7 -> 0
B47: Interest on Credit Line | I47: 0.085 | K47: 52.95814912 | L47: =+SUM(L18:L44)*J47/2 -> 0 | M47: 42366.5193 | N47: 0
A48: Total Variable Costs | K48: 1855.252144 | L48: =+SUM(L18:L47) -> 0 | M48: 1484201.715 | N48: =+SUM(N18:N47) -> 0
A50: Planned Returns Above Variable Costs: | K50: -108.0521444 | L50: =+L14-L48 -> 0 | M50: -86441.71549 | N50: =+N14-N48 -> 0
B52: Breakeven Price to Cover Variable Costs | I52: 297.3160488 | J52: =+IF(G11=0,"n/a",(L48-SUM(L12:L13))/(G11*E11)) -> n/a | K52: CWT
M53: Enterprise | N53: Enterprise
A54: FIXED COSTS | F54: Quantity | G54: Quantity | H54: Units | I54: $/Unit | J54: $/Unit | K54: Total | L54: Total | M54: Total | N54: Total
B56: Depreciation | F56: 1 | H56: Head | I56: 12.48583333 | K56: 12.48583333 | L56: =+J56*G56 -> 0 | M56: 9988.666667 | N56: =+L56*E$7 -> 0
B57: Equipment Investment | F57: 27.215 | H57: dollars | I57: 0.085 | K57: 2.313275 | L57: 0 | M57: 1850.62 | N57: 0
B58: Salaried Labor | F58: 1 | H58: Head | I58: 0 | K58: 0 | L58: 0 | M58: 0 | N58: 0
B59: Management Fee, Owner/Operator Labor | F59: 1 | H59: Head | I59: 0 | K59: 0 | L59: 0 | M59: 0 | N59: 0
B60: Insurance | F60: 1 | H60: Head | I60: 0 | K60: 0 | L60: 0 | M60: 0 | N60: 0
K61: 0 | L61: 0 | M61: 0 | N61: 0
K62: 0 | L62: 0 | M62: 0 | N62: 0
A63: Total Fixed Costs | K63: 14.79910833 | L63: =+SUM(L56:L60) -> 0 | M63: 11839.28667 | N63: =+SUM(N56:N60) -> 0
A65: Total Costs | K65: 1870.051253 | L65: =+L48+L63 -> 0 | M65: 1496041.002 | N65: =+N48+N63 -> 0
A67: Planned Returns to Management, Risk, and Profit: | K67: -122.8512527 | L67: =+L50-L63 -> 0 | M67: -98281.00215 | N67: =+N50-N63 -> 0
A69: Breakeven Price to Cover Total Costs | I69: 299.6877008 | J69: =+IF(G11=0,"n/a",(L65-SUM(L12:L13))/(G11*E11)) -> n/a | K69: CWT
C71: Example Break Even Sensitivity Analysis
F72: Purchase Weight (Lbs/Hd): 475 | H72: Sales Price/Cwt of $Total
D73: Net Pay Weight | F73: Sales Price/Cwt 280.00 | H73: Purchase Price/Cwt 340.00
C74: ADG (Lbs/day) | D74: with Shrink | F74: B/E Purchase Price ($/CWT) | H74: B/E Sales Price ($/CWT)
C75: 1.455882353 | D75: 673 | F75: 333.1028942 | H75: 284.9927615
C76: 1.334558824 | D76: 656.5 | F76: 323.6197363 | H76: 292.1555651
C77: 1.213235294 | D77: 640 | F77: 314.1365784 | H77: 299.6877008
C78: 1.091911765 | D78: 623.5 | F78: 304.6534205 | H78: 307.6184899
C79: 0.9705882353 | D79: 607 | F79: 295.1702626 | H79: 315.9804423
C81: Your Average Daily Gain | E81: 0 | F81: Pounds per Day
C82: =+"Your Animal"&IF(M5="Stocker"," Grazing"," Feeding")&" Days" -> Your Animal Grazing Days | E82: 0 | F82: Days
C83: Your Sale Shrink | E83: 0
C85: Your Break Even Sensitivity Analysis
F86: =+"Purchase Weight (Lbs/Hd): "&G18*100 -> Purchase Weight (Lbs/Hd): 0 | H86: Sales Price/Cwt of $Total
D87: Net Pay Weight | F87: ="Sales Price/Cwt "&IF(J11="",".00",TEXT(J11,"#.00")) -> Sales Price/Cwt .00 | H87: ="Purchase Price/Cwt "&IF(J18="",".00",TEXT(J18,"#.00")) -> Purchase Price/Cwt .00
C88: ADG (Lbs/day) | D88: with Shrink | F88: B/E Purchase Price ($/CWT) | H88: B/E Sales Price ($/CWT)
C89: =+C91*1.2 -> 0 | D89: =+C89*$E$82+$G$18*100*(1-$E$83) -> 0 | F89: =IF($G$18=0,0,(((D89*$J$11/100*$E$11)-($L$48-SUM($J$12:$J$13)-$L$18)-$L$63)/(100*$G$18))*100) -> 0 | H89: =IF($E$11=0,0,($L$65-SUM($J$12:$J$13))/(D89*$E$11/100)) -> 0
C90: =+C91*1.1 -> 0 | D90: =+C90*$E$82+$G$18*100*(1-$E$83) -> 0 | F90: =IF($G$18=0,0,(((D90*$J$11/100*$E$11)-($L$48-SUM($J$12:$J$13)-$L$18)-$L$63)/(100*$G$18))*100) -> 0 | H90: =IF($E$11=0,0,($L$65-SUM($J$12:$J$13))/(D90*$E$11/100)) -> 0
C91: =+E81 -> 0 | D91: =+C91*$E$82+$G$18*100*(1-$E$83) -> 0 | F91: =IF($G$18=0,0,(((D91*$J$11/100*$E$11)-($L$48-SUM($J$12:$J$13)-$L$18)-$L$63)/(100*$G$18))*100) -> 0 | H91: =IF($E$11=0,0,($L$65-SUM($J$12:$J$13))/(D91*$E$11/100)) -> 0
C92: =+C91*0.9 -> 0 | D92: =+C92*$E$82+$G$18*100*(1-$E$83) -> 0 | F92: =IF($G$18=0,0,(((D92*$J$11/100*$E$11)-($L$48-SUM($J$12:$J$13)-$L$18)-$L$63)/(100*$G$18))*100) -> 0 | H92: =IF($E$11=0,0,($L$65-SUM($J$12:$J$13))/(D92*$E$11/100)) -> 0
C93: =+C91*0.8 -> 0 | D93: =+C93*$E$82+$G$18*100*(1-$E$83) -> 0 | F93: =IF($G$18=0,0,(((D93*$J$11/100*$E$11)-($L$48-SUM($J$12:$J$13)-$L$18)-$L$63)/(100*$G$18))*100) -> 0 | H93: =IF($E$11=0,0,($L$65-SUM($J$12:$J$13))/(D93*$E$11/100)) -> 0
A95: Developed by Andrew Wright, Assistant Professor and Extension Specialist, Texas A&M AgriLife Extension, 806-746-6101
A97: Information presented is prepared solely as a general guide and not intended to recognize or predict the costs and returns from any one operation. Brand names are mentioned only as examples and imply no endorsement.

Sheet StockersGrazeOut
A1: Projections for Planning Purposes Only -- Not to be Used without Updating
A2: 2025 Estimated Costs and Returns per Animal
A3: Stocker Calf Budget - Grazeout
A4: Enter your name for this budget in the cell above.
A5: Enter Your Values in the cells highlighed in MAROON. | M5: Stocker
E6: Your Head | N6: Your
B7: Number of Head | D7: 800 | G7: Your | M7: Enterprise | N7: Enterprise
E8: Your | F8: Pay Weight | G8: Weight | J8: Your | L8: Your | M8: Total | N8: Total
A9: REVENUE | D9: Head | E9: Head | F9: or Amount | G9: or Amount | H9: Units | I9: $/Unit | J9: $/Unit | K9: Total | L9: Total | M9: ="(" & D7 & " Head)" -> (800 Head) | N9: ="(" & E7 & " Head)" -> ( Head)
B11: Stocker | D11: 0.97 | F11: 7.95 | H11: CWT | I11: 262 | K11: 2020.413 | L11: =+J11*G11*E11 -> 0 | M11: 1616330.4 | N11: =+L11*E$7 -> 0
D12: 0.97 | F12: 0 | I12: 0 | K12: 0 | L12: 0 | M12: 0 | N12: 0
D13: 0.97 | F13: 0 | I13: 0 | K13: 0 | L13: 0 | M13: 0 | N13: 0
A14: Total Revenue | K14: 2020.413 | L14: =+L11 -> 0 | M14: 1616330.4 | N14: 0
M15: Enterprise | N15: Enterprise
A16: VARIABLE COSTS | F16: Quantity | G16: Quantity | H16: Units | I16: $/Unit | J16: $/Unit | K16: Total | L16: Total | M16: Total | N16: Total
A17: Production Costs
B18: Stocker Purchase | F18: 4.75 | H18: CWT | I18: 340 | K18: 1615 | L18: =+J18*G18 -> 0 | M18: 1292000 | N18: =+L18*E$7 -> 0
B19: Stocker Delivery | F19: 1 | H19: Head | I19: 0 | K19: 0 | L19: =+J19*G19 -> 0 | M19: 0 | N19: =+L19*E$7 -> 0
B20: Grazing
C21: Acre Lease | F21: 0.00125 | H21: Acre | I21: 0 | K21: 0 | L21: 0 | M21: 0 | N21: =+L21*E$7 -> 0
C22: Grazing by Month | F22: 0 | H22: Month | I22: 0 | K22: 0 | L22: 0 | M22: 0 | N22: 0
C23: Gain Contract | F23: 305.3092784 | H23: Pounds | I23: 0.75 | K23: 228.9819588 | L23: 0 | M23: 183185.567 | N23: 0
C24: On Weight Per Month | F24: 0 | H24: Month | I24: 0 | K24: 0 | L24: =+G24*J24*G18 -> 0 | M24: 0 | N24: 0
B25: Health
C26: Vet/Medicine - Stocker 1 | F26: 1 | H26: Head | I26: 12 | K26: 12 | L26: =+J26*G26 -> 0 | M26: 9600 | N26: =+L26*E$7 -> 0
C27: Vet/Medicine - Stocker 2 | F27: 0.25 | H27: Head | I27: 16.8 | K27: 4.2 | L27: 0 | M27: 3360 | N27: 0
F28: 0 | I28: 0 | K28: 0 | L28: 0 | M28: 0 | N28: 0
F29: 0 | I29: 0 | K29: 0 | L29: 0 | M29: 0 | N29: 0
F30: 0 | I30: 0 | K30: 0 | L30: 0 | M30: 0 | N30: 0
B31: Feed
C32: Hay | F32: 300 | H32: Pound | I32: 0.1 | K32: 30 | L32: 0 | M32: 24000 | N32: 0
C33: Salt & Mineral - Stocker | F33: 14 | H33: Pound | I33: 0.45 | K33: 6.3 | L33: 0 | M33: 5040 | N33: 0
F34: 0 | I34: 0 | K34: 0 | L34: 0 | M34: 0 | N34: 0
F35: 0 | I35: 0 | K35: 0 | L35: 0 | M35: 0 | N35: 0
F36: 0 | I36: 0 | K36: 0 | L36: 0 | M36: 0 | N36: 0
B37: Miscellaneous
F38: 1 | I38: 0 | K38: 0 | L38: =+J38*G38 -> 0 | M38: 0 | N38: =+L38*E$7 -> 0
F39: 1 | I39: 0 | K39: 0 | L39: 0 | M39: 0 | N39: 0
B40: Fuel | F40: 1 | H40: Head | I40: 18.425 | K40: 18.425 | L40: 0 | M40: 14740 | N40: 0
B41: Lube (As a % of fuel) | F41: 0.1 | H41: Percent | I41: 18.425 | K41: 1.8425 | L41: 0 | M41: 1474 | N41: 0
B42: Utilities | F42: 1 | H42: Head | I42: 0 | K42: 0 | L42: 0 | M42: 0 | N42: 0
B43: Repairs | F43: 1 | H43: Head | I43: 0 | K43: 0 | L43: 0 | M43: 0 | N43: 0
B44: Marketing | F44: 0.97 | H44: Head | I44: 15 | K44: 14.55 | L44: 0 | M44: 11640 | N44: 0
B45: Labor | F45: 1 | H45: Head | I45: 12.55875 | K45: 12.55875 | L45: 0 | M45: 10047 | N45: 0
K46: 0 | L46: =+J46*G46 -> 0 | M46: 0 | N46: =+L46*E$7 -> 0
K47: 0 | L47: =+J47*G47 -> 0 | M47: 0 | N47: =+L47*E$7 -> 0
B48: Interest on Credit Line | I48: 0.085 | K48: 76.94601712 | L48: =+SUM(L18:L45)*J48/2 -> 0 | M48: 61556.8137 | N48: 0
A49: Total Variable Costs | K49: 2020.804226 | L49: =+SUM(L18:L48) -> 0 | M49: 1616643.381 | N49: =+SUM(N18:N48) -> 0
A51: Planned Returns Above Variable Costs: | K51: -0.3912258862 | L51: =+L14-L49 -> 0 | M51: -312.9807089 | N51: =+N14-N49 -> 0
B53: Breakeven Price to Cover Variable Costs | I53: 262.0507328 | J53: =+IF(G11=0,"n/a",(L49-SUM(L12:L13))/(G11*E11)) -> n/a | K53: CWT
M54: Enterprise | N54: Enterprise
A55: FIXED COSTS | F55: Quantity | G55: Quantity | H55: Units | I55: $/Unit | J55: $/Unit | K55: Total | L55: Total | M55: Total | N55: Total
B57: Depreciation | F57: 1 | H57: Head | I57: 6.485833333 | K57: 6.485833333 | L57: =+J57*G57 -> 0 | M57: 5188.666667 | N57: =+L57*E$7 -> 0
B58: Equipment Investment | F58: 13.465 | H58: dollars | I58: 0.085 | K58: 1.144525 | L58: 0 | M58: 915.62 | N58: 0
B59: Salaried Labor | F59: 1 | H59: Head | I59: 0 | K59: 0 | L59: 0 | M59: 0 | N59: 0
B60: Management Fee, Owner/Operator Labor | F60: 1 | H60: Head | I60: 0 | K60: 0 | L60: 0 | M60: 0 | N60: 0
B61: Insurance | F61: 1 | H61: Head | I61: 0 | K61: 0 | L61: 0 | M61: 0 | N61: 0
K62: 0 | L62: 0 | M62: 0 | N62: 0
K63: 0 | L63: 0 | M63: 0 | N63: 0
A64: Total Fixed Costs | K64: 7.630358333 | L64: =+SUM(L57:L61) -> 0 | M64: 6104.286667 | N64: =+SUM(N57:N61) -> 0
A66: Total Costs | K66: 2028.434584 | L66: =+L49+L64 -> 0 | M66: 1622747.667 | N66: =+N49+N64 -> 0
A68: Planned Returns to Management, Risk, and Profit: | K68: -8.02158422 | L68: =+L51-L64 -> 0 | M68: -6417.267376 | N68: =+N51-N64 -> 0
A70: Breakeven Price to Cover Total Costs | I70: 263.0402106 | J70: =+IF(G11=0,"n/a",(L66-SUM(L12:L13))/(G11*E11)) -> n/a | K70: CWT
C72: Example Break Even Sensitivity Analysis
F73: Purchase Weight (Lbs/Hd): 475 | H73: Sales Price/Cwt of $Total
D74: Net Pay Weight | F74: Sales Price/Cwt 262.00 | H74: Purchase Price/Cwt 340.00
C75: ADG (Lbs/day) | D75: with Shrink | F75: B/E Purchase Price ($/CWT) | H75: B/E Sales Price ($/CWT)
C76: 1.949238579 | D76: 859 | F76: 372.5532665 | H76: 243.442337
C77: 1.78680203 | D77: 827 | F77: 355.432256 | H77: 252.862113
C78: 1.624365482 | D78: 795 | F78: 338.3112454 | H78: 263.0402106
C79: 1.461928934 | D79: 763 | F79: 321.1902349 | H79: 274.0720412
C80: 1.299492386 | D80: 731 | F80: 304.0692244 | H80: 286.0697229
C82: Your Average Daily Gain | E82: 0 | F82: Pounds per Day
C83: =+"Your Animal"&IF(M5="Stocker"," Grazing"," Feeding")&" Days" -> Your Animal Grazing Days | E83: 0 | F83: Days
C84: Your Sale Shrink | E84: 0
C86: Your Break Even Sensitivity Analysis
F87: =+"Purchase Weight (Lbs/Hd): "&G18*100 -> Purchase Weight (Lbs/Hd): 0 | H87: Sales Price/Cwt of $Total
D88: Net Pay Weight | F88: ="Sales Price/Cwt "&IF(J11="",".00",TEXT(J11,"#.00")) -> Sales Price/Cwt .00 | H88: ="Purchase Price/Cwt "&IF(J18="",".00",TEXT(J18,"#.00")) -> Purchase Price/Cwt .00
C89: ADG (Lbs/day) | D89: with Shrink | F89: B/E Purchase Price ($/CWT) | H89: B/E Sales Price ($/CWT)
C90: =+C92*1.2 -> 0 | D90: =+C90*$E$83+$G$18*100*(1-$E$84) -> 0 | F90: =IF($G$18=0,0,(((D90*$J$11/100*$E$11)-($L$49-SUM($J$12:$J$13)-$L$18)-$L$64)/(100*$G$18))*100) -> 0 | H90: =IF($E$11=0,0,($L$66-SUM($J$12:$J$13))/(D90*$E$11/100)) -> 0
C91: =+C92*1.1 -> 0 | D91: =+C91*$E$83+$G$18*100*(1-$E$84) -> 0 | F91: =IF($G$18=0,0,(((D91*$J$11/100*$E$11)-($L$49-SUM($J$12:$J$13)-$L$18)-$L$64)/(100*$G$18))*100) -> 0 | H91: =IF($E$11=0,0,($L$66-SUM($J$12:$J$13))/(D91*$E$11/100)) -> 0
C92: =+E82 -> 0 | D92: =+C92*$E$83+$G$18*100*(1-$E$84) -> 0 | F92: =IF($G$18=0,0,(((D92*$J$11/100*$E$11)-($L$49-SUM($J$12:$J$13)-$L$18)-$L$64)/(100*$G$18))*100) -> 0 | H92: =IF($E$11=0,0,($L$66-SUM($J$12:$J$13))/(D92*$E$11/100)) -> 0
C93: =+C92*0.9 -> 0 | D93: =+C93*$E$83+$G$18*100*(1-$E$84) -> 0 | F93: =IF($G$18=0,0,(((D93*$J$11/100*$E$11)-($L$49-SUM($J$12:$J$13)-$L$18)-$L$64)/(100*$G$18))*100) -> 0 | H93: =IF($E$11=0,0,($L$66-SUM($J$12:$J$13))/(D93*$E$11/100)) -> 0
C94: =+C92*0.8 -> 0 | D94: =+C94*$E$83+$G$18*100*(1-$E$84) -> 0 | F94: =IF($G$18=0,0,(((D94*$J$11/100*$E$11)-($L$49-SUM($J$12:$J$13)-$L$18)-$L$64)/(100*$G$18))*100) -> 0 | H94: =IF($E$11=0,0,($L$66-SUM($J$12:$J$13))/(D94*$E$11/100)) -> 0
A96: Developed by Andrew Wright, Assistant Professor and Extension Specialist, Texas A&M AgriLife Extension, 806-746-6101
A98: Information presented is prepared solely as a general guide and not intended to recognize or predict the costs and returns from any one operation. Brand names are mentioned only as examples and imply no endorsement.

Sheet Livestock Budget
A1: Estimated Costs and Returns per Animal or Breeding Female
A3: Livestock Enterprise
A5: Number of Head of Livestock | D5: 0
A7: Enter Your Values in the cells highlighed in MAROON. | H7: Enterprise
A8: REVENUE | C8: Head | D8: Quantity | E8: Units | F8: $/Unit | G8: Total | H8: Total
B9: Males Sold | C9: 0 | D9: 0 | E9: CWT | F9: 0 | G9: =IF($D$5=0,0,C9/$D$5*D9*F9) -> 0 | H9: =+G9*$D$5 -> 0
B10: Females Sold | C10: 0 | D10: 0 | E10: CWT | F10: 0 | G10: =IF($D$5=0,0,C10/$D$5*D10*F10) -> 0 | H10: =+G10*$D$5 -> 0
B11: Cull Breeding Females | C11: 0 | D11: 0 | E11: CWT | F11: 0 | G11: 0 | H11: 0
B12: Cull Breeding Males | C12: 0 | D12: 0 | E12: CWT | F12: 0 | G12: 0 | H12: 0
B13: Stocker or Feed Animal | C13: 0 | D13: 0 | E13: CWT | F13: 0 | G13: 0 | H13: 0
B14: Other Revenue | C14: 0 | D14: 0 | E14: CWT | F14: 0 | G14: 0 | H14: 0
B15: Other Revenue | C15: 0 | D15: 0 | E15: CWT | F15: 0 | G15: 0 | H15: 0
B16: Other Revenue | C16: 0 | D16: 0 | E16: CWT | F16: 0 | G16: 0 | H16: 0
A18: Total Revenue | G18: =+SUM(G9:G17) -> 0 | H18: =+SUM(H9:H17) -> 0
H20: Enterprise
A21: VARIABLE COSTS | D21: Quantity | E21: Units | F21: $/Unit | G21: Total | H21: Total
A22: Production Costs
B23: Animal Purchase Price, if applicable | D23: 0 | E23: Cwt | F23: 0 | G23: =D23*F23 -> 0 | H23: =+G23*$D$5 -> 0
B24: Pasture | C24: =+SUM(G25:G28) -> 0
C25: Pasture 1 | D25: 0 | E25: Acre | F25: 0 | G25: =D25*F25 -> 0 | H25: =+G25*$D$5 -> 0
C26: Pasture 2 | D26: 0 | E26: Acre | F26: 0 | G26: 0 | H26: 0
C27: Pasture 3 | D27: 0 | E27: Acre | F27: 0 | G27: 0 | H27: 0
C28: Pasture 4 | D28: 0 | E28: Acre | F28: 0 | G28: 0 | H28: 0
B29: Feed | C29: =SUM(G30:G37) -> 0
C30: Hay | D30: 0 | E30: Bales | F30: 0 | G30: =D30*F30 -> 0 | H30: =+G30*$D$5 -> 0
C31: Supplement | D31: 0 | E31: Cwt,lb,etc | F31: 0 | G31: =D31*F31 -> 0 | H31: =+G31*$D$5 -> 0
C32: Salt Minerals | D32: 0 | E32: Cwt | F32: 0 | G32: 0 | H32: 0
C33: Other Feed | D33: 0 | E33: Cwt,lb,etc | F33: 0 | G33: 0 | H33: 0
C34: Other Feed | D34: 0 | E34: Cwt,lb,etc | F34: 0 | G34: 0 | H34: 0
C35: Other Feed | D35: 0 | E35: Cwt,lb,etc | F35: 0 | G35: 0 | H35: 0
C36: Other Feed | D36: 0 | E36: Cwt,lb,etc | F36: 0 | G36: 0 | H36: 0
C37: Other Feed | D37: 0 | E37: Cwt,lb,etc | F37: 0 | G37: 0 | H37: 0
B38: Health | C38: =SUM(G39:G48) -> 0
C39: Vet/Medicine 1 | D39: 0 | E39: Visit,dose,cc's, etc. | F39: 0 | G39: =D39*F39 -> 0 | H39: =+G39*$D$5 -> 0
C40: Vet/Medicine 2 | D40: 0 | E40: Visit,dose,cc's, etc. | F40: 0 | G40: 0 | H40: 0
C41: Vet/Medicine 3 | D41: 0 | E41: Visit,dose,cc's, etc. | F41: 0 | G41: 0 | H41: 0
C42: Vet/Medicine 4 | D42: 0 | E42: Visit,dose,cc's, etc. | F42: 0 | G42: 0 | H42: 0
C43: Vet/Medicine 5 | D43: 0 | E43: Visit,dose,cc's, etc. | F43: 0 | G43: 0 | H43: 0
C44: Vet/Medicine 6 | D44: 0 | E44: Visit,dose,cc's, etc. | F44: 0 | G44: 0 | H44: 0
C45: Vet/Medicine 7 | D45: 0 | E45: Visit,dose,cc's, etc. | F45: 0 | G45: 0 | H45: 0
C46: Vet/Medicine 8 | D46: 0 | E46: Visit,dose,cc's, etc. | F46: 0 | G46: 0 | H46: 0
C47: Vet/Medicine 9 | D47: 0 | E47: Visit,dose,cc's, etc. | F47: 0 | G47: 0 | H47: 0
C48: Vet/Medicine 10 | D48: 0 | E48: Visit,dose,cc's, etc. | F48: 0 | G48: 0 | H48: 0
B50: Fuel, lube, repair | D50: 1 | E50: Head | F50: 0 | G50: 0 | H50: 0
B52: Labor | D52: 0 | E52: Hours | F52: 0 | G52: 0 | H52: 0
B54: Other Variable Expense | D54: 0 | E54: Cwt,lb,etc | F54: 0 | G54: 0 | H54: 0
B55: Other Variable Expense | D55: 0 | E55: Cwt,lb,etc | F55: 0 | G55: 0 | H55: 0
B56: Other Variable Expense | D56: 0 | E56: Cwt,lb,etc | F56: 0 | G56: 0 | H56: 0
B57: Other Variable Expense | D57: 0 | E57: Cwt,lb,etc | F57: 0 | G57: 0 | H57: 0
B58: Other Variable Expense | D58: 0 | E58: Cwt,lb,etc | F58: 0 | G58: 0 | H58: 0
B59: Other Variable Expense | D59: 0 | E59: Cwt,lb,etc | F59: 0 | G59: 0 | H59: 0
B61: Operating Interest | F61: 0 | G61: =+SUM(G23:G59)/2*F61 -> 0 | H61: 0
A63: Total Variable Costs | G63: =+SUM(G23:G62) -> 0 | H63: =+SUM(H23:H62) -> 0
A65: Planned Returns Above Variable Costs | G65: =+G18-G63 -> 0 | H65: =+H18-H63 -> 0
B67: Breakeven Price to Cover Variable Costs | E67: =IF((H101/100+C13*D13)=0,0,(G63-SUM(G11:G12,G14:G16))/(H101/100+C13*D13)) -> 0 | F67: =+E9 -> CWT
H69: Enterprise
A70: FIXED COSTS | D70: Quantity | E70: Units | F70: $/Unit | G70: Total | H70: Total
B71: Depreciation - Equipment | D71: 0 | E71: Head,$,etc | F71: 0 | G71: =D71*F71 -> 0 | H71: =+G71*$D$5 -> 0
B72: Depreciation - Livestock | D72: 0 | E72: Head,$,etc | F72: 0 | G72: =D72*F72 -> 0 | H72: 0
B73: Equipment Investment | D73: 0 | E73: Head,$,etc | F73: 0 | G73: 0 | H73: 0
B74: Insurance | D74: 0 | E74: Head,$,etc | F74: 0 | G74: 0 | H74: 0
B75: Management Fee | D75: 0 | E75: Head,$,etc | F75: 0 | G75: 0 | H75: 0
B76: Owner/Operator Labor | D76: 0 | E76: Head,$,etc | F76: 0 | G76: 0 | H76: 0
B77: Salaried Labor | D77: 0 | E77: Head,$,etc | F77: 0 | G77: 0 | H77: 0
B78: Other Fixed Expense | D78: 0 | E78: Head,$,etc | F78: 0 | G78: 0 | H78: 0
B79: Other Fixed Expense | D79: 0 | E79: Head,$,etc | F79: 0 | G79: 0 | H79: 0
B80: Other Fixed Expense | D80: 0 | E80: Head,$,etc | F80: 0 | G80: 0 | H80: 0
B81: Other Fixed Expense | D81: 0 | E81: Head,$,etc | F81: 0 | G81: 0 | H81: 0
B82: Other Fixed Expense | D82: 0 | E82: Head,$,etc | F82: 0 | G82: 0 | H82: 0
D84: Total Fixed Costs | G84: =+SUM(G71:G83) -> 0 | H84: =+SUM(H71:H83) -> 0
D86: Total Specified Costs | G86: =+G63+G84 -> 0 | H86: =+H63+H84 -> 0
D88: Returns Above Specifiied Costs | G88: =+G18-G86 -> 0 | H88: =+H18-H86 -> 0
B90: Breakeven Price to Cover Total Costs | E90: =IF((H101/100+C13*D13)=0,0,(G86-SUM(G11:G12,G14:G16))/(H101/100+C13*D13)) -> 0 | F90: =+F67 -> CWT
B93: Sensitivity Analysis for Your Breeding Herd or Flock Values
B94: Your Weaning Percent | C94: Your Gross Sales per Head | D94: Pounds Produced per Head | E94: ="Your Breakeven Pay Weight to Cover Total Cost" -> Your Breakeven Pay Weight to Cover Total Cost | G94: Your Average Breakeven Price to Cover Total Cost
B95: =+B96-0.03 -> 0.94 | C95: =+IF($B$97=0,0,YTotRet-$L$11-$L$12+($L$11+$L$12)*B95/$B$97) -> 0 | D95: =IF($B$97=0,0,$H$101*B95/$B$97+$H$102) -> 0 | E95: =IF($C$97=0,0,(YTotExp-(YTotRet+YTotExp-$G$9-$G$10))/(YPrice/100)/(B95-C9/D5)) -> 0 | G95: =IF(D95-$H$102=0,0,(YTotExp-(YTotRet+YTotExp-$G$9-$G$10))/(D95-$H$102)*100) -> 0
B96: =+B97-0.03 -> 0.97 | C96: =+IF($B$97=0,0,YTotRet-$L$11-$L$12+($L$11+$L$12)*B96/$B$97) -> 0 | D96: =IF($B$97=0,0,$H$101*B96/$B$97+$H$102) -> 0 | E96: =IF($C$97=0,0,(YTotExp-(YTotRet+YTotExp-$G$9-$G$10))/(YPrice/100)/(B96-C10/D5)) -> 0 | G96: =IF(D96-$H$102=0,0,(YTotExp-(YTotRet+YTotExp-$G$9-$G$10))/(D96-$H$102)*100) -> 0
B97: 1 | C97: =+YTotRet -> 0 | D97: =H101+H102 -> 0 | E97: =IF($C$97=0,0,(YTotExp-(YTotRet+YTotExp-$G$9-$G$10))/(YPrice/100)/(B97-C11/D5)) -> 0 | G97: =IF(D97-$H$102=0,0,(YTotExp-(YTotRet+YTotExp-$G$9-$G$10))/(D97-$H$102)*100) -> 0
B98: =+B97+0.03 -> 1.03 | C98: =+IF($B$97=0,0,YTotRet-$L$11-$L$12+($L$11+$L$12)*B98/$B$97) -> 0 | D98: =IF($B$97=0,0,$H$101*B98/$B$97+$H$102) -> 0 | E98: =IF($C$97=0,0,(YTotExp-(YTotRet+YTotExp-$G$9-$G$10))/(YPrice/100)/(B98-C12/D5)) -> 0 | G98: =IF(D98-$H$102=0,0,(YTotExp-(YTotRet+YTotExp-$G$9-$G$10))/(D98-$H$102)*100) -> 0
B99: =+B98+0.03 -> 1.06 | C99: =+IF($B$97=0,0,YTotRet-$L$11-$L$12+($L$11+$L$12)*B99/$B$97) -> 0 | D99: 0 | E99: =IF($C$97=0,0,(YTotExp-(YTotRet+YTotExp-$G$9-$G$10))/(YPrice/100)/(B99-C13/D5)) -> 0 | G99: =IF(D99-$H$102=0,0,(YTotExp-(YTotRet+YTotExp-$G$9-$G$10))/(D99-$H$102)*100) -> 0
C101: Your Male Price | F101: =+F9 -> 0 | H101: =(C9*D9+C10*D10)*100 -> 0
C102: Your Female Price | F102: =+F10 -> 0 | H102: =(C11*D11+C12*D12)*100 -> 0
C103: Your Weighted Average Price ($/cwt) | F103: =+IF((C9*D9+C10*D10)=0,F13,(G9+G10)/(C9*D9+C10*D10)) -> 0
C105: Your Stocker or Feeder Break Even Sensitivity Analysis
C106: Your Average Daily Gain | E106: 0 | F106: Pounds per Day
C107: =+"Your Animal"&IF(M25="Stocker"," Grazing"," Feeding")&" Days" -> Your Animal Feeding Days | E107: 0 | F107: Days
C108: Your Sale Shrink | E108: 0
C109: Average Daily Gain (Pounds/day) | D109: Net Pay Weight with Shrink (Pounds) | F109: =+"Purchase Weight (Pounds/Head): "&D23*100 -> Purchase Weight (Pounds/Head): 0 | H109: Sales Price/Cwt of $Total
F110: ="Sales Price "&IF(F13="",".00",TEXT(F13,"#.00")) -> Sales Price .00 | H110: ="Purchase Price "&IF(F23="",".00",TEXT(F23,"#.00")) -> Purchase Price .00
F111: B/E Purchase Price ($/CWT) | H111: B/E Sales Price ($/CWT)
C112: =+C114*1.2 -> 0 | D112: =+C112*$E$107+$D$23*100*(1-$E$108) -> 0 | F112: =IF($D$23=0,0,(((D112*$F$13/100*$C$13)-($G$63-SUM($F$14:$F$16)-$G$23)-$G$84)/(100*$D$23))*100) -> 0 | H112: =IF($C$13=0,0,($G$86-SUM($F$14:$F$16))/(D112*$C$13/100)) -> 0
C113: =+C114*1.1 -> 0 | D113: =+C113*$E$107+$D$23*100*(1-$E$108) -> 0 | F113: =IF($D$23=0,0,(((D113*$F$13/100*$C$13)-($G$63-SUM($F$14:$F$16)-$G$23)-$G$84)/(100*$D$23))*100) -> 0 | H113: =IF($C$13=0,0,($G$86-SUM($F$14:$F$16))/(D113*$C$13/100)) -> 0
C114: =+E106 -> 0 | D114: 0 | F114: 0 | H114: 0
C115: =+C114*0.9 -> 0 | D115: 0 | F115: 0 | H115: 0
C116: =+C114*0.8 -> 0 | D116: 0 | F116: 0 | H116: 0

Sheet Crop Budget
A1: Estimated Costs and Returns per Acre
A3: Crop Enterprise
A5: Number of Acres of Crop | D5: 0
A7: Enter Your Values in the cells highlighed in MAROON. | G7: Enterprise
A8: REVENUE | C8: Quantity | D8: Units | E8: $/Unit | F8: Total | G8: Total
B9: Primary Product | C9: 0 | D9: Cwt,lb,etc | E9: 0 | F9: =C9*E9 -> 0 | G9: =+F9*$D$5 -> 0
B10: Secondary Product | C10: 0 | D10: Cwt,lb,etc | E10: 0 | F10: =C10*E10 -> 0 | G10: =+F10*$D$5 -> 0
B11: Secondary Product | C11: 0 | D11: Cwt,lb,etc | E11: 0 | F11: 0 | G11: 0
B12: Secondary Product | C12: 0 | D12: Cwt,lb,etc | E12: 0 | F12: 0 | G12: 0
B13: Secondary Product | C13: 0 | D13: Cwt,lb,etc | E13: 0 | F13: 0 | G13: 0
B14: Secondary Product | C14: 0 | D14: Cwt,lb,etc | E14: 0 | F14: 0 | G14: 0
B15: Secondary Product | C15: 0 | D15: Cwt,lb,etc | E15: 0 | F15: 0 | G15: 0
B16: Secondary Product | C16: 0 | D16: Cwt,lb,etc | E16: 0 | F16: 0 | G16: 0
A18: Total Revenue | F18: =+SUM(F9:F16) -> 0 | G18: =+SUM(G9:G16) -> 0
G20: Enterprise
A21: VARIABLE COSTS | C21: Quantity | D21: Units | E21: $/Unit | F21: Total | G21: Total
A23: Custom Field and Harvest Operations
B24: Custom Field Operation 1 | C24: 0 | D24: Acre | E24: 0 | F24: =C24*E24 -> 0 | G24: =+F24*$D$5 -> 0
B25: Custom Field Operation 2 | C25: 0 | D25: Acre | E25: 0 | F25: 0 | G25: 0
B26: Custom Field Operation 3 | C26: 0 | D26: Acre | E26: 0 | F26: 0 | G26: 0
B27: Custom Field Operation 4 | C27: 0 | D27: Acre | E27: 0 | F27: 0 | G27: 0
B28: Custom Field Operation 5 | C28: 0 | D28: Acre | E28: 0 | F28: 0 | G28: 0
B29: Custom Field Operation 6 | C29: 0 | D29: Acre | E29: 0 | F29: 0 | G29: 0
A30: Machinery Expenses
B31: Diesel | C31: 0 | D31: Gallon | E31: 0 | F31: =C31*E31 -> 0 | G31: 0
B32: Gasoline | C32: 0 | D32: Gallon | E32: 0 | F32: 0 | G32: 0
B33: Lube | C33: 0 | D33: Acre | E33: 0 | F33: 0 | G33: 0
B34: Repairs | C34: 0 | D34: Acre | E34: 0 | F34: 0 | G34: 0
B35: Other Machinery Expense 1 | C35: 0 | D35: Acre | E35: 0 | F35: 0 | G35: 0
B36: Other Machinery Expense 2 | C36: 0 | D36: Acre | E36: 0 | F36: 0 | G36: 0
A37: Labor
B38: Labor 1 | C38: 0 | D38: Hour | E38: 0 | F38: =C38*E38 -> 0 | G38: 0
B39: Labor 2 | C39: 0 | D39: Hour | E39: 0 | F39: 0 | G39: 0
B40: Labor 3 | C40: 0 | D40: Hour | E40: 0 | F40: 0 | G40: 0
B41: Labor 4 | C41: 0 | D41: Hour | E41: 0 | F41: 0 | G41: 0
B42: Labor 5 | C42: 0 | D42: Hour | E42: 0 | F42: 0 | G42: 0
B43: Irrigation Labor | C43: 0 | D43: Hour | E43: 0 | F43: 0 | G43: 0
A44: Seed or Transplants
B45: Seed | C45: 0 | D45: Pound | E45: 0 | F45: =C45*E45 -> 0 | G45: 0
B46: Seed Treatment | C46: 0 | D46: Pound | E46: 0 | F46: 0 | G46: 0
B47: Seed Fee | C47: 0 | D47: Pound | E47: 0 | F47: 0 | G47: 0
B48: Transplants | C48: 0 | D48: Thousand | E48: 0 | F48: 0 | G48: 0
B49: Mulch | C49: 0 | D49: Foot | E49: 0 | F49: 0 | G49: 0
B50: Other Seed or Transplant | C50: 0 | D50: Pound | E50: 0 | F50: 0 | G50: 0
A51: Fertilizer and Lime
B52: Fertlizer 1 | C52: 0 | D52: Pound | E52: 0 | F52: =C52*E52 -> 0 | G52: 0
B53: Fertlizer 2 | C53: 0 | D53: Pound | E53: 0 | F53: 0 | G53: 0
B54: Fertlizer 3 | C54: 0 | D54: Pound | E54: 0 | F54: 0 | G54: 0
B55: Fertlizer 4 | C55: 0 | D55: Pound | E55: 0 | F55: 0 | G55: 0
B56: Fertlizer 5 | C56: 0 | D56: Pound | E56: 0 | F56: 0 | G56: 0
B57: Lime | C57: 0 | D57: Ton | E57: 0 | F57: 0 | G57: 0
B58: Other Soil Amendment 1 | C58: 0 | D58: Pound | E58: 0 | F58: 0 | G58: 0
B59: Other Soil Amendment 2 | C59: 0 | D59: Pound | E59: 0 | F59: 0 | G59: 0
A60: Herbicides
B61: Herbicide 1 | C61: 0 | D61: Lb,Oz,Acre | E61: 0 | F61: =C61*E61 -> 0 | G61: 0
B62: Herbicide 2 | C62: 0 | D62: Lb,Oz,Acre | E62: 0 | F62: 0 | G62: 0
B63: Herbicide 3 | C63: 0 | D63: Lb,Oz,Acre | E63: 0 | F63: 0 | G63: 0
B64: Herbicide 4 | C64: 0 | D64: Lb,Oz,Acre | E64: 0 | F64: 0 | G64: 0
B65: Herbicide 5 | C65: 0 | D65: Lb,Oz,Acre | E65: 0 | F65: 0 | G65: 0
B66: Herbicide 6 | C66: 0 | D66: Lb,Oz,Acre | E66: 0 | F66: 0 | G66: 0
A67: Insecticides
B68: Insecticide 1 | C68: 0 | D68: Lb,Oz,Acre | E68: 0 | F68: =C68*E68 -> 0 | G68: 0
B69: Insecticide 2 | C69: 0 | D69: Lb,Oz,Acre | E69: 0 | F69: 0 | G69: 0
B70: Insecticide 3 | C70: 0 | D70: Lb,Oz,Acre | E70: 0 | F70: 0 | G70: 0
B71: Insecticide 4 | C71: 0 | D71: Lb,Oz,Acre | E71: 0 | F71: 0 | G71: 0
B72: Insecticide 5 | C72: 0 | D72: Lb,Oz,Acre | E72: 0 | F72: 0 | G72: 0
B73: Insecticide 6 | C73: 0 | D73: Lb,Oz,Acre | E73: 0 | F73: 0 | G73: 0
A74: Fungicides
B75: Fungicide 1 | C75: 0 | D75: Lb,Oz,Acre | E75: 0 | F75: =C75*E75 -> 0 | G75: 0
B76: Fungicide 2 | C76: 0 | D76: Lb,Oz,Acre | E76: 0 | F76: 0 | G76: 0
B77: Fungicide 3 | C77: 0 | D77: Lb,Oz,Acre | E77: 0 | F77: 0 | G77: 0
B78: Fungicide 4 | C78: 0 | D78: Lb,Oz,Acre | E78: 0 | F78: 0 | G78: 0
B79: Fungicide 5 | C79: 0 | D79: Lb,Oz,Acre | E79: 0 | F79: 0 | G79: 0
B80: Fungicide 6 | C80: 0 | D80: Lb,Oz,Acre | E80: 0 | F80: 0 | G80: 0
A81: Growth Regulators
B82: Growth Regulator 1 | C82: 0 | D82: Lb,Oz,Acre | E82: 0 | F82: =C82*E82 -> 0 | G82: 0
B83: Growth Regulator 2 | C83: 0 | D83: Lb,Oz,Acre | E83: 0 | F83: 0 | G83: 0
B84: Growth Regulator 3 | C84: 0 | D84: Lb,Oz,Acre | E84: 0 | F84: 0 | G84: 0
B85: Growth Regulator 4 | C85: 0 | D85: Lb,Oz,Acre | E85: 0 | F85: 0 | G85: 0
B86: Growth Regulator 5 | C86: 0 | D86: Lb,Oz,Acre | E86: 0 | F86: 0 | G86: 0
B87: Growth Regulator 6 | C87: 0 | D87: Lb,Oz,Acre | E87: 0 | F87: 0 | G87: 0
A88: Other Chemicals
B89: Fumigant | C89: 0 | D89: Lb,Oz,Acre | E89: 0 | F89: =C89*E89 -> 0 | G89: 0
B90: Other Chemical 1 | C90: 0 | D90: Lb,Oz,Acre | E90: 0 | F90: 0 | G90: =+F90*$D$5 -> 0
B91: Other Chemical 2 | C91: 0 | D91: Lb,Oz,Acre | E91: 0 | F91: 0 | G91: 0
B92: Other Chemical 3 | C92: 0 | D92: Lb,Oz,Acre | E92: 0 | F92: 0 | G92: 0
B93: Other Chemical 4 | C93: 0 | D93: Lb,Oz,Acre | E93: 0 | F93: 0 | G93: 0
B94: Other Chemical 5 | C94: 0 | D94: Lb,Oz,Acre | E94: 0 | F94: 0 | G94: 0
A95: Irrigation
B96: Well Expense | C96: 0 | D96: Acre | E96: 0 | F96: =C96*E96 -> 0 | G96: =+F96*$D$5 -> 0
B97: Pump Fuel | C97: 0 | D97: Mcf,kWh,Gallon | E97: 0 | F97: 0 | G97: 0
B98: Pump Expense | C98: 0 | D98: Acre | E98: 0 | F98: 0 | G98: 0
B99: Irrigation Equipment Expense | C99: 0 | D99: Acre | E99: 0 | F99: 0 | G99: 0
B100: Repairs | C100: 0 | D100: Acre | E100: 0 | F100: 0 | G100: 0
B101: Drip Tape | C101: 0 | D101: Foot,Acre | E101: 0 | F101: 0 | G101: 0
B102: Water Cost | C102: 0 | D102: AcIn,Gallon | E102: 0 | F102: 0 | G102: 0
B103: Other Irrigation Expense 1 | C103: 0 | D103: Acre | E103: 0 | F103: 0 | G103: 0
B104: Other Irrigation Expense 2 | C104: 0 | D104: Acre | E104: 0 | F104: 0 | G104: 0
A105: Miscellaneous Expenses
B106: Crop Insurance | C106: 0 | D106: Acre | E106: 0 | F106: =C106*E106 -> 0 | G106: 0
B107: Other Variable Expense 1 | C107: 0 | D107: Enter Unit | E107: 0 | F107: 0 | G107: 0
B108: Other Variable Expense 2 | C108: 0 | D108: Enter Unit | E108: 0 | F108: 0 | G108: 0
B109: Other Variable Expense 3 | C109: 0 | D109: Enter Unit | E109: 0 | F109: 0 | G109: 0
B110: Other Variable Expense 4 | C110: 0 | D110: Enter Unit | E110: 0 | F110: 0 | G110: 0
B111: Other Variable Expense 5 | C111: 0 | D111: Enter Unit | E111: 0 | F111: 0 | G111: 0
B112: Other Variable Expense 6 | C112: 0 | D112: Enter Unit | E112: 0 | F112: 0 | G112: 0
B113: Other Variable Expense 7 | C113: 0 | D113: Enter Unit | E113: 0 | F113: 0 | G113: 0
B114: Other Variable Expense 8 | C114: 0 | D114: Enter Unit | E114: 0 | F114: 0 | G114: 0
B116: Operating Interest | E116: 0 | F116: =+SUM(F23:F115)/2*E116 -> 0 | G116: =+F116*$D$6 -> 0
A118: Total Variable Costs | F118: =+SUM(F23:F116) -> 0 | G118: =+SUM(G23:G116) -> 0
A120: Planned Returns Above Variable Costs | F120: =+F18-F118 -> 0 | G120: =+G18-G118 -> 0
B122: Breakeven Price to Cover Variable Costs | E122: =+IF(C9=0,0,F118-SUM(F10:F16)/C9) -> 0 | F122: =+D9 -> Cwt,lb,etc
G124: Enterprise
A125: FIXED COSTS | C125: Quantity | D125: Units | E125: $/Unit | F125: Total | G125: Total
B126: Land Rent or Expense | C126: 0 | D126: Acre | E126: 0 | F126: =C126*E126 -> 0 | G126: =+F126*$D$6 -> 0
B127: Depreciation - Equipment | C127: 0 | D127: Acre,$,etc | E127: 0 | F127: =C127*E127 -> 0 | G127: 0
B128: Equipment Investment | C128: 0 | D128: Acre,$,etc | E128: 0 | F128: 0 | G128: 0
B129: Insurance | C129: 0 | D129: Acre,$,etc | E129: 0 | F129: 0 | G129: 0
B130: Management Fee | C130: 0 | D130: Acre,$,etc | E130: 0 | F130: 0 | G130: 0
B131: Owner/Operator Labor | C131: 0 | D131: Acre,$,etc | E131: 0 | F131: 0 | G131: 0
B132: Salaried Labor | C132: 0 | D132: Acre,$,etc | E132: 0 | F132: 0 | G132: 0
B133: Other Fixed Expense | C133: 0 | D133: Acre,$,etc | E133: 0 | F133: 0 | G133: 0
B134: Other Fixed Expense | C134: 0 | D134: Acre,$,etc | E134: 0 | F134: 0 | G134: 0
B135: Other Fixed Expense | C135: 0 | D135: Acre,$,etc | E135: 0 | F135: 0 | G135: 0
B136: Other Fixed Expense | C136: 0 | D136: Acre,$,etc | E136: 0 | F136: 0 | G136: 0
B137: Other Fixed Expense | C137: 0 | D137: Acre,$,etc | E137: 0 | F137: 0 | G137: 0
D139: Total Fixed Costs | F139: =+SUM(F126:F137) -> 0 | G139: =+SUM(G126:G137) -> 0
D141: Total Specified Costs | F141: =+F118+F139 -> 0 | G141: =+G118+G139 -> 0
D143: Returns Above Specifiied Costs | F143: =+F18-F141 -> 0 | G143: =+G18-G141 -> 0
B145: Breakeven Price to Cover Total Costs | E145: =+IF(C9=0,0,F141-SUM(F10:F16)/C9) -> 0 | F145: =+D9 -> Cwt,lb,etc
B147: Breakeven Prices for Your Crop
E148: To Cover | G148: To Cover
B149: Yield | C149: Yield | E149: Variable | G149: Total
B150: Percent | C150: =+D9 -> Cwt,lb,etc | E150: Costs | G150: Costs
B151: 0.75 | C151: =+$C$153*B151 -> 0 | E151: =+IF(C151=0,0,($F$118-SUM($F$10:$F$16))/C151) -> 0 | G151: =+IF(C151=0,0,($F$141-SUM($F$10:$F$16))/C151) -> 0
B152: 0.9 | C152: =+$C$153*B152 -> 0 | E152: 0 | G152: =+IF(C152=0,0,($F$141-SUM($F$10:$F$16))/C152) -> 0
B153: 1 | C153: =+C9 -> 0 | E153: =+IF(C153=0,0,($F$118-SUM($F$10:$F$16))/C153) -> 0 | G153: =+IF(C153=0,0,($F$141-SUM($F$10:$F$16))/C153) -> 0
B154: 1.1 | C154: 0 | E154: =+IF(C154=0,0,($F$118-SUM($F$10:$F$16))/C154) -> 0 | G154: =+IF(C154=0,0,($F$141-SUM($F$10:$F$16))/C154) -> 0
B155: 1.25 | C155: 0 | E155: 0 | G155: =+IF(C155=0,0,($F$141-SUM($F$10:$F$16))/C155) -> 0

Sheet Comparative Returns - Cash Rent
A1: Comparative Returns - Cash Rent
B3: Returns Above Total Specified Expenses | E3: Total Direct Expenses | H3: Break-Even Yield to Cover Total Costs at Price Entered
B4: Total | C4: Variable | E4: Total | F4: Variable | H4: Price | I4: Units | J4: Total | K4: Variable
A5: FORAGE CROPS
A7: =+AlfalfaEstablish!A3 -> Irrigated Alfalfa Establishment | B7: =+AlfalfaEstablish!TotRet -> -475.5855523 | C7: =+AlfalfaEstablish!VarRet -> -291.6202043 | E7: =+AlfalfaEstablish!TotExp -> 475.5855523 | F7: =+AlfalfaEstablish!VarExp -> 291.6202043 | H7: =+AlfalfaEstablish!Price -> 0 | I7: =+AlfalfaEstablish!Unit ->  | J7: =+IF($H7=0,0,E7/$H7) -> 0 | K7: =+IF($H7=0,0,F7/$H7) -> 0
A8: =+AlfalfaHay!A3 -> Irrigated Alfalfa | B8: =+AlfalfaHay!TotRet -> 209.7811913 | C8: =+AlfalfaHay!VarRet -> 545.0311913 | E8: =+AlfalfaHay!TotExp -> 1230.218809 | F8: =+AlfalfaHay!VarExp -> 894.9688087 | H8: =+AlfalfaHay!Price -> 240 | I8: =+AlfalfaHay!Unit -> Ton | J8: =+IF($H8=0,0,E8/$H8) -> 5.125911703 | K8: =+IF($H8=0,0,F8/$H8) -> 3.729036703
A9: =+CornSilage!A3 -> Irrigated Corn Silage | B9: =+CornSilage!TotRet -> 161.0721253 | C9: =+CornSilage!VarRet -> 396.3221253 | E9: =+CornSilage!TotExp -> 1188.927875 | F9: =+CornSilage!VarExp -> 953.6778747 | H9: =+CornSilage!Price -> 50 | I9: =+CornSilage!Unit -> Ton | J9: =+IF($H9=0,0,E9/$H9) -> 23.77855749 | K9: 19.07355749
A10: =+SorghumSilage!A3 -> Irrigated Sorghum Silage | B10: =+SorghumSilage!TotRet -> 139.3556863 | C10: =+SorghumSilage!VarRet -> 344.6056863 | E10: =+SorghumSilage!TotExp -> 890.2443137 | F10: =+SorghumSilage!VarExp -> 684.9943137 | H10: =+SorghumSilage!Price -> 42.9 | I10: =+SorghumSilage!Unit -> Ton | J10: 20.7516157 | K10: 15.96723342
A12: FIELD CROPS - IRRIGATED
A14: =+Blackeyes!A3 -> Irrigated Blackeyed Peas | B14: =+Blackeyes!TotRet -> 132.2550282 | C14: =+Blackeyes!VarRet -> 337.5050282 | E14: =+Blackeyes!TotExp -> 496.7449718 | F14: =+Blackeyes!VarExp -> 291.4949718 | H14: =+Blackeyes!Price -> 0.34 | I14: =+Blackeyes!Unit -> Pound | J14: =+IF($H14=0,0,E14/$H14) -> 1461.014623 | K14: =+IF($H14=0,0,F14/$H14) -> 857.3381525
A15: =+Corn!A3 -> Irrigated Corn | B15: =+Corn!TotRet -> -31.14805806 | C15: =+Corn!VarRet -> 204.1019419 | E15: =+Corn!TotExp -> 1055.948058 | F15: =+Corn!VarExp -> 820.6980581 | H15: =+Corn!Price -> 4.88 | I15: =+Corn!Unit -> Bushel | J15: 216.3827988 | K15: 168.1758316
A16: =+CottonDrip!A3 -> Irrigated Cotton - Drip | B16: =+CottonDrip!TotRet -> 36.15211248 | C16: =+CottonDrip!VarRet -> 291.4021125 | E16: =+CottonDrip!TotExp -> 1248.147888 | F16: =+CottonDrip!VarExp -> 992.8978875 | H16: =+CottonDrip!Price -> 0.7 | I16: =+CottonDrip!Unit -> Pound | J16: 1783.068411 | K16: 1418.425554
A17: =+CottonPivot!A3 -> Irrigated Cotton - Pivot | B17: =+CottonPivot!TotRet -> -101.7379795 | C17: =+CottonPivot!VarRet -> 103.5120205 | E17: =+CottonPivot!TotExp -> 957.9379795 | F17: =+CottonPivot!VarExp -> 752.6879795 | H17: =+CottonPivot!Price -> 0.7 | I17: =+CottonPivot!Unit -> Pound | J17: 1368.482828 | K17: 1075.268542
A18: =GuarIrragated!A3 -> Irrigated Guar | B18: =GuarIrragated!TotRet -> 313.784595 | C18: =GuarIrragated!VarRet -> 519.034595 | E18: =GuarIrragated!TotExp -> 406.215405 | F18: =GuarIrragated!VarExp -> 200.965405 | H18: =GuarIrragated!Price -> 0.6 | I18: =GuarIrragated!Unit -> Pound | J18: =IF(H18=0,0,E18/H18) -> 677.025675 | K18: =IF(H18=0,0,F18/H18) -> 334.9423417
